Workbook

Sheet Instructions (hidden)
A1: LM5164 Low IQ DC/DC Converter Design Tool
B4: Design Regulator tab
B5: Start with Step 1, and then work down towards the bottom of the worksheet.
B7: Step 1. Operating Specifications
B8: First, enter the values in the yellow shaded cells to define the power supply parameters. If a particular specification is not known, enter an estimate. It can be changed later, if necessary, to optimize component values. Cells with a red mark in the upper right corner have a comment to provide additional information. Hold the cursor over the cell to read the comment. A red font indicates an erroneous entry and requires an adjustment to the entry. Consult the entry's comments for the entry specific requirements.
B12: Second, select a desired mode of operation. PFM mode requires the fewest external components and the lowest inductance. As a result, it can provide the smallest solution size. At light loads, a PFM converter has a relatively longer sleep time interval and thus operates at lower input quiescent current levels. COT mode offers nearly constant switching frequency, relatively higher conversion efficiencies at medium to heavy loads, and enables the lowest output voltage ripple. Options COT1, COT2, and COT3 enable you to select a ripple generation method (a requirement for the stable operation in COT mode):
B17: -COT1: | C17: Type 1 ripple generation method requires a single resistor in series with the output capacitor. It is the simplest, the most compact, and the most economical method that works with fixed and adjustable device options, however, the output voltage ripple is the highest.
B19: -COT2: | C19: Type 2 ripple generation method requires a feedforward capacitor in addition to the series resistor. The feedforward capacitor reduces the required minimum value of the series resistor and ultimately the output voltage ripple by the VOUT / 1.223V factor. It only works with an adjustable device option (i.e. external feedback resistor network).
B21: -COT3: | C21: Type 3 ripple generation method three external components to generate and inject required voltage ripple into the FB node. In return, it provides the lowest output voltage ripple. It also only works with an adjustable device option (i.e. external feedback resistor network).
B24: Step 2. Filter Inductor
B25: First, select an inductor current limit level. In PFM Mode, 1.25A, 0.75A, 0.5A, and 1.25A - MOD options are available. For the 500mA max load, select either 1.25A or 1.25A - MOD option. The 1.25A - MOD option enables higher efficiency at the expense of slightly worse transient operation. For the 300mA and 200mA max loads, select 0.75A and 0.5A options respectively. In COT Mode, 0.75A and 0.5A options are available. For the 500mA and 300mA max loads, select 0.75A and 0.5A options respectively.
B29: Second, select the filter inductance value based on the suggested value. Enter the inductor RDC for accurate efficiency estimates.
B30: In PFM mode, selected inductance defines the switching frequency. You may select lower or higher inductance to increase or decrease the switching frequency. Watch the minimum output capacitance. At very low switching frequencies, the required minimum capacitance may become excessive.
B34: In COT mode, the suggested inductance is derived based on the target inductor (peak-to-peak) ripple current of 40% of the DC full load output current at nominal input voltage. It may be acceptable to use higher ripple current with the proviso that peak inductor current remains below the ILIM setting. Pk-to-Pk Ripple Current value will turn red if this is violated. If this happens, increase the selected inductance or decrease the Input Voltage (max) or both.
B38: Step 3. Output Capacitors and Ripple Generation
B39: First, select the output capacitance based on the minimum recommended value. Make sure that the nominal capacitance is appropriately derated for applied voltage, especially with ceramics. For PFM and COT3 modes, ensure that the capacitor ESR does not exceed the maximum allowable value.
B42: Second, for COT modes, select the values for the ripple generation components based on the minimum recommended values. Ensure that the output voltage ripple meets any of your minimum ripple requirements by reviewing the VOUT Ripple vs. IOUT plot in the fSW&Ripple tab. For accurate output voltage ripple estimates in COT3 mode, ensure that the Output Capacitor ESR is set to the levels of a typical ceramic capacitor ESR (e.g. 10 mW).
B46: Step 4. Input Capacitors
B47: Select the input capacitance based on the minimum recommended value. Make sure that the nominal capacitance is appropriately derated for applied voltage, especially with ceramics.
B50: Step 5. Feedback, Soft-Start, UVLO
B51: First, review the feedback resistor network. With an adjustable device option, an external feedback resistor network is required. The resistor values are automatically calculated based on the selected VOUT in Step 1. For lowering the leakage current through the resistors, adjust the upper FB resistor (R1) until the lower FB resistor (R2) reaches its upper end of the range (100kW). Keeping the upper FB resistor below 1MW is recommended.
B55: Second, select one out of three soft-start configurations. If the external soft-start option is selected, enter a desired soft start time.
B57: Third, select one out of the two UVLO options. If the external UVLO option is selected, define desired UVLO thresholds and hysteresis. Keeping the upper UVLO resistor at 1MW or higher is recommended for the minimum leakage current.
B60: Step 6. Efficiency and Thermals
B61: Enter the LM5166's junction-to-ambient thermal impedance (dependent on your PCB design, air flow, etc.) and ambient temperature. Device power dissipation and junction temperature are derived at the maximum load. Ensure that the junction temperature is within the recommended range.
B65: BOM & Schematic tab
B66: This tab summarizes the converter schematic and BOM. It also helps you estimate the total solution size. Select a package size for each external component (i.e. inductor, capacitors, and resistors) for accurate solution size estimates.
B69: Design EMI Filter tab
B70: In case an EMI filter is needed, a simple EMI filter design aid is given in this tab. It is based on the guidelines documented in TI's literature number SNVA489C (aka AN-2162). Suggest reviewing the note before using the design aid.
B73: fSW & Ripple tab
B74: In this tab, the switching/burst frequency (COT/PFM mode) and the output voltage ripple as a function of the load current are plotted.

Sheet Design Converter
A1: LM5163/4 Low IQ DC/DC Converter Design Tool
O2: http://www.ti.com/ww/en/analog/power_management/widevin
A3: About | C3: xx | F3: = Input Box | O3: Terms Of Use
A5: Step 1: Operating Specifications
D6: Input Voltage - Min, VIN(min) | E6: 12 | F6: V
D7: Input Voltage - Nom, VIN(nom) | E7: 48 | F7: V
D8: Input Voltage - Max, VIN(max) | E8: 90 | F8: V
D9: Output Voltage, VOUT | E9: 12 | F9: V
D10: Full Load Current, IOUT | E10: 0.25 | F10: A
D11: Mode of Operation | G11: =MODE -> 3
D12: Switching Frequency at VIN(nom) | E12: 1200 | F12: kHz
D13: Timing Resistance, RT | E13: ='Standard Value Calculator'!J4/1000 -> 24.9 | F13: kΩ
A15: Step 2: Buck Inductor
D16: Recommended Buck Inductance | E16: =Lopt*1000000 -> 75 | F16: µH
D17: Inductance, LF | E17: 33 | F17: µH
D18: Inductor DCR | E18: 120 | F18: mΩ
D19: =CHOOSE(MODE, "Pk-to-Pk Ripple Current","Pk-to-Pk Ripple Current","Pk-to-Pk Ripple Current", "Resulting PFM Switching Frequency") -> Pk-to-Pk Ripple Current | E19: =Iripple_Vinnom*1000 -> 227.8170391 | F19: mApk-pk
D20: =CHOOSE(MODE, 'Variable Mgmt'!H88,'Variable Mgmt'!H88,'Variable Mgmt'!H88, 'Variable Mgmt'!H89) -> % Ripple Current at Nom VIN | E20: =IF(OR(MODE=1,MODE=2,MODE=3), 'Variable Mgmt'!B96*100, Ilim/2*1000) -> 91.12681565 | F20: =IF(OR(MODE=1,MODE=2,MODE=3), "%", "mA") -> %
A22: =IF(MODE=4, "Step 3: Output Capacitors", "Step 3: Output Capacitors, Ripple Generation") -> Step 3: Output Capacitors, Ripple Generation
D23: Minimum Output Capacitance | E23: ='Variable Mgmt'!B116 -> 2.2 | F23: µF
D24: Output Capacitance, COUT | E24: 33 | F24: µF
D25: =IF(OR(MODE=1,MODE=2),"Recommended Series Resistance",IF(MODE=3,"Maximum Allowable ESR","*Higher Cout Improves Light-Load Eff")) -> Maximum Allowable ESR | E25: ='Variable Mgmt'!B272 -> 0.263 | F25: Ω
D26: =IF(OR(MODE=1,MODE=2),"Total ESR & Series Resistance, Rser",IF(MODE=3,"Output Capacitor ESR","*PFM Hysteresis Sets Output Ripple")) -> Output Capacitor ESR | E26: 0.005 | F26: Ω
D27: =CHOOSE(MODE, "Resulting Output Voltage Ripple","Resulting Output Voltage Ripple", "Output Voltage Ripple","Output Voltage Ripple") -> Output Voltage Ripple | E27: =CHOOSE(MODE, Vripple2*1000,Vripple2*1000,Vripple2*1000, PFM_Ripple) -> 1.347088659 | F27: mVpk-pk
D28: =IF(MODE=1,"",IF(MODE=2,"Minimum Feedforward Capacitance", IF(MODE=3,"Minimum Coupling Capacitance",""))) -> Minimum Coupling Capacitance | E28: ='Variable Mgmt'!B140 -> >47 | F28: pF
D29: =IF(MODE=1,"",IF(MODE=2,"Feedforward Capacitance, Cff", IF(MODE=3,"Coupling Capacitance, Cb",""))) -> Coupling Capacitance, Cb | E29: 56 | F29: pF | L29: ** Specify Inductor Core Loss ** | M29: 100 | N29: mW
D30: =IF(MODE=3,"Minimum Ripple Generation Capacitance","") -> Minimum Ripple Generation Capacitance | E30: ='Variable Mgmt'!B144 -> >185 | F30: pF
D31: =IF(MODE=3,"Ripple Generation Capacitance, Ca","") -> Ripple Generation Capacitance, Ca | E31: 2200 | F31: pF
D32: =IF(MODE=3,"Ripple Generation Resistance, Ra","") -> Ripple Generation Resistance, Ra | E32: =Ra -> 169 | F32: kΩ
D33: =IF(MODE=3,"Amplitude of Injected Ripple","") -> Amplitude of Injected Ripple | E33: 20 | F33: mVpk-pk
A35: Step 4: Input Capacitors
D36: Minimum Input Capacitance | E36: ='Variable Mgmt'!B157 -> 2.2 | F36: µF
D37: Input Capacitance, CIN | E37: 2.2 | F37: µF
D38: Maximum Allowable ESR | E38: ='Variable Mgmt'!B159 -> 6.546024793 | F38: Ω
D39: Input Capacitor ESR | E39: 3 | F39: mΩ
D40: Resulting Input Voltage Ripple | E40: =CHOOSE(MODE, Vinripple2*1000,Vinripple2*1000,Vinripple2*1000, 'Variable Mgmt'!B165*1000) -> 18.93753409 | F40: mVpk-pk
A42: Step 5: Feedback, PGOOD, UVLO
D43: Upper Feedback Resistor, RFB1 | E43: 453 | F43: kΩ
D44: Lower Feedback Resistor, RFB2 | E44: =IF(Vout=Vref,"OPEN",Rfb2_u/1000) -> 49.9 | F44: =IF(Vout=Vref,"","kΩ") -> kΩ
D45: Acutal Output Voltage Setpoint | E45: ='Variable Mgmt'!B201 -> 12.09378758 | F45: V
D46: PGOOD Pull-up Resistance | E46: 20 | F46: ="kΩ" -> kΩ
D47: BST Capacitance, CBST | E47: 2.2 | F47: nF
D48: ="Required Input Voltage UVLO Turn-on" -> Required Input Voltage UVLO Turn-on | E48: 6 | F48: V
D49: Upper UVLO Resistor, RUV1 | E49: 1 | F49: MΩ
D50: Lower UVLO Resistor, RUV2 | E50: ='Variable Mgmt'!F276 -> 332 | F50: ='Variable Mgmt'!G276 -> kΩ
D51: Actual UVLO Turn-on Threshold | E51: ='Variable Mgmt'!B186 -> 6.018072289 | F51: V
D52: Actual UVLO Turn-off Threshold | E52: ='Variable Mgmt'!B187 -> 5.61686747 | F52: V
A54: Step 6: Efficiency & Thermals
D55: Estimated Thermal Impedance, JJA | E55: 41 | F55: °C/W
D56: Ambient Temp, TA | E56: 25 | F56: °C
D57: IC Power Dissipation at Full Load, PD | E57: ='Variable Mgmt'!B26 -> 0.8940749722 | F57: W
D58: IC Junction Temp at Full Load, TJ | E58: =E56+E55*'Variable Mgmt'!B26 -> 61.65707386 | F58: °C

Sheet BOM & Schematic
A1: LM5163/4 100V Low IQ DC/DC Converter Design Tool
A28: ="VIN = "&Vin&" V, VOUT = "&Vout&" V, IOUT = "&Iout&" A "&'Variable Mgmt'!B35&" Converter" -> VIN = 48 V, VOUT = 12 V, IOUT = 0.25 A COT Converter
A29: Low IQ, High Efficiency, Synchronous Buck Converter BOM
A30: Count | B30: Ref Des | C30: Value | D30: Description | G30: Size | H30: Part Number | I30: MFR | J30: Footprint (mm) | K30: Area (mm2)
A31: =ROUNDUP('Design Converter'!E37/10,0) -> 1 | B31: CIN | C31: =Cin*1000000 -> 2.2 | D31: =IF(VIN_max>35, "Capacitor, Ceramic, "&'Variable Mgmt'!B257&", 100V, X7R, 10%", "Capacitor, Ceramic, "&'Variable Mgmt'!B257&", 50V, X7R, 10%") -> Capacitor, Ceramic, 2.2µF, 100V, X7R, 10% | G31: 5 | H31: Std | I31: Std | J31: =CHOOSE(G31,'Variable Mgmt'!T$41,'Variable Mgmt'!T$42,'Variable Mgmt'!T$43,'Variable Mgmt'!T$44,'Variable Mgmt'!T$45) -> 3.2 x 2.5 | K31: =CHOOSE(G31,'Variable Mgmt'!U$41,'Variable Mgmt'!U$42,'Variable Mgmt'!U$43,'Variable Mgmt'!U$44,'Variable Mgmt'!U$45) -> 8
A32: ='Variable Mgmt'!D252 -> 2 | B32: COUT | C32: ='Variable Mgmt'!F253 -> 22µF | D32: =CHOOSE(Cout_Voltage_Rating, "Capacitor, Ceramic, "&'Variable Mgmt'!F253&", 6.3V, X7R, 10%", "Capacitor, Ceramic, "&'Variable Mgmt'!F253&", 10V, X7R, 10%", "Capacitor, Ceramic, "&'Variable Mgmt'!F253&", 16V, X7R, 10%", "Capacitor, Ceramic, "&'Variable Mgmt'!F253&", 25V, X7R, 10%", "Capacitor, Ceramic, "&'Variable Mgmt'!F253&", 50V, X7R, 10%") -> Capacitor, Ceramic, 22µF, 16V, X7R, 10% | G32: 5 | H32: Std | I32: Std | J32: =CHOOSE(G32,'Variable Mgmt'!T$41,'Variable Mgmt'!T$42,'Variable Mgmt'!T$43,'Variable Mgmt'!T$44,'Variable Mgmt'!T$45) -> 3.2 x 2.5 | K32: =(CHOOSE(G32,'Variable Mgmt'!U$41,'Variable Mgmt'!U$42,'Variable Mgmt'!U$43,'Variable Mgmt'!U$44,'Variable Mgmt'!U$45))*A32 -> 16
A33: =CHOOSE(MODE, "-", "-", "1","-") -> 1 | B33: =CHOOSE(MODE,"-","-","Ca","-") -> Ca | C33: =CHOOSE(MODE, "-","-",'Variable Mgmt'!B293, "-") -> 2200pF | D33: =CHOOSE(MODE,"-","-", "Capacitor, Ceramic, "&'Variable Mgmt'!B293&", 16V, X7R, 10%", "-") -> Capacitor, Ceramic, 2200pF, 16V, X7R, 10% | G33: 1 | H33: =CHOOSE(MODE, "-", "-", "Std", "-") -> Std | I33: =H33 -> Std | J33: =CHOOSE(MODE,"","",CHOOSE(G33,'Variable Mgmt'!T$41,'Variable Mgmt'!T$42,'Variable Mgmt'!T$43,'Variable Mgmt'!T$44,'Variable Mgmt'!T$45),"") -> 1.0 x 0.5 | K33: =CHOOSE(MODE,"","",CHOOSE(G33,'Variable Mgmt'!U$41,'Variable Mgmt'!U$42,'Variable Mgmt'!U$43,'Variable Mgmt'!U$44,'Variable Mgmt'!U$45),"") -> 0.5
A34: =CHOOSE(MODE, "-", "1", "1","-") -> 1 | B34: =CHOOSE(MODE,"-","Cff","Cb","-") -> Cb | C34: =CHOOSE(MODE, "-",'Variable Mgmt'!B290,'Variable Mgmt'!B290, "-") -> 56pF | D34: =CHOOSE(MODE,"-","Capacitor, Ceramic, "&'Variable Mgmt'!B290&", 50V, X7R, 10%", "Capacitor, Ceramic, "&'Variable Mgmt'!B290&", 50V, X7R, 10%", "-") -> Capacitor, Ceramic, 56pF, 50V, X7R, 10% | G34: 1 | H34: =CHOOSE(MODE, "-", "Std", "Std", "-") -> Std | I34: =H34 -> Std | J34: =CHOOSE(MODE,"",CHOOSE(G34,'Variable Mgmt'!T$41,'Variable Mgmt'!T$42,'Variable Mgmt'!T$43,'Variable Mgmt'!T$44,'Variable Mgmt'!T$45),CHOOSE(G34,'Variable Mgmt'!T$41,'Variable Mgmt'!T$42,'Variable Mgmt'!T$43,'Variable Mgmt'!T$44,'Variable Mgmt'!T$45),"") -> 1.0 x 0.5 | K34: =CHOOSE(MODE,"",CHOOSE(G34,'Variable Mgmt'!U$41,'Variable Mgmt'!U$42,'Variable Mgmt'!U$43,'Variable Mgmt'!U$44,'Variable Mgmt'!U$45),CHOOSE(G34,'Variable Mgmt'!U$41,'Variable Mgmt'!U$42,'Variable Mgmt'!U$43,'Variable Mgmt'!U$44,'Variable Mgmt'!U$45),"") -> 0.5
A35: 1 | B35: CBST | C35: 2.2nF | D35: Capacitor, Ceramic, 2.2nF, 25V, X7R, 10% | G35: 1 | H35: =CHOOSE(MODE, "-", "Std", "Std", "-") -> Std | I35: =H35 -> Std | J35: =CHOOSE(MODE,"",CHOOSE(G35,'Variable Mgmt'!T$41,'Variable Mgmt'!T$42,'Variable Mgmt'!T$43,'Variable Mgmt'!T$44,'Variable Mgmt'!T$45),CHOOSE(G35,'Variable Mgmt'!T$41,'Variable Mgmt'!T$42,'Variable Mgmt'!T$43,'Variable Mgmt'!T$44,'Variable Mgmt'!T$45),"") -> 1.0 x 0.5 | K35: =CHOOSE(MODE,"",CHOOSE(G35,'Variable Mgmt'!U$41,'Variable Mgmt'!U$42,'Variable Mgmt'!U$43,'Variable Mgmt'!U$44,'Variable Mgmt'!U$45),CHOOSE(G35,'Variable Mgmt'!U$41,'Variable Mgmt'!U$42,'Variable Mgmt'!U$43,'Variable Mgmt'!U$44,'Variable Mgmt'!U$45),"") -> 0.5
A37: 1 | B37: LF | C37: ='Design Converter'!E17 -> 33 | D37: ="Inductor, "&Lf*1000000&" µH, "&Rdcr*1000&" mΩ, >"&ROUNDUP(Isat_min,2)&"A" -> Inductor, 33 µH, 120 mΩ, >1.8A | G37: 4 | H37: Various | I37: Various | J37: =CHOOSE(G37,'Variable Mgmt'!T50,'Variable Mgmt'!T51,'Variable Mgmt'!T52,'Variable Mgmt'!T53,'Variable Mgmt'!T54,'Variable Mgmt'!T55,'Variable Mgmt'!T56) -> 6.0 x 6.0 | K37: =CHOOSE(G37,'Variable Mgmt'!U50,'Variable Mgmt'!U51,'Variable Mgmt'!U52,'Variable Mgmt'!U53,'Variable Mgmt'!U54,'Variable Mgmt'!U55,'Variable Mgmt'!U56) -> 36
K38: =IF(MODE_RSET=2,CHOOSE(G38,'Variable Mgmt'!U$41,'Variable Mgmt'!U$42,'Variable Mgmt'!U$43,'Variable Mgmt'!U$44,'Variable Mgmt'!U$45),"") -> 
A39: =CHOOSE(MODE, "1","1","1", "-") -> 1 | B39: RT | C39: =CHOOSE(MODE, 'Design Converter'!E13, 'Design Converter'!E13,'Design Converter'!E13,"-") -> 24.9 | D39: =C39 -> 24.9 | G39: 1 | H39: =CHOOSE(MODE, "Std","Std","Std","-") -> Std | I39: =H39 -> Std | J39: =CHOOSE(MODE,CHOOSE(G39,'Variable Mgmt'!T$41,'Variable Mgmt'!T$42,'Variable Mgmt'!T$43,'Variable Mgmt'!T$44,'Variable Mgmt'!T$45),CHOOSE(G39,'Variable Mgmt'!T$41,'Variable Mgmt'!T$42,'Variable Mgmt'!T$43,'Variable Mgmt'!T$44,'Variable Mgmt'!T$45),CHOOSE(G39,'Variable Mgmt'!T$41,'Variable Mgmt'!T$42,'Variable Mgmt'!T$43,'Variable Mgmt'!T$44,'Variable Mgmt'!T$45),"") -> 1.0 x 0.5 | K39: =CHOOSE(MODE,CHOOSE(G39,'Variable Mgmt'!U$41,'Variable Mgmt'!U$42,'Variable Mgmt'!U$43,'Variable Mgmt'!U$44,'Variable Mgmt'!U$45),CHOOSE(G39,'Variable Mgmt'!U$41,'Variable Mgmt'!U$42,'Variable Mgmt'!U$43,'Variable Mgmt'!U$44,'Variable Mgmt'!U$45),CHOOSE(G39,'Variable Mgmt'!U$41,'Variable Mgmt'!U$42,'Variable Mgmt'!U$43,'Variable Mgmt'!U$44,'Variable Mgmt'!U$45),"") -> 0.5
A40: 1 | B40: RFB1 | C40: =Rfb1_/1000 -> 453 | D40: 453 | G40: 1 | H40: =CHOOSE(MODE_VOUT,"-","Std") -> Std | I40: =H40 -> Std | J40: =(CHOOSE(MODE_VOUT,"",CHOOSE(G40,'Variable Mgmt'!T$41,'Variable Mgmt'!T$42,'Variable Mgmt'!T$43,'Variable Mgmt'!T$44,'Variable Mgmt'!T$45))) -> 1.0 x 0.5 | K40: =CHOOSE(MODE_VOUT,"",CHOOSE(G40,'Variable Mgmt'!U$41,'Variable Mgmt'!U$42,'Variable Mgmt'!U$43,'Variable Mgmt'!U$44,'Variable Mgmt'!U$45)) -> 0.5
A41: 1 | B41: RFB2 | C41: =Rfb2_u/1000 -> 49.9 | D41: 49.9 | G41: 1 | H41: =CHOOSE(MODE_VOUT,"-","Std") -> Std | I41: =H41 -> Std | J41: =CHOOSE(MODE_VOUT,"",CHOOSE(G41,'Variable Mgmt'!T$41,'Variable Mgmt'!T$42,'Variable Mgmt'!T$43,'Variable Mgmt'!T$44,'Variable Mgmt'!T$45)) -> 1.0 x 0.5 | K41: =CHOOSE(MODE_VOUT,"",CHOOSE(G41,'Variable Mgmt'!U$41,'Variable Mgmt'!U$42,'Variable Mgmt'!U$43,'Variable Mgmt'!U$44,'Variable Mgmt'!U$45)) -> 0.5
A42: =IF(MODE=3,"1","-") -> 1 | B42: =CHOOSE(MODE,"-","-","Ra","-") -> Ra | C42: ='Variable Mgmt'!F296 -> 169k | D42: ="Resistor, Chip, "&'Variable Mgmt'!B296&", 1/16W, 1%" -> Resistor, Chip, 169kΩ, 1/16W, 1% | G42: 1 | H42: =CHOOSE(MODE, "-", "-", "Std", "-") -> Std | I42: =H42 -> Std | J42: =CHOOSE(MODE,"","",CHOOSE(G42,'Variable Mgmt'!T$41,'Variable Mgmt'!T$42,'Variable Mgmt'!T$43,'Variable Mgmt'!T$44,'Variable Mgmt'!T$45),"") -> 1.0 x 0.5 | K42: =CHOOSE(MODE,"","",CHOOSE(G42,'Variable Mgmt'!U$41,'Variable Mgmt'!U$42,'Variable Mgmt'!U$43,'Variable Mgmt'!U$44,'Variable Mgmt'!U$45),"") -> 0.5
A43: 1 | B43: RPGOOD | C43: 100 | D43: 100 | G43: 1 | H43: Std | I43: Std | J43: =CHOOSE(G43,'Variable Mgmt'!T$41,'Variable Mgmt'!T$42,'Variable Mgmt'!T$43,'Variable Mgmt'!T$44,'Variable Mgmt'!T$45) -> 1.0 x 0.5 | K43: =CHOOSE(G43,'Variable Mgmt'!U$41,'Variable Mgmt'!U$42,'Variable Mgmt'!U$43,'Variable Mgmt'!U$44,'Variable Mgmt'!U$45) -> 0.5
A44: =CHOOSE(MODE_UVLO, "1", "-") -> 1 | B44: RUV1 | C44: =CHOOSE(MODE_UVLO, 'Variable Mgmt'!H275, "-") -> 1M | D44: =CHOOSE(MODE_UVLO, "Resistor, Chip, "&'Variable Mgmt'!C275&", 1/16W, 1%", "-") -> Resistor, Chip, 1MΩ, 1/16W, 1% | G44: 2 | H44: =CHOOSE(MODE_UVLO,"Std","-") -> Std | I44: =H44 -> Std | J44: =CHOOSE(MODE_UVLO,CHOOSE(G44,'Variable Mgmt'!T$41,'Variable Mgmt'!T$42,'Variable Mgmt'!T$43,'Variable Mgmt'!T$44,'Variable Mgmt'!T$45),"") -> 1.6 x 0.8 | K44: =CHOOSE(MODE_UVLO,CHOOSE(G44,'Variable Mgmt'!U$41,'Variable Mgmt'!U$42,'Variable Mgmt'!U$43,'Variable Mgmt'!U$44,'Variable Mgmt'!U$45),"") -> 1.3
A45: =CHOOSE(MODE_UVLO, "1", "-") -> 1 | B45: RUV2 | C45: =CHOOSE(MODE_UVLO, 'Variable Mgmt'!H276, "-") -> 332k | D45: =CHOOSE(MODE_UVLO, "Resistor, Chip, "&'Variable Mgmt'!C276&", 1/16W, 1%", "-") -> Resistor, Chip, 332kΩ, 1/16W, 1% | G45: 1 | H45: =CHOOSE(MODE_UVLO,"Std","-") -> Std | I45: =H45 -> Std | J45: =CHOOSE(MODE_UVLO,CHOOSE(G45,'Variable Mgmt'!T$41,'Variable Mgmt'!T$42,'Variable Mgmt'!T$43,'Variable Mgmt'!T$44,'Variable Mgmt'!T$45),"") -> 1.0 x 0.5 | K45: =CHOOSE(MODE_UVLO,CHOOSE(G45,'Variable Mgmt'!U$41,'Variable Mgmt'!U$42,'Variable Mgmt'!U$43,'Variable Mgmt'!U$44,'Variable Mgmt'!U$45),"") -> 0.5
A46: 1 | B46: U1 | C46: =CHOOSE(VARIANT, "LM5163-Q1", "LM5164-Q1") -> LM5164-Q1 | D46: =CHOOSE(VARIANT, "IC, LM51643-Q1, Buck Converter, 6V–100V Input", "IC, LM5164-Q1, Buck Converter, 6V–100V Input") -> IC, LM5164-Q1, Buck Converter, 6V–100V Input | G46: SOIC-8 | H46: =CHOOSE(VARIANT, "LM5163QDDATQ1", "LM5164QDDATQ1") -> LM5164QDDATQ1 | I46: TI | J46: 5.0 x 6.0 | K46: 30
B48: ="Total Solution Size (padded by 15%) = "&ROUND(K48,1)&" mm^2 = "&ROUND(M48,3)&" in^2" -> Total Solution Size (padded by 15%) = 110.2 mm^2 = 0.171 in^2 | K48: =SUM(K31:K46)*1.15 -> 110.17 | M48: =K48/25.4/25.4 -> 0.1707638415
A50: NOTES:
A51: * Inductor saturation current should be higher than the peak inductor current setting for all operating temperatures *
A52: ** Effective input and output capacitances should be appropriately derated for applied voltage and temperature, particularly with ceramics **
A53: ***Estimated total solution size does not include EMI filter***

Sheet Fsw & Ripple (hidden)
A1: LM5164 Low IQ DC/DC Converter Design Tool

Sheet Losses (hidden)
A1: LM5166 Low IQ DC/DC Converter Design Tool
D5: Load Current | E5: 500 | F5: mA
D42: Inductor Core Loss Constant | E42: 0

Sheet EVM
A1: LM5163/4 100V, Low IQ DC/DC Converter Design Tool
B3: LM5164-Q1EVM-041 PCB Layout
O5: Top
O6: Layer
O31: Layer 2
O57: Layer 3
O84: Bottom
O85: Layer

Sheet Design EMI Filter
A1: LM5163/4 100V, Low IQ DC/DC Converter Design Tool
A7: Step 7: EMI Filter (Optional)
D8: Desired Maximum Noise Level, Vnoise(MAX) | E8: 50 | F8: dBmV
D9: EMI Filter Inductance, LF(EMI) | E9: 22 | F9: mH
D10: Minimum EMI Filter Capacitance | E10: ='Variable Mgmt'!M164 -> 0.02100980679 | F10: mF
D11: EMI Filter Capacitance, CF(EMI) | E11: 4.7 | F11: mF
D12: Minimum EMI Filter Damping Capacitance | E12: ='Variable Mgmt'!M168 -> 8.8 | F12: mF
D13: EMI Filter Damping Capacitance, CD(EMI) | E13: 10 | F13: mF
D14: Minimum Damping Capacitor ESR | E14: ='Variable Mgmt'!M169 -> 3.16227766 | F14: Ω
D15: Damping Capacitor ESR, ESR CD(EMI) | E15: 3.3 | F15: Ω
H29: EMI Filter BOM
H30: Count | I30: Ref Des | J30: Value | K30: Description | N30: Part Number | O30: MFR
H31: 1 | I31: LF(EMI) | J31: ='Variable Mgmt'!B298 -> 22µH | K31: ="Inductor, "&Lf_emi*1000000&" µH, "&ROUNDUP(Isat_min,2)&"A" -> Inductor, 22 µH, 1.8A | N31: Std | O31: Std
H32: 1 | I32: CF(EMI) | J32: ='Variable Mgmt'!B299 -> 4.7µF | K32: =IF(VIN_max>35, "Capacitor, Ceramic, "&'Variable Mgmt'!B299&", 100V, X7R, 10%", "Capacitor, Ceramic, "&'Variable Mgmt'!B299&", 50V, X7R, 10%") -> Capacitor, Ceramic, 4.7µF, 100V, X7R, 10% | N32: Std | O32: Std
H33: 1 | I33: CD(EMI) | J33: ='Variable Mgmt'!B300 -> 10µF | K33: =IF(VIN_max>35, "Capacitor, Electrolytic, "&'Variable Mgmt'!B300&", 100V, ESR>"&ESR_Cd&ohm, "Capacitor, Electrolytic, "&'Variable Mgmt'!B300&", 50V, ESR>"&ESR_Cd&ohm) -> Capacitor, Electrolytic, 10µF, 100V, ESR>3.3Ω | N33: Std | O33: Std

Sheet Variable Mgmt (hidden)
A1: EXCEL Variables Names/Calculations | L1: LM5166
B2: Input from user =
B3: Output =
B4: Constant
A5: Variable Name | B5: Value | C5: STD Units | E5: Notes | I5: Iteration
A6: Step 1: Operational Specs
A7: VIN_min | B7: ='Design Converter'!E6 -> 12 | C7: V | D7: Minimum input voltage | I7: 1
A8: VIN_nom | B8: ='Design Converter'!E7 -> 48 | C8: V | D8: Nominal input voltage
A9: VIN_max | B9: ='Design Converter'!E8 -> 90 | C9: V | D9: Maximum input voltage
A11: Vout | B11: ='Design Converter'!E9 -> 12 | C11: V | D11: Output Voltage | I11: 1
A12: Iout | B12: ='Design Converter'!E10 -> 0.25 | C12: A | D12: Maximum Output Current | I12: 1
A13: Rout | B13: =Vout/Iout -> 48 | C13: W | D13: Load resistance
A14: Pout | B14: =Vout*Iout -> 3 | C14: W | D14: Output power
A16: Efficiency | B16: 0.9 | D16: Estimate of efficiency
A17: Pin | B17: =Pout/Efficiency -> 3.333333333 | C17: W | D17: Calculate input power assuming 90% efficiency
A18: Iin_Vinmin | B18: =Pin/VIN_min -> 0.2777777778 | C18: A
A19: Iin_Vinnom | B19: =Pin/VIN_nom -> 0.06944444444 | C19: A | D19: Input currents at min, nom, max Vin
A20: Iin_Vinmax | B20: =Pin/VIN_max -> 0.03703703704 | C20: A
A22: Fsw | B22: ='Design Converter'!E12*1000 -> 1200000 | C22: Hz | D22: Nominal Switching Frequency | I22: 1
A23: Vref | B23: 1.2 | C23: V | D23: Reference Voltage
A24: Rt | B24: =Vout*2500000000/Fsw -> 25000 | C24: W | D24: Frequency Set Resistor
K25: =B34&"_"&F35&"_"&F39&"_"&I41&"_"&I36 -> COT3_VOUTadj_UVLOadj_SSAdj_RsetGND | Q25: Vout<5V | R25: 100 | S25: 1
A26: Internal PD at Full Load | B26: =IF(OR(MODE=1,MODE=2,MODE=3), Efficiency!AZ106,#REF!) -> 0.8940749722 | C26: W | Q26: Vout<=8V | R26: 47 | S26: 2
K27: ="SCH_"&B34&"_"&B41 -> SCH_COT3_LM5164 | Q27: Vout<=12V | R27: 22 | S27: 3
Q28: Vout<=20V | R28: 22 | S28: 4
A29: Step 2: Circuit Configuration for COT / PFM, Fixed / Adj Vout, ILIM, UVLO, SS | Q29: Vout>20V | R29: 10 | S29: 5
B30: COT Type I | C30: 1 | Q30: Cout Capacitance | R30: =CHOOSE(S30,"100", "47","22","22","10") -> 22 | S30: =IF(Vout<5, 1, IF(Vout<=8, 2, IF(Vout<=12, 3, IF(Vout<=20, 4, 5)))) -> 3
B31: COT Type II | C31: 2
A32: COT/PFM | B32: COT Type III | C32: 3
E33: VOUT Fixed/Adjustable | F33: Fixed | G33: 1 | I33: ILIM shorted | J33: 1 | K33: =B34&", "&F35&", "&I36&", "&F39&", "&I41 -> COT3, VOUTadj, RsetGND, UVLOadj, SSAdj | Q33: Vout<=5V | R33: 6.3V | S33: 1
A34: MODE | B34: =CHOOSE(C34, "COT1", "COT2","COT3") -> COT3 | C34: 3 | F34: Adjustable | G34: 2 | I34: ILIM resistor needed | J34: 2 | K34: =C34&", "&G35&", "&J36&", "&G39&", "&J41 -> 3, 2, 1, 1, 1 | Q34: Vout<=8V | R34: 10V | S34: 2
B35: =IF(MODE=4, "PFM", "COT") -> COT | E35: MODE_VOUT | F35: =CHOOSE(G35, "VOUTfixed", "VOUTadj") -> VOUTadj | G35: =IF(AND(OR(MODE=1,MODE=4),OR(Vout=3.3,Vout=5)),1,2) -> 2 | K35: =C34&G35&J36&G39&J41 -> 32111 | Q35: Vout<=12V | R35: 16V | S35: 3
H36: MODE_RSET | I36: =CHOOSE(J36, "RsetGND","Rset") -> RsetGND | J36: 1 | Q36: Vout<=20V | R36: 25V | S36: 4
E37: UVLO | F37: Adjustable | G37: 1 | Q37: Vout>20V | R37: 50V | S37: 5
F38: Internal | G38: 2 | H38: Soft Start | I38: Adjustable | J38: 1 | L38: Iout Linear Axis | M38: 1 | Q38: Cout Voltage Rating | R38: =CHOOSE(S38,"6.3V", "10V","16V","25V","50V") -> 16V | S38: =IF(Vout<=5, 1, IF(Vout<=8, 2, IF(Vout<=12, 3, IF(Vout<=20, 4, 5)))) -> 3
B39: LM5163 | C39: 1 | E39: MODE_UVLO | F39: =CHOOSE(G39, "UVLOadj", "UVLOint") -> UVLOadj | G39: 1 | I39: 3ms Fixed | J39: 2 | L39: Iout Log Axis | M39: 2
B40: LM5164 | C40: 2 | L40: PLOT_TYPE | M40: 1
A41: VARIANT | B41: =CHOOSE(VARIANT, "LM5163", "LM5164") -> LM5164 | C41: 2 | E41: ESR | F41: NO | G41: 1 | H41: MODE_SS | I41: =CHOOSE(J41, "SSAdj", "SSfix") -> SSAdj | J41: 1 | R41: 0402 | S41: 1 | T41: 1.0 x 0.5 | U41: 0.5
F42: YES | G42: 2 | R42: 0603 | S42: 2 | T42: 1.6 x 0.8 | U42: 1.3
E43: MODE_ESR | G43: 2 | R43: 0805 | S43: 3 | T43: 2.0 x 1.25 | U43: 2.5
F44: =CHOOSE(G44, "", "_ESR") -> _ESR | G44: =IF(MODE=2, 1, MODE_ESR) -> 2 | R44: 1206 | S44: 4 | T44: 3.2 x 1.6 | U44: 5.1
R45: 1210 | S45: 5 | T45: 3.2 x 2.5 | U45: 8
A46: Step 3: Buck Inductor | Q46: Component Size | R46: =CHOOSE(S46,"0402", "0603","0805","1206","1210") -> 1210 | S46: 5 | T46: =CHOOSE(S46,T41,T42,T43,T44,T45) -> 3.2 x 2.5
A47: Don1 | B47: =Vout/VIN_nom -> 0.25 | C47: =(Vout-VIN_nom)/Vout -> -3 | E47: Ideal Duty Cycle at VIN(nom) | I47: 1
A48: Doff1 | B48: =1-47:47 -> 0.75 | E48: Ideal 1- Duty Cycle at VIN(nom) | I48: 1
A50: Don_Vinmin | B50: =Vout/VIN_min -> 1 | C50: =IF(VIN_min>Vout, "BUCK", "BOOST") -> BOOST | R50: 3mm x 3mm | S50: 1 | T50: 3.0 x 3.0 | U50: 9
A51: Don_Vinnom | B51: =Vout/VIN_nom -> 0.25 | C51: =IF(VIN_nom>Vout, "BUCK", "BOOST") -> BUCK | R51: 4mm x 4mm | S51: 2 | T51: 4.0 x 4.0 | U51: 16
A52: Don_Vinmax | B52: =Vout/VIN_max -> 0.1333333333 | C52: =IF(VIN_max>Vout, "BUCK", "BOOST") -> BUCK | R52: 5mm x 5mm | S52: 3 | T52: 5.0 x 5.0 | U52: 25
R53: 6mm x 6mm | S53: 4 | T53: 6.0 x 6.0 | U53: 36
A54: Lf_Vinmin | B54: =(VIN_min-Vout)*Don_Vinmin/(Fsw*Iout*0.4) -> 0 | C54: H | D54: COT | R54: 7mm x 7mm | S54: 5 | T54: 7.0 x 7.0 | U54: 49
A55: Lf_Vinnom | B55: =(VIN_nom-Vout)*Don_Vinnom/(Fsw*Iout*0.4) -> 7.5e-05 | C55: H | D55: COT | I55: 1 | Q55: Inductor Size | R55: 8mm x 8mm | S55: 6 | T55: 8.0 x 8.0 | U55: 64
A56: Lf_Vinmax | B56: =(VIN_max-Vout)*Don_Vinmax/(Fsw*Iout*0.7) -> 4.952380952e-05 | C56: H | D56: COT | R56: 10mm x 10mm | S56: 7 | T56: 10.0 x 10.0 | U56: 100
A58: L_Vinmin_COT | B58: =(VIN_min-Vout)*Don_Vinmin/(Fsw*Iout*0.3) -> 0 | C58: H | D58: COT | E58: Calculated Inductance for 30% ripple at VIN(min)
A59: L_Vinnom_COT | B59: =(VIN_nom-Vout)*Don_Vinnom/(Fsw*Iout*0.4) -> 7.5e-05 | C59: H | D59: COT | E59: Calculated Inductance for 40% ripple at VIN(nom) | K59: Pk-to-Pk Ripple Current at VIN(nom), DIL
A60: L_Vinmax_COT | B60: =(VIN_max-Vout)*Don_Vinmax/(Fsw*Iout*0.7) -> 4.952380952e-05 | C60: H | D60: COT | E60: Calculated Inductance for 70% ripple at VIN(max)
A63: Lopt | B63: =B59 -> 7.5e-05 | C63: H
A65: Lf | B65: ='Design Converter'!E17/1000000 -> 3.3e-05 | C65: H | E65: Chosen Inductance
A66: Rdcr | B66: ='Design Converter'!E18/1000 -> 0.12 | C66: W | E66: Chosen Inductor DCR
A68: Don2 | B68: =(Vout+Iout*Rdcr)/Vin -> 0.250625 | E68: **Edit to add Rdson**
A69: Doff2 | B69: =1-_Don2 -> 0.749375
A71: Rdson1 | B71: 0.75 | C71: W
A72: Rdson2 | B72: 0.33 | C72: W
A74: Don_Vinmin_2 | B74: =(Vout+Iout*(Rdcr+Rdson2))/(VIN_min+Iout*Rdson2) -> 1.00248293 | E74: Duty cycles adjusted for DCR and shunt voltage drops
A75: Don_Vinnom_2 | B75: =(Vout+Iout*(Rdcr+Rdson2))/(VIN_nom+Iout*Rdson2) -> 0.2519107783 | E75: need to include RDS(on) later
A76: Don_Vinmax_2 | B76: =(Vout+Iout*(Rdcr+Rdson2))/(VIN_max+Iout*Rdson2) -> 0.1344600783
A78: Iripple_Vinmin | B78: =(VIN_min-Vout-Rdson1*Iout)*Don_Vinmin_2/(Fsw*Lf) -> -0.004746604782 | C78: A | D78: COT
A79: Iripple_Vinnom | B79: =(VIN_nom-Vout-Rdson1*Iout)*Don_Vinnom_2/(Fsw*Lf) -> 0.2278170391 | C79: A | D79: COT
A80: Iripple_Vinmax | B80: =(VIN_max-Vout)*Don_Vinmax_2/(Fsw*Lf) -> 0.2648456087 | C80: A | D80: COT
A82: ILpk_Vinmin | B82: =Iout+Iripple_Vinmin/2 -> 0.2476266976 | C82: A | D82: COT
A83: ILpk_Vinnom | B83: =Iout+Iripple_Vinnom/2 -> 0.3639085196 | C83: A | D83: COT
A84: ILpk_Vinmax | B84: =Iout+Iripple_Vinmax/2 -> 0.3824228043 | C84: A | D84: COT
A86: ILIM_Typ | B86: =CHOOSE(VARIANT, 0.75, 1.5) -> 1.5 | C86: A | E86: Isat_min | F86: =B86*1.2 -> 1.8
A88: Ripple current | B88: =IF(OR(MODE=1,MODE=2,MODE=3), Iripple_Vinnom, Iripple) -> 0.2278170391 | C88: A | H88: % Ripple Current at Nom VIN
H89: Maximum Load Current
A90: Max inductor ripple current | B90: =MAX(B78:B80) -> 0.2648456087 | C90: A
F91: Ripple I | G91: Iin
A92: % Ripple Current | B92: =B78/Iout -> -0.01898641913 | D92: COT | F92: =B78 -> -0.004746604782 | G92: =Iin_Vinmin -> 0.2777777778
B93: =B79/Iout -> 0.9112681565 | D93: COT | F93: =B79 -> 0.2278170391 | G93: =Iin_Vinnom -> 0.06944444444
B94: =B80/Iout -> 1.059382435 | D94: COT | F94: =B80 -> 0.2648456087 | G94: =Iin_Vinmax -> 0.03703703704
B96: =IF(OR(MODE=1, MODE=2,MODE=3), B93, Ilim/Iout) -> 0.9112681565
A98: Iripple1 | B98: =(Vin-Vout)*Don_Vinnom_2/(Fsw*Lf) -> 0.2290097985 | C98: A | D98: inductor ripple current with chosen inductance (pk-pk) | I98: 1
A99: Temp | B99: 100
A100: DCR at hot | B100: =Rdcr*(1+0.0039*(B99-25)) -> 0.1551 | C100: W
A104: Step 4: Output Capacitor
A105: Icoutrms_VINmin | B105: =Iripple_Vinmin/SQRT(12) -> -0.001370226774 | C105: A | D105: Output Cap RMS current
A106: Icoutrms_VINnom | B106: =Iripple_Vinnom/SQRT(12) -> 0.06576511443 | C106: A
A107: Icoutrms_VINmax | B107: =Iripple_Vinmax/SQRT(12) -> 0.07645434174 | C107: A | G107: =Vripple1 -> 0.06
A109: Output Ripple Spec (pk-pk) | B109: =Vout*0.005 -> 0.06 | C109: V | D109: Vout capacitive ripple spec at Vin(nom) = Vripple1
A111: Coutmin
A112: COT | B112: =Iripple_Vinnom/(Fsw*8*Vripple1) -> 3.955156929e-07 | C112: F | D112: COT | E112: Min recommended Cout based on ripple spec above | I112: 1
B113: =Lf*B83^2/((1.05*Vout)^2-Vout^2) -> 2.960820156e-07 | C113: F | D113: COT | E113: Min recommended Cout based on 5% load-off transient spec
A114: CoutMinCOT | B114: =MAX(B112:B113, 0.0000022) -> 2.2e-06 | C114: F | D114: COT | E114: max of 2 results and 2.2uF
A116: Reported Countmin | B116: =CoutMinCOT*1000000 -> 2.2 | C116: µF
A118: Cout | B118: ='Design Converter'!E24/1000000 -> 3.3e-05 | C118: F | D118: Chosen Output Capacitance | I118: 1
A119: Resrmax | B119: =SQRT((Vripple1/Iripple_Vinnom)^2-(1/(Fsw*Cout*8))^2) -> 0.2633503211 | C119: W | D119: Max ESR before ripple exceeds Vripple1 | I119: 1
A120: Type1 ESR for sufficient (20mV) COT ripple at FB pin | B120: =0.02*Vout/Vref/Iripple_Vinnom -> 0.87789746 | C120: W | D120: (a)
A121: Type2 ESR for sufficient (20mV) COT ripple at FB pin | B121: =0.02/Iripple_Vinnom -> 0.087789746 | C121: W | D121: (b)
A123: Type 1 Output Cap RC Time Constant | B123: =Cout*B130*1000000 -> 0 | C123: µs
A124: Type 2 Output Cap RC Time Constant | B124: =Cout*B131*1000000 -> 0 | C124: µs
A125: Ton @ Vin(min) | B125: =Vout/VIN_min/(Fsw) -> 8.333333333e-07 | C125: s
A126: Ton @ Vin(nom) | B126: =Vout/VIN_nom/(Fsw) -> 2.083333333e-07 | C126: s
A127: ESR so that RC > Ton/2 | B127: =B125/2/Cout -> 0.01262626263 | C127: W | D127: (c)
A130: Type1: Need ESR of… | B130: =IF(MODE=1, MAX(B120,B127), 0) -> 0 | C130: W | D130: Max of (a) and (c)
A131: Type2: Need ESR of… | B131: =IF(MODE=2, MAX(B121,B127), 0) -> 0 | C131: W | D131: Max of (b) and (c)
A133: Reported Cout ESR max | B133: =IF(OR(CoutEsrMax>0.5, CoutEsrMax<0, (ISERROR(CoutEsrMax))), "N/A", CoutEsrMax*1000) -> 263.3503211 | C133: mW
A135: CoutEsr | B135: ='Design Converter'!E26 -> 0.005 | C135: W | D135: Chosen ESR | I135: 1
A137: Actual Output Ripple | B137: =Iripple_Vinnom*SQRT(CoutEsr^2+(1/(8*Fsw*Cout))^2) -> 0.001347088659 | C137: Vp-p | D137: Vripple2
A139: Minimum Feedforward / Coupling Capacitance | B139: =MAX(1000000000000*0.00005/(3*Rfb1_),47) -> 47 | C139: pF | H139: =0.00005/3/Rfb1_ -> 3.679175865e-11
A140: Recommended Cff / Cb | B140: =IF(OR(MODE=2,MODE=3), ">"&ROUND(B139,0),"") -> >47 | C140: pF
A141: Selected Cff / Cb | B141: ='Design Converter'!$E$29 -> 56 | C141: pF
A143: Minimum Ripple Generation Capacitance | B143: =10/(Fsw*Rfb) -> 1.853965473e-10 | C143: F | D143: =1000000000000*B143 -> 185.3965473 | E143: pF | F143: =Rfb -> 44948.69755
A144: Recommended Ca | B144: =IF(MODE=3, ">"&ROUND(D143,0),"") -> >185 | C144: pF
A145: Selected Ca | B145: ='Design Converter'!E31 -> 2200 | C145: pF | D145: =B145/1000000000000 -> 2.2e-09 | E145: F
A147: Maximum Ripple Generation Resistance | B147: =(VIN_nom-Vout)*B126/((B149/1000)*Ca) -> 170454.5455 | C147: W | D147: =B147/1000 -> 170.4545455 | E147: kW
A148: Recommended Ra | B148: =IF(MODE=3, "<"&ROUND(D147,0),"") -> <170 | C148: kW | L148: Lf_emi | M148: ='Design EMI Filter'!$E$9 -> 22 | N148: uH | O148: =M148/1000000 -> 2.2e-05 | P148: H
A149: Ripple amplitude | B149: ='Design Converter'!E33 -> 20 | C149: mVp-p | L149: Cf_emi | M149: ='Design EMI Filter'!$E$11 -> 4.7 | N149: uF | O149: =M149/1000000 -> 4.7e-06 | P149: F
L150: Cd_emi | M150: ='Design EMI Filter'!$E$13 -> 10 | N150: uF | O150: =M150/1000000 -> 1e-05 | P150: F
L151: ESR_Cd | M151: ='Design EMI Filter'!$E$15 -> 3.3 | N151: Ω | O151: =M151 -> 3.3 | P151: Ω | Q151: =ESR_Cd&ohm -> 3.3Ω
A152: Step 5: Input Capacitor | L152: Min Noise | M152: ='Design EMI Filter'!$E$8 -> 50 | N152: dB | O152: noise limit
A153: Vinripple1 | B153: =0.05*VIN_nom -> 2.4 | C153: Vp-p | D153: Input voltage ripple spec (pk-pk) at Vin(nom) | L153: Duty Cycle | M153: =Vout/VIN_nom/Efficiency_COT_Full_Load -> 0.3333333333 | O153: calculated duty cycle
L154: Target Atten. | M154: =20*LOG(Iout/(PI()^2*Fsw*Cin)*SIN(PI()*Duty_Cycle)/0.000001) - Min_Noise -> 28.39133936 | N154: dB | O154: calculated attenuation
A155: Icinrms | B155: =Iout*SQRT(Don_Vinnom_2*(1-Don_Vinnom_2)) -> 0.1085275708 | C155: A
A156: Cinmin | B156: =Iout*Don_Vinnom_2*(1-Don_Vinnom_2)/(Vinripple1*Fsw-Iout*RCinEsr)*1000000 -> 0.01635865783 | C156: µF
A157: Reported Cinmin | B157: =IF(Cinmin<2.2, 2.2,Cinmin) -> 2.2 | C157: µF | L157: Filter Inductor
A158: Cin | B158: ='Design Converter'!E37/1000000 -> 2.2e-06 | C158: F | D158: Input capacitance | L158: Irms rating | M158: =Iout*1.5 -> 0.375 | N158: A | O158: calculated suggested IRMS rating
A159: CinEsrMax | B159: =-(Iout*Don_Vinnom_2*(1-Don_Vinnom_2)/(Cin*Fsw)-Vinripple1)/(Iout+Iripple_Vinnom/2) -> 6.546024793 | C159: W
A160: RCinEsr | B160: ='Design Converter'!E39/1000 -> 0.003 | C160: W | D160: Input capacitance series resistance (ESR)
A161: Reported Cin ESR max | B161: =IF(OR(CinEsrMax>12, CinEsrMax<0), "N/A",CinEsrMax*1000) -> 6546.024793 | C161: mΩ | L161: Filter Capacitor
L162: Cfa calculation | M162: =Cin/(Cin*Lf_emi*0.000001*(2*PI()*Fsw/10)^2 - 1) / 0.000001 -> -2.200060534 | N162: uF | O162: calculated value
A163: COT input voltage ripple - Vinripple2 | B163: =Iout*Don_Vinnom_2*(1-Don_Vinnom_2)/(Cin*Fsw)+(Iout +Iripple_Vinnom/2)*RCinEsr -> 0.01893753409 | C163: Vp-p | E163: =Iout*Don_Vinmax_2*(1-Don_Vinmax_2)/(Cin*Fsw) -> 0.0110208869 | F163: Vp-p | L163: Cfb calculation | M163: =1/(Lf_emi)*(10^(Target_Att/40)/(2*PI()*Fsw))^2/0.000001 -> 0.02100980679 | N163: uF | O163: calculated value
L164: Cf | M164: =MAX(M162,M163) -> 0.02100980679 | N164: uF | O164: calculated value
L167: Damping Capacitor
A168: Step 6: Soft Start | L168: Cd ≥ | M168: =4*Cin*1000000 -> 8.8 | N168: uF | O168: calculated value
A169: Tss | B169: ='Design Converter'!#REF!/1000 ->  | C169: s | D169: Soft-start time | L169: Cd ESR ≥ | M169: =SQRT(Lf_emi/Cin) -> 3.16227766 | N169: Ω | O169: calculated value
A170: Iss | B170: 1e-05 | C170: A | D170: Soft-start current
A171: Css | B171: =8.16*Tss/1000000 ->  | C171: F | D171: Required soft-start cap
A172: Css_u | B172: ='Standard Value Calculator'!B4 ->  | C172: F | D172: User selected SS cap | L172: CIN and Cd Capacitors Current Sharing and Rating
L173: Cd impedance | M173: =1/(2*PI()*Fsw*Cd_emi) + ESR_Cd -> 3.313262912 | N173: Ω | O173: calculated Cd impedance at the sw. frequency
A174: Step 7: Other Components - UVLO, PGOOD | L174: Cin impedance | M174: =1/(2*PI()*Fsw*Cin) + RCinEsr -> 0.06328596329 | N174: Ω | O174: calculated CIN impedance at the sw. frequency
A176: Rising UVLO/EN Threshold | B176: 1.5 | C176: V | L176: IRMS Total Input Cap | M176: =Iout*SQRT(Duty_Cycle*(1-Duty_Cycle)) -> 0.1178511302 | N176: A | O176: calculated total IRMS current for CIN and Cd combined
A177: Falling UVLO/EN Threshold | B177: 1.4 | C177: V | L177: IRMS Cd Act | M177: =IRMSTOT*(ZCIN/(ZCIN+ZCd)) -> 0.002208859571 | N177: A | O177: Calculated min IRMS current rating for Cd
A178: Voltage Hysteresis | B178: =B176-B177 -> 0.1 | C178: V | L178: IRMS CIN | M178: =IRMSTOT*(ZCd/(ZCIN+ZCd)) -> 0.1156422706 | N178: A | O178: Calculated min IRMS current rating for CIN
A180: VINUVLO_ON | B180: ='Design Converter'!E48 -> 6 | C180: V
A181: VINUVLO_OFF | C181: V
A183: RUV1 | B183: ='Design Converter'!E49*1000 -> 1000 | C183: kΩ | D183: ='Standard Value Calculator'!J16 -> 1000 | E183: kΩ | F183: =IF(Ruvlo1<0,"N/A",D183) -> 1000 | G183: =IF(Ruvlo1<0,"N/A",D183&"kΩ") -> 1000kΩ
A184: RUV2 | B184: =Vuvlo_on*Ruvlo1/(VINuvlo_on-Vuvlo_on) -> 333.3333333 | C184: kΩ | D184: ='Standard Value Calculator'!J17 -> 332 | E184: kΩ | F184: =IF(F183="N/A","N/A",D184) -> 332 | G184: =IF(G183="N/A","N/A",D184&"kΩ") -> 332kΩ
A186: VINUVLO_ON_ACTUAL | B186: =(D183+D184)/D184*Vuvlo_on -> 6.018072289 | C186: V
A187: VINUVLO_OFF_ACTUAL | B187: =(D183+D184)/D184*Vuvlo_off -> 5.61686747 | C187: V
A189: RPG | B189: 20 | C189: kΩ
A192: Step 8: FB Divider
A193: Pi | B193: 3.14159265 | D193: p
A194: Toff_Vinmax | B194: =(1-Don_Vinmax_2)/Fsw -> 7.212832681e-07 | C194: sec
A195: Ton_Vinmin | B195: =IF(VIN_min>Vout, (1-Don_Vinmin_2)/Fsw, Don_Vinmin_2/Fsw) -> 8.354024415e-07 | C195: sec
A197: Rfb1 | B197: ='Design Converter'!E43*1000 -> 453000 | C197: W | D197: Lower Feedback Resistance - chosen by user | I197: 1
A198: Rfb2 | B198: =IF(Vout=Vref,100000000,Vref*B197/((Vout-Vref))) -> 50333.33333 | C198: W | D198: Upper Feedback Resistance
A199: Rfb2_u | B199: =IF(Vout=Vref,"N/A",'Standard Value Calculator'!J10) -> 49900 | C199: W | D199: Std Value Upper Feedback Resistance
A200: Rfb | B200: =Rfb1_*Rfb2_u/(Rfb1_+Rfb2_u) -> 44948.69755 | C200: W | D200: Rfb1 || Rfb2_u
B201: =1.2/Rfb2_u*(Rfb2_u+Rfb1_) -> 12.09378758 | C201: V
A202: Ifb | B202: =CHOOSE(MODE_VOUT, IF(Vout=5, 0.000007, 0.0000038), Vout/(Rfb1_+Rfb2_u)) -> 2.38616027e-05
A204: Other Input Variables
A205: Rfets | B205: 0 | C205: W | D205: Series resistance due to FETs | H205: =_Don2*RdsonTop+Doff2*RdsonBot+B209*Vin^2*Fsw/2/(((Iripple1/SQRT(3))^2)) -> 395.7819539
A206: Diode loss eq res | B206: =0.00000002*Fsw*0.6*4/Iripple1 -> 0.2515176223
A207: Fet loss eq res | B207: =_Don2*RdsonTop+Doff2*RdsonBot -> 0.399989375
A208: cap loss eq res | B208: =B209*Vin^2*Fsw/2/(((Iripple1/SQRT(3))^2)) -> 395.3819645
A209: Sw cap | B209: 5e-09
A211: Step 8: Efficiency
A213: Design
A214: Ta | B214: 25 | C214: °C | D214: Ambient Temperature
A215: Components
A216: LTc | B216: =4000/1000000 -> 0.004 | C216: %/°C | D216: Inductor DCR Temp Co
A217: θCA | B217: 40 | C217: °C/W | D217: Inductor Core to Ambient Thermal Resistance
A218: RCinEsr | B218: =RCinEsr -> 0.003 | C218: W | D218: Input Capacitor ESR
A219: Part Characteristics
A220: Vcc | B220: =IF(Vin>7.7,7.5,Vin-0.2) -> 7.5 | C220: V
A221: Deadtime
A222: Deadtime | B222: 2e-08 | C222: s | D222: Total Deadtime | G222: 20ns for LM5166
A223: IQ
A224: IQ | B224: 1e-05 | C224: A | D224: Quiescent Current Of Controller (Not Switching!)
A227: IC Power Disipation | B227: Value | C227: Units
A228: Power Dis | B228: =Efficiency!AZ106 -> 0.8940749722 | C228: W
A229: Temp rise | B229: =B228*ThetaJA -> 36.74648136 | C229: °C
A230: Current (switching) | B230: =(Qg_Q1+Qg_Q2)*Fsw+Iq ->  | C230: A
A231: Qrr Current | B231: =Qrr_Q2*Fsw ->  | C231: A
A232: Diode Current | B232: =C232/Vin ->  | C232: =Deadtime*Fsw*(Ipp/2)*(Vsd_Q1+Vsd_Q2) -> 
A233: Total Application Switching IQ | B233: =SUM(B230:B232) ->  | C233: A
A236: SCHEMATIC LABELS
A239: ="RUV1 = "&'Design Converter'!E49&"MΩ" -> RUV1 = 1MΩ | B239: =C275 -> 1MΩ
A240: ="RUV2 = "&'Design Converter'!E50&"kΩ" -> RUV2 = 332kΩ | B240: =C276 -> 332kΩ
A241: ="Rhys = "&'Design Converter'!E52&"kΩ" -> Rhys = 5.61686746987952kΩ | B241: =C277 -> 
A243: ="LF = "&'Design Converter'!E17&"µH" -> LF = 33µH | B243: ='Design Converter'!E17&"µH" -> 33µH
A244: ="Rdcr = "&Rdcr*1000&"mΩ" -> Rdcr = 120mΩ | B244: =Rdcr*1000&"mΩ" -> 120mΩ
A245: ="Rt = "&'Design Converter'!I43&"kΩ" -> Rt = kΩ | B245: ='Design Converter'!I43&"kΩ" -> kΩ
A246: ="Css = "&ROUND(Css_u*1000000000,1)&"nF" ->  | B246: =ROUND(Css_u*1000000000,1)&"nF" -> 
A248: VIN | B248: =VIN_nom&"V" -> 48V
A249: VIN range | B249: =VIN_min&"V..."&VIN_max&"V" -> 12V...90V
A251: ="VOUT = "&'Design Converter'!E9&"V" -> VOUT = 12V | B251: ='Design Converter'!E9&"V" -> 12V
C252: =R30 -> 22 | D252: =ROUNDUP('Design Converter'!$E$24/C252,0) -> 2
A253: ="COUT = "&'Design Converter'!$E$24&"µF" -> COUT = 33µF | B253: ='Design Converter'!$E$24&"µF" -> 33µF | C253: =IF('Design Converter'!$E$24=OR(10, 22, 47, 100), 'Design Converter'!$E$24,C252) -> 22 | D253: =IF(D252=1, "",B255) -> 2 x | E253: =D253&C253&"µF" -> 2 x 22µF | F253: =C253&"µF" -> 22µF
A254: Capacitance per component (Cout) | B254: =C252&"µF" -> 22µF
A255: # of output caps | B255: =D252&" x " -> 2 x
... 46 more rows

Sheet Standard Value Calculator (hidden)
A2: Capacitors | B2: Css | C2: Cout | D2: Cin | E2: Cb
A3: Inputs | B3: =Css ->  | C3: =Cout -> 3.3e-05 | D3: =Cin -> 2.2e-06 | E3: =Cb -> 0 | H3: Resistors | I3: inputs | J3: Standard Result
A4: Standard Result | B4: =SUM(B6:B158)/1000000000000 ->  | C4: =SUM(C6:C158)/1000000000000 -> 3.3e-05 | D4: =SUM(D6:D158)/1000000000000 -> 2.2e-06 | E4: =IF(E3="OPEN","OPEN",SUM(E6:E158)/1000000000000) -> 0 | H4: Rt | I4: =Rt -> 25000 | J4: =IF(I4>(INT(0.5+100*POWER(10,IF(96*(LOG(I4)-INT(LOG(I4)))-ROUND(96*(LOG(I4)-INT(LOG(I4))),0)<0,ROUND(96*(LOG(I4)-INT(LOG(I4))),0)-1,ROUND(96*(LOG(I4)-INT(LOG(I4))),0))/96))*POWER(10,INT(LOG(I4))-2)+INT(0.5+100*POWER(10,(IF(96*(LOG(I4)-INT(LOG(I4)))-ROUND(96*(LOG(I4)-INT(LOG(I4))),0)<0,ROUND(96*(LOG(I4)-INT(LOG(I4))),0)-1,ROUND(96*(LOG(I4)-INT(LOG(I4))),0))+1)/96))*POWER(10,INT(LOG(I4))-2))/2,INT(0.5+100*POWER(10,(IF(96*(LOG(I4)-INT(LOG(I4)))-ROUND(96*(LOG(I4)-INT(LOG(I4))),0)<0,ROUND(96*(LOG(I4)-INT(LOG(I4))),0)-1,ROUND(96*(LOG(I4)-INT(LOG(I4))),0))+1)/96))*POWER(10,INT(LOG(I4))-2),INT(0.5+100*POWER(10,IF(96*(LOG(I4)-INT(LOG(I4)))-ROUND(96*(LOG(I4)-INT(LOG(I4))),0)<0,ROUND(96*(LOG(I4)-INT(LOG(I4))),0)-1,ROUND(96*(LOG(I4)-INT(LOG(I4))),0))/96))*POWER(10,INT(LOG(I4))-2)) -> 24900 | K4: Ω
A5: (pF)
A6: 0.47 | B6: =IF(IF((B$3*10^12-$A7)*(B$3*10^12-$A6)*-1<0,0,1)*IF(ABS(B$3*10^12-$A7)>(B$3*10^12-$A6),$A6,$A7)=B7,0,IF((B$3*10^12-$A7)*(B$3*10^12-$A6)*-1<0,0,1)*IF(ABS(B$3*10^12-$A7)>(B$3*10^12-$A6),$A6,$A7)) ->  | C6: =IF(IF((C$3*10^12-$A7)*(C$3*10^12-$A6)*-1<0,0,1)*IF(ABS(C$3*10^12-$A7)>(C$3*10^12-$A6),$A6,$A7)=C7,0,IF((C$3*10^12-$A7)*(C$3*10^12-$A6)*-1<0,0,1)*IF(ABS(C$3*10^12-$A7)>(C$3*10^12-$A6),$A6,$A7)) -> 0 | D6: =IF(IF((D$3*10^12-$A7)*(D$3*10^12-$A6)*-1<0,0,1)*IF(ABS(D$3*10^12-$A7)>(D$3*10^12-$A6),$A6,$A7)=D7,0,IF((D$3*10^12-$A7)*(D$3*10^12-$A6)*-1<0,0,1)*IF(ABS(D$3*10^12-$A7)>(D$3*10^12-$A6),$A6,$A7)) -> 0 | E6: =IF(IF((E$3*10^12-$A7)*(E$3*10^12-$A6)*-1<0,0,1)*IF(ABS(E$3*10^12-$A7)>(E$3*10^12-$A6),$A6,$A7)=E7,0,IF((E$3*10^12-$A7)*(E$3*10^12-$A6)*-1<0,0,1)*IF(ABS(E$3*10^12-$A7)>(E$3*10^12-$A6),$A6,$A7)) -> 0 | H6: Rshunt | I6: =Rshunt ->  | K6: Ω
A7: 0.56 | B7: =IF(IF((B$3*10^12-$A8)*(B$3*10^12-$A7)*-1<0,0,1)*IF(ABS(B$3*10^12-$A8)>(B$3*10^12-$A7),$A7,$A8)=B8,0,IF((B$3*10^12-$A8)*(B$3*10^12-$A7)*-1<0,0,1)*IF(ABS(B$3*10^12-$A8)>(B$3*10^12-$A7),$A7,$A8)) ->  | C7: =IF(IF((C$3*10^12-$A8)*(C$3*10^12-$A7)*-1<0,0,1)*IF(ABS(C$3*10^12-$A8)>(C$3*10^12-$A7),$A7,$A8)=C8,0,IF((C$3*10^12-$A8)*(C$3*10^12-$A7)*-1<0,0,1)*IF(ABS(C$3*10^12-$A8)>(C$3*10^12-$A7),$A7,$A8)) -> 0 | D7: =IF(IF((D$3*10^12-$A8)*(D$3*10^12-$A7)*-1<0,0,1)*IF(ABS(D$3*10^12-$A8)>(D$3*10^12-$A7),$A7,$A8)=D8,0,IF((D$3*10^12-$A8)*(D$3*10^12-$A7)*-1<0,0,1)*IF(ABS(D$3*10^12-$A8)>(D$3*10^12-$A7),$A7,$A8)) -> 0 | E7: =IF(IF((E$3*10^12-$A8)*(E$3*10^12-$A7)*-1<0,0,1)*IF(ABS(E$3*10^12-$A8)>(E$3*10^12-$A7),$A7,$A8)=E8,0,IF((E$3*10^12-$A8)*(E$3*10^12-$A7)*-1<0,0,1)*IF(ABS(E$3*10^12-$A8)>(E$3*10^12-$A7),$A7,$A8)) -> 0 | H7: Rc1ea | I7: =Rcea1 ->  | K7: Ω
A8: 0.68 | C8: 0 | D8: 0 | E8: 0
A9: 0.82 | C9: 0 | D9: 0 | E9: 0 | H9: Rfb1 | I9: =Rfb1_ -> 453000 | J9: 453000 | K9: Ω
A10: 1 | C10: 0 | D10: 0 | E10: 0 | H10: Rfb2 | I10: =Rfb2_ -> 50333.33333 | J10: =IF(I10="OPEN","OPEN",IF(I10>(INT(0.5+100*POWER(10,IF(96*(LOG(I10)-INT(LOG(I10)))-ROUND(96*(LOG(I10)-INT(LOG(I10))),0)<0,ROUND(96*(LOG(I10)-INT(LOG(I10))),0)-1,ROUND(96*(LOG(I10)-INT(LOG(I10))),0))/96))*POWER(10,INT(LOG(I10))-2)+INT(0.5+100*POWER(10,(IF(96*(LOG(I10)-INT(LOG(I10)))-ROUND(96*(LOG(I10)-INT(LOG(I10))),0)<0,ROUND(96*(LOG(I10)-INT(LOG(I10))),0)-1,ROUND(96*(LOG(I10)-INT(LOG(I10))),0))+1)/96))*POWER(10,INT(LOG(I10))-2))/2,INT(0.5+100*POWER(10,(IF(96*(LOG(I10)-INT(LOG(I10)))-ROUND(96*(LOG(I10)-INT(LOG(I10))),0)<0,ROUND(96*(LOG(I10)-INT(LOG(I10))),0)-1,ROUND(96*(LOG(I10)-INT(LOG(I10))),0))+1)/96))*POWER(10,INT(LOG(I10))-2),INT(0.5+100*POWER(10,IF(96*(LOG(I10)-INT(LOG(I10)))-ROUND(96*(LOG(I10)-INT(LOG(I10))),0)<0,ROUND(96*(LOG(I10)-INT(LOG(I10))),0)-1,ROUND(96*(LOG(I10)-INT(LOG(I10))),0))/96))*POWER(10,INT(LOG(I10))-2))) -> 49900 | K10: Ω
A11: 1.2 | C11: 0 | D11: 0 | E11: 0
A12: 1.5 | C12: 0 | D12: 0 | E12: 0
A13: 1.8 | C13: 0 | D13: 0 | E13: 0 | H13: Rs | I13: =Rs_ideal*1000 ->  | J13: =IF(I13=0,0,IF(I13>(INT(0.5+100*POWER(10,IF(96*(LOG(I13)-INT(LOG(I13)))-ROUND(96*(LOG(I13)-INT(LOG(I13))),0)<0,ROUND(96*(LOG(I13)-INT(LOG(I13))),0)-1,ROUND(96*(LOG(I13)-INT(LOG(I13))),0))/96))*POWER(10,INT(LOG(I13))-2)+INT(0.5+100*POWER(10,(IF(96*(LOG(I13)-INT(LOG(I13)))-ROUND(96*(LOG(I13)-INT(LOG(I13))),0)<0,ROUND(96*(LOG(I13)-INT(LOG(I13))),0)-1,ROUND(96*(LOG(I13)-INT(LOG(I13))),0))+1)/96))*POWER(10,INT(LOG(I13))-2))/2,INT(0.5+100*POWER(10,(IF(96*(LOG(I13)-INT(LOG(I13)))-ROUND(96*(LOG(I13)-INT(LOG(I13))),0)<0,ROUND(96*(LOG(I13)-INT(LOG(I13))),0)-1,ROUND(96*(LOG(I13)-INT(LOG(I13))),0))+1)/96))*POWER(10,INT(LOG(I13))-2),INT(0.5+100*POWER(10,IF(96*(LOG(I13)-INT(LOG(I13)))-ROUND(96*(LOG(I13)-INT(LOG(I13))),0)<0,ROUND(96*(LOG(I13)-INT(LOG(I13))),0)-1,ROUND(96*(LOG(I13)-INT(LOG(I13))),0))/96))*POWER(10,INT(LOG(I13))-2))) ->  | K13: mΩ
A14: 2.2 | B14: =IF(IF((B$3*10^12-$A15)*(B$3*10^12-$A14)*-1<0,0,1)*IF(ABS(B$3*10^12-$A15)>(B$3*10^12-$A14),$A14,$A15)=B15,0,IF((B$3*10^12-$A15)*(B$3*10^12-$A14)*-1<0,0,1)*IF(ABS(B$3*10^12-$A15)>(B$3*10^12-$A14),$A14,$A15)) ->  | C14: =IF(IF((C$3*10^12-$A15)*(C$3*10^12-$A14)*-1<0,0,1)*IF(ABS(C$3*10^12-$A15)>(C$3*10^12-$A14),$A14,$A15)=C15,0,IF((C$3*10^12-$A15)*(C$3*10^12-$A14)*-1<0,0,1)*IF(ABS(C$3*10^12-$A15)>(C$3*10^12-$A14),$A14,$A15)) -> 0 | D14: =IF(IF((D$3*10^12-$A15)*(D$3*10^12-$A14)*-1<0,0,1)*IF(ABS(D$3*10^12-$A15)>(D$3*10^12-$A14),$A14,$A15)=D15,0,IF((D$3*10^12-$A15)*(D$3*10^12-$A14)*-1<0,0,1)*IF(ABS(D$3*10^12-$A15)>(D$3*10^12-$A14),$A14,$A15)) -> 0 | E14: =IF(IF((E$3*10^12-$A15)*(E$3*10^12-$A14)*-1<0,0,1)*IF(ABS(E$3*10^12-$A15)>(E$3*10^12-$A14),$A14,$A15)=E15,0,IF((E$3*10^12-$A15)*(E$3*10^12-$A14)*-1<0,0,1)*IF(ABS(E$3*10^12-$A15)>(E$3*10^12-$A14),$A14,$A15)) -> 0 | H14: Cslope_ideal | I14: =Cslope_ideal ->  | J14: =#REF!*1000000000000 ->  | K14: pF
A15: 2.7 | C15: 0 | D15: 0 | E15: 0
A16: 3.3 | C16: 0 | D16: 0 | E16: 0 | H16: Ruv1 | I16: =Ruvlo1 -> 1000 | J16: =IF(I16="OPEN","OPEN",IF(I16>(INT(0.5+100*POWER(10,IF(96*(LOG(I16)-INT(LOG(I16)))-ROUND(96*(LOG(I16)-INT(LOG(I16))),0)<0,ROUND(96*(LOG(I16)-INT(LOG(I16))),0)-1,ROUND(96*(LOG(I16)-INT(LOG(I16))),0))/96))*POWER(10,INT(LOG(I16))-2)+INT(0.5+100*POWER(10,(IF(96*(LOG(I16)-INT(LOG(I16)))-ROUND(96*(LOG(I16)-INT(LOG(I16))),0)<0,ROUND(96*(LOG(I16)-INT(LOG(I16))),0)-1,ROUND(96*(LOG(I16)-INT(LOG(I16))),0))+1)/96))*POWER(10,INT(LOG(I16))-2))/2,INT(0.5+100*POWER(10,(IF(96*(LOG(I16)-INT(LOG(I16)))-ROUND(96*(LOG(I16)-INT(LOG(I16))),0)<0,ROUND(96*(LOG(I16)-INT(LOG(I16))),0)-1,ROUND(96*(LOG(I16)-INT(LOG(I16))),0))+1)/96))*POWER(10,INT(LOG(I16))-2),INT(0.5+100*POWER(10,IF(96*(LOG(I16)-INT(LOG(I16)))-ROUND(96*(LOG(I16)-INT(LOG(I16))),0)<0,ROUND(96*(LOG(I16)-INT(LOG(I16))),0)-1,ROUND(96*(LOG(I16)-INT(LOG(I16))),0))/96))*POWER(10,INT(LOG(I16))-2))) -> 1000 | K16: kΩ
A17: 3.9 | C17: 0 | D17: 0 | E17: 0 | H17: Ruv2 | I17: =Ruvlo2 -> 333.3333333 | J17: =IF(I17="OPEN","OPEN",IF(I17>(INT(0.5+100*POWER(10,IF(96*(LOG(I17)-INT(LOG(I17)))-ROUND(96*(LOG(I17)-INT(LOG(I17))),0)<0,ROUND(96*(LOG(I17)-INT(LOG(I17))),0)-1,ROUND(96*(LOG(I17)-INT(LOG(I17))),0))/96))*POWER(10,INT(LOG(I17))-2)+INT(0.5+100*POWER(10,(IF(96*(LOG(I17)-INT(LOG(I17)))-ROUND(96*(LOG(I17)-INT(LOG(I17))),0)<0,ROUND(96*(LOG(I17)-INT(LOG(I17))),0)-1,ROUND(96*(LOG(I17)-INT(LOG(I17))),0))+1)/96))*POWER(10,INT(LOG(I17))-2))/2,INT(0.5+100*POWER(10,(IF(96*(LOG(I17)-INT(LOG(I17)))-ROUND(96*(LOG(I17)-INT(LOG(I17))),0)<0,ROUND(96*(LOG(I17)-INT(LOG(I17))),0)-1,ROUND(96*(LOG(I17)-INT(LOG(I17))),0))+1)/96))*POWER(10,INT(LOG(I17))-2),INT(0.5+100*POWER(10,IF(96*(LOG(I17)-INT(LOG(I17)))-ROUND(96*(LOG(I17)-INT(LOG(I17))),0)<0,ROUND(96*(LOG(I17)-INT(LOG(I17))),0)-1,ROUND(96*(LOG(I17)-INT(LOG(I17))),0))/96))*POWER(10,INT(LOG(I17))-2))) -> 332 | K17: kΩ
A18: 4.7 | C18: 0 | D18: 0 | E18: 0 | H18: Rhys | I18: =Rhys ->  | J18: =IF(I18="OPEN","OPEN",IF(I18>(INT(0.5+100*POWER(10,IF(96*(LOG(I18)-INT(LOG(I18)))-ROUND(96*(LOG(I18)-INT(LOG(I18))),0)<0,ROUND(96*(LOG(I18)-INT(LOG(I18))),0)-1,ROUND(96*(LOG(I18)-INT(LOG(I18))),0))/96))*POWER(10,INT(LOG(I18))-2)+INT(0.5+100*POWER(10,(IF(96*(LOG(I18)-INT(LOG(I18)))-ROUND(96*(LOG(I18)-INT(LOG(I18))),0)<0,ROUND(96*(LOG(I18)-INT(LOG(I18))),0)-1,ROUND(96*(LOG(I18)-INT(LOG(I18))),0))+1)/96))*POWER(10,INT(LOG(I18))-2))/2,INT(0.5+100*POWER(10,(IF(96*(LOG(I18)-INT(LOG(I18)))-ROUND(96*(LOG(I18)-INT(LOG(I18))),0)<0,ROUND(96*(LOG(I18)-INT(LOG(I18))),0)-1,ROUND(96*(LOG(I18)-INT(LOG(I18))),0))+1)/96))*POWER(10,INT(LOG(I18))-2),INT(0.5+100*POWER(10,IF(96*(LOG(I18)-INT(LOG(I18)))-ROUND(96*(LOG(I18)-INT(LOG(I18))),0)<0,ROUND(96*(LOG(I18)-INT(LOG(I18))),0)-1,ROUND(96*(LOG(I18)-INT(LOG(I18))),0))/96))*POWER(10,INT(LOG(I18))-2))) ->  | K18: kΩ
A19: 5.6 | C19: 0 | D19: 0 | E19: 0
A20: 6.8 | C20: 0 | D20: 0 | E20: 0 | H20: Ra | I20: ='Variable Mgmt'!D147 -> 170.4545455 | J20: =IF(I20="OPEN","OPEN",IF(I20>(INT(0.5+100*POWER(10,IF(96*(LOG(I20)-INT(LOG(I20)))-ROUND(96*(LOG(I20)-INT(LOG(I20))),0)<0,ROUND(96*(LOG(I20)-INT(LOG(I20))),0)-1,ROUND(96*(LOG(I20)-INT(LOG(I20))),0))/96))*POWER(10,INT(LOG(I20))-2)+INT(0.5+100*POWER(10,(IF(96*(LOG(I20)-INT(LOG(I20)))-ROUND(96*(LOG(I20)-INT(LOG(I20))),0)<0,ROUND(96*(LOG(I20)-INT(LOG(I20))),0)-1,ROUND(96*(LOG(I20)-INT(LOG(I20))),0))+1)/96))*POWER(10,INT(LOG(I20))-2))/2,INT(0.5+100*POWER(10,(IF(96*(LOG(I20)-INT(LOG(I20)))-ROUND(96*(LOG(I20)-INT(LOG(I20))),0)<0,ROUND(96*(LOG(I20)-INT(LOG(I20))),0)-1,ROUND(96*(LOG(I20)-INT(LOG(I20))),0))+1)/96))*POWER(10,INT(LOG(I20))-2),INT(0.5+100*POWER(10,IF(96*(LOG(I20)-INT(LOG(I20)))-ROUND(96*(LOG(I20)-INT(LOG(I20))),0)<0,ROUND(96*(LOG(I20)-INT(LOG(I20))),0)-1,ROUND(96*(LOG(I20)-INT(LOG(I20))),0))/96))*POWER(10,INT(LOG(I20))-2))) -> 169 | K20: kΩ
A21: 8.2 | C21: 0 | D21: 0 | E21: 0
A22: 10 | C22: 0 | D22: 0 | E22: 0
A23: 12 | C23: 0 | D23: 0 | E23: 0
A24: 15 | C24: 0 | D24: 0 | E24: 0
A25: 18 | C25: 0 | D25: 0 | E25: 0
A26: 22 | C26: 0 | D26: 0 | E26: 0
A27: 27 | C27: 0 | D27: 0 | E27: 0
A28: 33 | C28: 0 | D28: 0 | E28: 0
A29: 39 | C29: 0 | D29: 0 | E29: 0
A30: 47 | C30: 0 | D30: 0 | E30: 0
A31: 56 | C31: 0 | D31: 0 | E31: 0
A32: 68 | C32: 0 | D32: 0 | E32: 0
A33: 82 | C33: 0 | D33: 0 | E33: 0
A34: =A22*10 -> 100 | C34: 0 | D34: 0 | E34: 0
A35: =A23*10 -> 120 | C35: 0 | D35: 0 | E35: 0
A36: 150 | C36: 0 | D36: 0 | E36: 0
A37: 180 | C37: 0 | D37: 0 | E37: 0
A38: 220 | C38: 0 | D38: 0 | E38: =IF(IF((E$3*10^12-$A39)*(E$3*10^12-$A38)*-1<0,0,1)*IF(ABS(E$3*10^12-$A39)>(E$3*10^12-$A38),$A38,$A39)=E39,0,IF((E$3*10^12-$A39)*(E$3*10^12-$A38)*-1<0,0,1)*IF(ABS(E$3*10^12-$A39)>(E$3*10^12-$A38),$A38,$A39)) -> 0
A39: 270 | C39: 0 | D39: 0 | E39: 0
A40: 330 | C40: 0 | D40: 0 | E40: 0
A41: 390 | C41: 0 | D41: 0 | E41: 0
A42: 470 | C42: 0 | D42: 0 | E42: 0
A43: 560 | C43: 0 | D43: 0 | E43: 0
A44: 680 | C44: 0 | D44: 0 | E44: 0
A45: =A33*10 -> 820 | C45: 0 | D45: 0 | E45: 0
A46: 1000 | C46: 0 | D46: 0 | E46: 0
A47: 1200 | C47: 0 | D47: 0 | E47: 0
A48: 1500 | C48: 0 | D48: 0 | E48: 0
A49: 1800 | C49: 0 | D49: 0 | E49: 0
A50: 2200 | C50: 0 | D50: 0 | E50: 0
A51: 2700 | C51: 0 | D51: 0 | E51: 0
A52: 3300 | C52: 0 | D52: 0 | E52: 0
A53: 3900 | C53: 0 | D53: 0 | E53: 0
A54: 4700 | C54: 0 | D54: 0 | E54: 0
A55: 5600 | C55: 0 | D55: 0 | E55: 0
A56: 6800 | C56: 0 | D56: 0 | E56: 0
A57: 8200 | C57: 0 | D57: 0 | E57: 0
A58: 10000 | C58: 0 | D58: 0 | E58: 0
A59: 12000 | C59: 0 | D59: 0 | E59: 0
A60: 15000 | C60: 0 | D60: 0 | E60: 0
A61: 18000 | C61: 0 | D61: 0 | E61: 0
A62: 22000 | C62: 0 | D62: 0 | E62: 0
A63: 27000 | C63: 0 | D63: 0 | E63: 0
A64: 33000 | C64: 0 | D64: 0 | E64: 0
A65: 39000 | C65: 0 | D65: 0 | E65: 0
A66: 47000 | C66: 0 | D66: 0 | E66: 0
A67: 56000 | C67: 0 | D67: 0 | E67: 0
A68: 68000 | C68: 0 | D68: 0 | E68: 0
A69: 82000 | C69: 0 | D69: 0 | E69: 0
A70: 100000 | C70: =IF(IF((C$3*10^12-$A71)*(C$3*10^12-$A70)*-1<0,0,1)*IF(ABS(C$3*10^12-$A71)>(C$3*10^12-$A70),$A70,$A71)=C71,0,IF((C$3*10^12-$A71)*(C$3*10^12-$A70)*-1<0,0,1)*IF(ABS(C$3*10^12-$A71)>(C$3*10^12-$A70),$A70,$A71)) -> 0 | D70: =IF(IF((D$3*10^12-$A71)*(D$3*10^12-$A70)*-1<0,0,1)*IF(ABS(D$3*10^12-$A71)>(D$3*10^12-$A70),$A70,$A71)=D71,0,IF((D$3*10^12-$A71)*(D$3*10^12-$A70)*-1<0,0,1)*IF(ABS(D$3*10^12-$A71)>(D$3*10^12-$A70),$A70,$A71)) -> 0 | E70: =IF(IF((E$3*10^12-$A71)*(E$3*10^12-$A70)*-1<0,0,1)*IF(ABS(E$3*10^12-$A71)>(E$3*10^12-$A70),$A70,$A71)=E71,0,IF((E$3*10^12-$A71)*(E$3*10^12-$A70)*-1<0,0,1)*IF(ABS(E$3*10^12-$A71)>(E$3*10^12-$A70),$A70,$A71)) -> 0
A71: 120000 | B71: =IF(IF((B$3*10^12-$A72)*(B$3*10^12-$A71)*-1<0,0,1)*IF(ABS(B$3*10^12-$A72)>(B$3*10^12-$A71),$A71,$A72)=B72,0,IF((B$3*10^12-$A72)*(B$3*10^12-$A71)*-1<0,0,1)*IF(ABS(B$3*10^12-$A72)>(B$3*10^12-$A71),$A71,$A72)) ->  | C71: =IF(IF((C$3*10^12-$A72)*(C$3*10^12-$A71)*-1<0,0,1)*IF(ABS(C$3*10^12-$A72)>(C$3*10^12-$A71),$A71,$A72)=C72,0,IF((C$3*10^12-$A72)*(C$3*10^12-$A71)*-1<0,0,1)*IF(ABS(C$3*10^12-$A72)>(C$3*10^12-$A71),$A71,$A72)) -> 0 | D71: =IF(IF((D$3*10^12-$A72)*(D$3*10^12-$A71)*-1<0,0,1)*IF(ABS(D$3*10^12-$A72)>(D$3*10^12-$A71),$A71,$A72)=D72,0,IF((D$3*10^12-$A72)*(D$3*10^12-$A71)*-1<0,0,1)*IF(ABS(D$3*10^12-$A72)>(D$3*10^12-$A71),$A71,$A72)) -> 0 | E71: 0
A72: 150000 | C72: 0 | D72: 0 | E72: 0
A73: 180000 | C73: 0 | D73: 0 | E73: 0
A74: 220000 | C74: 0 | D74: 0 | E74: 0
A75: 270000 | C75: 0 | D75: 0 | E75: 0
A76: 330000 | C76: 0 | D76: 0 | E76: 0
A77: 390000 | C77: 0 | D77: 0 | E77: 0
A78: 470000 | C78: 0 | D78: 0 | E78: 0
A79: 560000 | C79: 0 | D79: 0 | E79: 0
A80: 680000 | C80: 0 | D80: 0 | E80: 0
A81: 820000 | C81: 0 | D81: 0 | E81: 0
A82: 1000000 | C82: 0 | D82: 0 | E82: 0
A83: 1200000 | C83: 0 | D83: 0 | E83: 0
A84: 1500000 | C84: 0 | D84: 0 | E84: 0
A85: 1800000 | C85: 0 | D85: 0 | E85: 0
A86: 2200000 | C86: 0 | D86: 2200000 | E86: 0
A87: 2700000 | C87: 0 | D87: 0 | E87: 0
A88: 3300000 | C88: 0 | D88: 0 | E88: 0
A89: 3900000 | C89: 0 | D89: 0 | E89: 0
A90: 4700000 | C90: 0 | D90: 0 | E90: 0
A91: 5600000 | C91: 0 | D91: 0 | E91: 0
A92: 6800000 | C92: 0 | D92: 0 | E92: 0
A93: 8200000 | C93: 0 | D93: 0 | E93: 0
A94: 10000000 | C94: 0 | D94: 0 | E94: 0
A95: 12000000 | C95: 0 | D95: 0 | E95: 0
A96: 15000000 | C96: 0 | D96: 0 | E96: 0
A97: 18000000 | C97: 0 | D97: 0 | E97: 0
A98: 22000000 | C98: 0 | D98: 0 | E98: 0
A99: =A87*10 -> 27000000 | C99: 0 | D99: 0 | E99: 0
A100: 33000000 | C100: 33000000 | D100: 0 | E100: 0
A101: 39000000 | C101: 0 | D101: 0 | E101: 0
A102: 47000000 | C102: 0 | D102: 0 | E102: =IF(IF((E$3*10^12-$A103)*(E$3*10^12-$A102)*-1<0,0,1)*IF(ABS(E$3*10^12-$A103)>(E$3*10^12-$A102),$A102,$A103)=E103,0,IF((E$3*10^12-$A103)*(E$3*10^12-$A102)*-1<0,0,1)*IF(ABS(E$3*10^12-$A103)>(E$3*10^12-$A102),$A102,$A103)) -> 0
A103: 56000000 | C103: 0 | D103: =IF(IF((D$3*10^12-$A104)*(D$3*10^12-$A103)*-1<0,0,1)*IF(ABS(D$3*10^12-$A104)>(D$3*10^12-$A103),$A103,$A104)=D104,0,IF((D$3*10^12-$A104)*(D$3*10^12-$A103)*-1<0,0,1)*IF(ABS(D$3*10^12-$A104)>(D$3*10^12-$A103),$A103,$A104)) -> 0 | E103: 0
A104: 68000000 | C104: 0 | D104: 0 | E104: 0
A105: 82000000 | C105: 0 | D105: 0 | E105: 0
A106: 100000000 | C106: 0 | D106: 0 | E106: 0
A107: 120000000 | C107: 0 | D107: 0 | E107: 0
A108: 150000000 | C108: 0 | D108: 0 | E108: 0
A109: 180000000 | C109: 0 | D109: 0 | E109: 0
A110: 220000000 | C110: 0 | D110: 0 | E110: 0
A111: 270000000 | C111: 0 | D111: 0 | E111: 0
A112: 330000000 | C112: 0 | D112: 0 | E112: 0
A113: 390000000 | C113: 0 | D113: 0 | E113: 0
A114: 470000000 | C114: 0 | D114: 0 | E114: 0
A115: 560000000 | C115: 0 | D115: 0 | E115: 0
A116: 680000000 | C116: 0 | D116: 0 | E116: 0
A117: 820000000 | C117: 0 | D117: 0 | E117: 0
A118: 1000000000 | C118: 0 | D118: 0 | E118: 0
A119: 1200000000 | C119: 0 | D119: 0 | E119: 0
A120: 1500000000 | C120: 0 | D120: 0 | E120: 0
A121: 1800000000 | C121: 0 | D121: 0 | E121: 0
A122: 2200000000 | C122: 0 | D122: 0 | E122: 0
A123: 2700000000 | C123: 0 | D123: 0 | E123: 0
A124: 3300000000 | C124: 0 | D124: 0 | E124: 0
A125: 3900000000 | C125: 0 | D125: 0 | E125: 0
A126: 4700000000 | C126: 0 | D126: 0 | E126: 0
A127: 5600000000 | C127: 0 | D127: 0 | E127: 0
A128: 6800000000 | C128: 0 | D128: 0 | E128: 0
A129: 8200000000 | C129: 0 | D129: 0 | E129: 0
A130: 10000000000 | C130: 0 | D130: 0 | E130: 0
A131: 12000000000 | C131: 0 | D131: 0 | E131: 0
A132: 15000000000 | C132: 0 | D132: 0 | E132: 0
A133: 18000000000 | C133: 0 | D133: 0 | E133: 0
A134: 22000000000 | C134: =IF(IF((C$3*10^12-$A135)*(C$3*10^12-$A134)*-1<0,0,1)*IF(ABS(C$3*10^12-$A135)>(C$3*10^12-$A134),$A134,$A135)=C135,0,IF((C$3*10^12-$A135)*(C$3*10^12-$A134)*-1<0,0,1)*IF(ABS(C$3*10^12-$A135)>(C$3*10^12-$A134),$A134,$A135)) -> 0 | D134: 0 | E134: =IF(IF((E$3*10^12-$A135)*(E$3*10^12-$A134)*-1<0,0,1)*IF(ABS(E$3*10^12-$A135)>(E$3*10^12-$A134),$A134,$A135)=E135,0,IF((E$3*10^12-$A135)*(E$3*10^12-$A134)*-1<0,0,1)*IF(ABS(E$3*10^12-$A135)>(E$3*10^12-$A134),$A134,$A135)) -> 0
A135: 27000000000 | B135: =IF(IF((B$3*10^12-$A136)*(B$3*10^12-$A135)*-1<0,0,1)*IF(ABS(B$3*10^12-$A136)>(B$3*10^12-$A135),$A135,$A136)=B136,0,IF((B$3*10^12-$A136)*(B$3*10^12-$A135)*-1<0,0,1)*IF(ABS(B$3*10^12-$A136)>(B$3*10^12-$A135),$A135,$A136)) ->  | C135: 0 | D135: 0 | E135: 0
A136: 33000000000 | C136: 0 | D136: 0 | E136: 0
A137: 39000000000 | C137: 0 | D137: 0 | E137: 0
A138: 47000000000 | C138: 0 | D138: 0 | E138: 0
A139: 56000000000 | C139: 0 | D139: 0 | E139: 0
A140: 68000000000 | C140: 0 | D140: 0 | E140: 0
A141: 82000000000 | C141: 0 | D141: 0 | E141: 0
A142: 100000000000 | C142: 0 | D142: 0 | E142: 0
A143: 120000000000 | C143: 0 | D143: 0 | E143: 0
A144: 150000000000 | C144: 0 | D144: 0 | E144: 0
A145: 180000000000 | C145: 0 | D145: 0 | E145: 0
A146: 220000000000 | C146: 0 | D146: 0 | E146: 0
A147: 270000000000 | C147: 0 | D147: 0 | E147: 0
A148: 330000000000 | C148: 0 | D148: 0 | E148: 0
A149: 390000000000 | C149: 0 | D149: 0 | E149: 0
A150: 470000000000 | C150: 0 | D150: 0 | E150: 0
A151: 560000000000 | C151: 0 | D151: 0 | E151: 0
A152: 680000000000 | C152: 0 | D152: 0 | E152: 0
A153: 820000000000 | C153: 0 | D153: 0 | E153: 0
A154: 1000000000000 | C154: 0 | D154: 0 | E154: 0
A155: 1200000000000 | C155: 0 | D155: 0 | E155: 0
A156: 1500000000000 | C156: 0 | D156: 0 | E156: 0
A157: 1800000000000 | C157: 0 | D157: 0 | E157: 0
A158: 2200000000000 | C158: 0 | D158: 0 | E158: 0
A159: 2700000000000 | C159: 2700000000000 | D159: 2700000000000 | E159: 2700000000000

Sheet Efficiency (hidden)
A1: LM5164 (COT) Efficiency Calculator
G2: TERMS OF USE | J2: =CoutEsr -> 0.005
H4: Currents | K4: Miscellaneous | W4: Inductor | AA4: Cout | AD4: Cin | AG4: High-side MOSFET Losses | AP4: Low-side MOSFET Losses | AS4: Diode | BA4: RESULTS
A5: Input Parameters | H5: Step | I5: Iout (A) | J5: Ripple Current pk-pk (A) | K5: Peak Current (A) | L5: Valley Current (A) | M5: VOUT Hysteresis +Undershoot (2us Delay) (mV) | N5: Vout Rise per Pulse (mV) | O5: Number of Pulses in DCM | P5: VOUT Ripple (mV) | Q5: Off Time (sec) | R5: Duty Cycle | S5: Switching Frequency (Hz) | T5: Active Mode Duration (sec) | U5: Sleep Mode Duration (sec) | V5: Operating Quiescent Current (A) | W5: Irms (A) | X5: Inductor DCR Loss @ 25°C (W) | Y5: Inductor Core Loss (W) | Z5: Total Inductor Loss (W) | AA5: Irms (A) | AB5: Cout ESR Loss (W) | AC5: Total Cout Loss (W) | AD5: Irms (A) | AE5: Cin ESR Loss (W) | AF5: Total Cin Loss (W) | AG5: Irms (A) | AH5: Rdson HS Loss @ 25°C (W) | AI5: HS Gate Qg Loss (W) | AJ5: SW Rise Time (ns) | AK5: SW Fall Time (ns) | AL5: HS Switching Loss (W) | AM5: Coss Loss (W) | AN5: Total HS FET AC Loss (W) | AO5: Total HS FET Loss (W) | AP5: Irms (A) | AQ5: Rdson LS Loss @ 25°C (W) | AR5: LS Gate Qg Loss (W) | AS5: Reverse Recovery & Leakage Losses | AT5: DeadTime Loss @ 25°C (W) | AU5: Total LS FET AC Loss (W) | AV5: Total LS FET Loss (W) | AW5: Quiescent Loss (W) | AX5: LDO + Quiescent Loss (W) | AY5: Total Gate Drive Loss (W) | AZ5: Total Power Loss in IC (W) | BA5: Total Converter Power Loss (W) | BB5: Pout (W) | BC5: EFF (%) | BD5: High-side MOSFET Rdson % | BE5: Low-side MOSFET Rdson % | BF5: Gate Drive (Qg) Loss from Vin % | BG5: High-side MOSFET AC Loss % | BH5: Reverse Recovery & Leakage Loss % | BI5: Deadtime Loss % | BJ5: Low-side MOSFET AC Loss % | BK5: Inductor Cu Loss % | BL5: Inductor Core Loss % | BM5: Cin ESR % | BN5: Cout ESR % | BO5: LDO + Quiescent Current Loss % | BP5: Total Loss % | BQ5: Overall Eff % | BR5: Overall Eff | BS5: Current (mA) | BT5: Keep for "previous" data series | BU5: Keep for "previous" data series | BV5: Frequency (kHz) | BX5: Coss | BZ5: Total Power Loss in IC (mW) | CA5: LDO + Quiescent Loss (mW) | CB5: Total Inductor Loss (mW) | CE5: Overall Eff | CF5: Total Power Loss in IC (W) | CG5: LDO + Quiescent Loss (mW) | CH5: Total Inductor Loss (mW) | CI5: Fsw (kHz) | CJ5: Ripple (mV)
A6: Design | B6: Input Value | C6: Units | D6: Std Units | E6: Description | H6: 0.04 | I6: =IF(PLOT_TYPE=1, H6/100*Iout, min_I*EXP(H6*rr/100)) -> 0.0001 | J6: =IF(I6<Icrit, (Vin-(Rdcr+RdsonTop)*Iripple/2-Vout)/L*OnTime, (Vin-(Rdcr+RdsonTop)*I6-Vout)/L*OnTime) -> 0.2266970289 | K6: =IF(I6<Icrit, (Vin-(Rdcr+RdsonTop)*Iripple/2-Vout)/L*OnTime, I6+((Vin-(Rdcr+RdsonTop)*J6-Vout)/L*OnTime)/2) -> 0.2266970289 | L6: =IF(I6<Icrit, 0, I6-((Vin-(Rdcr+RdsonTop)*K6-Vout)/L*OnTime)/2) -> 0 | M6: =1000*((((J6/2)-I6)*0.000002/Cout+Vout/306)) -> 46.07923261 | N6: =IF(I6<Icrit, 1000*SQRT((J6*CoutEsr)^2+(((J6/2)-I6)*(OnTime+OffTime)/Cout)^2), 1000*J6*SQRT(CoutEsr^2+(1/(8*Fsw*Cout))^2)) -> 3.047734296 | O6: =ROUNDUP(M6/N6,0) -> 16 | P6: =IF(I6<Icrit, 1000*((N6/1000)*O6), 1000*J6*SQRT(CoutEsr^2+(1/(8*Fsw*Cout))^2)) -> 48.76374874 | Q6: =IF(I6<Icrit, L*J6/(Vout+J6/2*(RdsonBot+Rdcr)), L*J6/(Vout+I6*(RdsonBot+Rdcr))) -> 6.209300167e-07 | R6: =OnTime*S6 -> 0.0002216411823 | S6: =IF(I6<Icrit,I6/((OnTime+Q6)*J6/2),1/(OnTime+Q6)) -> 1063.877675 | T6: =IF(1/S6-OnTime-Q6>Tsleep, OnTime+Q6+Tsleep, 1/S6) -> 5.82926335e-06 | U6: =IF(1/S6-OnTime-Q6>Tsleep, 1/S6-OnTime-Q6-Tsleep, 0) -> 0.0009341284249 | V6: =S6*(T6*Iq_active+U6*Iq_sleep) -> 1.403105504e-05 | W6: =IF(I6<Icrit,Iripple*SQRT((OnTime+OffTime)*S6/3), SQRT(I6^2+Iripple^2/12)) -> 0.003864184987 | X6: =W6^2*Rdcr -> 1.791831074e-06 | Y6: =Core_Loss/1000*S6/$S$106 -> 8.770489515e-05 | Z6: =(Y6+X6*(1+Ltc*(Ta-25)))/(1-X6*Ltc*ThetaCa) -> 8.949675188e-05 | AA6: =Iripple/SQRT(12)*SQRT((OnTime+Q6)*S6) -> 0.001937796111 | AB6: =RCoutEsr*AA6^2 -> 1.877526884e-08 | AC6: =AB6 -> 1.877526884e-08 | AD6: =SQRT($R6)*SQRT($I6^2*(1-R6)+(Iripple^2)/12) -> 0.0009712739379 | AE6: =RCinEsr*AD6^2 -> 2.830119187e-09 | AF6: =AE6 -> 2.830119187e-09 | AG6: =IF(I6<Icrit,Iripple*SQRT((OnTime)*S6/3), SQRT(OnTime*S6*(I6^2+Iripple^2/12))) -> 0.001942545594 | AH6: =RdsonTop*AG6^2 -> 2.592383086e-06 | AI6: =QgTop*S6*Vdd -> 4.271468865e-06 | AJ6: =20*VIN_nom/24 -> 40 | AK6: =IF(I6<Icrit, Csw*Vin/Iripple*1000000000, Csw*Vin/(I6+Iripple/2)*1000000000) -> 33.98244328 | AL6: =IF(I6<Icrit, Vin*(I6+Iripple/2)*AK6/1000000000/2*S6, Vin*(I6-Iripple/2)*AJ6/1000000000/2*S6 + Vin*(I6+Iripple/2)*AK6/1000000000/2*S6) -> 9.813373412e-05 | AM6: =IF(I6<Icrit, Csw*(Vin)^2*S6/2, Csw*Vin^2*S6/2) -> 0.0001960939331 | AN6: =AI6+AL6+AM6 -> 0.000298499136 | AO6: =(AI6+AL6+AM6+AH6*(1+RdsonTopTc*(Ta-25)))/(1-AH6*RdsonTopTc*ThetaJA) -> 0.0003010916635 | AP6: =IF(I6<Icrit,Iripple*SQRT((OffTime)*S6/3), SQRT(OffTime*S6*(I6^2+Iripple^2/12))) -> 0.003340425456 | AQ6: =RdsonBot*AP6^2 -> 3.392166437e-06 | AR6: =QgBot*S6*Vdd -> 1.170265442e-05 | AS6: =IF(I6<Icrit, Vin*Idss*R6, QrrBot*(I6-Iripple/2)/1*S6*Vin+Vin*Idss*R6) -> 0 | AT6: =IF(I6<Icrit, dead1*S6*(I6+Iripple/2)*((I6+Iripple/2)*BDserR+VSD), dead1*S6*(I6+Iripple/2)*((I6+Iripple/2)*BDserR+VSD)+dead2*S6*(I6-Iripple/2)*((I6-Iripple/2)*BDserR+VSD)) -> 1.95240217e-06 | AU6: =AR6+AS6+AT6 -> 1.365505659e-05 | AV6: =(AR6+AS6+AT6+AQ6*(1+RdsonBotTc*(Ta-25)))/(1-AQ6*RdsonBotTc*ThetaJA) -> 1.704723373e-05 | AW6: =Vin*V6+Vout*Ifb/0.8 -> 0.001031414683 | AX6: =(Vin-Vdd)*(S6*QgBot+S6*QgTop)+AW6 -> 0.001168792143 | AY6: =AI6+AR6 -> 1.597412329e-05 | AZ6: =AO6+AV6+AX6+AY6 -> 0.001502905163 | BA6: =SUM(Z6,AC6,AF6,AZ6) -> 0.001592423521 | BB6: =Vout*I6 -> 0.0012 | BC6: =BB6/(BB6+BA6) -> 0.4297342402 | BD6: =(AO6-AN6)/($BB6+$BA6) -> 0.0009284148442 | BE6: =(AV6-AU6)/($BB6+$BA6) -> 0.001214778886 | BF6: =Vin*S6*(QgBot+QgTop)/($BB6+$BA6) -> 0.05491702188 | BG6: =AN6/($BB6+$BA6) -> 0.1068960829 | BH6: =AS6/(BA6+BB6) -> 0 | BI6: =AT6/($BB6+$BA6) -> 0.0006991783858 | BJ6: =AU6/($BB6+$BA6) -> 0.004890037809 | BK6: =X6/($BB6+$BA6) -> 0.0006416759709 | BL6: =Y6/($BB6+$BA6) -> 0.03140816373 | BM6: =(AF6)/($BB6+$BA6) -> 1.013499266e-06 | BN6: =(AC6)/($BB6+$BA6) -> 6.723646576e-06 | BO6: =AX6/($BB6+$BA6) -> 0.4185583362 | BP6: =SUM(BD6:BO6) -> 0.6201614277 | BQ6: =BC6 -> 0.4297342402 | BR6: =100*BQ6 -> 42.97342402 | BS6: =I6*1000 -> 0.1 | BT6: 8.792422126 | BU6: =BT6/100 -> 0.08792422126 | BV6: =S6/1000 -> 1.063877675 | BX6: =AM6/($BB6+$BA6) -> 0.07022356444 | BZ6: =AZ6 -> 0.001502905163 | CA6: =AX6 -> 0.001168792143 | CB6: =Z6 -> 8.949675188e-05 | CE6: =IF(OR(MODE=1,MODE=2,MODE=3), BR6, IF(MODE_ILIM=4,#REF!,#REF!)) -> 42.97342402 | CF6: =IF(OR(MODE=1,MODE=2,MODE=3), BZ6, IF(MODE_ILIM=4,#REF!,#REF!)) -> 0.001502905163 | CG6: =IF(OR(MODE=1,MODE=2,MODE=3), CA6, IF(MODE_ILIM=4,#REF!,#REF!)) -> 0.001168792143 | CH6: =IF(OR(MODE=1,MODE=2,MODE=3), CB6, IF(MODE_ILIM=4,#REF!,#REF!)) -> 8.949675188e-05 | CI6: =(IF(OR(MODE=1,MODE=2,MODE=3), S6, IF(MODE_ILIM=4,#REF!,#REF!)))/1000 -> 1.063877675 | CJ6: =IF(OR(MODE=1,MODE=2,MODE=3), P6, IF(MODE_ILIM=4,#REF!,#REF!)) -> 48.76374874
H7: 1 | I7: 0.0025 | J7: 0.2266970289 | K7: 0.2266970289 | L7: 0 | M7: =IF(I7<Icrit, 1000*((((J7/2)-I7)*0.000002/Cout+Vout/306)), 1000*J7*SQRT(CoutEsr^2+(1/(8*Fsw*Cout))^2)) -> 45.93377806 | N7: 2.992162528 | O7: =ROUNDUP(M7/N7,0) -> 16 | P7: 47.87460045 | Q7: 6.209300167e-07 | R7: =OnTime*S7 -> 0.005541029557 | S7: 26596.94187 | T7: =IF(1/S7-OnTime-Q7>Tsleep, OnTime+Q7+Tsleep, 1/S7) -> 5.82926335e-06 | U7: =IF(1/S7-OnTime-Q7>Tsleep, 1/S7-OnTime-Q7-Tsleep, 0) -> 3.176904418e-05 | V7: 0.000110776376 | W7: =IF(I7<Icrit,Iripple*SQRT((OnTime+OffTime)*S7/3), SQRT(I7^2+Iripple^2/12)) -> 0.01932092494 | X7: 4.479577684e-05 | Y7: 0.002192622379 | Z7: 0.002237434192 | AA7: =Iripple/SQRT(12)*SQRT((OnTime+Q7)*S7) -> 0.009688980556 | AB7: =RCoutEsr*AA7^2 -> 4.693817211e-07 | AC7: =AB7 -> 4.693817211e-07 | AD7: =SQRT($R7)*SQRT($I7^2*(1-R7)+(Iripple^2)/12) -> 0.004859908508 | AE7: =RCinEsr*AD7^2 -> 7.085613211e-08 | AF7: =AE7 -> 7.085613211e-08 | AG7: =IF(I7<Icrit,Iripple*SQRT((OnTime)*S7/3), SQRT(OnTime*S7*(I7^2+Iripple^2/12))) -> 0.009712727971 | AH7: =RdsonTop*AG7^2 -> 6.480957715e-05 | AI7: =QgTop*S7*Vdd -> 0.0001067867216 | AJ7: 40 | AK7: 33.98244328 | AL7: 0.002505403907 | AM7: 0.004902348326 | AN7: =AI7+AL7+AM7 -> 0.007514538955 | AO7: 0.007579439384 | AP7: 0.01670212728 | AQ7: =RdsonBot*AP7^2 -> 8.480416094e-05 | AR7: 0.0002925663606 | AS7: 0 | AT7: 4.986056098e-05 | AU7: =AR7+AS7+AT7 -> 0.0003424269216 | AV7: 0.0004272377836 | AW7: 0.00567519009 | AX7: 0.009109626597 | AY7: 0.0003993530822 | AZ7: =AO7+AV7+AX7+AY7 -> 0.01751565685 | BA7: 0.01975363128 | BB7: 0.03 | BC7: =BB7/(BB7+BA7) -> 0.6029710642 | BD7: =(AO7-AN7)/($BB7+$BA7) -> 0.001304436012 | BE7: =(AV7-AU7)/($BB7+$BA7) -> 0.001704616523 | BF7: 0.07705547296 | BG7: =AN7/($BB7+$BA7) -> 0.151034985 | BH7: =AS7/(BA7+BB7) -> 0 | BI7: =AT7/($BB7+$BA7) -> 0.001002149184 | BJ7: =AU7/($BB7+$BA7) -> 0.006882450845 | BK7: 0.0009003519079 | BL7: 0.04406959497 | BM7: =(AF7)/($BB7+$BA7) -> 1.424139913e-06 | BN7: =(AC7)/($BB7+$BA7) -> 9.434119863e-06 | BO7: =AX7/($BB7+$BA7) -> 0.1830947081 | BP7: =SUM(BD7:BO7) -> 0.4670596238 | BQ7: 0.6029710642 | BR7: =100*BQ7 -> 60.29710642 | BS7: 2.5 | BT7: 9.572563582 | BU7: =BT7/100 -> 0.09572563582 | BV7: 26.59694187 | BX7: 0.09853247292 | BZ7: =AZ7 -> 0.01751565685 | CA7: =AX7 -> 0.009109626597 | CB7: =Z7 -> 0.002237434192 | CE7: =IF(OR(MODE=1,MODE=2,MODE=3), BR7, IF(MODE_ILIM=4,#REF!,#REF!)) -> 60.29710642 | CF7: =IF(OR(MODE=1,MODE=2,MODE=3), BZ7, IF(MODE_ILIM=4,#REF!,#REF!)) -> 0.01751565685 | CG7: =IF(OR(MODE=1,MODE=2,MODE=3), CA7, IF(MODE_ILIM=4,#REF!,#REF!)) -> 0.009109626597 | CH7: =IF(OR(MODE=1,MODE=2,MODE=3), CB7, IF(MODE_ILIM=4,#REF!,#REF!)) -> 0.002237434192 | CI7: =(IF(OR(MODE=1,MODE=2,MODE=3), S7, IF(MODE_ILIM=4,#REF!,#REF!)))/1000 -> 26.59694187 | CJ7: =IF(OR(MODE=1,MODE=2,MODE=3), P7, IF(MODE_ILIM=4,#REF!,#REF!)) -> 47.87460045
A8: Vin | B8: =Vin -> 48 | C8: V | D8: =B8 -> 48 | E8: Vin | H8: 2 | I8: 0.005 | J8: 0.2266970289 | K8: 0.2266970289 | L8: 0 | M8: 45.78226291 | N8: 2.934458798 | O8: 16 | P8: 46.95134076 | Q8: 6.209300167e-07 | R8: =OnTime*S8 -> 0.01108205911 | S8: 53193.88375 | T8: 5.82926335e-06 | U8: 1.296989042e-05 | V8: 0.000211552752 | W8: 0.02732391408 | X8: 8.959155369e-05 | Y8: 0.004385244757 | Z8: 0.004474900457 | AA8: 0.01370228771 | AB8: 9.387634422e-07 | AC8: =AB8 -> 9.387634422e-07 | AD8: 0.00688785333 | AE8: 1.423275705e-07 | AF8: =AE8 -> 1.423275705e-07 | AG8: 0.01373587162 | AH8: 0.0001296191543 | AI8: 0.0002135734433 | AJ8: 40 | AK8: 33.98244328 | AL8: 0.005119267303 | AM8: 0.009804696653 | AN8: 0.0151375374 | AO8: 0.01526752256 | AP8: 0.02362037492 | AQ8: 0.0001696083219 | AR8: 0.0005851327212 | AS8: 0 | AT8: 0.0001019109809 | AU8: 0.0006870437022 | AV8: 0.0008566788972 | AW8: 0.01051245614 | AX8: 0.01738132915 | AY8: 0.0007987061645 | AZ8: =AO8+AV8+AX8+AY8 -> 0.03430423678 | BA8: 0.03878021833 | BB8: 0.06 | BC8: =BB8/(BB8+BA8) -> 0.6074090645 | BD8: 0.001315902777 | BE8: 0.001717299252 | BF8: 0.07762261826 | BG8: 0.1532446238 | BH8: 0 | BI8: 0.001031694226 | BJ8: 0.006955276206 | BK8: 0.0009069786968 | BL8: 0.04439395693 | BM8: 1.440850941e-06 | BN8: 9.503557069e-06 | BO8: 0.1759596147 | BP8: 0.4631589092 | BQ8: 0.6074090645 | BR8: =100*BQ8 -> 60.74090645 | BS8: 5 | BT8: 10.50735744 | BU8: 0.1050735744 | BV8: 53.19388375 | BX8: 0.09925769368 | BZ8: 0.03430423678 | CA8: 0.01738132915 | CB8: 0.004474900457 | CE8: =IF(OR(MODE=1,MODE=2,MODE=3), BR8, IF(MODE_ILIM=4,#REF!,#REF!)) -> 60.74090645 | CF8: =IF(OR(MODE=1,MODE=2,MODE=3), BZ8, IF(MODE_ILIM=4,#REF!,#REF!)) -> 0.03430423678 | CG8: =IF(OR(MODE=1,MODE=2,MODE=3), CA8, IF(MODE_ILIM=4,#REF!,#REF!)) -> 0.01738132915 | CH8: =IF(OR(MODE=1,MODE=2,MODE=3), CB8, IF(MODE_ILIM=4,#REF!,#REF!)) -> 0.004474900457 | CI8: =(IF(OR(MODE=1,MODE=2,MODE=3), S8, IF(MODE_ILIM=4,#REF!,#REF!)))/1000 -> 53.19388375 | CJ8: =IF(OR(MODE=1,MODE=2,MODE=3), P8, IF(MODE_ILIM=4,#REF!,#REF!)) -> 46.95134076
A9: Vout | B9: =Vout -> 12 | C9: V | D9: =B9 -> 12 | E9: Vout | H9: 3 | I9: 0.0075 | J9: 0.2266970289 | K9: 0.2266970289 | L9: 0 | M9: 45.63074776 | N9: 2.876953459 | O9: 16 | P9: 46.03125535 | Q9: 6.209300167e-07 | R9: 0.01662308867 | S9: 79790.82562 | T9: 5.82926335e-06 | U9: 6.703505827e-06 | V9: 0.0003123291281 | W9: 0.03346482364 | X9: 0.0001343873305 | Y9: 0.006577867136 | Z9: 0.006712398796 | AA9: 0.0167818066 | AB9: 1.408145163e-06 | AC9: 1.408145163e-06 | AD9: 0.008465950556 | AE9: 2.150169565e-07 | AF9: 2.150169565e-07 | AG9: 0.01682293833 | AH9: 0.0001944287315 | AI9: 0.0003203601649 | AJ9: 40 | AK9: 33.98244328 | AL9: 0.007841590187 | AM9: 0.01470704498 | AN9: 0.02286899533 | AO9: 0.02306425344 | AP9: 0.02892893305 | AQ9: 0.0002544124828 | AR9: 0.0008776990819 | AS9: 0 | AT9: 0.0001561532546 | AU9: 0.001033852336 | AV9: 0.00128832544 | AW9: 0.01534972219 | AX9: 0.02565303171 | AY9: 0.001198059247 | AZ9: 0.05120366984 | BA9: 0.0579176918 | BB9: 0.09 | BC9: =BB9/(BB9+BA9) -> 0.6084464874 | BD9: 0.001320045698 | BE9: 0.001720369619 | BF9: 0.07775519364 | BG9: 0.1546062209 | BH9: 0 | BI9: 0.001055676658 | BJ9: 0.006989375807 | BK9: 0.000908527769 | BL9: 0.04446977948 | BM9: 1.453625688e-06 | BN9: 9.519788649e-06 | BO9: 0.1734277448 | BP9: 0.4622639078 | BQ9: 0.6084464874 | BR9: 60.84464874 | BS9: 7.5 | BT9: 11.51666778 | BU9: 0.1151666778 | BV9: 79.79082562 | BX9: 0.09942722064 | BZ9: 0.05120366984 | CA9: 0.02565303171 | CB9: 0.006712398796 | CE9: =IF(OR(MODE=1,MODE=2,MODE=3), BR9, IF(MODE_ILIM=4,#REF!,#REF!)) -> 60.84464874 | CF9: =IF(OR(MODE=1,MODE=2,MODE=3), BZ9, IF(MODE_ILIM=4,#REF!,#REF!)) -> 0.05120366984 | CG9: =IF(OR(MODE=1,MODE=2,MODE=3), CA9, IF(MODE_ILIM=4,#REF!,#REF!)) -> 0.02565303171 | CH9: =IF(OR(MODE=1,MODE=2,MODE=3), CB9, IF(MODE_ILIM=4,#REF!,#REF!)) -> 0.006712398796 | CI9: =(IF(OR(MODE=1,MODE=2,MODE=3), S9, IF(MODE_ILIM=4,#REF!,#REF!)))/1000 -> 79.79082562 | CJ9: =IF(OR(MODE=1,MODE=2,MODE=3), P9, IF(MODE_ILIM=4,#REF!,#REF!)) -> 46.03125535
A10: Iout | B10: =Iout -> 0.25 | C10: A | D10: =B10 -> 0.25 | E10: Iout(max) | H10: 4 | I10: 0.01 | J10: 0.2266970289 | K10: 0.2266970289 | L10: 0 | M10: 45.47923261 | N10: 2.819658651 | O10: 17 | P10: 47.93419707 | Q10: 6.209300167e-07 | R10: 0.02216411823 | S10: 106387.7675 | T10: 5.82926335e-06 | U10: 3.570313533e-06 | V10: 0.0004131055041 | W10: 0.03864184987 | X10: 0.0001791831074 | Y10: 0.008770489515 | Z10: 0.00894992921 | AA10: 0.01937796111 | AB10: 1.877526884e-06 | AC10: 1.877526884e-06 | AD10: 0.009823663861 | AE10: 2.89513115e-07 | AF10: 2.89513115e-07 | AG10: 0.01942545594 | AH10: 0.0002592383086 | AI10: 0.0004271468865 | AJ10: 40 | AK10: 33.98244328 | AL10: 0.01067237256 | AM10: 0.01960939331 | AN10: 0.03070891275 | AO10: 0.03096963593 | AP10: 0.03340425456 | AQ10: 0.0003392166437 | AR10: 0.001170265442 | AS10: 0 | AT10: 0.0002125893768 | AU10: 0.001382854819 | AV10: 0.001722179509 | AW10: 0.02018698824 | AX10: 0.03392473427 | AY10: 0.001597412329 | AZ10: 0.06821396204 | BA10: 0.07716605829 | BB10: 0.12 | BC10: 0.6086240251 | BD10: 0.001322353274 | BE10: 0.001721009655 | BF10: 0.07777788171 | BG10: 0.1557515174 | BH10: 0 | BI10: 0.001078225018 | BJ10: 0.007013655551 | BK10: 0.0009087928669 | BL10: 0.04448275525 | BM10: 1.468371978e-06 | BN10: 9.522566413e-06 | BO10: 0.172061736 | BP10: 0.4621289176 | BQ10: 0.6086240251 | BR10: 60.86240251 | BS10: 10 | BT10: 12.60314452 | BU10: 0.1260314452 | BV10: 106.3877675 | BX10: 0.09945623235 | BZ10: 0.06821396204 | CA10: 0.03392473427 | CB10: 0.00894992921 | CE10: =IF(OR(MODE=1,MODE=2,MODE=3), BR10, IF(MODE_ILIM=4,#REF!,#REF!)) -> 60.86240251 | CF10: =IF(OR(MODE=1,MODE=2,MODE=3), BZ10, IF(MODE_ILIM=4,#REF!,#REF!)) -> 0.06821396204 | CG10: =IF(OR(MODE=1,MODE=2,MODE=3), CA10, IF(MODE_ILIM=4,#REF!,#REF!)) -> 0.03392473427 | CH10: =IF(OR(MODE=1,MODE=2,MODE=3), CB10, IF(MODE_ILIM=4,#REF!,#REF!)) -> 0.00894992921 | CI10: =(IF(OR(MODE=1,MODE=2,MODE=3), S10, IF(MODE_ILIM=4,#REF!,#REF!)))/1000 -> 106.3877675 | CJ10: =IF(OR(MODE=1,MODE=2,MODE=3), P10, IF(MODE_ILIM=4,#REF!,#REF!)) -> 47.93419707
A11: Rt | B11: =Vout*2500/(Fsw/1000) -> 25 | C11: kW | D11: =B11*1000 -> 25000 | E11: RT pin resistance to get Fsw | H11: 5 | I11: 0.0125 | J11: 0.2266970289 | K11: 0.2266970289 | L11: 0 | M11: 45.32771745 | N11: 2.762587473 | O11: 17 | P11: 46.96398703 | Q11: 6.209300167e-07 | R11: 0.02770514779 | S11: 132984.7094 | T11: 5.82926335e-06 | U11: 1.690398156e-06 | V11: 0.0005138818801 | W11: 0.04320290154 | X11: 0.0002239788842 | Y11: 0.01096311189 | Z11: 0.0111874917 | AA11: 0.02166521916 | AB11: 2.346908605e-06 | AC11: 2.346908605e-06 | AD11: 0.01105126018 | AE11: 3.663910546e-07 | AF11: 3.663910546e-07 | AG11: 0.02171831999 | AH11: 0.0003240478858 | AI11: 0.0005339336081 | AJ11: 40 | AK11: 33.98244328 | AL11: 0.01361161442 | AM11: 0.02451174163 | AN11: 0.03865728966 | AO11: 0.03898367394 | AP11: 0.03734709197 | AQ11: 0.0004240208047 | AR11: 0.001462831803 | AS11: 0 | AT11: 0.0002712213422 | AU11: 0.001734053145 | AV11: 0.002158243205 | AW11: 0.02502425429 | AX11: 0.04219643682 | AY11: 0.001996765411 | AZ11: 0.08533511938 | BA11: 0.09652532438 | BB11: 0.15 | BC11: 0.6084567595 | BD11: 0.001323938146 | BE11: 0.001720675395 | BF11: 0.07775650634 | BG11: 0.1568085946 | BH11: 0 | BI11: 0.001100176393 | BJ11: 0.007033975717 | BK11: 0.0009085431072 | BL11: 0.04447053024 | BM11: 1.486220758e-06 | BN11: 9.519949366e-06 | BO11: 0.1711647147 | BP11: 0.4622986609 | BQ11: 0.6084567595 | BR11: 60.84567595 | BS11: 12.5 | BT11: 13.76888731 | BU11: 0.1376888731 | BV11: 132.9847094 | BX11: 0.09942889922 | BZ11: 0.08533511938 | CA11: 0.04219643682 | CB11: 0.0111874917 | CE11: =IF(OR(MODE=1,MODE=2,MODE=3), BR11, IF(MODE_ILIM=4,#REF!,#REF!)) -> 60.84567595 | CF11: =IF(OR(MODE=1,MODE=2,MODE=3), BZ11, IF(MODE_ILIM=4,#REF!,#REF!)) -> 0.08533511938 | CG11: =IF(OR(MODE=1,MODE=2,MODE=3), CA11, IF(MODE_ILIM=4,#REF!,#REF!)) -> 0.04219643682 | CH11: =IF(OR(MODE=1,MODE=2,MODE=3), CB11, IF(MODE_ILIM=4,#REF!,#REF!)) -> 0.0111874917 | CI11: =(IF(OR(MODE=1,MODE=2,MODE=3), S11, IF(MODE_ILIM=4,#REF!,#REF!)))/1000 -> 132.9847094 | CJ11: =IF(OR(MODE=1,MODE=2,MODE=3), P11, IF(MODE_ILIM=4,#REF!,#REF!)) -> 46.96398703
A12: Tamb | B12: ='Design Converter'!E56 -> 25 | C12: °C | D12: =B12 -> 25 | E12: Ambient temperature | H12: 6 | I12: 0.015 | J12: 0.2266970289 | K12: 0.2266970289 | L12: 0 | M12: 45.1762023 | N12: 2.705754074 | O12: 17 | P12: 45.99781925 | Q12: 6.209300167e-07 | R12: 0.03324617734 | S12: 159581.6512 | T12: 5.82926335e-06 | U12: 4.371212385e-07 | V12: 0.0006146582561 | W12: 0.04732640745 | X12: 0.0002687746611 | Y12: 0.01315573427 | Z12: 0.01342508627 | AA12: 0.02373305849 | AB12: 2.816290327e-06 | AC12: 2.816290327e-06 | AD12: 0.01219579118 | AE12: 4.462119675e-07 | AF12: 4.462119675e-07 | AG12: 0.02379122754 | AH12: 0.0003888574629 | AI12: 0.0006407203298 | AJ12: 40 | AK12: 33.98244328 | AL12: 0.01665931577 | AM12: 0.02941408996 | AN12: 0.04671412605 | AO12: 0.04710637137 | AP12: 0.04091168946 | AQ12: 0.0005088249656 | AR12: 0.001755398164 | AS12: 0 | AT12: 0.0003320511457 | AU12: 0.002087449309 | AV12: 0.002596518626 | AW12: 0.02986152033 | AX12: 0.05046813938 | AY12: 0.002396118493 | AZ12: 0.1025671479 | BA12: 0.1159954966 | BB12: 0.18 | BC12: 0.60811736 | BD12: 0.001325173252 | BE12: 0.001719854938 | BF12: 0.07771313347 | BG12: 0.1578203945 | BH12: 0 | BI12: 0.001121811478 | BJ12: 0.007052300907 | BK12: 0.0009080363185 | BL12: 0.04444572442 | BM12: 1.507495798e-06 | BN12: 9.514639103e-06 | BO12: 0.1705030649 | BP12: 0.4626205164 | BQ12: 0.60811736 | BR12: 60.811736 | BS12: 15 | BT12: 15.01531961 | BU12: 0.1501531961 | BV12: 159.5816512 | BX12: 0.09937343741 | BZ12: 0.1025671479 | CA12: 0.05046813938 | CB12: 0.01342508627 | CE12: =IF(OR(MODE=1,MODE=2,MODE=3), BR12, IF(MODE_ILIM=4,#REF!,#REF!)) -> 60.811736 | CF12: =IF(OR(MODE=1,MODE=2,MODE=3), BZ12, IF(MODE_ILIM=4,#REF!,#REF!)) -> 0.1025671479 | CG12: =IF(OR(MODE=1,MODE=2,MODE=3), CA12, IF(MODE_ILIM=4,#REF!,#REF!)) -> 0.05046813938 | CH12: =IF(OR(MODE=1,MODE=2,MODE=3), CB12, IF(MODE_ILIM=4,#REF!,#REF!)) -> 0.01342508627 | CI12: =(IF(OR(MODE=1,MODE=2,MODE=3), S12, IF(MODE_ILIM=4,#REF!,#REF!)))/1000 -> 159.5816512 | CJ12: =IF(OR(MODE=1,MODE=2,MODE=3), P12, IF(MODE_ILIM=4,#REF!,#REF!)) -> 45.99781925
A13: VDD | B13: 5 | C13: V | D13: =B13 -> 5 | E13: Gate drive rail | H13: 7 | I13: 0.0175 | J13: 0.2266970289 | K13: 0.2266970289 | L13: 0 | M13: 45.02468715 | N13: 2.649173758 | O13: 17 | P13: 45.03595389 | Q13: 6.209300167e-07 | R13: 0.0387872069 | S13: 186178.5931 | T13: 5.37118679e-06 | U13: 0 | V13: 0.00066 | W13: 0.05111836248 | X13: 0.0003135704379 | Y13: 0.01534835665 | Z13: 0.01566271291 | AA13: 0.02563463301 | AB13: 3.285672048e-06 | AC13: 3.285672048e-06 | AD13: 0.01328562167 | AE13: 5.295232297e-07 | AF13: 5.295232297e-07 | AG13: 0.02569746276 | AH13: 0.0004536670401 | AI13: 0.0007475070514 | AJ13: 40 | AK13: 33.98244328 | AL13: 0.0198154766 | AM13: 0.03431643828 | AN13: 0.05487942194 | AO13: 0.05533773213 | AP13: 0.04418967515 | AQ13: 0.0005936291266 | AR13: 0.002047964524 | AS13: 0 | AT13: 0.000395080782 | AU13: 0.002443045306 | AV13: 0.003037007871 | AW13: 0.03203792404 | AX13: 0.05607897959 | AY13: 0.002795471576 | AZ13: 0.1172491912 | BA13: 0.1329157193 | BB13: 0.21 | BC13: 0.6123953735 | BD13: 0.001336509721 | BE13: 0.001732094889 | BF13: 0.07825983359 | BG13: 0.1600376386 | BH13: 0 | BI13: 0.00115212211 | BJ13: 0.007124331633 | BK13: 0.0009144242164 | BL13: 0.04475839336 | BM13: 1.544178934e-06 | BN13: 9.581573148e-06 | BO13: 0.1635357507 | BP13: 0.4588622246 | BQ13: 0.6123953735 | BR13: 61.23953735 | BS13: 17.5 | BT13: 16.34306117 | BU13: 0.1634306117 | BV13: 186.1785931 | BX13: 0.1000725145 | BZ13: 0.1172491912 | CA13: 0.05607897959 | CB13: 0.01566271291 | CE13: =IF(OR(MODE=1,MODE=2,MODE=3), BR13, IF(MODE_ILIM=4,#REF!,#REF!)) -> 61.23953735 | CF13: =IF(OR(MODE=1,MODE=2,MODE=3), BZ13, IF(MODE_ILIM=4,#REF!,#REF!)) -> 0.1172491912 | CG13: =IF(OR(MODE=1,MODE=2,MODE=3), CA13, IF(MODE_ILIM=4,#REF!,#REF!)) -> 0.05607897959 | CH13: =IF(OR(MODE=1,MODE=2,MODE=3), CB13, IF(MODE_ILIM=4,#REF!,#REF!)) -> 0.01566271291 | CI13: =(IF(OR(MODE=1,MODE=2,MODE=3), S13, IF(MODE_ILIM=4,#REF!,#REF!)))/1000 -> 186.1785931 | CJ13: =IF(OR(MODE=1,MODE=2,MODE=3), P13, IF(MODE_ILIM=4,#REF!,#REF!)) -> 45.03595389
A14: K1 | B14: 400 | C14: pC | D14: 4 | E14: RT constant | H14: 8 | I14: 0.02 | J14: 0.2266970289 | K14: 0.2266970289 | L14: 0 | M14: 44.873172 | N14: 2.592863094 | O14: 18 | P14: 46.6715357 | Q14: 6.209300167e-07 | R14: 0.04432823646 | S14: 212775.535 | T14: 4.699788441e-06 | U14: 0 | V14: 0.00066 | W14: 0.05464782816 | X14: 0.0003583662147 | Y14: 0.01754097903 | Z14: 0.01790037163 | AA14: 0.02740457542 | AB14: 3.755053769e-06 | AC14: 3.755053769e-06 | AD14: 0.01433943747 | AE14: 6.168584006e-07 | AF14: 6.168584006e-07 | AG14: 0.02747174325 | AH14: 0.0005184766172 | AI14: 0.000854293773 | AJ14: 40 | AK14: 33.98244328 | AL14: 0.02308009693 | AM14: 0.03921878661 | AN14: 0.06315317731 | AO14: 0.06367776013 | AP14: 0.04724074984 | AQ14: 0.0006784332875 | AR14: 0.002340530885 | AS14: 0 | AT14: 0.0004603122458 | AU14: 0.002800843131 | AV14: 0.00347971304 | AW14: 0.03203792404 | AX14: 0.0595134161 | AY14: 0.003194824658 | AZ14: 0.1298657139 | BA14: 0.1477704575 | BB14: 0.24 | BC14: 0.6189228586 | BD14: 0.001352817913 | BE14: 0.001750700436 | BF14: 0.0790940004 | BG14: 0.162862271 | BH14: 0 | BI14: 0.001187074046 | BJ14: 0.007222940987 | BK14: 0.0009241710085 | BL14: 0.04523547035 | BM14: 1.590782353e-06 | BN14: 9.683702552e-06 | BO14: 0.1534758901 | BP14: 0.4531166106 | BQ14: 0.6189228586 | BR14: 61.89228586 | BS14: 20 | BT14: 17.75180413 | BU14: 0.1775180413 | BV14: 212.775535 | BX14: 0.1011391813 | BZ14: 0.1298657139 | CA14: 0.0595134161 | CB14: 0.01790037163 | CE14: =IF(OR(MODE=1,MODE=2,MODE=3), BR14, IF(MODE_ILIM=4,#REF!,#REF!)) -> 61.89228586 | CF14: =IF(OR(MODE=1,MODE=2,MODE=3), BZ14, IF(MODE_ILIM=4,#REF!,#REF!)) -> 0.1298657139 | CG14: =IF(OR(MODE=1,MODE=2,MODE=3), CA14, IF(MODE_ILIM=4,#REF!,#REF!)) -> 0.0595134161 | CH14: =IF(OR(MODE=1,MODE=2,MODE=3), CB14, IF(MODE_ILIM=4,#REF!,#REF!)) -> 0.01790037163 | CI14: =(IF(OR(MODE=1,MODE=2,MODE=3), S14, IF(MODE_ILIM=4,#REF!,#REF!)))/1000 -> 212.775535 | CJ14: =IF(OR(MODE=1,MODE=2,MODE=3), P14, IF(MODE_ILIM=4,#REF!,#REF!)) -> 46.6715357
A15: Outputs | H15: 9 | I15: 0.0225 | J15: 0.2266970289 | K15: 0.2266970289 | L15: 0 | M15: 44.72165685 | N15: 2.536840039 | O15: 18 | P15: 45.66312069 | Q15: 6.209300167e-07 | R15: 0.04986926602 | S15: 239372.4769 | T15: 4.177589726e-06 | U15: 0 | V15: 0.00066 | W15: 0.05796277481 | X15: 0.0004031619916 | Y15: 0.01973360141 | Z15: 0.02013806242 | AA15: 0.02906694167 | AB15: 4.22443549e-06 | AC15: 4.22443549e-06 | AD15: 0.01537028761 | AE15: 7.087372234e-07 | AF15: 7.087372234e-07 | AG15: 0.02913818391 | AH15: 0.0005832861944 | AI15: 0.0009610804946 | AJ15: 40 | AK15: 33.98244328 | AL15: 0.02645317674 | AM15: 0.04412113494 | AN15: 0.07153539217 | AO15: 0.07212645928 | AP15: 0.05010638184 | AQ15: 0.0007632374484 | AR15: 0.002633097246 | AS15: 0 | AT15: 0.000527747532 | AU15: 0.003160844778 | AV15: 0.003924636231 | AW15: 0.03203792404 | AX15: 0.06294785261 | AY15: 0.00359417774 | AZ15: 0.1425931259 | BA15: 0.1627361215 | BB15: 0.27 | BC15: 0.6239368211 | BD15: 0.001365883456 | BE15: 0.00176502819 | BF15: 0.07973474964 | BG15: 0.1653095007 | BH15: 0 | BI15: 0.001219559694 | BJ15: 0.007304323861 | BK15: 0.0009316578201 | BL15: 0.0456019279 | BM15: 1.63780463e-06 | BN15: 9.762151298e-06 | BO15: 0.145464752 | BP15: 0.4487087833 | BQ15: 0.6239368211 | BR15: 62.39368211 | BS15: 22.5 | BT15: 19.24019915 | BU15: 0.1924019915 | BV15: 239.3724769 | BX15: 0.101958521 | BZ15: 0.1425931259 | CA15: 0.06294785261 | CB15: 0.02013806242 | CE15: =IF(OR(MODE=1,MODE=2,MODE=3), BR15, IF(MODE_ILIM=4,#REF!,#REF!)) -> 62.39368211 | CF15: =IF(OR(MODE=1,MODE=2,MODE=3), BZ15, IF(MODE_ILIM=4,#REF!,#REF!)) -> 0.1425931259 | CG15: =IF(OR(MODE=1,MODE=2,MODE=3), CA15, IF(MODE_ILIM=4,#REF!,#REF!)) -> 0.06294785261 | CH15: =IF(OR(MODE=1,MODE=2,MODE=3), CB15, IF(MODE_ILIM=4,#REF!,#REF!)) -> 0.02013806242 | CI15: =(IF(OR(MODE=1,MODE=2,MODE=3), S15, IF(MODE_ILIM=4,#REF!,#REF!)))/1000 -> 239.3724769 | CJ15: =IF(OR(MODE=1,MODE=2,MODE=3), P15, IF(MODE_ILIM=4,#REF!,#REF!)) -> 45.66312069
A16: Design | B16: Value | C16: Units | D16: Std Units | E16: Description | H16: 10 | I16: 0.025 | J16: 0.2266970289 | K16: 0.2266970289 | L16: 0 | M16: 44.5701417 | N16: 2.481124073 | O16: 18 | P16: 44.66023332 | Q16: 6.209300167e-07 | R16: 0.05541029557 | S16: 265969.4187 | T16: 3.759830753e-06 | U16: 0 | V16: 0.00066 | W16: 0.0610981293 | X16: 0.0004479577684 | Y16: 0.02192622379 | Z16: 0.0223757853 | AA16: 0.03063924676 | AB16: 4.693817211e-06 | AC16: 4.693817211e-06 | AD16: 0.01638765414 | AE16: 8.056656249e-07 | AF16: 8.056656249e-07 | AG16: 0.03071434268 | AH16: 0.0006480957715 | AI16: 0.001067867216 | AJ16: 40 | AK16: 33.98244328 | AL16: 0.02993471604 | AM16: 0.04902348326 | AN16: 0.08002606652 | AO16: 0.08068383349 | AP16: 0.05281676398 | AQ16: 0.0008480416094 | AR16: 0.002925663606 | AS16: 0 | AT16: 0.0005973886354 | AU16: 0.003523052242 | AV16: 0.004371779544 | AW16: 0.03203792404 | AX16: 0.06638228911 | AY16: 0.003993530822 | AZ16: 0.155431433 | BA16: 0.1778127178 | BB16: 0.3 | BC16: 0.6278610612 | BD16: 0.001376620881 | BE16: 0.001776276082 | BF16: 0.08023624 | BG16: 0.1674841702 | BH16: 0 | BI16: 0.001250256875 | BJ16: 0.007373291063 | BK16: 0.0009375174661 | BL16: 0.04588874045 | BM16: 1.686153581e-06 | BN16: 9.823550183e-06 | BO16: 0.1389295149 | BP16: 0.4452641376 | BQ16: 0.6278610612 | BR16: 62.78610612 | BS16: 25 | BT16: 20.80575856 | BU16: 0.2080575856 | BV16: 265.9694187 | BX16: 0.1025997874 | BZ16: 0.155431433 | CA16: 0.06638228911 | CB16: 0.0223757853 | CE16: =IF(OR(MODE=1,MODE=2,MODE=3), BR16, IF(MODE_ILIM=4,#REF!,#REF!)) -> 62.78610612 | CF16: =IF(OR(MODE=1,MODE=2,MODE=3), BZ16, IF(MODE_ILIM=4,#REF!,#REF!)) -> 0.155431433 | CG16: =IF(OR(MODE=1,MODE=2,MODE=3), CA16, IF(MODE_ILIM=4,#REF!,#REF!)) -> 0.06638228911 | CH16: =IF(OR(MODE=1,MODE=2,MODE=3), CB16, IF(MODE_ILIM=4,#REF!,#REF!)) -> 0.0223757853 | CI16: =(IF(OR(MODE=1,MODE=2,MODE=3), S16, IF(MODE_ILIM=4,#REF!,#REF!)))/1000 -> 265.9694187 | CJ16: =IF(OR(MODE=1,MODE=2,MODE=3), P16, IF(MODE_ILIM=4,#REF!,#REF!)) -> 44.66023332
A17: On-Time | B17: =(Rt*k_RT/10000)/Vin -> 0.2083333333 | C17: µs | D17: =B17/1000000 -> 2.083333333e-07 | E17: On Time - fixed | H17: 11 | I17: 0.0275 | J17: 0.2266970289 | K17: 0.2266970289 | L17: 0 | M17: 44.41862655 | N17: 2.425736359 | O17: 19 | P17: 46.08899082 | Q17: 6.209300167e-07 | R17: 0.06095132513 | S17: 292566.3606 | T17: 3.418027957e-06 | U17: 0 | V17: 0.00066 | W17: 0.06408025861 | X17: 0.0004927535453 | Y17: 0.02411884617 | Z17: 0.02461354026 | AA17: 0.03213471311 | AB17: 5.163198932e-06 | AC17: 5.163198932e-06 | AD17: 0.01739861791 | AE17: 9.081357157e-07 | AF17: 9.081357157e-07 | AG17: 0.03221347437 | AH17: 0.0007129053487 | AI17: 0.001174653938 | AJ17: 40 | AK17: 33.98244328 | AL17: 0.03352471483 | AM17: 0.05392583159 | AN17: 0.08862520036 | AO17: 0.08934988666 | AP17: 0.05539468939 | AQ17: 0.0009328457703 | AR17: 0.003218229967 | AS17: 0 | AT17: 0.0006692375506 | AU17: 0.003887467517 | AV17: 0.004821145079 | AW17: 0.03203792404 | AX17: 0.06981672562 | AY17: 0.004392883905 | AZ17: 0.1683806413 | BA17: 0.1930002529 | BB17: 0.33 | BC17: 0.6309748383 | BD17: 0.001385632783 | BE17: 0.00178523348 | BF17: 0.08063415889 | BG17: 0.1694553681 | BH17: 0 | BI17: 0.001279612289 | BJ17: 0.007433012692 | BK17: 0.0009421669351 | BL17: 0.04611631837 | BM17: 1.736396322e-06 | BN17: 9.87226852e-06 | BO17: 0.1334927187 | BP17: 0.4425358309 | BQ17: 0.6309748383 | BR17: 63.09748383 | BS17: 27.5 | BT17: 22.44478406 | BU17: 0.2244478406 | BV17: 292.5663606 | BX17: 0.1031086148 | BZ17: 0.1683806413 | CA17: 0.06981672562 | CB17: 0.02461354026 | CE17: =IF(OR(MODE=1,MODE=2,MODE=3), BR17, IF(MODE_ILIM=4,#REF!,#REF!)) -> 63.09748383 | CF17: =IF(OR(MODE=1,MODE=2,MODE=3), BZ17, IF(MODE_ILIM=4,#REF!,#REF!)) -> 0.1683806413 | CG17: =IF(OR(MODE=1,MODE=2,MODE=3), CA17, IF(MODE_ILIM=4,#REF!,#REF!)) -> 0.06981672562 | CH17: =IF(OR(MODE=1,MODE=2,MODE=3), CB17, IF(MODE_ILIM=4,#REF!,#REF!)) -> 0.02461354026 | CI17: =(IF(OR(MODE=1,MODE=2,MODE=3), S17, IF(MODE_ILIM=4,#REF!,#REF!)))/1000 -> 292.5663606 | CJ17: =IF(OR(MODE=1,MODE=2,MODE=3), P17, IF(MODE_ILIM=4,#REF!,#REF!)) -> 46.08899082
A18: Off Time | B18: =L*Iripple*1000000/(Vout+(Rdcr+RdsonBot)*Iout) -> 0.6160555716 | C18: µs | D18: =B18/1000000 -> 6.160555716e-07 | E18: Off Time - depends on Vout, L, Iout, DCR, etc. | H18: 12 | I18: 0.03 | J18: 0.2266970289 | K18: 0.2266970289 | L18: 0 | M18: 44.26711139 | N18: 2.370699903 | O18: 19 | P18: 45.04329816 | Q18: 6.209300167e-07 | R18: 0.06649235469 | S18: 319163.3025 | T18: 3.133192294e-06 | U18: 0 | V18: 0.00066 | W18: 0.06692964727 | X18: 0.0005375493221 | Y18: 0.02631146854 | Z18: 0.02685132729 | AA18: 0.03356361319 | AB18: 5.632580653e-06 | AC18: 5.632580653e-06 | AD18: 0.01840856494 | AE18: 1.01662579e-06 | AF18: 1.01662579e-06 | AG18: 0.03364587665 | AH18: 0.0007777149258 | AI18: 0.00128144066 | AJ18: 40 | AK18: 33.98244328 | AL18: 0.03722317311 | AM18: 0.05882817992 | AN18: 0.09733279369 | AO18: 0.0981246227 | AP18: 0.05785786609 | AQ18: 0.001017649931 | AR18: 0.003510796327 | AS18: 0 | AT18: 0.0007432962725 | AU18: 0.0042540926 | AV18: 0.005272734936 | AW18: 0.03203792404 | AX18: 0.07325116213 | AY18: 0.004792236987 | AZ18: 0.1814407567 | BA18: 0.2082987332 | BB18: 0.36 | BC18: 0.6334696506 | BD18: 0.001393332355 | BE18: 0.001792441679 | BF18: 0.0809529784 | BG18: 0.1712704745 | BH18: 0 | BI18: 0.001307932306 | BJ18: 0.007485662647 | BK18: 0.0009458921702 | BL18: 0.04629865774 | BM18: 1.788893288e-06 | BN18: 9.911302496e-06 | BO18: 0.1288955224 | BP18: 0.4403545944 | BQ18: 0.6334696506 | BR18: 63.34696506 | BS18: 30 | BT18: 24.15232609 | BU18: 0.2415232609 | BV18: 319.1633025 | BX18: 0.1035162961 | BZ18: 0.1814407567 | CA18: 0.07325116213 | CB18: 0.02685132729 | CE18: =IF(OR(MODE=1,MODE=2,MODE=3), BR18, IF(MODE_ILIM=4,#REF!,#REF!)) -> 63.34696506 | CF18: =IF(OR(MODE=1,MODE=2,MODE=3), BZ18, IF(MODE_ILIM=4,#REF!,#REF!)) -> 0.1814407567 | CG18: =IF(OR(MODE=1,MODE=2,MODE=3), CA18, IF(MODE_ILIM=4,#REF!,#REF!)) -> 0.07325116213 | CH18: =IF(OR(MODE=1,MODE=2,MODE=3), CB18, IF(MODE_ILIM=4,#REF!,#REF!)) -> 0.02685132729 | CI18: =(IF(OR(MODE=1,MODE=2,MODE=3), S18, IF(MODE_ILIM=4,#REF!,#REF!)))/1000 -> 319.1633025 | CJ18: =IF(OR(MODE=1,MODE=2,MODE=3), P18, IF(MODE_ILIM=4,#REF!,#REF!)) -> 45.04329816
A19: DIL | B19: =(Vin-Vout-(Rdcr+RdsonTop)*Iout)/L*OnTime*1000 -> 225.999053 | C19: mA | D19: =B19/1000 -> 0.225999053 | E19: Inductor pk-pk ripple current in CCM | H19: 13 | I19: 0.0325 | J19: 0.2266970289 | K19: 0.2266970289 | L19: 0 | M19: 44.11559624 | N19: 2.316039746 | O19: 20 | P19: 46.32079493 | Q19: 6.209300167e-07 | R19: 0.07203338424 | S19: 345760.2444 | T19: 2.892177502e-06 | U19: 0 | V19: 0.00066 | W19: 0.06966258554 | X19: 0.000582345099 | Y19: 0.02850409092 | Z19: 0.02908914641 | AA19: 0.0349341162 | AB19: 6.101962374e-06 | AC19: 6.101962374e-06 | AD19: 0.01942164021 | AE19: 1.131600325e-06 | AF19: 1.131600325e-06 | AG19: 0.03501973873 | AH19: 0.000842524503 | AI19: 0.001388227381 | AJ19: 40 | AK19: 33.98244328 | AL19: 0.04103009088 | AM19: 0.06373052824 | AN19: 0.1061488465 | AO19: 0.1070080455 | AP19: 0.06022037632 | AQ19: 0.001102454092 | AR19: 0.003803362688 | AS19: 0 | AT19: 0.0008195667958 | AU19: 0.004622929484 | AV19: 0.005726551214 | AW19: 0.03203792404 | AX19: 0.07668559864 | AY19: 0.005191590069 | AZ19: 0.1946117854 | BA19: 0.2237081654 | BB19: 0.39 | BC19: 0.6354811977 | BD19: 0.001400012368 | BE19: 0.001798284253 | BF19: 0.08121004001 | BG19: 0.1729630669 | BH19: 0 | BI19: 0.001335434074 | BJ19: 0.00753278145 | BK19: 0.0009488957974 | BL19: 0.04644567651 | BM19: 1.843873666e-06 | BN19: 9.942775277e-06 | BO19: 0.1249545027 | BP19: 0.4386004808 | BQ19: 0.6354811977 | BR19: 63.54811977 | BS19: 32.5 | BT19: 25.92218153 | BU19: 0.2592218153 | BV19: 345.7602444 | BX19: 0.1038450062 | BZ19: 0.1946117854 | CA19: 0.07668559864 | CB19: 0.02908914641 | CE19: =IF(OR(MODE=1,MODE=2,MODE=3), BR19, IF(MODE_ILIM=4,#REF!,#REF!)) -> 63.54811977 | CF19: =IF(OR(MODE=1,MODE=2,MODE=3), BZ19, IF(MODE_ILIM=4,#REF!,#REF!)) -> 0.1946117854 | CG19: =IF(OR(MODE=1,MODE=2,MODE=3), CA19, IF(MODE_ILIM=4,#REF!,#REF!)) -> 0.07668559864 | CH19: =IF(OR(MODE=1,MODE=2,MODE=3), CB19, IF(MODE_ILIM=4,#REF!,#REF!)) -> 0.02908914641 | CI19: =(IF(OR(MODE=1,MODE=2,MODE=3), S19, IF(MODE_ILIM=4,#REF!,#REF!)))/1000 -> 345.7602444 | CJ19: =IF(OR(MODE=1,MODE=2,MODE=3), P19, IF(MODE_ILIM=4,#REF!,#REF!)) -> 46.32079493
A20: CCM Freq | B20: ='Design Converter'!E12 -> 1200 | C20: kHz | D20: =B20*1000 -> 1200000 | E20: Frequency in CCM | F20: =10000*Vout/(k_RT*Rt/1000+Vin*0.75) -> 882.3529412 | H20: 14 | I20: 0.035 | J20: 0.2266970289 | K20: 0.2266970289 | L20: 0 | M20: 43.96408109 | N20: 2.261783172 | O20: 20 | P20: 45.23566343 | Q20: 6.209300167e-07 | R20: 0.0775744138 | S20: 372357.1862 | T20: 2.685593395e-06 | U20: 0 | V20: 0.00066 | W20: 0.0722922815 | X20: 0.0006271408758 | Y20: 0.0306967133 | Z20: 0.03132699761 | AA20: 0.03625284567 | AB20: 6.571344095e-06 | AC20: 6.571344095e-06 | AD20: 0.02044105332 | AE20: 1.253509982e-06 | AF20: 1.253509982e-06 | AG20: 0.03634170036 | AH20: 0.0009073340801 | AI20: 0.001495014103 | AJ20: 40 | AK20: 33.98244328 | AL20: 0.04494546813 | AM20: 0.06863287657 | AN20: 0.1150733588 | AO20: 0.116000159 | AP20: 0.06249363792 | AQ20: 0.001187258253 | AR20: 0.004095929049 | AS20: 0 | AT20: 0.0008980511154 | AU20: 0.004993980164 | AV20: 0.006182596013 | AW20: 0.03203792404 | AX20: 0.08012003514 | AY20: 0.005590943151 | AZ20: 0.2078937333 | BA20: 0.2392285558 | BB20: 0.42 | BC20: 0.6371083235 | BD20: 0.001405886055 | BE20: 0.001803040597 | BF20: 0.08141797527 | BG20: 0.1745576064 | BH20: 0 | BI20: 0.001362275811 | BJ20: 0.007575491262 | BK20: 0.0009513254095 | BL20: 0.04656459893 | BM20: 1.901480103e-06 | BN20: 9.96823338e-06 | BO20: 0.1215360506 | BP20: 0.4371861201 | BQ20: 0.6371083235 | BR20: 63.71083235 | BS20: 35 | BT20: 27.74693467 | BU20: 0.2774693467 | BV20: 372.3571862 | BX20: 0.1041108974 | BZ20: 0.2078937333 | CA20: 0.08012003514 | CB20: 0.03132699761 | CE20: =IF(OR(MODE=1,MODE=2,MODE=3), BR20, IF(MODE_ILIM=4,#REF!,#REF!)) -> 63.71083235 | CF20: =IF(OR(MODE=1,MODE=2,MODE=3), BZ20, IF(MODE_ILIM=4,#REF!,#REF!)) -> 0.2078937333 | CG20: =IF(OR(MODE=1,MODE=2,MODE=3), CA20, IF(MODE_ILIM=4,#REF!,#REF!)) -> 0.08012003514 | CH20: =IF(OR(MODE=1,MODE=2,MODE=3), CB20, IF(MODE_ILIM=4,#REF!,#REF!)) -> 0.03132699761 | CI20: =(IF(OR(MODE=1,MODE=2,MODE=3), S20, IF(MODE_ILIM=4,#REF!,#REF!)))/1000 -> 372.3571862 | CJ20: =IF(OR(MODE=1,MODE=2,MODE=3), P20, IF(MODE_ILIM=4,#REF!,#REF!)) -> 45.23566343
A21: Icrit_Skip | B21: =1000*Iripple/2 -> 112.9995265 | C21: mA | D21: =Iripple/2 -> 0.1129995265 | E21: CCM-DCM (critical conduction) boundary | H21: 15 | I21: 0.0375 | J21: 0.2266970289 | K21: 0.2266970289 | L21: 0 | M21: 43.81256594 | N21: 2.20795993 | O21: 20 | P21: 44.1591986 | Q21: 6.209300167e-07 | R21: 0.08311544336 | S21: 398954.1281 | T21: 2.506553835e-06 | U21: 0 | V21: 0.00066 | W21: 0.07482962051 | X21: 0.0006719366526 | Y21: 0.03288933568 | Z21: 0.03356488089 | AA21: 0.03752526034 | AB21: 7.040725816e-06 | AC21: 7.040725816e-06 | AD21: 0.02146929286 | AE21: 1.382791608e-06 | AF21: 1.382791608e-06 | AG21: 0.03761723368 | AH21: 0.0009721436573 | AI21: 0.001601800824 | AJ21: 40 | AK21: 33.98244328 | AL21: 0.04896930487 | AM21: 0.0735352249 | AN21: 0.1241063306 | AO21: 0.1251009671 | AP21: 0.06468706081 | AQ21: 0.001272062414 | AR21: 0.004388495409 | AS21: 0 | AT21: 0.0009787512259 | AU21: 0.005367246635 | AV21: 0.006640871433 | AW21: 0.03203792404 | AX21: 0.08355447165 | AY21: 0.005990296234 | AZ21: 0.2212866065 | BA21: 0.2548599109 | BB21: 0.45 | BC21: 0.6384247324 | BD21: 0.001411112395 | BE21: 0.001806919047 | BF21: 0.0815862031 | BG21: 0.1760723353 | BH21: 0 | BI21: 0.001388575532 | BJ21: 0.007614628882 | BK21: 0.0009532910615 | BL21: 0.04666081185 | BM21: 1.96179636e-06 | BN21: 9.98882999e-06 | BO21: 0.118540536 | BP21: 0.4360463638 | BQ21: 0.6384247324 | BR21: 63.84247324 | BS21: 37.5 | BT21: 29.61804422 | BU21: 0.2961804422 | BV21: 398.9541281 | BX21: 0.104326014 | BZ21: 0.2212866065 | CA21: 0.08355447165 | CB21: 0.03356488089 | CE21: =IF(OR(MODE=1,MODE=2,MODE=3), BR21, IF(MODE_ILIM=4,#REF!,#REF!)) -> 63.84247324 | CF21: =IF(OR(MODE=1,MODE=2,MODE=3), BZ21, IF(MODE_ILIM=4,#REF!,#REF!)) -> 0.2212866065 | CG21: =IF(OR(MODE=1,MODE=2,MODE=3), CA21, IF(MODE_ILIM=4,#REF!,#REF!)) -> 0.08355447165 | CH21: =IF(OR(MODE=1,MODE=2,MODE=3), CB21, IF(MODE_ILIM=4,#REF!,#REF!)) -> 0.03356488089 | CI21: =(IF(OR(MODE=1,MODE=2,MODE=3), S21, IF(MODE_ILIM=4,#REF!,#REF!)))/1000 -> 398.9541281 | CJ21: =IF(OR(MODE=1,MODE=2,MODE=3), P21, IF(MODE_ILIM=4,#REF!,#REF!)) -> 44.1591986
A22: Tr | C22: ns | D22: =B22/1000000000 -> 0 | E22: Switch rise time | H22: 16 | I22: 0.04 | J22: 0.2266970289 | K22: 0.2266970289 | L22: 0 | M22: 43.66105079 | N22: 2.154602497 | O22: 21 | P22: 45.24665245 | Q22: 6.209300167e-07 | R22: 0.08865647292 | S22: 425551.07 | T22: 2.349894221e-06 | U22: 0 | V22: 0.00066 | W22: 0.07728369974 | X22: 0.0007167324295 | Y22: 0.03508195806 | Z22: 0.03580279625 | AA22: 0.03875592222 | AB22: 7.510107538e-06 | AC22: 7.510107538e-06 | AD22: 0.02250828165 | AE22: 1.519868229e-06 | AF22: 1.519868229e-06 | AG22: 0.03885091189 | AH22: 0.001036953234 | AI22: 0.001708587546 | AJ22: 40 | AK22: 33.98244328 | AL22: 0.0531016011 | AM22: 0.07843757322 | AN22: 0.1332477619 | AO22: 0.1343104738 | AP22: 0.06680850912 | AQ22: 0.001356866575 | AR22: 0.00468106177 | AS22: 0 | AT22: 0.001061669122 | AU22: 0.005742730892 | AV22: 0.007101379576 | AW22: 0.03203792404 | AX22: 0.08698890816 | AY22: 0.006389649316 | AZ22: 0.2347904108 | BA22: 0.2706022371 | BB22: 0.48 | BC22: 0.6394865034 | BD22: 0.001415812329 | BE22: 0.001810078117 | BF22: 0.08172188998 | BG22: 0.1775211361 | BH22: 0 | BI22: 0.001414423072 | BJ22: 0.007650831038 | BK22: 0.00095487649 | BL22: 0.04673841394 | BM22: 2.02486504e-06 | BN22: 1.000544252e-05 | BO22: 0.1158921515 | BP22: 0.4351316428 | BQ22: 0.6394865034 | BR22: 63.94865034 | BS22: 40 | BT22: 31.52597677 | BU22: 0.3152597677 | BV22: 425.55107 | BX22: 0.1044995197 | BZ22: 0.2347904108 | CA22: 0.08698890816 | CB22: 0.03580279625 | CE22: =IF(OR(MODE=1,MODE=2,MODE=3), BR22, IF(MODE_ILIM=4,#REF!,#REF!)) -> 63.94865034 | CF22: =IF(OR(MODE=1,MODE=2,MODE=3), BZ22, IF(MODE_ILIM=4,#REF!,#REF!)) -> 0.2347904108 | CG22: =IF(OR(MODE=1,MODE=2,MODE=3), CA22, IF(MODE_ILIM=4,#REF!,#REF!)) -> 0.08698890816 | CH22: =IF(OR(MODE=1,MODE=2,MODE=3), CB22, IF(MODE_ILIM=4,#REF!,#REF!)) -> 0.03580279625 | CI22: =(IF(OR(MODE=1,MODE=2,MODE=3), S22, IF(MODE_ILIM=4,#REF!,#REF!)))/1000 -> 425.55107 | CJ22: =IF(OR(MODE=1,MODE=2,MODE=3), P22, IF(MODE_ILIM=4,#REF!,#REF!)) -> 45.24665245
A23: Tf | C23: ns | D23: =B23/1000000000 -> 0 | E23: Switch fall time | H23: 17 | I23: 0.0425 | J23: 0.2266970289 | K23: 0.2266970289 | L23: 0 | M23: 43.50953564 | N23: 2.10174635 | O23: 21 | P23: 44.13667336 | Q23: 6.209300167e-07 | R23: 0.09419750247 | S23: 452148.0119 | T23: 2.211665149e-06 | U23: 0 | V23: 0.00066 | W23: 0.07966221429 | X23: 0.0007615282063 | Y23: 0.03727458044 | Z23: 0.0380407437 | AA23: 0.03994869024 | AB23: 7.979489259e-06 | AC23: 7.979489259e-06 | AD23: 0.02355949249 | AE23: 1.665149059e-06 | AF23: 1.665149059e-06 | AG23: 0.04004660334 | AH23: 0.001101762812 | AI23: 0.001815374268 | AJ23: 40 | AK23: 33.98244328 | AL23: 0.05734235682 | AM23: 0.08333992155 | AN23: 0.1424976526 | AO23: 0.1436286828 | AP23: 0.06886463495 | AQ23: 0.001441670736 | AR23: 0.004973628131 | AS23: 0 | AT23: 0.001146806799 | AU23: 0.006120434929 | AV23: 0.00756412254 | AW23: 0.03203792404 | AX23: 0.09042334467 | AY23: 0.006789002398 | AZ23: 0.2484051524 | BA23: 0.2864555408 | BB23: 0.51 | BC23: 0.6403370608 | BD23: 0.001420079488 | BE23: 0.001812640552 | BF23: 0.08183058525 | BG23: 0.1789147609 | BH23: 0 | BI23: 0.001439888029 | BJ23: 0.007684590811 | BK23: 0.000956146536 | BL23: 0.04680057898 | BM23: 2.090699322e-06 | BN23: 1.001875039e-05 | BO23: 0.1135321936 | BP23: 0.4344035736 | BQ23: 0.6403370608 | BR23: 64.03370608 | BS23: 42.5 | BT23: 33.46038355 | BU23: 0.3346038355 | BV23: 452.1480119 | BX23: 0.1046385106 | BZ23: 0.2484051524 | CA23: 0.09042334467 | CB23: 0.0380407437 | CE23: =IF(OR(MODE=1,MODE=2,MODE=3), BR23, IF(MODE_ILIM=4,#REF!,#REF!)) -> 64.03370608 | CF23: =IF(OR(MODE=1,MODE=2,MODE=3), BZ23, IF(MODE_ILIM=4,#REF!,#REF!)) -> 0.2484051524 | CG23: =IF(OR(MODE=1,MODE=2,MODE=3), CA23, IF(MODE_ILIM=4,#REF!,#REF!)) -> 0.09042334467 | CH23: =IF(OR(MODE=1,MODE=2,MODE=3), CB23, IF(MODE_ILIM=4,#REF!,#REF!)) -> 0.0380407437 | CI23: =(IF(OR(MODE=1,MODE=2,MODE=3), S23, IF(MODE_ILIM=4,#REF!,#REF!)))/1000 -> 452.1480119 | CJ23: =IF(OR(MODE=1,MODE=2,MODE=3), P23, IF(MODE_ILIM=4,#REF!,#REF!)) -> 44.13667336
H24: 18 | I24: 0.045 | J24: 0.2266970289 | K24: 0.2266970289 | L24: 0 | M24: 43.35802048 | N24: 2.049430275 | O24: 22 | P24: 45.08746605 | Q24: 6.209300167e-07 | R24: 0.09973853203 | S24: 478744.9537 | T24: 2.088794863e-06 | U24: 0 | V24: 0.00066 | W24: 0.08197174224 | X24: 0.0008063239832 | Y24: 0.03946720282 | Z24: 0.04027872323 | AA24: 0.04110686312 | AB24: 8.44887098e-06 | AC24: 8.44887098e-06 | AD24: 0.02462403631 | AE24: 1.819029493e-06 | AF24: 1.819029493e-06 | AG24: 0.04120761487 | AH24: 0.001166572389 | AI24: 0.001922160989 | AJ24: 40 | AK24: 33.98244328 | AL24: 0.06169157203 | AM24: 0.08824226987 | AN24: 0.1518560029 | AO24: 0.1530555982 | AP24: 0.07086112476 | AQ24: 0.001526474897 | AR24: 0.005266194491 | AS24: 0 | AT24: 0.001234166251 | AU24: 0.006500360742 | AV24: 0.008029102428 | AW24: 0.03203792404 | AX24: 0.09385778117 | AY24: 0.00718835548 | AZ24: 0.2621308373 | BA24: 0.3024198284 | BB24: 0.54 | BC24: 0.6410105529 | BD24: 0.001423987484 | BE24: 0.001814702876 | BF24: 0.08191665282 | BG24: 0.1802616674 | BH24: 0 | BI24: 0.001465025168 | BJ24: 0.007716295988 | BK24: 0.0009571521894 | BL24: 0.04684980278 | BM24: 2.159290928e-06 | BN24: 1.002928789e-05 | BO24: 0.1114144967 | BP24: 0.4338319719 | BQ24: 0.6410105529 | BR24: 64.10105529 | BS24: 45 | BT24: 35.4103147 | BU24: 0.354103147 | BV24: 478.7449537 | BX24: 0.104748567 | BZ24: 0.2621308373 | CA24: 0.09385778117 | CB24: 0.04027872323 | CE24: =IF(OR(MODE=1,MODE=2,MODE=3), BR24, IF(MODE_ILIM=4,#REF!,#REF!)) -> 64.10105529 | CF24: =IF(OR(MODE=1,MODE=2,MODE=3), BZ24, IF(MODE_ILIM=4,#REF!,#REF!)) -> 0.2621308373 | CG24: =IF(OR(MODE=1,MODE=2,MODE=3), CA24, IF(MODE_ILIM=4,#REF!,#REF!)) -> 0.09385778117 | CH24: =IF(OR(MODE=1,MODE=2,MODE=3), CB24, IF(MODE_ILIM=4,#REF!,#REF!)) -> 0.04027872323 | CI24: =(IF(OR(MODE=1,MODE=2,MODE=3), S24, IF(MODE_ILIM=4,#REF!,#REF!)))/1000 -> 478.7449537 | CJ24: =IF(OR(MODE=1,MODE=2,MODE=3), P24, IF(MODE_ILIM=4,#REF!,#REF!)) -> 45.08746605
A25: Components | B25: Input Value | C25: Units | D25: Std Units | E25: Description | H25: 19 | I25: 0.0475 | J25: 0.2266970289 | K25: 0.2266970289 | L25: 0 | M25: 43.20650533 | N25: 1.997696702 | O25: 22 | P25: 43.94932743 | Q25: 6.209300167e-07 | R25: 0.1052795616 | S25: 505341.8956 | T25: 1.978858291e-06 | U25: 0 | V25: 0.00066 | W25: 0.08421795929 | X25: 0.00085111976 | Y25: 0.0416598252 | Z25: 0.04251673485 | AA25: 0.04223328711 | AB25: 8.918252701e-06 | AC25: 8.918252701e-06 | AD25: 0.0257027308 | AE25: 1.981891112e-06 | AF25: 1.981891112e-06 | AG25: 0.04233679969 | AH25: 0.001231381966 | AI25: 0.002028947711 | AJ25: 40 | AK25: 33.98244328 | AL25: 0.06614924673 | AM25: 0.0931446182 | AN25: 0.1613228126 | AO25: 0.1625912238 | AP25: 0.07280288496 | AQ25: 0.001611279058 | AR25: 0.005558760852 | AS25: 0 | AT25: 0.001323749473 | AU25: 0.006882510325 | AV25: 0.008496321338 | AW25: 0.03203792404 | AX25: 0.09729221768 | AY25: 0.007587708563 | AZ25: 0.2759674714 | BA25: 0.3184951064 | BB25: 0.57 | BC25: 0.6415342031 | BD25: 0.001427594984 | BE25: 0.001816342039 | BF25: 0.08198357164 | BG25: 0.1815686001 | BH25: 0 | BI25: 0.001489878181 | BJ25: 0.007746255748 | BK25: 0.0009579340999 | BL25: 0.04688807501 | BM25: 2.230615675e-06 | BN25: 1.003748095e-05 | BO25: 0.109502255 | BP25: 0.4333927748 | BQ25: 0.6415342031 | BR25: 64.15342031 | BS25: 47.5 | BT25: 37.36446212 | BU25: 0.3736446212 | BV25: 505.3418956 | BX25: 0.1048341376 | BZ25: 0.2759674714 | CA25: 0.09729221768 | CB25: 0.04251673485 | CE25: =IF(OR(MODE=1,MODE=2,MODE=3), BR25, IF(MODE_ILIM=4,#REF!,#REF!)) -> 64.15342031 | CF25: =IF(OR(MODE=1,MODE=2,MODE=3), BZ25, IF(MODE_ILIM=4,#REF!,#REF!)) -> 0.2759674714 | CG25: =IF(OR(MODE=1,MODE=2,MODE=3), CA25, IF(MODE_ILIM=4,#REF!,#REF!)) -> 0.09729221768 | CH25: =IF(OR(MODE=1,MODE=2,MODE=3), CB25, IF(MODE_ILIM=4,#REF!,#REF!)) -> 0.04251673485 | CI25: =(IF(OR(MODE=1,MODE=2,MODE=3), S25, IF(MODE_ILIM=4,#REF!,#REF!)))/1000 -> 505.3418956 | CJ25: =IF(OR(MODE=1,MODE=2,MODE=3), P25, IF(MODE_ILIM=4,#REF!,#REF!)) -> 43.94932743
A26: L | B26: ='Design Converter'!E17 -> 33 | C26: µH | D26: =B26/1000000 -> 3.3e-05 | E26: Filter inductance | H26: 20 | I26: 0.05 | J26: 0.2266970289 | K26: 0.2266970289 | L26: 0 | M26: 43.05499018 | N26: 1.946592074 | O26: 23 | P26: 44.7716177 | Q26: 6.209300167e-07 | R26: 0.1108205911 | S26: 531938.8375 | T26: 1.879915377e-06 | U26: 0 | V26: 0.00066 | W26: 0.08640580309 | X26: 0.0008959155369 | Y26: 0.04385244757 | Z26: 0.04475477855 | AA26: 0.04333043831 | AB26: 9.387634422e-06 | AC26: 9.387634422e-06 | AD26: 0.02679615444 | AE26: 2.154101678e-06 | AF26: 2.154101678e-06 | AG26: 0.04343663998 | AH26: 0.001296191543 | AI26: 0.002135734433 | AJ26: 40 | AK26: 33.98244328 | AL26: 0.07071538091 | AM26: 0.09804696653 | AN26: 0.1708980819 | AO26: 0.1722355636 | AP26: 0.07469418394 | AQ26: 0.001696083219 | AR26: 0.005851327212 | AS26: 0 | AT26: 0.00141555846 | AU26: 0.007266885673 | AV26: 0.008965781373 | AW26: 0.03203792404 | AX26: 0.1007266542 | AY26: 0.007987061645 | AZ26: 0.2899150608 | BA26: 0.334681381 | BB26: 0.6 | BC26: 0.6419299797 | BD26: 0.001430949316 | BE26: 0.001817620137 | BF26: 0.08203414912 | BG26: 0.1828410037 | BH26: 0 | BI26: 0.001514482356 | BJ26: 0.007774719621 | BK26: 0.0009585250707 | BL26: 0.04691700131 | BM26: 2.30463741e-06 | BN26: 1.004367329e-05 | BO26: 0.1077657651 | BP26: 0.4330665641 | BQ26: 0.6419299797 | BR26: 64.19299797 | BS26: 50 | BT26: 39.31141961 | BU26: 0.3931141961 | BV26: 531.9388375 | BX26: 0.1048988121 | BZ26: 0.2899150608 | CA26: 0.1007266542 | CB26: 0.04475477855 | CE26: =IF(OR(MODE=1,MODE=2,MODE=3), BR26, IF(MODE_ILIM=4,#REF!,#REF!)) -> 64.19299797 | CF26: =IF(OR(MODE=1,MODE=2,MODE=3), BZ26, IF(MODE_ILIM=4,#REF!,#REF!)) -> 0.2899150608 | CG26: =IF(OR(MODE=1,MODE=2,MODE=3), CA26, IF(MODE_ILIM=4,#REF!,#REF!)) -> 0.1007266542 | CH26: =IF(OR(MODE=1,MODE=2,MODE=3), CB26, IF(MODE_ILIM=4,#REF!,#REF!)) -> 0.04475477855 | CI26: =(IF(OR(MODE=1,MODE=2,MODE=3), S26, IF(MODE_ILIM=4,#REF!,#REF!)))/1000 -> 531.9388375 | CJ26: =IF(OR(MODE=1,MODE=2,MODE=3), P26, IF(MODE_ILIM=4,#REF!,#REF!)) -> 44.7716177
A27: Rdcr | B27: ='Design Converter'!E18 -> 120 | C27: mW | D27: =B27/1000 -> 0.12 | E27: Inductor DCR at 25°C | H27: 21 | I27: 0.0525 | J27: 0.2266970289 | K27: 0.2266970289 | L27: 0 | M27: 42.90347503 | N27: 1.896167246 | O27: 23 | P27: 43.61184665 | Q27: 6.209300167e-07 | R27: 0.1163616207 | S27: 558535.7794 | T27: 1.790395597e-06 | U27: 0 | V27: 0.00066 | W27: 0.08853960101 | X27: 0.0009407113137 | Y27: 0.04604506995 | Z27: 0.04699285434 | AA27: 0.04440048681 | AB27: 9.857016143e-06 | AC27: 9.857016143e-06 | AD27: 0.0279046898 | AE27: 2.336015138e-06 | AF27: 2.336015138e-06 | AG27: 0.04450931113 | AH27: 0.00136100112 | AI27: 0.002242521154 | AJ27: 40 | AK27: 33.98244328 | AL27: 0.07538997458 | AM27: 0.1029493149 | AN27: 0.1805818106 | AO27: 0.1819886214 | AP27: 0.07653876253 | AQ27: 0.00178088738 | AR27: 0.006143893573 | AS27: 0 | AT27: 0.001509595207 | AU27: 0.00765348878 | AV27: 0.009437484632 | AW27: 0.03203792404 | AX27: 0.1041610907 | AY27: 0.008386414727 | AZ27: 0.3039736114 | BA27: 0.3509786588 | BB27: 0.63 | BC27: 0.642215806 | BD27: 0.001434089076 | BE27: 0.001818587832 | BF27: 0.08207067571 | BG27: 0.1840833223 | BH27: 0 | BI27: 0.001538866512 | BJ27: 0.007801891215 | BK27: 0.0009589518643 | BL27: 0.0469378916 | BM27: 2.381310864e-06 | BN27: 1.004814534e-05 | BO27: 0.1061807918 | BP27: 0.4328374973 | BQ27: 0.642215806 | BR27: 64.2215806 | BS27: 52.5 | BT27: 41.23994795 | BU27: 0.4123994795 | BV27: 558.5357794 | BX27: 0.1049455194 | BZ27: 0.3039736114 | CA27: 0.1041610907 | CB27: 0.04699285434 | CE27: =IF(OR(MODE=1,MODE=2,MODE=3), BR27, IF(MODE_ILIM=4,#REF!,#REF!)) -> 64.2215806 | CF27: =IF(OR(MODE=1,MODE=2,MODE=3), BZ27, IF(MODE_ILIM=4,#REF!,#REF!)) -> 0.3039736114 | CG27: =IF(OR(MODE=1,MODE=2,MODE=3), CA27, IF(MODE_ILIM=4,#REF!,#REF!)) -> 0.1041610907 | CH27: =IF(OR(MODE=1,MODE=2,MODE=3), CB27, IF(MODE_ILIM=4,#REF!,#REF!)) -> 0.04699285434 | CI27: =(IF(OR(MODE=1,MODE=2,MODE=3), S27, IF(MODE_ILIM=4,#REF!,#REF!)))/1000 -> 558.5357794 | CJ27: =IF(OR(MODE=1,MODE=2,MODE=3), P27, IF(MODE_ILIM=4,#REF!,#REF!)) -> 43.61184665
A28: Kcore | B28: 0 | D28: =B28 -> 0 | E28: Core loss constant - consult inductor vendor | H28: 22 | I28: 0.055 | J28: 0.2266970289 | K28: 0.2266970289 | L28: 0 | M28: 42.75195988 | N28: 1.846477911 | O28: 24 | P28: 44.31546986 | Q28: 6.209300167e-07 | R28: 0.1219026503 | S28: 585132.7212 | T28: 1.709013979e-06 | U28: 0 | V28: 0.00066 | W28: 0.09062317081 | X28: 0.0009855070906 | Y28: 0.04823769233 | Z28: 0.04923096222 | AA28: 0.0454453471 | AB28: 1.032639786e-05 | AC28: 1.032639786e-05 | AD28: 0.02902855849 | AE28: 2.527971623e-06 | AF28: 2.527971623e-06 | AG28: 0.04555673235 | AH28: 0.001425810697 | AI28: 0.002349307876 | AJ28: 40 | AK28: 33.98244328 | AL28: 0.08017302774 | AM28: 0.1078516632 | AN28: 0.1903739988 | AO28: 0.1918504012 | AP28: 0.07833992102 | AQ28: 0.001865691541 | AR28: 0.006436459934 | AS28: 0 | AT28: 0.001605861708 | AU28: 0.008042321641 | AV28: 0.009911433218 | AW28: 0.03203792404 | AX28: 0.1075955272 | AY28: 0.008785767809 | AZ28: 0.3181431294 | BA28: 0.367386946 | BB28: 0.66 | BC28: 0.6424064493 | BD28: 0.001437046053 | BE28: 0.001819286865 | BF28: 0.08209503858 | BG28: 0.1852992191 | BH28: 0 | BI28: 0.001563054421 | BJ28: 0.007827938317 | BK28: 0.0009592365315 | BL28: 0.04695182523 | BM28: 2.460583749e-06 | BN28: 1.005112816e-05 | BO28: 0.1047273645 | BP28: 0.4326925213 | BQ28: 0.6424064493 | BR28: 64.24064493 | BS28: 55 | BT28: 43.13923173 | BU28: 0.4313923173 | BV28: 585.1327212 | BX28: 0.1049766727 | BZ28: 0.3181431294 | CA28: 0.1075955272 | CB28: 0.04923096222 | CE28: =IF(OR(MODE=1,MODE=2,MODE=3), BR28, IF(MODE_ILIM=4,#REF!,#REF!)) -> 64.24064493 | CF28: =IF(OR(MODE=1,MODE=2,MODE=3), BZ28, IF(MODE_ILIM=4,#REF!,#REF!)) -> 0.3181431294 | CG28: =IF(OR(MODE=1,MODE=2,MODE=3), CA28, IF(MODE_ILIM=4,#REF!,#REF!)) -> 0.1075955272 | CH28: =IF(OR(MODE=1,MODE=2,MODE=3), CB28, IF(MODE_ILIM=4,#REF!,#REF!)) -> 0.04923096222 | CI28: =(IF(OR(MODE=1,MODE=2,MODE=3), S28, IF(MODE_ILIM=4,#REF!,#REF!)))/1000 -> 585.1327212 | CJ28: =IF(OR(MODE=1,MODE=2,MODE=3), P28, IF(MODE_ILIM=4,#REF!,#REF!)) -> 44.31546986
A29: Cin | B29: ='Design Converter'!E37 -> 2.2 | C29: µF | D29: =B29/1000000 -> 2.2e-06 | E29: Input capacitance | H29: 23 | I29: 0.0575 | J29: 0.2266970289 | K29: 0.2266970289 | L29: 0 | M29: 42.60044473 | N29: 1.797585063 | O29: 24 | P29: 43.14204151 | Q29: 6.209300167e-07 | R29: 0.1274436798 | S29: 611729.6631 | T29: 1.634709023e-06 | U29: 0 | V29: 0.00066 | W29: 0.09265990086 | X29: 0.001030302867 | Y29: 0.05043031471 | Z29: 0.05146910218 | AA29: 0.04646671838 | AB29: 1.079577959e-05 | AC29: 1.079577959e-05 | AD29: 0.0301678496 | AE29: 2.730297448e-06 | AF29: 2.730297448e-06 | AG29: 0.04658060698 | AH29: 0.001490620275 | AI29: 0.002456094597 | AJ29: 40 | AK29: 33.98244328 | AL29: 0.08506454039 | AM29: 0.1127540115 | AN29: 0.2002746465 | AO29: 0.2018209068 | AP29: 0.08010058852 | AQ29: 0.001950495702 | AR29: 0.006729026294 | AS29: 0 | AT29: 0.001704359958 | AU29: 0.008433386252 | AV29: 0.01038762923 | AW29: 0.03203792404 | AX29: 0.1110299637 | AY29: 0.009185120892 | AZ29: 0.3324236206 | BA29: 0.3839062489 | BB29: 0.69 | BC29: 0.6425141866 | BD29: 0.001439846659 | BE29: 0.001819751939 | BF29: 0.08210880666 | BG29: 0.1864917414 | BH29: 0 | BI29: 0.001587065872 | BJ29: 0.007853000446 | BK29: 0.0009593974041 | BL29: 0.04695969947 | BM29: 2.542398324e-06 | BN29: 1.005281382e-05 | BO29: 0.1033888795 | BP29: 0.4326207845 | BQ29: 0.6425141866 | BR29: 64.25141866 | BS29: 57.5 | BT29: 44.9991157 | BU29: 0.449991157 | BV29: 611.7296631 | BX29: 0.1049942782 | BZ29: 0.3324236206 | CA29: 0.1110299637 | CB29: 0.05146910218 | CE29: =IF(OR(MODE=1,MODE=2,MODE=3), BR29, IF(MODE_ILIM=4,#REF!,#REF!)) -> 64.25141866 | CF29: =IF(OR(MODE=1,MODE=2,MODE=3), BZ29, IF(MODE_ILIM=4,#REF!,#REF!)) -> 0.3324236206 | CG29: =IF(OR(MODE=1,MODE=2,MODE=3), CA29, IF(MODE_ILIM=4,#REF!,#REF!)) -> 0.1110299637 | CH29: =IF(OR(MODE=1,MODE=2,MODE=3), CB29, IF(MODE_ILIM=4,#REF!,#REF!)) -> 0.05146910218 | CI29: =(IF(OR(MODE=1,MODE=2,MODE=3), S29, IF(MODE_ILIM=4,#REF!,#REF!)))/1000 -> 611.7296631 | CJ29: =IF(OR(MODE=1,MODE=2,MODE=3), P29, IF(MODE_ILIM=4,#REF!,#REF!)) -> 43.14204151
A30: RCinESR | B30: ='Design Converter'!E39 -> 3 | C30: mW | D30: =B30/1000 -> 0.003 | E30: Input capacitor ESR | H30: 24 | I30: 0.06 | J30: 0.2266970289 | K30: 0.2266970289 | L30: 0 | M30: 42.44892958 | N30: 1.749555478 | O30: 25 | P30: 43.73888695 | Q30: 6.209300167e-07 | R30: 0.1329847094 | S30: 638326.605 | T30: 1.566596147e-06 | U30: 0 | V30: 0.00066 | W30: 0.0946528149 | X30: 0.001075098644 | Y30: 0.05262293709 | Z30: 0.05370727423 | AA30: 0.04746611698 | AB30: 1.126516131e-05 | AC30: 1.126516131e-05 | AD30: 0.03132254305 | AE30: 2.943305109e-06 | AF30: 2.943305109e-06 | AG30: 0.04758245508 | AH30: 0.001555429852 | AI30: 0.002562881319 | AJ30: 40 | AK30: 33.98244328 | AL30: 0.09006451253 | AM30: 0.1176563598 | AN30: 0.2102837537 | AO30: 0.2119001423 | AP30: 0.08182337892 | AQ30: 0.002035299862 | AR30: 0.007021592655 | AS30: 0 | AT30: 0.001805091952 | AU30: 0.008826684606 | AV30: 0.01086607477 | AW30: 0.03203792404 | AX30: 0.1144644002 | AY30: 0.009584473974 | AZ30: 0.3468150912 | BA30: 0.4005365739 | BB30: 0.72 | BC30: 0.6425493078 | BD30: 0.001442513019 | BE30: 0.001820012137 | BF30: 0.08211329491 | BG30: 0.187663445 | BH30: 0 | BI30: 0.001610917478 | BJ30: 0.007877194562 | BK30: 0.0009594498468 | BL30: 0.04696226639 | BM30: 2.626692584e-06 | BN30: 1.005336333e-05 | BO30: 0.1021514182 | BP30: 0.4326131916 | BQ30: 0.6425493078 | BR30: 64.25493078 | BS30: 60 | BT30: 46.81030997 | BU30: 0.4681030997 | BV30: 638.326605 | BX30: 0.1050000175 | BZ30: 0.3468150912 | CA30: 0.1144644002 | CB30: 0.05370727423 | CE30: =IF(OR(MODE=1,MODE=2,MODE=3), BR30, IF(MODE_ILIM=4,#REF!,#REF!)) -> 64.25493078 | CF30: =IF(OR(MODE=1,MODE=2,MODE=3), BZ30, IF(MODE_ILIM=4,#REF!,#REF!)) -> 0.3468150912 | CG30: =IF(OR(MODE=1,MODE=2,MODE=3), CA30, IF(MODE_ILIM=4,#REF!,#REF!)) -> 0.1144644002 | CH30: =IF(OR(MODE=1,MODE=2,MODE=3), CB30, IF(MODE_ILIM=4,#REF!,#REF!)) -> 0.05370727423 | CI30: =(IF(OR(MODE=1,MODE=2,MODE=3), S30, IF(MODE_ILIM=4,#REF!,#REF!)))/1000 -> 638.326605 | CJ30: =IF(OR(MODE=1,MODE=2,MODE=3), P30, IF(MODE_ILIM=4,#REF!,#REF!)) -> 43.73888695
A31: Cout | B31: ='Design Converter'!E24 -> 33 | C31: µF | D31: =B31/1000000 -> 3.3e-05 | E31: Output capacitance | H31: 25 | I31: 0.0625 | J31: 0.2266970289 | K31: 0.2266970289 | L31: 0 | M31: 42.29741442 | N31: 1.702462221 | O31: 25 | P31: 42.56155553 | Q31: 6.209300167e-07 | R31: 0.1385257389 | S31: 664923.5469 | T31: 1.503932301e-06 | U31: 0 | V31: 0.00066 | W31: 0.09660462468 | X31: 0.001119894421 | Y31: 0.05481555947 | Z31: 0.05594547837 | AA31: 0.04844490278 | AB31: 1.173454303e-05 | AC31: 1.173454303e-05 | AD31: 0.03249252883 | AE31: 3.167293289e-06 | AF31: 3.167293289e-06 | AG31: 0.04856363986 | AH31: 0.001620239429 | AI31: 0.002669668041 | AJ31: 40 | AK31: 33.98244328 | AL31: 0.09517294415 | AM31: 0.1225587082 | AN31: 0.2204013203 | AO31: 0.2220881114 | AP31: 0.08351063641 | AQ31: 0.002120104023 | AR31: 0.007314159016 | AS31: 0 | AT31: 0.001908059684 | AU31: 0.0092222187 | AV31: 0.01134677194 | AW31: 0.03203792404 | AX31: 0.1178988367 | AY31: 0.009983827056 | AZ31: 0.3613175472 | BA31: 0.4172779274 | BB31: 0.75 | BC31: 0.6425205021 | BD31: 0.001445063803 | BE31: 0.001820092022 | BF31: 0.08210961374 | BG31: 0.1888164894 | BH31: 0 | BI31: 0.001634623289 | BJ31: 0.007900619453 | BK31: 0.0009594068343 | BL31: 0.04696016106 | BM31: 2.713401166e-06 | BN31: 1.005291264e-05 | BO31: 0.1010032264 | BP31: 0.4326620622 | BQ31: 0.6425205021 | BR31: 64.25205021 | BS31: 62.5 | BT31: 48.56455599 | BU31: 0.4856455599 | BV31: 664.9235469 | BX31: 0.1049953103 | BZ31: 0.3613175472 | CA31: 0.1178988367 | CB31: 0.05594547837 | CE31: =IF(OR(MODE=1,MODE=2,MODE=3), BR31, IF(MODE_ILIM=4,#REF!,#REF!)) -> 64.25205021 | CF31: =IF(OR(MODE=1,MODE=2,MODE=3), BZ31, IF(MODE_ILIM=4,#REF!,#REF!)) -> 0.3613175472 | CG31: =IF(OR(MODE=1,MODE=2,MODE=3), CA31, IF(MODE_ILIM=4,#REF!,#REF!)) -> 0.1178988367 | CH31: =IF(OR(MODE=1,MODE=2,MODE=3), CB31, IF(MODE_ILIM=4,#REF!,#REF!)) -> 0.05594547837 | CI31: =(IF(OR(MODE=1,MODE=2,MODE=3), S31, IF(MODE_ILIM=4,#REF!,#REF!)))/1000 -> 664.9235469 | CJ31: =IF(OR(MODE=1,MODE=2,MODE=3), P31, IF(MODE_ILIM=4,#REF!,#REF!)) -> 42.56155553
A32: RCoutESR | B32: ='Design Converter'!E26 -> 0.005 | C32: mW | D32: =B32 -> 0.005 | E32: Output capacitor ESR | H32: 26 | I32: 0.065 | J32: 0.2266970289 | K32: 0.2266970289 | L32: 0 | M32: 42.14589927 | N32: 1.656385157 | O32: 26 | P32: 43.06601408 | Q32: 6.209300167e-07 | R32: 0.1440667685 | S32: 691520.4887 | T32: 1.446088751e-06 | U32: 0 | V32: 0.00066 | W32: 0.09851777327 | X32: 0.001164690198 | Y32: 0.05700818185 | Z32: 0.0581837146 | AA32: 0.04940430092 | AB32: 1.220392475e-05 | AC32: 1.220392475e-05 | AD32: 0.0336776229 | AE32: 3.402546853e-06 | AF32: 3.402546853e-06 | AG32: 0.04952538946 | AH32: 0.001685049006 | AI32: 0.002776454762 | AJ32: 40 | AK32: 33.98244328 | AL32: 0.1003898353 | AM32: 0.1274610565 | AN32: 0.2306273465 | AO32: 0.2323848182 | AP32: 0.08516447292 | AQ32: 0.002204908184 | AR32: 0.007606725376 | AS32: 0 | AT32: 0.00201326515 | AU32: 0.009619990527 | AV32: 0.01182972285 | AW32: 0.03203792404 | AX32: 0.1213332732 | AY32: 0.01038318014 | AZ32: 0.3759309944 | BA32: 0.4341303155 | BB32: 0.78 | BC32: 0.6424351571 | BD32: 0.001447514874 | BE32: 0.001820012474 | BF32: 0.08209870725 | BG32: 0.1899527123 | BH32: 0 | BI32: 0.001658195273 | BJ32: 0.007923359135 | BK32: 0.0009592793978 | BL32: 0.04695392341 | BM32: 2.802456054e-06 | BN32: 1.005157732e-05 | BO32: 0.09993430827 | BP32: 0.4327608664 | BQ32: 0.6424351571 | BR32: 64.24351571 | BS32: 65 | BT32: 50.25474798 | BU32: 0.5025474798 | BV32: 691.5204887 | BX32: 0.1049813639 | BZ32: 0.3759309944 | CA32: 0.1213332732 | CB32: 0.0581837146 | CE32: =IF(OR(MODE=1,MODE=2,MODE=3), BR32, IF(MODE_ILIM=4,#REF!,#REF!)) -> 64.24351571 | CF32: =IF(OR(MODE=1,MODE=2,MODE=3), BZ32, IF(MODE_ILIM=4,#REF!,#REF!)) -> 0.3759309944 | CG32: =IF(OR(MODE=1,MODE=2,MODE=3), CA32, IF(MODE_ILIM=4,#REF!,#REF!)) -> 0.1213332732 | CH32: =IF(OR(MODE=1,MODE=2,MODE=3), CB32, IF(MODE_ILIM=4,#REF!,#REF!)) -> 0.0581837146 | CI32: =(IF(OR(MODE=1,MODE=2,MODE=3), S32, IF(MODE_ILIM=4,#REF!,#REF!)))/1000 -> 691.5204887 | CJ32: =IF(OR(MODE=1,MODE=2,MODE=3), P32, IF(MODE_ILIM=4,#REF!,#REF!)) -> 43.06601408
A33: Controller | C33: Units | D33: Std Units | E33: Description | H33: 27 | I33: 0.0675 | J33: 0.2266970289 | K33: 0.2266970289 | L33: 0 | M33: 41.99438412 | N33: 1.61141146 | O33: 27 | P33: 43.50810942 | Q33: 6.209300167e-07 | R33: 0.149607798 | S33: 718117.4306 | T33: 1.392529909e-06 | U33: 0 | V33: 0.00066 | W33: 0.1003944709 | X33: 0.001209485975 | Y33: 0.05920080423 | Z33: 0.06042198293 | AA33: 0.05034541979 | AB33: 1.267330647e-05 | AC33: 1.267330647e-05 | AD33: 0.03487758043 | AE33: 3.649336849e-06 | AF33: 3.649336849e-06 | AG33: 0.05046881498 | AH33: 0.001749858583 | AI33: 0.002883241484 | AJ33: 40 | AK33: 33.98244328 | AL33: 0.1057151859 | AM33: 0.1323634048 | AN33: 0.2409618322 | AO33: 0.2427902665 | AP33: 0.08678679914 | AQ33: 0.002289712345 | AR33: 0.007899291737 | AS33: 0 | AT33: 0.002120710345 | AU33: 0.01002000208 | AV33: 0.01231492958 | AW33: 0.03203792404 | AX33: 0.1247677097 | AY33: 0.01078253322 | AZ33: 0.390655439 | BA33: 0.4510937446 | BB33: 0.81 | BC33: 0.6422995939 | BD33: 0.001449879793 | BE33: 0.00181979136 | BF33: 0.08208138321 | BG33: 0.1910736876 | BH33: 0 | BI33: 0.001681643695 | BJ33: 0.007945485515 | BK33: 0.0009590769758 | BL33: 0.04694401545 | BM33: 2.893787131e-06 | BN33: 1.004945629e-05 | BO33: 0.09893611024 | BP33: 0.4329040171 | BQ33: 0.6422995939 | BR33: 64.22995939 | BS33: 67.5 | BT33: 51.8750078 | BU33: 0.518750078 | BV33: 718.1174306 | BX33: 0.1049592113 | BZ33: 0.390655439 | CA33: 0.1247677097 | CB33: 0.06042198293 | CE33: =IF(OR(MODE=1,MODE=2,MODE=3), BR33, IF(MODE_ILIM=4,#REF!,#REF!)) -> 64.22995939 | CF33: =IF(OR(MODE=1,MODE=2,MODE=3), BZ33, IF(MODE_ILIM=4,#REF!,#REF!)) -> 0.390655439 | CG33: =IF(OR(MODE=1,MODE=2,MODE=3), CA33, IF(MODE_ILIM=4,#REF!,#REF!)) -> 0.1247677097 | CH33: =IF(OR(MODE=1,MODE=2,MODE=3), CB33, IF(MODE_ILIM=4,#REF!,#REF!)) -> 0.06042198293 | CI33: =(IF(OR(MODE=1,MODE=2,MODE=3), S33, IF(MODE_ILIM=4,#REF!,#REF!)))/1000 -> 718.1174306 | CJ33: =IF(OR(MODE=1,MODE=2,MODE=3), P33, IF(MODE_ILIM=4,#REF!,#REF!)) -> 43.50810942
A34: Deadtime1 | B34: 20 | C34: ns | D34: =B34/1000000000 -> 2e-08 | E34: PMOS off to NMOS on deadtime | H34: 28 | I34: 0.07 | J34: 0.2266970289 | K34: 0.2266970289 | L34: 0 | M34: 41.84286897 | N34: 1.567636096 | O34: 27 | P34: 42.32617458 | Q34: 6.209300167e-07 | R34: 0.1551488276 | S34: 744714.3725 | T34: 1.342796698e-06 | U34: 0 | V34: 0.00066 | W34: 0.102236725 | X34: 0.001254281752 | Y34: 0.0613934266 | Z34: 0.06266028334 | AA34: 0.05126926602 | AB34: 1.314268819e-05 | AC34: 1.314268819e-05 | AD34: 0.03609210676 | AE34: 3.90792051e-06 | AF34: 3.90792051e-06 | AG34: 0.05139492553 | AH34: 0.00181466816 | AI34: 0.002990028206 | AJ34: 40 | AK34: 33.98244328 | AL34: 0.111148996 | AM34: 0.1372657531 | AN34: 0.2514047773 | AO34: 0.2533044602 | AP34: 0.0883793503 | AQ34: 0.002374516506 | AR34: 0.008191858097 | AS34: 0 | AT34: 0.002230397262 | AU34: 0.01042225536 | AV34: 0.01280239425 | AW34: 0.03203792404 | AX34: 0.1282021462 | AY34: 0.0111818863 | AZ34: 0.405490887 | BA34: 0.468168221 | BB34: 0.84 | BC34: 0.6421192523 | BD34: 0.001452170219 | BE34: 0.001819444055 | BF34: 0.08205833683 | BG34: 0.192180771 | BH34: 0 | BI34: 0.001704977408 | BJ34: 0.007967060499 | BK34: 0.0009588076912 | BL34: 0.04693083475 | BM34: 2.987322615e-06 | BN34: 1.004663466e-05 | BO34: 0.0980012694 | BP34: 0.4330867058 | BQ34: 0.6421192523 | BR34: 64.21192523 | BS34: 70 | BT34: 53.42071425 | BU34: 0.5342071425 | BV34: 744.7143725 | BX34: 0.1049297414 | BZ34: 0.405490887 | CA34: 0.1282021462 | CB34: 0.06266028334 | CE34: =IF(OR(MODE=1,MODE=2,MODE=3), BR34, IF(MODE_ILIM=4,#REF!,#REF!)) -> 64.21192523 | CF34: =IF(OR(MODE=1,MODE=2,MODE=3), BZ34, IF(MODE_ILIM=4,#REF!,#REF!)) -> 0.405490887 | CG34: =IF(OR(MODE=1,MODE=2,MODE=3), CA34, IF(MODE_ILIM=4,#REF!,#REF!)) -> 0.1282021462 | CH34: =IF(OR(MODE=1,MODE=2,MODE=3), CB34, IF(MODE_ILIM=4,#REF!,#REF!)) -> 0.06266028334 | CI34: =(IF(OR(MODE=1,MODE=2,MODE=3), S34, IF(MODE_ILIM=4,#REF!,#REF!)))/1000 -> 744.7143725 | CJ34: =IF(OR(MODE=1,MODE=2,MODE=3), P34, IF(MODE_ILIM=4,#REF!,#REF!)) -> 42.32617458
A35: Deadtime2 | B35: 20 | C35: ns | D35: =B35/1000000000 -> 2e-08 | E35: NMOS off to PMOS on deadtime | H35: 29 | I35: 0.0725 | J35: 0.2266970289 | K35: 0.2266970289 | L35: 0 | M35: 41.69135382 | N35: 1.525162252 | O35: 28 | P35: 42.70454304 | Q35: 6.209300167e-07 | R35: 0.1606898572 | S35: 771311.3144 | T35: 1.296493363e-06 | U35: 0 | V35: 0.00066 | W35: 0.104046365 | X35: 0.001299077528 | Y35: 0.06358604898 | Z35: 0.06489861584 | AA35: 0.05217675711 | AB35: 1.361206991e-05 | AC35: 1.361206991e-05 | AD35: 0.03732086661 | AE35: 4.178541253e-06 | AF35: 4.178541253e-06 | AG35: 0.05230464085 | AH35: 0.001879477737 | AI35: 0.003096814927 | AJ35: 40 | AK35: 33.98244328 | AL35: 0.1166912655 | AM35: 0.1421681015 | AN35: 0.2619561819 | AO35: 0.2639274033 | AP35: 0.08994370804 | AQ35: 0.002459320667 | AR35: 0.008484424458 | AS35: 0 | AT35: 0.002342327897 | AU35: 0.01082675236 | AV35: 0.01329211896 | AW35: 0.03203792404 | AX35: 0.1316365828 | AY35: 0.01158123939 | AZ35: 0.4204373444 | BA35: 0.4853537509 | BB35: 0.87 | BC35: 0.6418988397 | BD35: 0.00145439623 | BE35: 0.001818983866 | BF35: 0.08203016963 | BG35: 0.193275137 | BH35: 0 | BI35: 0.001728204091 | BJ35: 0.007988137671 | BK35: 0.0009584785726 | BL35: 0.04691472536 | BM35: 3.082989404e-06 | BN35: 1.004318607e-05 | BO35: 0.09712341348 | BP35: 0.4333047721 | BQ35: 0.6418988397 | BR35: 64.18988397 | BS35: 72.5 | BT35: 54.8884902 | BU35: 0.548884902 | BV35: 771.3113144 | BX35: 0.1048937234 | BZ35: 0.4204373444 | CA35: 0.1316365828 | CB35: 0.06489861584 | CE35: =IF(OR(MODE=1,MODE=2,MODE=3), BR35, IF(MODE_ILIM=4,#REF!,#REF!)) -> 64.18988397 | CF35: =IF(OR(MODE=1,MODE=2,MODE=3), BZ35, IF(MODE_ILIM=4,#REF!,#REF!)) -> 0.4204373444 | CG35: =IF(OR(MODE=1,MODE=2,MODE=3), CA35, IF(MODE_ILIM=4,#REF!,#REF!)) -> 0.1316365828 | CH35: =IF(OR(MODE=1,MODE=2,MODE=3), CB35, IF(MODE_ILIM=4,#REF!,#REF!)) -> 0.06489861584 | CI35: =(IF(OR(MODE=1,MODE=2,MODE=3), S35, IF(MODE_ILIM=4,#REF!,#REF!)))/1000 -> 771.3113144 | CJ35: =IF(OR(MODE=1,MODE=2,MODE=3), P35, IF(MODE_ILIM=4,#REF!,#REF!)) -> 42.70454304
A36: Sleep delay | B36: 5 | C36: µs | D36: =B36/1000000 -> 5e-06 | E36: Delay time to enter sleep mode | H36: 30 | I36: 0.075 | J36: 0.2266970289 | K36: 0.2266970289 | L36: 0 | M36: 41.53983867 | N36: 1.484101678 | O36: 28 | P36: 41.55484697 | Q36: 6.209300167e-07 | R36: 0.1662308867 | S36: 797908.2562 | T36: 1.253276918e-06 | U36: 0 | V36: 0.00066 | W36: 0.1058250642 | X36: 0.001343873305 | Y36: 0.06577867136 | Z36: 0.06713698044 | AA36: 0.0530687321 | AB36: 1.408145163e-05 | AC36: 1.408145163e-05 | AD36: 0.0385634917 | AE36: 4.461428675e-06 | AF36: 4.461428675e-06 | AG36: 0.05319880205 | AH36: 0.001944287315 | AI36: 0.003203601649 | AJ36: 40 | AK36: 33.98244328 | AL36: 0.1223419946 | AM36: 0.1470704498 | AN36: 0.272616046 | AO36: 0.2746590996 | AP36: 0.0914813187 | AQ36: 0.002544124828 | AR36: 0.008776990819 | AS36: 0 | AT36: 0.002456504245 | AU36: 0.01123349506 | AV36: 0.01378410581 | AW36: 0.03203792404 | AX36: 0.1350710193 | AY36: 0.01198059247 | AZ36: 0.4354948172 | BA36: 0.5026503405 | BB36: 0.9 | BC36: 0.6416424493 | BD36: 0.001456566581 | BE36: 0.001818422362 | BF36: 0.08199740475 | BG36: 0.1943578083 | BH36: 0 | BI36: 0.001751330445 | BJ36: 0.008008763652 | BK36: 0.0009580957324 | BL36: 0.04689598645 | BM36: 3.180713359e-06 | BN36: 1.003917457e-05 | BO36: 0.09629699959 | BP36: 0.4335545978 | BQ36: 0.6416424493 | BR36: 64.16424493 | BS36: 75 | BT36: 56.27615304 | BU36: 0.5627615304 | BV36: 797.9082562 | BX36: 0.1048518262 | BZ36: 0.4354948172 | CA36: 0.1350710193 | CB36: 0.06713698044 | CE36: =IF(OR(MODE=1,MODE=2,MODE=3), BR36, IF(MODE_ILIM=4,#REF!,#REF!)) -> 64.16424493 | CF36: =IF(OR(MODE=1,MODE=2,MODE=3), BZ36, IF(MODE_ILIM=4,#REF!,#REF!)) -> 0.4354948172 | CG36: =IF(OR(MODE=1,MODE=2,MODE=3), CA36, IF(MODE_ILIM=4,#REF!,#REF!)) -> 0.1350710193 | CH36: =IF(OR(MODE=1,MODE=2,MODE=3), CB36, IF(MODE_ILIM=4,#REF!,#REF!)) -> 0.06713698044 | CI36: =(IF(OR(MODE=1,MODE=2,MODE=3), S36, IF(MODE_ILIM=4,#REF!,#REF!)))/1000 -> 797.9082562 | CJ36: =IF(OR(MODE=1,MODE=2,MODE=3), P36, IF(MODE_ILIM=4,#REF!,#REF!)) -> 41.55484697
A37: IQ(active) | B37: 660 | C37: µA | D37: =B37/1000000 -> 0.00066 | E37: LM5164 quiescent current - active state | H37: 31 | I37: 0.0775 | J37: 0.2266970289 | K37: 0.2266970289 | L37: 0 | M37: 41.38832351 | N37: 1.444574891 | O37: 29 | P37: 41.89267184 | Q37: 6.209300167e-07 | R37: 0.1717719163 | S37: 824505.1981 | T37: 1.21284863e-06 | U37: 0 | V37: 0.00066 | W37: 0.1075743573 | X37: 0.001388669082 | Y37: 0.06797129374 | Z37: 0.06937537713 | AA37: 0.05394596065 | AB37: 1.455083335e-05 | AC37: 1.455083335e-05 | AD37: 0.03981958715 | AE37: 4.756798563e-06 | AF37: 4.756798563e-06 | AG37: 0.05407818067 | AH37: 0.002009096892 | AI37: 0.00331038837 | AJ37: 40 | AK37: 33.98244328 | AL37: 0.1281011832 | AM37: 0.1519727981 | AN37: 0.2833843696 | AO37: 0.2854995532 | AP37: 0.09299350906 | AQ37: 0.002628928989 | AR37: 0.009069557179 | AS37: 0 | AT37: 0.0025729283 | AU37: 0.01164248548 | AV37: 0.0142783569 | AW37: 0.03203792404 | AX37: 0.1385054558 | AY37: 0.01237994555 | AZ37: 0.4506633114 | BA37: 0.5200579961 | BB37: 0.93 | BC37: 0.6413536579 | BD37: 0.001458688912 | BE37: 0.001817769651 | BF37: 0.08196049923 | BG37: 0.1954296796 | BH37: 0 | BI37: 0.00177436234 | BJ37: 0.008028979193 | BK37: 0.0009576645112 | BL37: 0.04687487943 | BM37: 3.280419525e-06 | BN37: 1.003465613e-05 | BO37: 0.09551718354 | BP37: 0.4338330215 | BQ37: 0.6413536579 | BR37: 64.13536579 | BS37: 77.5 | BT37: 57.58263522 | BU37: 0.5758263522 | BV37: 824.5051981 | BX37: 0.1048046344 | BZ37: 0.4506633114 | CA37: 0.1385054558 | CB37: 0.06937537713 | CE37: =IF(OR(MODE=1,MODE=2,MODE=3), BR37, IF(MODE_ILIM=4,#REF!,#REF!)) -> 64.13536579 | CF37: =IF(OR(MODE=1,MODE=2,MODE=3), BZ37, IF(MODE_ILIM=4,#REF!,#REF!)) -> 0.4506633114 | CG37: =IF(OR(MODE=1,MODE=2,MODE=3), CA37, IF(MODE_ILIM=4,#REF!,#REF!)) -> 0.1385054558 | CH37: =IF(OR(MODE=1,MODE=2,MODE=3), CB37, IF(MODE_ILIM=4,#REF!,#REF!)) -> 0.06937537713 | CI37: =(IF(OR(MODE=1,MODE=2,MODE=3), S37, IF(MODE_ILIM=4,#REF!,#REF!)))/1000 -> 824.5051981 | CJ37: =IF(OR(MODE=1,MODE=2,MODE=3), P37, IF(MODE_ILIM=4,#REF!,#REF!)) -> 41.89267184
A38: IQ(sleep) | B38: 10 | C38: µA | D38: =B38/1000000 -> 1e-05 | E38: LM5164 quiescent current - sleep state | H38: 32 | I38: =IF(PLOT_TYPE=1, H38/100*Iout, min_I*EXP(H38*rr/100)) -> 0.08 | J38: =IF(I38<Icrit, (Vin-(Rdcr+RdsonTop)*Iripple/2-Vout)/L*OnTime, (Vin-(Rdcr+RdsonTop)*I38-Vout)/L*OnTime) -> 0.2266970289 | K38: =IF(I38<Icrit, (Vin-(Rdcr+RdsonTop)*Iripple/2-Vout)/L*OnTime, I38+((Vin-(Rdcr+RdsonTop)*J38-Vout)/L*OnTime)/2) -> 0.2266970289 | L38: =IF(I38<Icrit, 0, I38-((Vin-(Rdcr+RdsonTop)*K38-Vout)/L*OnTime)/2) -> 0 | M38: 41.23680836 | N38: =IF(I38<Icrit, 1000*SQRT((J38*CoutEsr)^2+(((J38/2)-I38)*(OnTime+OffTime)/Cout)^2), 1000*J38*SQRT(CoutEsr^2+(1/(8*Fsw*Cout))^2)) -> 1.40671119 | O38: 30 | P38: =IF(I38<Icrit, 1000*((N38/1000)*O38), 1000*J38*SQRT(CoutEsr^2+(1/(8*Fsw*Cout))^2)) -> 42.20133571 | Q38: =IF(I38<Icrit, L*J38/(Vout+J38/2*(RdsonBot+Rdcr)), L*J38/(Vout+I38*(RdsonBot+Rdcr))) -> 6.209300167e-07 | R38: 0.1773129458 | S38: =IF(I38<Icrit,I38/((OnTime+Q38)*J38/2),1/(OnTime+Q38)) -> 851102.14 | T38: 1.17494711e-06 | U38: 0 | V38: =S38*(T38*Iq_active+U38*Iq_sleep) -> 0.00066 | W38: 0.1092956563 | X38: =W38^2*Rdcr -> 0.001433464859 | Y38: =Core_Loss/1000*S38/$S$106 -> 0.07016391612 | Z38: =(Y38+X38*(1+Ltc*(Ta-25)))/(1-X38*Ltc*ThetaCa) -> 0.07161380592 | AA38: 0.05480915083 | AB38: 1.502021508e-05 | AC38: 1.502021508e-05 | AD38: 0.04108873682 | AE38: 5.064852881e-06 | AF38: 5.064852881e-06 | AG38: 0.0549434865 | AH38: 0.002073906469 | AI38: 0.003417175092 | AJ38: =20*VIN_nom/24 -> 40 | AK38: =IF(I38<Icrit, Csw*Vin/Iripple*1000000000, Csw*Vin/(I38+Iripple/2)*1000000000) -> 33.98244328 | AL38: =IF(I38<Icrit, Vin*(I38+Iripple/2)*AK38/1000000000/2*S38, Vin*(I38-Iripple/2)*AJ38/1000000000/2*S38 + Vin*(I38+Iripple/2)*AK38/1000000000/2*S38) -> 0.1339688312 | AM38: =IF(I38<Icrit, Csw*(Vin)^2*S38/2, Csw*Vin^2*S38/2) -> 0.1568751464 | AN38: 0.2942611527 | AO38: =(AI38+AL38+AM38+AH38*(1+RdsonTopTc*(Ta-25)))/(1-AH38*RdsonTopTc*ThetaJA) -> 0.2964487678 | AP38: =IF(I38<Icrit,Iripple*SQRT((OffTime)*S38/3), SQRT(OffTime*S38*(I38^2+Iripple^2/12))) -> 0.09448149969 | AQ38: 0.00271373315 | AR38: =QgBot*S38*Vdd -> 0.00936212354 | AS38: =IF(I38<Icrit, Vin*Idss*R38, QrrBot*(I38-Iripple/2)/1*S38*Vin+Vin*Idss*R38) -> 0 | AT38: =IF(I38<Icrit, dead1*S38*(I38+Iripple/2)*((I38+Iripple/2)*BDserR+VSD), dead1*S38*(I38+Iripple/2)*((I38+Iripple/2)*BDserR+VSD)+dead2*S38*(I38-Iripple/2)*((I38-Iripple/2)*BDserR+VSD)) -> 0.002691602057 | AU38: 0.0120537256 | AV38: =(AR38+AS38+AT38+AQ38*(1+RdsonBotTc*(Ta-25)))/(1-AQ38*RdsonBotTc*ThetaJA) -> 0.01477487433 | AW38: =Vin*V38+Vout*Ifb/0.8 -> 0.03203792404 | AX38: =(Vin-Vdd)*(S38*QgBot+S38*QgTop)+AW38 -> 0.1419398923 | AY38: =AI38+AR38 -> 0.01277929863 | AZ38: 0.465942833 | BA38: =SUM(Z38,AC38,AF38,AZ38) -> 0.537576724 | BB38: =Vout*I38 -> 0.96 | BC38: 0.6410356041 | BD38: 0.001460769917 | BE38: 0.001817034606 | BF38: =Vin*S38*(QgBot+QgTop)/($BB38+$BA38) -> 0.08191985419 | BG38: 0.1964915373 | BH38: 0 | BI38: 0.001797304948 | BJ38: 0.008048820073 | BK38: =X38/($BB38+$BA38) -> 0.0009571895957 | BL38: =Y38/($BB38+$BA38) -> 0.04685163371 | BM38: 3.382032319e-06 | BN38: 1.002967984e-05 | BO38: 0.09477971312 | BP38: 0.4341372692 | BQ38: =BC38 -> 0.6410356041 | BR38: 64.10356041 | BS38: =I38*1000 -> 80 | BT38: 58.80788226 | BU38: 0.5880788226 | BV38: =S38/1000 -> 851.10214 | BX38: =AM38/($BB38+$BA38) -> 0.1047526607 | BZ38: 0.465942833 | CA38: 0.1419398923 | CB38: 0.07161380592 | CE38: =IF(OR(MODE=1,MODE=2,MODE=3), BR38, IF(MODE_ILIM=4,#REF!,#REF!)) -> 64.10356041 | CF38: =IF(OR(MODE=1,MODE=2,MODE=3), BZ38, IF(MODE_ILIM=4,#REF!,#REF!)) -> 0.465942833 | CG38: =IF(OR(MODE=1,MODE=2,MODE=3), CA38, IF(MODE_ILIM=4,#REF!,#REF!)) -> 0.1419398923 | CH38: =IF(OR(MODE=1,MODE=2,MODE=3), CB38, IF(MODE_ILIM=4,#REF!,#REF!)) -> 0.07161380592 | CI38: =(IF(OR(MODE=1,MODE=2,MODE=3), S38, IF(MODE_ILIM=4,#REF!,#REF!)))/1000 -> 851.10214 | CJ38: =IF(OR(MODE=1,MODE=2,MODE=3), P38, IF(MODE_ILIM=4,#REF!,#REF!)) -> 42.20133571
A39: High-side N-ch MOSFET | C39: Units | D39: Std Units | E39: Description | H39: 33 | I39: 0.0825 | J39: 0.2266970289 | K39: 0.2266970289 | L39: 0 | M39: =IF(I39<Icrit, 1000*((((J39/2)-I39)*0.000002/Cout+Vout/306)), 1000*J39*SQRT(CoutEsr^2+(1/(8*Fsw*Cout))^2)) -> 41.08529321 | N39: 1.370648409 | O39: 30 | P39: 41.11945227 | Q39: 6.209300167e-07 | R39: 0.1828539754 | S39: 877699.0819 | T39: =IF(1/S39-OnTime-Q39>Tsleep, OnTime+Q39+Tsleep, 1/S39) -> 1.139342652e-06 | U39: =IF(1/S39-OnTime-Q39>Tsleep, 1/S39-OnTime-Q39-Tsleep, 0) -> 0 | V39: 0.00066 | W39: =IF(I39<Icrit,Iripple*SQRT((OnTime+OffTime)*S39/3), SQRT(I39^2+Iripple^2/12)) -> 0.1109902637 | X39: 0.001478260636 | Y39: 0.0723565385 | Z39: 0.0738522668 | AA39: =Iripple/SQRT(12)*SQRT((OnTime+Q39)*S39) -> 0.05565895579 | AB39: 1.54895968e-05 | AC39: 1.54895968e-05 | AD39: =SQRT($R39)*SQRT($I39^2*(1-R39)+(Iripple^2)/12) -> 0.04237050775 | AE39: 5.385779781e-06 | AF39: 5.385779781e-06 | AG39: =IF(I39<Icrit,Iripple*SQRT((OnTime)*S39/3), SQRT(OnTime*S39*(I39^2+Iripple^2/12))) -> 0.0557953743 | AH39: =RdsonTop*AG39^2 -> 0.002138716046 | AI39: =QgTop*S39*Vdd -> 0.003523961814 | AJ39: 40 | AK39: 33.98244328 | AL39: 0.1399449387 | AM39: 0.1617774948 | AN39: 0.3052463953 | AO39: 0.3075067473 | AP39: 0.0959464165 | AQ39: =RdsonBot*AP39^2 -> 0.002798537311 | AR39: 0.009654689901 | AS39: 0 | AT39: 0.002812527511 | AU39: 0.01246721741 | AV39: 0.01527366021 | AW39: 0.03203792404 | AX39: 0.1453743288 | AY39: 0.01317865171 | AZ39: 0.4813333881 | BA39: 0.5552065302 | BB39: 0.99 | BC39: 0.6406910537 | BD39: 0.001462815486 | BE39: 0.001816225043 | BF39: 0.08187582306 | BG39: 0.1975440754 | BH39: 0 | BI39: 0.001820162843 | BJ39: 0.008068317838 | BK39: 0.0009566751155 | BL39: 0.0468264514 | BM39: 3.48547568e-06 | BN39: 1.002428898e-05 | BO39: 0.09408084029 | BP39: 0.4344648962 | BQ39: 0.6406910537 | BR39: 64.06910537 | BS39: 82.5 | BT39: 59.9527356 | BU39: 0.599527356 | BV39: 877.6990819 | BX39: 0.1046963572 | BZ39: 0.4813333881 | CA39: 0.1453743288 | CB39: 0.0738522668 | CE39: =IF(OR(MODE=1,MODE=2,MODE=3), BR39, IF(MODE_ILIM=4,#REF!,#REF!)) -> 64.06910537 | CF39: =IF(OR(MODE=1,MODE=2,MODE=3), BZ39, IF(MODE_ILIM=4,#REF!,#REF!)) -> 0.4813333881 | CG39: =IF(OR(MODE=1,MODE=2,MODE=3), CA39, IF(MODE_ILIM=4,#REF!,#REF!)) -> 0.1453743288 | CH39: =IF(OR(MODE=1,MODE=2,MODE=3), CB39, IF(MODE_ILIM=4,#REF!,#REF!)) -> 0.0738522668 | CI39: =(IF(OR(MODE=1,MODE=2,MODE=3), S39, IF(MODE_ILIM=4,#REF!,#REF!)))/1000 -> 877.6990819 | CJ39: =IF(OR(MODE=1,MODE=2,MODE=3), P39, IF(MODE_ILIM=4,#REF!,#REF!)) -> 41.11945227
A40: RdsonTop | B40: 687 | C40: mW | D40: =B40/1000 -> 0.687 | E40: Drain-source resistance of high-side MOSFET @ VDD, 25°C | H40: 34 | I40: 0.085 | J40: 0.2266970289 | K40: 0.2266970289 | L40: 0 | M40: 40.93377806 | N40: 1.336532334 | O40: 31 | P40: 41.43250234 | Q40: 6.209300167e-07 | R40: 0.1883950049 | S40: 904296.0237 | T40: 1.105832574e-06 | U40: 0 | V40: 0.00066 | W40: 0.1126593839 | X40: 0.001523056413 | Y40: 0.07454916088 | Z40: 0.07609075977 | AA40: 0.05649597953 | AB40: 1.595897852e-05 | AC40: 1.595897852e-05 | AD40: 0.04366445388 | AE40: 5.719753597e-06 | AF40: 5.719753597e-06 | AG40: 0.05663444957 | AH40: 0.002203525623 | AI40: 0.003630748535 | AJ40: 40 | AK40: 33.98244328 | AL40: 0.1460295057 | AM40: 0.1666798431 | AN40: 0.3163400974 | AO40: 0.3186734959 | AP40: 0.09738930072 | AQ40: 0.002883341472 | AR40: 0.009947256261 | AS40: 0 | AT40: 0.002935706656 | AU40: 0.01288296292 | AV40: 0.01577471664 | AW40: 0.03203792404 | AX40: 0.1488087653 | AY40: 0.0135780048 | AZ40: 0.4968349826 | BA40: 0.5729474211 | BB40: 1.02 | BC40: 0.6403224529 | BD40: 0.00146483082 | BE40: 0.001815347876 | BF40: 0.08182871846 | BG40: 0.1985879089 | BH40: 0 | BI40: 0.001842940085 | BJ40: 0.008087500408 | BK40: 0.0009561247236 | BL40: 0.04679951133 | BM40: 3.59067319e-06 | BN40: 1.001852183e-05 | BO40: 0.09341724863 | BP40: 0.4348137405 | BQ40: 0.6403224529 | BR40: 64.03224529 | BS40: 85 | BT40: 61.01880722 | BU40: 0.6101880722 | BV40: 904.2960237 | BX40: 0.1046361235 | BZ40: 0.4968349826 | CA40: 0.1488087653 | CB40: 0.07609075977 | CE40: =IF(OR(MODE=1,MODE=2,MODE=3), BR40, IF(MODE_ILIM=4,#REF!,#REF!)) -> 64.03224529 | CF40: =IF(OR(MODE=1,MODE=2,MODE=3), BZ40, IF(MODE_ILIM=4,#REF!,#REF!)) -> 0.4968349826 | CG40: =IF(OR(MODE=1,MODE=2,MODE=3), CA40, IF(MODE_ILIM=4,#REF!,#REF!)) -> 0.1488087653 | CH40: =IF(OR(MODE=1,MODE=2,MODE=3), CB40, IF(MODE_ILIM=4,#REF!,#REF!)) -> 0.07609075977 | CI40: =(IF(OR(MODE=1,MODE=2,MODE=3), S40, IF(MODE_ILIM=4,#REF!,#REF!)))/1000 -> 904.2960237 | CJ40: =IF(OR(MODE=1,MODE=2,MODE=3), P40, IF(MODE_ILIM=4,#REF!,#REF!)) -> 41.43250234
A41: RdsonTopTc | B41: 4500 | C41: ppm/°C | D41: =B41/1000000 -> 0.0045 | E41: Drain to Source Resistance Temp Co | H41: 35 | I41: 0.0875 | J41: 0.2266970289 | K41: 0.2266970289 | L41: 0 | M41: 40.78226291 | N41: 1.304515706 | O41: 32 | P41: 41.7445026 | Q41: 6.209300167e-07 | R41: 0.1939360345 | S41: 930892.9656 | T41: 1.074237358e-06 | U41: 0 | V41: 0.00066 | W41: 0.1143041334 | X41: 0.00156785219 | Y41: 0.07674178325 | Z41: 0.07832928484 | AA41: 0.05732078199 | AB41: 1.642836024e-05 | AC41: 1.642836024e-05 | AD41: 0.04497011915 | AE41: 6.066934848e-06 | AF41: 6.066934848e-06 | AG41: 0.05746127359 | AH41: 0.0022683352 | AI41: 0.003737535257 | AJ41: 40 | AK41: 33.98244328 | AL41: 0.1522225323 | AM41: 0.1715821914 | AN41: 0.3275422589 | AO41: 0.3299490172 | AP41: 0.09881111754 | AQ41: 0.002968145633 | AR41: 0.01023982262 | AS41: 0 | AT41: 0.003061141488 | AU41: 0.01330096411 | AV41: 0.01627804571 | AW41: 0.03203792404 | AX41: 0.1522432018 | AY41: 0.01397735788 | AZ41: 0.5124476226 | BA41: 0.5907994027 | BB41: 1.05 | BC41: 0.6399319736 | BD41: 0.001466820529 | BE41: 0.001814409245 | BF41: 0.08177881794 | BG41: 0.1996235849 | BH41: 0 | BI41: 0.001865640299 | BJ41: 0.008106392584 | BK41: 0.0009555416628 | BL41: 0.0467709722 | BM41: 3.697548182e-06 | BN41: 1.001241237e-05 | BO41: 0.09278599294 | BP41: 0.4351818823 | BQ41: 0.6399319736 | BR41: 63.99319736 | BS41: 87.5 | BT41: 62.00835197 | BU41: 0.6200835197 | BV41: 930.8929656 | BX41: 0.1045723147 | BZ41: 0.5124476226 | CA41: 0.1522432018 | CB41: 0.07832928484 | CE41: =IF(OR(MODE=1,MODE=2,MODE=3), BR41, IF(MODE_ILIM=4,#REF!,#REF!)) -> 63.99319736 | CF41: =IF(OR(MODE=1,MODE=2,MODE=3), BZ41, IF(MODE_ILIM=4,#REF!,#REF!)) -> 0.5124476226 | CG41: =IF(OR(MODE=1,MODE=2,MODE=3), CA41, IF(MODE_ILIM=4,#REF!,#REF!)) -> 0.1522432018 | CH41: =IF(OR(MODE=1,MODE=2,MODE=3), CB41, IF(MODE_ILIM=4,#REF!,#REF!)) -> 0.07832928484 | CI41: =(IF(OR(MODE=1,MODE=2,MODE=3), S41, IF(MODE_ILIM=4,#REF!,#REF!)))/1000 -> 930.8929656 | CJ41: =IF(OR(MODE=1,MODE=2,MODE=3), P41, IF(MODE_ILIM=4,#REF!,#REF!)) -> 41.7445026
A42: QgTop | B42: 0.803 | C42: nC | D42: =B42/1000000000 -> 8.03e-10 | E42: Gate charge of high-side MOSFET @ VDD | H42: 36 | I42: 0.09 | J42: 0.2266970289 | K42: 0.2266970289 | L42: 0 | M42: 40.63074776 | N42: 1.274756725 | O42: 32 | P42: 40.79221518 | Q42: 6.209300167e-07 | R42: 0.1994770641 | S42: 957489.9075 | T42: 1.044397431e-06 | U42: 0 | V42: 0.00066 | W42: 0.1159255496 | X42: 0.001612647966 | Y42: 0.07893440563 | Z42: 0.08056784201 | AA42: 0.05813388334 | AB42: 1.689774196e-05 | AC42: 1.689774196e-05 | AD42: 0.04628704007 | AE42: 6.427470234e-06 | AF42: 6.427470234e-06 | AG42: 0.05827636783 | AH42: 0.002333144777 | AI42: 0.003844321979 | AJ42: 40 | AK42: 33.98244328 | AL42: 0.1585240182 | AM42: 0.1764845397 | AN42: 0.33885288 | AO42: 0.3413333152 | AP42: 0.1002127637 | AQ42: 0.003052949794 | AR42: 0.01053238898 | AS42: 0 | AT42: 0.003188834001 | AU42: 0.01372122298 | AV42: 0.01678364955 | AW42: 0.03203792404 | AX42: 0.1556776383 | AY42: 0.01437671096 | AZ42: 0.5281713141 | BA42: 0.6087624813 | BB42: 1.08 | BC42: 0.6395215502 | BD42: 0.00146878871 | BE42: 0.001813414615 | BF42: 0.08172636872 | BG42: 0.2006515918 | BH42: 0 | BI42: 0.001888266726 | BJ42: 0.008125016475 | BK42: 0.0009549288217 | BL42: 0.04674097542 | BM42: 3.806023823e-06 | BN42: 1.000599086e-05 | BO42: 0.09218444869 | BP42: 0.435567612 | BQ42: 0.6395215502 | BR42: 63.95215502 | BS42: 90 | BT42: 62.92414287 | BU42: 0.6292414287 | BV42: 957.4899075 | BX42: 0.1045052467 | BZ42: 0.5281713141 | CA42: 0.1556776383 | CB42: 0.08056784201 | CE42: =IF(OR(MODE=1,MODE=2,MODE=3), BR42, IF(MODE_ILIM=4,#REF!,#REF!)) -> 63.95215502 | CF42: =IF(OR(MODE=1,MODE=2,MODE=3), BZ42, IF(MODE_ILIM=4,#REF!,#REF!)) -> 0.5281713141 | CG42: =IF(OR(MODE=1,MODE=2,MODE=3), CA42, IF(MODE_ILIM=4,#REF!,#REF!)) -> 0.1556776383 | CH42: =IF(OR(MODE=1,MODE=2,MODE=3), CB42, IF(MODE_ILIM=4,#REF!,#REF!)) -> 0.08056784201 | CI42: =(IF(OR(MODE=1,MODE=2,MODE=3), S42, IF(MODE_ILIM=4,#REF!,#REF!)))/1000 -> 957.4899075 | CJ42: =IF(OR(MODE=1,MODE=2,MODE=3), P42, IF(MODE_ILIM=4,#REF!,#REF!)) -> 40.79221518
A43: Coss | B43: 100 | C43: pF | D43: =B43/1000000000000 -> 1e-10 | E43: Capacitance (Coss) | H43: 37 | I43: 0.0925 | J43: 0.2266970289 | K43: 0.2266970289 | L43: 0 | M43: 40.47923261 | N43: 1.247416978 | O43: 33 | P43: 41.16476027 | Q43: 6.209300167e-07 | R43: 0.2050180936 | S43: 984086.8494 | T43: 1.016170474e-06 | U43: 0 | V43: 0.00066 | W43: 0.1175245982 | X43: 0.001657443743 | Y43: 0.08112702801 | Z43: 0.08280643128 | AA43: 0.05893576788 | AB43: 1.736712368e-05 | AC43: 1.736712368e-05 | AD43: 0.04761474786 | AE43: 6.801492642e-06 | AF43: 6.801492642e-06 | AG43: 0.05908021777 | AH43: 0.002397954355 | AI43: 0.0039511087 | AJ43: 40 | AK43: 33.98244328 | AL43: 0.1649339637 | AM43: 0.1813868881 | AN43: 0.3502719605 | AO43: 0.3528263939 | AP43: 0.101595074 | AQ43: 0.003137753955 | AR43: 0.01082495534 | AS43: 0 | AT43: 0.00331878619 | AU43: 0.01414374153 | AV43: 0.01729153024 | AW43: 0.03203792404 | AX43: 0.1591120748 | AY43: 0.01477606404 | AZ43: 0.544006063 | BA43: 0.6268366629 | BB43: 1.11 | BC43: 0.6390929117 | BD43: 0.001470739016 | BE43: 0.001812368874 | BF43: 0.08167159172 | BG43: 0.2016723668 | BH43: 0 | BI43: 0.001910822279 | BJ43: 0.008143391854 | BK43: 0.0009542887818 | BL43: 0.04670964734 | BM43: 3.916023186e-06 | BN43: 9.999284361e-06 | BO43: 0.09161026952 | BP43: 0.4359694015 | BQ43: 0.6390929117 | BR43: 63.90929117 | BS43: 92.5 | BT43: 63.76935303 | BU43: 0.6376935303 | BV43: 984.0868494 | BX43: 0.1044352022 | BZ43: 0.544006063 | CA43: 0.1591120748 | CB43: 0.08280643128 | CE43: =IF(OR(MODE=1,MODE=2,MODE=3), BR43, IF(MODE_ILIM=4,#REF!,#REF!)) -> 63.90929117 | CF43: =IF(OR(MODE=1,MODE=2,MODE=3), BZ43, IF(MODE_ILIM=4,#REF!,#REF!)) -> 0.544006063 | CG43: =IF(OR(MODE=1,MODE=2,MODE=3), CA43, IF(MODE_ILIM=4,#REF!,#REF!)) -> 0.1591120748 | CH43: =IF(OR(MODE=1,MODE=2,MODE=3), CB43, IF(MODE_ILIM=4,#REF!,#REF!)) -> 0.08280643128 | CI43: =(IF(OR(MODE=1,MODE=2,MODE=3), S43, IF(MODE_ILIM=4,#REF!,#REF!)))/1000 -> 984.0868494 | CJ43: =IF(OR(MODE=1,MODE=2,MODE=3), P43, IF(MODE_ILIM=4,#REF!,#REF!)) -> 41.16476027
A44: Low-side N-ch MOSFET | C44: Units | D44: Std Units | E44: Description | H44: 38 | I44: 0.095 | J44: 0.2266970289 | K44: 0.2266970289 | L44: 0 | M44: 40.32771745 | N44: 1.222658765 | O44: 33 | P44: 40.34773926 | Q44: 6.209300167e-07 | R44: 0.2105591232 | S44: 1010683.791 | T44: 9.894291456e-07 | U44: 0 | V44: 0.00066 | W44: 0.1191021802 | X44: 0.00170223952 | Y44: 0.08331965039 | Z44: 0.08504505264 | AA44: 0.05972688742 | AB44: 1.78365054e-05 | AC44: 1.78365054e-05 | AD44: 0.04895277023 | AE44: 7.189121139e-06 | AF44: 7.189121139e-06 | AG44: 0.05987327631 | AH44: 0.002462763932 | AI44: 0.004057895422 | AJ44: 40 | AK44: 33.98244328 | AL44: 0.1714523687 | AM44: 0.1862892364 | AN44: 0.3617995005 | AO44: 0.3644282572 | AP44: 0.1029588273 | AQ44: 0.003222558116 | AR44: 0.0111175217 | AS44: 0 | AT44: 0.003451000049 | AU44: 0.01456852175 | AV44: 0.01780168989 | AW44: 0.03203792404 | AX44: 0.1625465113 | AY44: 0.01517541713 | AZ44: 0.5599518756 | BA44: 0.6450219538 | BB44: 1.14 | BC44: 0.6386476074 | BD44: 0.001472674716 | BE44: 0.0018112764 | BF44: 0.08161468496 | BG44: 0.202686303 | BH44: 0 | BI44: 0.001933309583 | BJ44: 0.008161536457 | BK44: 0.0009536238568 | BL44: 0.0466771012 | BM44: 4.027469311e-06 | BN44: 9.992317105e-06 | BO44: 0.09106135136 | BP44: 0.4363858813 | BQ44: 0.6386476074 | BR44: 63.86476074 | BS44: 95 | BT44: 64.54744714 | BU44: 0.6454744714 | BV44: 1010.683791 | BX44: 0.1043624343 | BZ44: 0.5599518756 | CA44: 0.1625465113 | CB44: 0.08504505264 | CE44: =IF(OR(MODE=1,MODE=2,MODE=3), BR44, IF(MODE_ILIM=4,#REF!,#REF!)) -> 63.86476074 | CF44: =IF(OR(MODE=1,MODE=2,MODE=3), BZ44, IF(MODE_ILIM=4,#REF!,#REF!)) -> 0.5599518756 | CG44: =IF(OR(MODE=1,MODE=2,MODE=3), CA44, IF(MODE_ILIM=4,#REF!,#REF!)) -> 0.1625465113 | CH44: =IF(OR(MODE=1,MODE=2,MODE=3), CB44, IF(MODE_ILIM=4,#REF!,#REF!)) -> 0.08504505264 | CI44: =(IF(OR(MODE=1,MODE=2,MODE=3), S44, IF(MODE_ILIM=4,#REF!,#REF!)))/1000 -> 1010.683791 | CJ44: =IF(OR(MODE=1,MODE=2,MODE=3), P44, IF(MODE_ILIM=4,#REF!,#REF!)) -> 40.34773926
A45: RdsonBot | B45: 304 | C45: mW | D45: =B45/1000 -> 0.304 | E45: Drain-source resistance of low-side MOSFET @ VDD, 25°C | H45: 39 | I45: 0.0975 | J45: 0.2266970289 | K45: 0.2266970289 | L45: 0 | M45: 40.1762023 | N45: 1.200641798 | O45: 34 | P45: 40.82182113 | Q45: 6.209300167e-07 | R45: 0.2161001527 | S45: 1037280.733 | T45: 9.640591675e-07 | U45: 0 | V45: 0.00066 | W45: 0.1206591375 | X45: 0.001747035297 | Y45: 0.08551227277 | Z45: 0.0872837061 | AA45: 0.06050766418 | AB45: 1.830588712e-05 | AC45: 1.830588712e-05 | AD45: 0.0503006328 | AE45: 7.590460979e-06 | AF45: 7.590460979e-06 | AG45: 0.06065596674 | AH45: 0.002527573509 | AI45: 0.004164682143 | AJ45: 40 | AK45: 33.98244328 | AL45: 0.1780792332 | AM45: 0.1911915847 | AN45: 0.3734355 | AO45: 0.376138909 | AP45: 0.1043047514 | AQ45: 0.003307362277 | AR45: 0.01141008806 | AS45: 0 | AT45: 0.003585477575 | AU45: 0.01499556564 | AV45: 0.01831413061 | AW45: 0.03203792404 | AX45: 0.1659809478 | AY45: 0.01557477021 | AZ45: 0.5760087576 | BA45: 0.6633183601 | BB45: 1.17 | BC45: 0.6381870304 | BD45: 0.001474598738 | BE45: 0.001810141131 | BF45: 0.08155582645 | BG45: 0.2036937545 | BH45: 0 | BI45: 0.001955731014 | BJ45: 0.008179466243 | BK45: 0.0009529361266 | BL45: 0.04664343882 | BM45: 4.140285258e-06 | BN45: 9.98511089e-06 | BO45: 0.09053580188 | BP45: 0.4368158203 | BQ45: 0.6381870304 | BR45: 63.81870304 | BS45: 97.5 | BT45: 65.2620843 | BU45: 0.652620843 | BV45: 1037.280733 | BX45: 0.1042871707 | BZ45: 0.5760087576 | CA45: 0.1659809478 | CB45: 0.0872837061 | CE45: =IF(OR(MODE=1,MODE=2,MODE=3), BR45, IF(MODE_ILIM=4,#REF!,#REF!)) -> 63.81870304 | CF45: =IF(OR(MODE=1,MODE=2,MODE=3), BZ45, IF(MODE_ILIM=4,#REF!,#REF!)) -> 0.5760087576 | CG45: =IF(OR(MODE=1,MODE=2,MODE=3), CA45, IF(MODE_ILIM=4,#REF!,#REF!)) -> 0.1659809478 | CH45: =IF(OR(MODE=1,MODE=2,MODE=3), CB45, IF(MODE_ILIM=4,#REF!,#REF!)) -> 0.0872837061 | CI45: =(IF(OR(MODE=1,MODE=2,MODE=3), S45, IF(MODE_ILIM=4,#REF!,#REF!)))/1000 -> 1037.280733 | CJ45: =IF(OR(MODE=1,MODE=2,MODE=3), P45, IF(MODE_ILIM=4,#REF!,#REF!)) -> 40.82182113
A46: RdsonBotTc | B46: 4500 | C46: ppm/°C | D46: =B46/1000000 -> 0.0045 | E46: Drain To Source Resitance Temp Co | H46: 40 | I46: 0.1 | J46: 0.2266970289 | K46: 0.2266970289 | L46: 0 | M46: 40.02468715 | N46: 1.181519331 | O46: 34 | P46: 40.17165724 | Q46: 6.209300167e-07 | R46: 0.2216411823 | S46: 1063877.675 | T46: 9.399576883e-07 | U46: 0 | V46: 0.00066 | W46: 0.1221962586 | X46: 0.001791831074 | Y46: 0.08770489515 | Z46: 0.08952239166 | AA46: 0.06127849353 | AB46: 1.877526884e-05 | AC46: 1.877526884e-05 | AD46: 0.05165786032 | AE46: 8.005603597e-06 | AF46: 8.005603597e-06 | AG46: 0.06142868537 | AH46: 0.002592383086 | AI46: 0.004271468865 | AJ46: 40 | AK46: 33.98244328 | AL46: 0.1848145571 | AM46: 0.1960939331 | AN46: 0.385179959 | AO46: 0.3879583531 | AP46: 0.105633528 | AQ46: 0.003392166437 | AR46: 0.01170265442 | AS46: 0 | AT46: 0.00372222076 | AU46: 0.01542487518 | AV46: 0.01882885449 | AW46: 0.03203792404 | AX46: 0.1694153843 | AY46: 0.01597412329 | AZ46: 0.5921767152 | BA46: 0.6817258878 | BB46: 1.2 | BC46: 0.6377124361 | BD46: 0.001476513716 | BE46: 0.001808966613 | BF46: 0.08149517663 | BG46: 0.2046950417 | BH46: 0 | BI46: 0.001978088724 | BJ46: 0.008197195609 | BK46: 0.000952227466 | BL46: 0.04660875195 | BM46: 4.254394144e-06 | BN46: 9.977685361e-06 | BO46: 0.09003191455 | BP46: 0.437258109 | BQ46: 0.6377124361 | BR46: 63.77124361 | BS46: 100 | BT46: 65.91703305 | BU46: 0.6591703305 | BV46: 1063.877675 | BX46: 0.1042096165 | BZ46: 0.5921767152 | CA46: 0.1694153843 | CB46: 0.08952239166 | CE46: =IF(OR(MODE=1,MODE=2,MODE=3), BR46, IF(MODE_ILIM=4,#REF!,#REF!)) -> 63.77124361 | CF46: =IF(OR(MODE=1,MODE=2,MODE=3), BZ46, IF(MODE_ILIM=4,#REF!,#REF!)) -> 0.5921767152 | CG46: =IF(OR(MODE=1,MODE=2,MODE=3), CA46, IF(MODE_ILIM=4,#REF!,#REF!)) -> 0.1694153843 | CH46: =IF(OR(MODE=1,MODE=2,MODE=3), CB46, IF(MODE_ILIM=4,#REF!,#REF!)) -> 0.08952239166 | CI46: =(IF(OR(MODE=1,MODE=2,MODE=3), S46, IF(MODE_ILIM=4,#REF!,#REF!)))/1000 -> 1063.877675 | CJ46: =IF(OR(MODE=1,MODE=2,MODE=3), P46, IF(MODE_ILIM=4,#REF!,#REF!)) -> 40.17165724
A47: QgBot | B47: 2.2 | C47: nC | D47: =B47/1000000000 -> 2.2e-09 | E47: Gate charge of low-side MOSFET at VDD | H47: 41 | I47: 0.1025 | J47: 0.2266970289 | K47: 0.2266970289 | L47: 0 | M47: 39.873172 | N47: 1.165433851 | O47: 35 | P47: 40.79018477 | Q47: 6.209300167e-07 | R47: 0.2271822118 | S47: 1090474.617 | T47: 9.17031891e-07 | U47: 0 | V47: 0.00066 | W47: 0.1237142827 | X47: 0.001836626851 | Y47: 0.08989751753 | Z47: 0.09176110932 | AA47: 0.06203974624 | AB47: 1.924465056e-05 | AC47: 1.924465056e-05 | AD47: 0.05302397764 | AE47: 8.434626615e-06 | AF47: 8.434626615e-06 | AG47: 0.06219180389 | AH47: 0.002657192663 | AI47: 0.004378255587 | AJ47: 40 | AK47: 33.98244328 | AL47: 0.1916583405 | AM47: 0.2009962814 | AN47: 0.3970328775 | AO47: 0.3998865936 | AP47: 0.106945796 | AQ47: 0.003476970598 | AR47: 0.01199522079 | AS47: 0 | AT47: 0.0038612316 | AU47: 0.01585645239 | AV47: 0.01934586365 | AW47: 0.03203792404 | AX47: 0.1728498208 | AY47: 0.01637347637 | AZ47: 0.6084557544 | BA47: 0.700244543 | BB47: 1.23 | BC47: 0.6372249591 | BD47: 0.001478422023 | BE47: 0.001807756055 | BF47: 0.08143288048 | BG47: 0.2056904546 | BH47: 0 | BI47: 0.002000384674 | BJ47: 0.00821473758 | BK47: 0.0009514995689 | BL47: 0.04657312352 | BM47: 4.369719187e-06 | BN47: 9.970058268e-06 | BO47: 0.08954814636 | BP47: 0.4377117446 | BQ47: 0.6372249591 | BR47: 63.72249591 | BS47: 102.5 | BT47: 66.5160989 | BU47: 0.665160989 | BV47: 1090.474617 | BX47: 0.1041299571 | BZ47: 0.6084557544 | CA47: 0.1728498208 | CB47: 0.09176110932 | CE47: =IF(OR(MODE=1,MODE=2,MODE=3), BR47, IF(MODE_ILIM=4,#REF!,#REF!)) -> 63.72249591 | CF47: =IF(OR(MODE=1,MODE=2,MODE=3), BZ47, IF(MODE_ILIM=4,#REF!,#REF!)) -> 0.6084557544 | CG47: =IF(OR(MODE=1,MODE=2,MODE=3), CA47, IF(MODE_ILIM=4,#REF!,#REF!)) -> 0.1728498208 | CH47: =IF(OR(MODE=1,MODE=2,MODE=3), CB47, IF(MODE_ILIM=4,#REF!,#REF!)) -> 0.09176110932 | CI47: =(IF(OR(MODE=1,MODE=2,MODE=3), S47, IF(MODE_ILIM=4,#REF!,#REF!)))/1000 -> 1090.474617 | CJ47: =IF(OR(MODE=1,MODE=2,MODE=3), P47, IF(MODE_ILIM=4,#REF!,#REF!)) -> 40.79018477
A48: VSD | B48: 0.8 | C48: V | D48: =B48 -> 0.8 | E48: Body diode forward voltage | H48: 42 | I48: 0.105 | J48: 0.2266970289 | K48: 0.2266970289 | L48: 0 | M48: 39.72165685 | N48: 1.152512526 | O48: 35 | P48: 40.33793841 | Q48: 6.209300167e-07 | R48: 0.2327232414 | S48: 1117071.559 | T48: 8.951977984e-07 | U48: 0 | V48: 0.00066 | W48: 0.1252139046 | X48: 0.001881422627 | Y48: 0.09209013991 | Z48: 0.09399985909 | AA48: 0.06279177062 | AB48: 1.971403229e-05 | AC48: 1.971403229e-05 | AD48: 0.0543985105 | AE48: 8.877593834e-06 | AF48: 8.877593834e-06 | AG48: 0.06294567146 | AH48: 0.00272200224 | AI48: 0.004485042308 | AJ48: 40 | AK48: 33.98244328 | AL48: 0.1986105835 | AM48: 0.2058986297 | AN48: 0.4089942555 | AO48: 0.4119236342 | AP48: 0.108242156 | AQ48: 0.003561774759 | AR48: 0.01228778715 | AS48: 0 | AT48: 0.004002512091 | AU48: 0.01629029924 | AV48: 0.01986516018 | AW48: 0.03203792404 | AX48: 0.1762842573 | AY48: 0.01677282945 | AZ48: 0.6248458812 | BA48: 0.7188743319 | BB48: 1.26 | BC48: 0.6367256271 | BD48: 0.001480325802 | BE48: 0.001806512359 | BF48: 0.08136906936 | BG48: 0.206680257 | BH48: 0 | BI48: 0.002022620652 | BJ48: 0.008232103966 | BK48: 0.0009507539701 | BL48: 0.04653662864 | BM48: 4.486183731e-06 | BN48: 9.962245691e-06 | BO48: 0.08908309866 | BP48: 0.4381758188 | BQ48: 0.6367256271 | BR48: 63.67256271 | BS48: 105 | BT48: 67.06306393 | BU48: 0.6706306393 | BV48: 1117.071559 | BX48: 0.1040483604 | BZ48: 0.6248458812 | CA48: 0.1762842573 | CB48: 0.09399985909 | CE48: =IF(OR(MODE=1,MODE=2,MODE=3), BR48, IF(MODE_ILIM=4,#REF!,#REF!)) -> 63.67256271 | CF48: =IF(OR(MODE=1,MODE=2,MODE=3), BZ48, IF(MODE_ILIM=4,#REF!,#REF!)) -> 0.6248458812 | CG48: =IF(OR(MODE=1,MODE=2,MODE=3), CA48, IF(MODE_ILIM=4,#REF!,#REF!)) -> 0.1762842573 | CH48: =IF(OR(MODE=1,MODE=2,MODE=3), CB48, IF(MODE_ILIM=4,#REF!,#REF!)) -> 0.09399985909 | CI48: =(IF(OR(MODE=1,MODE=2,MODE=3), S48, IF(MODE_ILIM=4,#REF!,#REF!)))/1000 -> 1117.071559 | CJ48: =IF(OR(MODE=1,MODE=2,MODE=3), P48, IF(MODE_ILIM=4,#REF!,#REF!)) -> 40.33793841
A49: BDserR | B49: 100 | C49: mW | D49: =B49*0.001 -> 0.1 | E49: Series resistance of body diode | H49: 43 | I49: 0.1075 | J49: 0.2266970289 | K49: 0.2266970289 | L49: 0 | M49: 39.5701417 | N49: 1.142862684 | O49: 35 | P49: 40.00019395 | Q49: 6.209300167e-07 | R49: 0.238264271 | S49: 1143668.501 | T49: 8.743792449e-07 | U49: 0 | V49: 0.00066 | W49: 0.1266957775 | X49: 0.001926218404 | Y49: 0.09428276228 | Z49: 0.09623864095 | AA49: 0.06353489436 | AB49: 2.018341401e-05 | AC49: 2.018341401e-05 | AD49: 0.05578098613 | AE49: 9.334555242e-06 | AF49: 9.334555242e-06 | AG49: 0.06369061658 | AH49: 0.002786811818 | AI49: 0.00459182903 | AJ49: 40 | AK49: 33.98244328 | AL49: 0.2056712859 | AM49: 0.210800978 | AN49: 0.4210640929 | AO49: 0.424069479 | AP49: 0.1095231729 | AQ49: 0.00364657892 | AR49: 0.01258035351 | AS49: 0 | AT49: 0.004146064225 | AU49: 0.01672641773 | AV49: 0.02038674618 | AW49: 0.03203792404 | AX49: 0.1797186939 | AY49: 0.01717218254 | AZ49: 0.6413471016 | BA49: 0.7376152605 | BB49: 1.29 | BC49: 0.6362153734 | BD49: 0.001482226991 | BE49: 0.001805238164 | BF49: 0.0813038625 | BG49: 0.2076646892 | BH49: 0 | BI49: 0.002044798294 | BJ49: 0.008249305506 | BK49: 0.000949992063 | BL49: 0.04649933551 | BM49: 4.603711278e-06 | BN49: 9.954262231e-06 | BO49: 0.08863550071 | BP49: 0.4386495069 | BQ49: 0.6362153734 | BR49: 63.62153734 | BS49: 107.5 | BT49: 67.56163785 | BU49: 0.6756163785 | BV49: 1143.668501 | BX49: 0.103964979 | BZ49: 0.6413471016 | CA49: 0.1797186939 | CB49: 0.09623864095 | CE49: =IF(OR(MODE=1,MODE=2,MODE=3), BR49, IF(MODE_ILIM=4,#REF!,#REF!)) -> 63.62153734 | CF49: =IF(OR(MODE=1,MODE=2,MODE=3), BZ49, IF(MODE_ILIM=4,#REF!,#REF!)) -> 0.6413471016 | CG49: =IF(OR(MODE=1,MODE=2,MODE=3), CA49, IF(MODE_ILIM=4,#REF!,#REF!)) -> 0.1797186939 | CH49: =IF(OR(MODE=1,MODE=2,MODE=3), CB49, IF(MODE_ILIM=4,#REF!,#REF!)) -> 0.09623864095 | CI49: =(IF(OR(MODE=1,MODE=2,MODE=3), S49, IF(MODE_ILIM=4,#REF!,#REF!)))/1000 -> 1143.668501 | CJ49: =IF(OR(MODE=1,MODE=2,MODE=3), P49, IF(MODE_ILIM=4,#REF!,#REF!)) -> 40.00019395
A50: QrrBot | B50: 3 | C50: nC | D50: =B50*0.000000001 -> 3e-09 | E50: Reverse recovery charge of body diode at 100mA | H50: 44 | I50: 0.11 | J50: 0.2266970289 | K50: 0.2266970289 | L50: 0 | M50: 39.41862655 | N50: 1.136567657 | O50: 35 | P50: 39.77986799 | Q50: 6.209300167e-07 | R50: 0.2438053005 | S50: 1170265.442 | T50: 8.545069894e-07 | U50: 0 | V50: 0.00066 | W50: 0.1281605172 | X50: 0.001971014181 | Y50: 0.09647538466 | Z50: 0.09847745492 | AA50: 0.06426942621 | AB50: 2.065279573e-05 | AC50: 2.065279573e-05 | AD50: 0.05717093379 | AE50: 9.805547011e-06 | AF50: 9.805547011e-06 | AG50: 0.06442694874 | AH50: 0.002851621395 | AI50: 0.004698615752 | AJ50: 40 | AK50: 33.98244328 | AL50: 0.2128404478 | AM50: 0.2157033264 | AN50: 0.4332423899 | AO50: 0.4363241319 | AP50: 0.1107893788 | AQ50: 0.003731383081 | AR50: 0.01287291987 | AS50: 0 | AT50: 0.004291889999 | AU50: 0.01716480987 | AV50: 0.02091062377 | AW50: 0.03203792404 | AX50: 0.1831531304 | AY50: 0.01757153562 | AZ50: 0.6579594216 | BA50: 0.7564673349 | BB50: 1.32 | BC50: 0.635695047 | BD50: 0.001484127349 | BE50: 0.001803935869 | BF50: 0.08123736844 | BG50: 0.2086439708 | BH50: 0 | BI50: 0.002066919102 | BJ50: 0.008266351981 | BK50: 0.0009492151155 | BL50: 0.0464613062 | BM50: 4.722225506e-06 | BN50: 9.946121175e-06 | BO50: 0.08820419531 | BP50: 0.4391320585 | BQ50: 0.635695047 | BR50: 63.5695047 | BS50: 110 | BT50: 68.01541938 | BU50: 0.6801541938 | BV50: 1170.265442 | BX50: 0.1038799517 | BZ50: 0.6579594216 | CA50: 0.1831531304 | CB50: 0.09847745492 | CE50: =IF(OR(MODE=1,MODE=2,MODE=3), BR50, IF(MODE_ILIM=4,#REF!,#REF!)) -> 63.5695047 | CF50: =IF(OR(MODE=1,MODE=2,MODE=3), BZ50, IF(MODE_ILIM=4,#REF!,#REF!)) -> 0.6579594216 | CG50: =IF(OR(MODE=1,MODE=2,MODE=3), CA50, IF(MODE_ILIM=4,#REF!,#REF!)) -> 0.1831531304 | CH50: =IF(OR(MODE=1,MODE=2,MODE=3), CB50, IF(MODE_ILIM=4,#REF!,#REF!)) -> 0.09847745492 | CI50: =(IF(OR(MODE=1,MODE=2,MODE=3), S50, IF(MODE_ILIM=4,#REF!,#REF!)))/1000 -> 1170.265442 | CJ50: =IF(OR(MODE=1,MODE=2,MODE=3), P50, IF(MODE_ILIM=4,#REF!,#REF!)) -> 39.77986799
A51: TrrBot | B51: 20 | C51: ns | D51: =B51*0.000000001 -> 2e-08 | E51: Reverse recovery time of body diode (not used) | H51: 45 | I51: 0.1125 | J51: 0.2266970289 | K51: 0.2266970289 | L51: 0 | M51: 39.26711139 | N51: 1.13368333 | O51: 35 | P51: 39.67891654 | Q51: 6.209300167e-07 | R51: 0.2493463301 | S51: 1196862.384 | T51: 8.355179451e-07 | U51: 0 | V51: 0.00066 | W51: 0.1296087046 | X51: 0.002015809958 | Y51: 0.09866800704 | Z51: 0.100716301 | AA51: 0.06499565747 | AB51: 2.112217745e-05 | AC51: 2.112217745e-05 | AD51: 0.05856788509 | AE51: 1.029059149e-05 | AF51: 1.029059149e-05 | AG51: 0.06515495997 | AH51: 0.002916430972 | AI51: 0.004805402473 | AJ51: 40 | AK51: 33.98244328 | AL51: 0.2201180692 | AM51: 0.2206056747 | AN51: 0.4455291463 | AO51: 0.4486875967 | AP51: 0.1120412759 | AQ51: 0.003816187242 | AR51: 0.01316548623 | AS51: 0 | AT51: 0.004439991407 | AU51: 0.01760547764 | AV51: 0.02143679505 | AW51: 0.03203792404 | AX51: 0.1865875669 | AY51: 0.0179708887 | AZ51: 0.6746828473 | BA51: 0.775430561 | BB51: 1.35 | BC51: 0.6351654224 | BD51: 0.001486028472 | BE51: 0.001802607662 | BF51: 0.08116968613 | BG51: 0.2096183025 | BH51: 0 | BI51: 0.002088984457 | BJ51: 0.008283252325 | BK51: 0.000948424284 | BL51: 0.04642259731 | BM51: 4.841650291e-06 | BN51: 9.937834638e-06 | BO51: 0.08778812646 | BP51: 0.4396227891 | BQ51: 0.6351654224 | BR51: 63.51654224 | BS51: 112.5 | BT51: 68.42786701 | BU51: 0.6842786701 | BV51: 1196.862384 | BX51: 0.1037934048 | BZ51: 0.6746828473 | CA51: 0.1865875669 | CB51: 0.100716301 | CE51: =IF(OR(MODE=1,MODE=2,MODE=3), BR51, IF(MODE_ILIM=4,#REF!,#REF!)) -> 63.51654224 | CF51: =IF(OR(MODE=1,MODE=2,MODE=3), BZ51, IF(MODE_ILIM=4,#REF!,#REF!)) -> 0.6746828473 | CG51: =IF(OR(MODE=1,MODE=2,MODE=3), CA51, IF(MODE_ILIM=4,#REF!,#REF!)) -> 0.1865875669 | CH51: =IF(OR(MODE=1,MODE=2,MODE=3), CB51, IF(MODE_ILIM=4,#REF!,#REF!)) -> 0.100716301 | CI51: =(IF(OR(MODE=1,MODE=2,MODE=3), S51, IF(MODE_ILIM=4,#REF!,#REF!)))/1000 -> 1196.862384 | CJ51: =IF(OR(MODE=1,MODE=2,MODE=3), P51, IF(MODE_ILIM=4,#REF!,#REF!)) -> 39.67891654
A52: Idss | B52: 0 | C52: μA | D52: =B52/1000000 -> 0 | E52: Leakage current of low-side device | H52: 46 | I52: 0.115 | J52: 0.2266868371 | K52: 0.2280589133 | L52: 0.001944581891 | M52: 1.340405742 | N52: 1.340405742 | O52: 1 | P52: 1.340405742 | Q52: 6.208660165e-07 | R52: 0.2512463781 | S52: 1205982.615 | T52: 8.291993498e-07 | U52: 0 | V52: 0.00066 | W52: 0.1322168585 | X52: 0.00209775572 | Y52: 0.09941986871 | Z52: 0.1015517093 | AA52: 0.06524030705 | AB52: 2.128148832e-05 | AC52: 2.128148832e-05 | AD52: 0.05964300464 | AE52: 1.067186401e-05 | AF52: 1.067186401e-05 | AG52: 0.06627301654 | AH52: 0.00301738144 | AI52: 0.004842020198 | AJ52: 40 | AK52: 33.68428048 | AL52: 0.2246027503 | AM52: 0.2222867155 | AN52: 0.4517314861 | AO52: 0.4550027885 | AP52: 0.1139638998 | AQ52: 0.003948282221 | AR52: 0.01326580876 | AS52: 0.0003474052191 | AT52: 0.004563408754 | AU52: 0.01817662273 | AV52: 0.02214107314 | AW52: 0.03203792404 | AX52: 0.1877652531 | AY52: 0.01810782896 | AZ52: 0.6830169437 | BA52: 0.7846006064 | BB52: 1.38 | BC52: 0.637531005 | BD52: 0.001511272991 | BE52: 0.00183149279 | BF52: 0.08030819057 | BG52: 0.2086904553 | BH52: 0.0001604939119 | BI52: 0.002108198963 | BJ52: 0.008397217797 | BK52: 0.0009691190668 | BL52: 0.04592989045 | BM52: 4.930176946e-06 | BN52: 9.831600462e-06 | BO52: 0.08674360182 | BP52: 0.4366646954 | BQ52: 0.637531005 | BR52: 63.7531005 | BS52: 115 | BT52: 68.80227773 | BU52: 0.6880227773 | BV52: 1205.982615 | BX52: 0.1026917921 | BZ52: 0.6830169437 | CA52: 0.1877652531 | CB52: 0.1015517093 | CE52: =IF(OR(MODE=1,MODE=2,MODE=3), BR52, IF(MODE_ILIM=4,#REF!,#REF!)) -> 63.7531005 | CF52: =IF(OR(MODE=1,MODE=2,MODE=3), BZ52, IF(MODE_ILIM=4,#REF!,#REF!)) -> 0.6830169437 | CG52: =IF(OR(MODE=1,MODE=2,MODE=3), CA52, IF(MODE_ILIM=4,#REF!,#REF!)) -> 0.1877652531 | CH52: =IF(OR(MODE=1,MODE=2,MODE=3), CB52, IF(MODE_ILIM=4,#REF!,#REF!)) -> 0.1015517093 | CI52: =(IF(OR(MODE=1,MODE=2,MODE=3), S52, IF(MODE_ILIM=4,#REF!,#REF!)))/1000 -> 1205.982615 | CJ52: =IF(OR(MODE=1,MODE=2,MODE=3), P52, IF(MODE_ILIM=4,#REF!,#REF!)) -> 1.340405742
A53: Csw | B53: 160 | C53: pF | D53: =B53/1000000000000 -> 1.6e-10 | E53: Effective SW node capacitance (CossHS + CossLS) | H53: 47 | I53: 0.1175 | J53: 0.2266741004 | K53: 0.2305589457 | L53: 0.004450950345 | M53: 1.340330429 | N53: 1.340330429 | O53: 1 | P53: 1.340330429 | Q53: 6.207765189e-07 | R53: 0.2512734987 | S53: 1206112.794 | T53: 8.291098522e-07 | U53: 0 | V53: 0.00066 | W53: 0.1343969779 | X53: 0.00216750572 | Y53: 0.09943060051 | Z53: 0.1016333528 | AA53: 0.06524030705 | AB53: 2.128148832e-05 | AC53: 2.128148832e-05 | AD53: 0.06055522612 | AE53: 1.100080623e-05 | AF53: 1.100080623e-05 | AG53: 0.0673694259 | AH53: 0.003118045368 | AI53: 0.004842542866 | AJ53: 40 | AK53: 33.31894046 | AL53: 0.2275216656 | AM53: 0.2223107101 | AN53: 0.4546749186 | AO53: 0.4580571175 | AP53: 0.1158492989 | AQ53: 0.00408000226 | AR53: 0.01326724073 | AS53: 0.0007816433252 | AT53: 0.004663194584 | AU53: 0.01871207864 | AV53: 0.02280929271 | AW53: 0.03203792404 | AX53: 0.187782063 | AY53: 0.0181097836 | AZ53: 0.6867582567 | BA53: 0.7884238918 | BB53: 1.41 | BC53: 0.6413685756 | BD53: 0.001538465307 | BE53: 0.001863705214 | BF53: 0.07908116499 | BG53: 0.206818585 | BH53: 0.0003555471391 | BI53: 0.002121153523 | BJ53: 0.008511588101 | BK53: 0.0009859362099 | BL53: 0.04522812952 | BM53: 5.003951363e-06 | BN53: 9.680338901e-06 | BO53: 0.08541667677 | BP53: 0.4319356361 | BQ53: 0.6413685756 | BR53: 64.13685756 | BS53: 117.5 | BT53: 69.1417728 | BU53: 0.691417728 | BV53: 1206.112794 | BX53: 0.1011227684 | BZ53: 0.6867582567 | CA53: 0.187782063 | CB53: 0.1016333528 | CE53: =IF(OR(MODE=1,MODE=2,MODE=3), BR53, IF(MODE_ILIM=4,#REF!,#REF!)) -> 64.13685756 | CF53: =IF(OR(MODE=1,MODE=2,MODE=3), BZ53, IF(MODE_ILIM=4,#REF!,#REF!)) -> 0.6867582567 | CG53: =IF(OR(MODE=1,MODE=2,MODE=3), CA53, IF(MODE_ILIM=4,#REF!,#REF!)) -> 0.187782063 | CH53: =IF(OR(MODE=1,MODE=2,MODE=3), CB53, IF(MODE_ILIM=4,#REF!,#REF!)) -> 0.1016333528 | CI53: =(IF(OR(MODE=1,MODE=2,MODE=3), S53, IF(MODE_ILIM=4,#REF!,#REF!)))/1000 -> 1206.112794 | CJ53: =IF(OR(MODE=1,MODE=2,MODE=3), P53, IF(MODE_ILIM=4,#REF!,#REF!)) -> 1.340330429
A54: ThetaJA | B54: 41.1 | C54: °C/W | E54: Thermal resistance | H54: 48 | I54: 0.12 | J54: 0.2266613636 | K54: 0.2330589782 | L54: 0.006957318799 | M54: 1.340255116 | N54: 1.340255116 | O54: 1 | P54: 1.340255116 | Q54: 6.20687037e-07 | R54: 0.2513006203 | S54: 1206242.978 | T54: 8.290203703e-07 | U54: 0 | V54: 0.00066 | W54: 0.1365880583 | X54: 0.00223875572 | Y54: 0.09944133275 | Z54: 0.1017165234 | AA54: 0.06524030705 | AB54: 2.128148832e-05 | AC54: 2.128148832e-05 | AD54: 0.06147316773 | AE54: 1.133685105e-05 | AF54: 1.133685105e-05 | AG54: 0.06847144789 | AH54: 0.003220889014 | AI54: 0.004843065555 | AJ54: 40 | AK54: 32.96144037 | AL54: 0.2304412067 | AM54: 0.2223347056 | AN54: 0.4576189779 | AO54: 0.4611145545 | AP54: 0.1177443496 | AQ54: 0.004214574486 | AR54: 0.01326867275 | AS54: 0.001215975165 | AT54: 0.00476306218 | AU54: 0.0192477101 | AV54: 0.02348058736 | AW54: 0.03203792404 | AX54: 0.1877988735 | AY54: 0.01811173831 | AZ54: 0.6905057536 | BA54: 0.7922548954 | BB54: 1.44 | BC54: 0.645087621 | BD54: 0.001565939687 | BE54: 0.001896233837 | BF54: 0.07789105452 | BG54: 0.2050030124 | BH54: 0.0005447295324 | BI54: 0.002133744757 | BJ54: 0.008622541332 | BK54: 0.001002912223 | BL54: 0.04454748109 | BM54: 5.078654358e-06 | BN54: 9.533628245e-06 | BO54: 0.0841296726 | BP54: 0.4273519342 | BQ54: 0.645087621 | BR54: 64.5087621 | BS54: 120 | BT54: 69.44928918 | BU54: 0.6944928918 | BV54: 1206.242978 | BX54: 0.09960094884 | BZ54: 0.6905057536 | CA54: 0.1877988735 | CB54: 0.1017165234 | CE54: =IF(OR(MODE=1,MODE=2,MODE=3), BR54, IF(MODE_ILIM=4,#REF!,#REF!)) -> 64.5087621 | CF54: =IF(OR(MODE=1,MODE=2,MODE=3), BZ54, IF(MODE_ILIM=4,#REF!,#REF!)) -> 0.6905057536 | CG54: =IF(OR(MODE=1,MODE=2,MODE=3), CA54, IF(MODE_ILIM=4,#REF!,#REF!)) -> 0.1877988735 | CH54: =IF(OR(MODE=1,MODE=2,MODE=3), CB54, IF(MODE_ILIM=4,#REF!,#REF!)) -> 0.1017165234 | CI54: =(IF(OR(MODE=1,MODE=2,MODE=3), S54, IF(MODE_ILIM=4,#REF!,#REF!)))/1000 -> 1206.242978 | CJ54: =IF(OR(MODE=1,MODE=2,MODE=3), P54, IF(MODE_ILIM=4,#REF!,#REF!)) -> 1.340255116
A55: Inductor | C55: Units | D55: Std Units | E55: Description | H55: 49 | I55: 0.1225 | J55: 0.2266486269 | K55: 0.2355590106 | L55: 0.009463687252 | M55: 1.340179804 | N55: 1.340179804 | O55: 1 | P55: 1.340179804 | Q55: 6.205975708e-07 | R55: 0.2513277431 | S55: 1206373.167 | T55: 8.289309041e-07 | U55: 0 | V55: 0.00066 | W55: 0.1387895805 | X55: 0.00231150572 | Y55: 0.09945206541 | Z55: 0.1018012214 | AA55: 0.06524030705 | AB55: 2.128148832e-05 | AC55: 2.128148832e-05 | AD55: 0.06239658107 | AE55: 1.167999999e-05 | AF55: 1.167999999e-05 | AG55: 0.06957882315 | AH55: 0.003325913078 | AI55: 0.004843588265 | AJ55: 40 | AK55: 32.61153054 | AL55: 0.2333613738 | AM55: 0.2223587021 | AN55: 0.4605636642 | AO55: 0.4641751042 | AP55: 0.1196486058 | AQ55: 0.004351999817 | AR55: 0.01327010484 | AS55: 0.001650400745 | AT55: 0.004863011563 | AU55: 0.01978351714 | AV55: 0.02415495935 | AW55: 0.03203792404 | AX55: 0.1878156847 | AY55: 0.0181136931 | AZ55: 0.6942594413 | BA55: 0.7960936242 | BB55: 1.47 | BC55: 0.6486934098 | BD55: 0.00159368526 | BE55: 0.001929065134 | BF55: 0.07673621774 | BG55: 0.2032412338 | BH55: 0.0007283020999 | BI55: 0.002145988811 | BJ55: 0.008730229384 | BK55: 0.001020039814 | BL55: 0.04388700641 | BM55: 5.15424423e-06 | BN55: 9.391266139e-06 | BO55: 0.08288081424 | BP55: 0.4229071282 | BQ55: 0.6486934098 | BR55: 64.86934098 | BS55: 122.5 | BT55: 69.72757576 | BU55: 0.6972757576 | BV55: 1206.373167 | BX55: 0.09812423448 | BZ55: 0.6942594413 | CA55: 0.1878156847 | CB55: 0.1018012214 | CE55: =IF(OR(MODE=1,MODE=2,MODE=3), BR55, IF(MODE_ILIM=4,#REF!,#REF!)) -> 64.86934098 | CF55: =IF(OR(MODE=1,MODE=2,MODE=3), BZ55, IF(MODE_ILIM=4,#REF!,#REF!)) -> 0.6942594413 | CG55: =IF(OR(MODE=1,MODE=2,MODE=3), CA55, IF(MODE_ILIM=4,#REF!,#REF!)) -> 0.1878156847 | CH55: =IF(OR(MODE=1,MODE=2,MODE=3), CB55, IF(MODE_ILIM=4,#REF!,#REF!)) -> 0.1018012214 | CI55: =(IF(OR(MODE=1,MODE=2,MODE=3), S55, IF(MODE_ILIM=4,#REF!,#REF!)))/1000 -> 1206.373167 | CJ55: =IF(OR(MODE=1,MODE=2,MODE=3), P55, IF(MODE_ILIM=4,#REF!,#REF!)) -> 1.340179804
A56: Ltc | B56: 4000 | C56: ppm | D56: =Ltc -> 0.004 | E56: Inductor DCR Temp Co | H56: 50 | I56: 0.125 | J56: 0.2266358902 | K56: 0.238059043 | L56: 0.01197005571 | M56: 1.340104491 | N56: 1.340104491 | O56: 1 | P56: 1.340104491 | Q56: 6.205081204e-07 | R56: 0.251354867 | S56: 1206503.361 | T56: 8.288414537e-07 | U56: 0 | V56: 0.00066 | W56: 0.1410010555 | X56: 0.00238575572 | Y56: 0.09946279849 | Z56: 0.1018874468 | AA56: 0.06524030705 | AB56: 2.128148832e-05 | AC56: 2.128148832e-05 | AD56: 0.06332523075 | AE56: 1.203025455e-05 | AF56: 1.203025455e-05 | AG56: 0.07069130731 | AH56: 0.003433118259 | AI56: 0.004844110996 | AJ56: 40 | AK56: 32.26897176 | AL56: 0.2362821667 | AM56: 0.2223826996 | AN56: 0.4635089773 | AO56: 0.4672387712 | AP56: 0.1215616473 | AQ56: 0.004492279168 | AR56: 0.01327153698 | AS56: 0.00208492007 | AT56: 0.004963042755 | AU56: 0.0203194998 | AV56: 0.0248324109 | AW56: 0.03203792404 | AX56: 0.1878324966 | AY56: 0.01811564797 | AZ56: 0.6980193267 | BA56: 0.7999400852 | BB56: 1.5 | BC56: 0.6521909025 | BD56: 0.001621691791 | BE56: 0.001962186377 | BF56: 0.07561510913 | BG56: 0.2015308922 | BH56: 0.0009065106015 | BI56: 0.002157900889 | BJ56: 0.008834795276 | BK56: 0.001037312117 | BL56: 0.04324582155 | BM56: 5.230681714e-06 | BN56: 9.25306205e-06 | BO56: 0.08166843032 | BP56: 0.4185951339 | BQ56: 0.6521909025 | BR56: 65.21909025 | BS56: 125 | BT56: 69.97919344 | BU56: 0.6997919344 | BV56: 1206.503361 | BX56: 0.09669064903 | BZ56: 0.6980193267 | CA56: 0.1878324966 | CB56: 0.1018874468 | CE56: =IF(OR(MODE=1,MODE=2,MODE=3), BR56, IF(MODE_ILIM=4,#REF!,#REF!)) -> 65.21909025 | CF56: =IF(OR(MODE=1,MODE=2,MODE=3), BZ56, IF(MODE_ILIM=4,#REF!,#REF!)) -> 0.6980193267 | CG56: =IF(OR(MODE=1,MODE=2,MODE=3), CA56, IF(MODE_ILIM=4,#REF!,#REF!)) -> 0.1878324966 | CH56: =IF(OR(MODE=1,MODE=2,MODE=3), CB56, IF(MODE_ILIM=4,#REF!,#REF!)) -> 0.1018874468 | CI56: =(IF(OR(MODE=1,MODE=2,MODE=3), S56, IF(MODE_ILIM=4,#REF!,#REF!)))/1000 -> 1206.503361 | CJ56: =IF(OR(MODE=1,MODE=2,MODE=3), P56, IF(MODE_ILIM=4,#REF!,#REF!)) -> 1.340104491
A57: ThetaCA | B57: 20 | C57: °C/W | D57: =ThetaCa -> 40 | E57: Inductor Core-to-Ambient thermal resistance | H57: 51 | I57: 0.1275 | J57: 0.2266231534 | K57: 0.2405590755 | L57: 0.01447642416 | M57: 1.340029178 | N57: 1.340029178 | O57: 1 | P57: 1.340029178 | Q57: 6.204186857e-07 | R57: 0.2513819919 | S57: 1206633.561 | T57: 8.28752019e-07 | U57: 0 | V57: 0.00066 | W57: 0.1432220223 | X57: 0.00246150572 | Y57: 0.09947353201 | Z57: 0.1019751997 | AA57: 0.06524030705 | AB57: 2.128148832e-05 | AC57: 2.128148832e-05 | AD57: 0.06425889366 | AE57: 1.238761625e-05 | AF57: 1.238761625e-05 | AG57: 0.07180867002 | AH57: 0.003542505257 | AI57: 0.004844633748 | AJ57: 40 | AK57: 31.9335348 | AL57: 0.2392035856 | AM57: 0.222406698 | AN57: 0.4664549174 | AO57: 0.4703055604 | AP57: 0.1234830781 | AQ57: 0.004635413455 | AR57: 0.01327296917 | AS57: 0.002519533146 | AT57: 0.005063155776 | AU57: 0.02085565809 | AV57: 0.0255129443 | AW57: 0.03203792404 | AX57: 0.1878493092 | AY57: 0.01811760292 | AZ57: 0.7017854168 | BA57: 0.8037942856 | BB57: 1.53 | BC57: 0.6555847743 | BD57: 0.001649949639 | BE57: 0.001995585572 | BF57: 0.07452627213 | BG57: 0.1998697658 | BH57: 0.001079586646 | BI57: 0.002169495318 | BJ57: 0.008936373794 | BK57: 0.001054722661 | BL57: 0.04262309349 | BM57: 5.307929804e-06 | BN57: 9.118836417e-06 | BO57: 0.08049094572 | BP57: 0.4144102176 | BQ57: 0.6555847743 | BR57: 65.55847743 | BS57: 127.5 | BT57: 70.20651815 | BU57: 0.7020651815 | BV57: 1206.633561 | BX57: 0.09529833 | BZ57: 0.7017854168 | CA57: 0.1878493092 | CB57: 0.1019751997 | CE57: =IF(OR(MODE=1,MODE=2,MODE=3), BR57, IF(MODE_ILIM=4,#REF!,#REF!)) -> 65.55847743 | CF57: =IF(OR(MODE=1,MODE=2,MODE=3), BZ57, IF(MODE_ILIM=4,#REF!,#REF!)) -> 0.7017854168 | CG57: =IF(OR(MODE=1,MODE=2,MODE=3), CA57, IF(MODE_ILIM=4,#REF!,#REF!)) -> 0.1878493092 | CH57: =IF(OR(MODE=1,MODE=2,MODE=3), CB57, IF(MODE_ILIM=4,#REF!,#REF!)) -> 0.1019751997 | CI57: =(IF(OR(MODE=1,MODE=2,MODE=3), S57, IF(MODE_ILIM=4,#REF!,#REF!)))/1000 -> 1206.633561 | CJ57: =IF(OR(MODE=1,MODE=2,MODE=3), P57, IF(MODE_ILIM=4,#REF!,#REF!)) -> 1.340029178
H58: 52 | I58: 0.13 | J58: 0.2266104167 | K58: 0.2430591079 | L58: 0.01698279261 | M58: 1.339953866 | N58: 1.339953866 | O58: 1 | P58: 1.339953866 | Q58: 6.203292667e-07 | R58: 0.2514091179 | S58: 1206763.766 | T58: 8.286626001e-07 | U58: 0 | V58: 0.00066 | W58: 0.1454520459 | X58: 0.00253875572 | Y58: 0.09948426596 | Z58: 0.1020644804 | AA58: 0.06524030705 | AB58: 2.128148832e-05 | AC58: 2.128148832e-05 | AD58: 0.06519735831 | AE58: 1.275208659e-05 | AF58: 1.275208659e-05 | AG58: 0.07293069405 | AH58: 0.003654074774 | AI58: 0.00484515652 | AJ58: 40 | AK58: 31.60499985 | AL58: 0.2421256305 | AM58: 0.2224306973 | AN58: 0.4694014844 | AO58: 0.4733754763 | AP58: 0.1254125245 | AQ58: 0.004781403596 | AR58: 0.01327440143 | AS58: 0.002954239979 | AT58: 0.005163350647 | AU58: 0.02139199205 | AV58: 0.02619656181 | AW58: 0.03203792404 | AX58: 0.1878661224 | AY58: 0.01811955795 | AZ58: 0.7055577185 | BA58: 0.8076562324 | BB58: 1.56 | BC58: 0.6588794347 | BD58: 0.001678449713 | BE58: 0.002029251413 | BF58: 0.0734683329 | BG58: 0.1982557594 | BH58: 0.001247748697 | BI58: 0.002180785612 | BJ58: 0.009035092071 | BK58: 0.001072265342 | BL58: 0.04201803649 | BM58: 5.385953593e-06 | BN58: 8.988419868e-06 | BO58: 0.07934687469 | BP58: 0.4103469707 | BQ58: 0.6588794347 | BR58: 65.88794347 | BS58: 130 | BT58: 70.41174614 | BU58: 0.7041174614 | BV58: 1206.763766 | BX58: 0.0939455206 | BZ58: 0.7055577185 | CA58: 0.1878661224 | CB58: 0.1020644804 | CE58: =IF(OR(MODE=1,MODE=2,MODE=3), BR58, IF(MODE_ILIM=4,#REF!,#REF!)) -> 65.88794347 | CF58: =IF(OR(MODE=1,MODE=2,MODE=3), BZ58, IF(MODE_ILIM=4,#REF!,#REF!)) -> 0.7055577185 | CG58: =IF(OR(MODE=1,MODE=2,MODE=3), CA58, IF(MODE_ILIM=4,#REF!,#REF!)) -> 0.1878661224 | CH58: =IF(OR(MODE=1,MODE=2,MODE=3), CB58, IF(MODE_ILIM=4,#REF!,#REF!)) -> 0.1020644804 | CI58: =(IF(OR(MODE=1,MODE=2,MODE=3), S58, IF(MODE_ILIM=4,#REF!,#REF!)))/1000 -> 1206.763766 | CJ58: =IF(OR(MODE=1,MODE=2,MODE=3), P58, IF(MODE_ILIM=4,#REF!,#REF!)) -> 1.339953866
H59: 53 | I59: 0.1325 | J59: 0.2265976799 | K59: 0.2455591404 | L59: 0.01948916107 | M59: 1.339878553 | N59: 1.339878553 | O59: 1 | P59: 1.339878553 | Q59: 6.202398635e-07 | R59: 0.251436245 | S59: 1206893.976 | T59: 8.285731968e-07 | U59: 0 | V59: 0.00066 | W59: 0.1476907162 | X59: 0.00261750572 | Y59: 0.09949500033 | Z59: 0.1021552888 | AA59: 0.06524030705 | AB59: 2.128148832e-05 | AC59: 2.128148832e-05 | AD59: 0.0661404241 | AE59: 1.31236671e-05 | AF59: 1.31236671e-05 | AG59: 0.07405717439 | AH59: 0.003767827509 | AI59: 0.004845679314 | AJ59: 40 | AK59: 31.28315606 | AL59: 0.2450483015 | AM59: 0.2224546977 | AN59: 0.4723486785 | AO59: 0.4764485238 | AP59: 0.127349634 | AQ59: 0.004930250505 | AR59: 0.01327583374 | AS59: 0.003389040573 | AT59: 0.005263627388 | AU59: 0.0219285017 | AV59: 0.0268832657 | AW59: 0.03203792404 | AX59: 0.1878829363 | AY59: 0.01812151305 | AZ59: 0.7093362388 | BA59: 0.8115259327 | BB59: 1.59 | BC59: 0.6620790466 | BD59: 0.001707183432 | BE59: 0.002063173226 | BF59: 0.07243999447 | BG59: 0.1966868948 | BH59: 0.001411202988 | BI59: 0.00219178453 | BJ59: 0.009131070125 | BK59: 0.001089934397 | BL59: 0.04142990878 | BM59: 5.464720128e-06 | BN59: 8.861652515e-06 | BO59: 0.07823481467 | BP59: 0.4064002878 | BQ59: 0.6620790466 | BR59: 66.20790466 | BS59: 132.5 | BT59: 70.59690101 | BU59: 0.7059690101 | BV59: 1206.893976 | BX59: 0.09263056236 | BZ59: 0.7093362388 | CA59: 0.1878829363 | CB59: 0.1021552888 | CE59: =IF(OR(MODE=1,MODE=2,MODE=3), BR59, IF(MODE_ILIM=4,#REF!,#REF!)) -> 66.20790466 | CF59: =IF(OR(MODE=1,MODE=2,MODE=3), BZ59, IF(MODE_ILIM=4,#REF!,#REF!)) -> 0.7093362388 | CG59: =IF(OR(MODE=1,MODE=2,MODE=3), CA59, IF(MODE_ILIM=4,#REF!,#REF!)) -> 0.1878829363 | CH59: =IF(OR(MODE=1,MODE=2,MODE=3), CB59, IF(MODE_ILIM=4,#REF!,#REF!)) -> 0.1021552888 | CI59: =(IF(OR(MODE=1,MODE=2,MODE=3), S59, IF(MODE_ILIM=4,#REF!,#REF!)))/1000 -> 1206.893976 | CJ59: =IF(OR(MODE=1,MODE=2,MODE=3), P59, IF(MODE_ILIM=4,#REF!,#REF!)) -> 1.339878553
H60: 54 | I60: 0.135 | J60: 0.2265849432 | K60: 0.2480591728 | L60: 0.02199552952 | M60: 1.33980324 | N60: 1.33980324 | O60: 1 | P60: 1.33980324 | Q60: 6.20150476e-07 | R60: 0.2514633732 | S60: 1207024.191 | T60: 8.284838093e-07 | U60: 0 | V60: 0.00066 | W60: 0.1499376459 | X60: 0.00269775572 | Y60: 0.09950573514 | Z60: 0.1022476251 | AA60: 0.06524030705 | AB60: 2.128148832e-05 | AC60: 2.128148832e-05 | AD60: 0.06708790076 | AE60: 1.350235928e-05 | AF60: 1.350235928e-05 | AG60: 0.07518791754 | AH60: 0.003883764163 | AI60: 0.004846202128 | AJ60: 40 | AK60: 30.96780106 | AL60: 0.2479715985 | AM60: 0.222478699 | AN60: 0.4752964996 | AO60: 0.4795247074 | AP60: 0.129294074 | AQ60: 0.0050819551 | AR60: 0.01327726611 | AS60: 0.003823934935 | AT60: 0.005363986021 | AU60: 0.02246518706 | AV60: 0.02757305829 | AW60: 0.03203792404 | AX60: 0.1878997508 | AY60: 0.01812346823 | AZ60: 0.7131209848 | BA60: 0.8154033937 | BB60: 1.62 | BC60: 0.6651875431 | BD60: 0.001736142693 | BE60: 0.002097340933 | BF60: 0.07144003145 | BG60: 0.195161303 | BH60: 0.001570144373 | BI60: 0.002202504125 | BJ60: 0.00922442135 | BK60: 0.001107724382 | BL60: 0.04085800956 | BM60: 5.544198271e-06 | BN60: 8.73838329e-06 | BO60: 0.07715344051 | BP60: 0.4025653449 | BQ60: 0.6651875431 | BR60: 66.51875431 | BS60: 135 | BT60: 70.76384186 | BU60: 0.7076384186 | BV60: 1207.024191 | BX60: 0.09135188837 | BZ60: 0.7131209848 | CA60: 0.1878997508 | CB60: 0.1022476251 | CE60: =IF(OR(MODE=1,MODE=2,MODE=3), BR60, IF(MODE_ILIM=4,#REF!,#REF!)) -> 66.51875431 | CF60: =IF(OR(MODE=1,MODE=2,MODE=3), BZ60, IF(MODE_ILIM=4,#REF!,#REF!)) -> 0.7131209848 | CG60: =IF(OR(MODE=1,MODE=2,MODE=3), CA60, IF(MODE_ILIM=4,#REF!,#REF!)) -> 0.1878997508 | CH60: =IF(OR(MODE=1,MODE=2,MODE=3), CB60, IF(MODE_ILIM=4,#REF!,#REF!)) -> 0.1022476251 | CI60: =(IF(OR(MODE=1,MODE=2,MODE=3), S60, IF(MODE_ILIM=4,#REF!,#REF!)))/1000 -> 1207.024191 | CJ60: =IF(OR(MODE=1,MODE=2,MODE=3), P60, IF(MODE_ILIM=4,#REF!,#REF!)) -> 1.33980324
H61: 55 | I61: 0.1375 | J61: 0.2265722064 | K61: 0.2505592053 | L61: 0.02450189798 | M61: 1.339727927 | N61: 1.339727927 | O61: 1 | P61: 1.339727927 | Q61: 6.200611042e-07 | R61: 0.2514905025 | S61: 1207154.412 | T61: 8.283944375e-07 | U61: 0 | V61: 0.00066 | W61: 0.1521924691 | X61: 0.00277950572 | Y61: 0.09951647037 | Z61: 0.1023414895 | AA61: 0.06524030705 | AB61: 2.128148832e-05 | AC61: 2.128148832e-05 | AD61: 0.06803960771 | AE61: 1.388816465e-05 | AF61: 1.388816465e-05 | AG61: 0.07632274072 | AH61: 0.004001885436 | AI61: 0.004846724964 | AJ61: 40 | AK61: 30.65874058 | AL61: 0.2508955217 | AM61: 0.2225027012 | AN61: 0.4782449478 | AO61: 0.482604032 | AP61: 0.13124553 | AQ61: 0.005236518296 | AR61: 0.01327869853 | AS61: 0.004258923071 | AT61: 0.005464426567 | AU61: 0.02300204817 | AV61: 0.02826594186 | AW61: 0.03203792404 | AX61: 0.1879165661 | AY61: 0.01812542349 | AZ61: 0.7169119635 | BA61: 0.8192886226 | BB61: 1.65 | BC61: 0.6682086431 | BD61: 0.001765319837 | BE61: 0.002131745007 | BF61: 0.07046728517 | BG61: 0.1936772168 | BH61: 0.001724757095 | BI61: 0.002212955795 | BJ61: 0.009315252967 | BK61: 0.001125630149 | BL61: 0.04030167614 | BM61: 5.62435858e-06 | BN61: 8.618469354e-06 | BO61: 0.07610149918 | BP61: 0.3988375809 | BQ61: 0.6682086431 | BR61: 66.82086431 | BS61: 137.5 | BT61: 70.91427226 | BU61: 0.7091427226 | BV61: 1207.154412 | BX61: 0.090108017 | BZ61: 0.7169119635 | CA61: 0.1879165661 | CB61: 0.1023414895 | CE61: =IF(OR(MODE=1,MODE=2,MODE=3), BR61, IF(MODE_ILIM=4,#REF!,#REF!)) -> 66.82086431 | CF61: =IF(OR(MODE=1,MODE=2,MODE=3), BZ61, IF(MODE_ILIM=4,#REF!,#REF!)) -> 0.7169119635 | CG61: =IF(OR(MODE=1,MODE=2,MODE=3), CA61, IF(MODE_ILIM=4,#REF!,#REF!)) -> 0.1879165661 | CH61: =IF(OR(MODE=1,MODE=2,MODE=3), CB61, IF(MODE_ILIM=4,#REF!,#REF!)) -> 0.1023414895 | CI61: =(IF(OR(MODE=1,MODE=2,MODE=3), S61, IF(MODE_ILIM=4,#REF!,#REF!)))/1000 -> 1207.154412 | CJ61: =IF(OR(MODE=1,MODE=2,MODE=3), P61, IF(MODE_ILIM=4,#REF!,#REF!)) -> 1.339727927
H62: 56 | I62: 0.14 | J62: 0.2265594697 | K62: 0.2530592377 | L62: 0.02700826643 | M62: 1.339652615 | N62: 1.339652615 | O62: 1 | P62: 1.339652615 | Q62: 6.199717481e-07 | R62: 0.2515176328 | S62: 1207284.638 | T62: 8.283050814e-07 | U62: 0 | V62: 0.00066 | W62: 0.1544548402 | X62: 0.00286275572 | Y62: 0.09952720603 | Z62: 0.102436882 | AA62: 0.06524030705 | AB62: 2.128148832e-05 | AC62: 2.128148832e-05 | AD62: 0.06899537355 | AE62: 1.428108472e-05 | AF62: 1.428108472e-05 | AG62: 0.07746147117 | AH62: 0.004122192028 | AI62: 0.00484724782 | AJ62: 40 | AK62: 30.35578804 | AL62: 0.253820071 | AM62: 0.2225267044 | AN62: 0.4811940232 | AO62: 0.4856865023 | AP62: 0.1332037049 | AQ62: 0.005393941011 | AR62: 0.01328013101 | AS62: 0.004694004986 | AT62: 0.005564949045 | AU62: 0.02353908504 | AV62: 0.02896191874 | AW62: 0.03203792404 | AX62: 0.187933382 | AY62: 0.01812737883 | AZ62: 0.7207091819 | BA62: 0.8231816265 | BB62: 1.68 | BC62: 0.6711458658 | BD62: 0.001794707618 | BE62: 0.002166376437 | BF62: 0.06952065921 | BG62: 0.1922329639 | BH62: 0.0018752155 | BI62: 0.002223150324 | BJ62: 0.009403666436 | BK62: 0.001143646825 | BL62: 0.03976028147 | BM62: 5.705173194e-06 | BN62: 8.501775539e-06 | BO62: 0.07507780499 | BP62: 0.3952126796 | BQ62: 0.6711458658 | BR62: 67.11458658 | BS62: 140 | BT62: 71.04974959 | BU62: 0.7104974959 | BV62: 1207.284638 | BX62: 0.08889754624 | BZ62: 0.7207091819 | CA62: 0.187933382 | CB62: 0.102436882 | CE62: =IF(OR(MODE=1,MODE=2,MODE=3), BR62, IF(MODE_ILIM=4,#REF!,#REF!)) -> 67.11458658 | CF62: =IF(OR(MODE=1,MODE=2,MODE=3), BZ62, IF(MODE_ILIM=4,#REF!,#REF!)) -> 0.7207091819 | CG62: =IF(OR(MODE=1,MODE=2,MODE=3), CA62, IF(MODE_ILIM=4,#REF!,#REF!)) -> 0.187933382 | CH62: =IF(OR(MODE=1,MODE=2,MODE=3), CB62, IF(MODE_ILIM=4,#REF!,#REF!)) -> 0.102436882 | CI62: =(IF(OR(MODE=1,MODE=2,MODE=3), S62, IF(MODE_ILIM=4,#REF!,#REF!)))/1000 -> 1207.284638 | CJ62: =IF(OR(MODE=1,MODE=2,MODE=3), P62, IF(MODE_ILIM=4,#REF!,#REF!)) -> 1.339652615
B63: 1500 | F63: Eff (%) | G63: Iout (mA) | H63: 57 | I63: 0.1425 | J63: 0.226546733 | K63: 0.2555592702 | L63: 0.02951463488 | M63: 1.339577302 | N63: 1.339577302 | O63: 1 | P63: 1.339577302 | Q63: 6.198824077e-07 | R63: 0.2515447643 | S63: 1207414.868 | T63: 8.28215741e-07 | U63: 0 | V63: 0.00066 | W63: 0.1567244323 | X63: 0.00294750572 | Y63: 0.09953794212 | Z63: 0.1025338029 | AA63: 0.06524030705 | AB63: 2.128148832e-05 | AC63: 2.128148832e-05 | AD63: 0.06995503553 | AE63: 1.468112099e-05 | AF63: 1.468112099e-05 | AG63: 0.07860394559 | AH63: 0.00424468464 | AI63: 0.004847770697 | AJ63: 40 | AK63: 30.05876412 | AL63: 0.2567452464 | AM63: 0.2225507086 | AN63: 0.4841437257 | AO63: 0.4887721231 | AP63: 0.1351683181 | AQ63: 0.005554224162 | AR63: 0.01328156355 | AS63: 0.005129180685 | AT63: 0.005665553478 | AU63: 0.02407629772 | AV63: 0.02966099124 | AW63: 0.03203792404 | AX63: 0.1879501986 | AY63: 0.01812933425 | AZ63: 0.7245126471 | BA63: 0.8270824126 | BB63: 1.71 | BC63: 0.6740025438 | BD63: 0.001824299177 | BE63: 0.002201226692 | BF63: 0.06859911524 | BG63: 0.1908269606 | BH63: 0.002021684696 | BI63: 0.002233097928 | BJ63: 0.00948975784 | BK63: 0.001161769797 | BL63: 0.03923323169 | BM63: 5.786615726e-06 | BN63: 8.388173839e-06 | BO63: 0.07408123506 | BP63: 0.3916865536 | BQ63: 0.6740025438 | BR63: 67.40025438 | BS63: 142.5 | BT63: 71.17169461 | BU63: 0.7117169461 | BV63: 1207.414868 | BX63: 0.08771914836 | BZ63: 0.7245126471 | CA63: 0.1879501986 | CB63: 0.1025338029 | CE63: =IF(OR(MODE=1,MODE=2,MODE=3), BR63, IF(MODE_ILIM=4,#REF!,#REF!)) -> 67.40025438 | CF63: =IF(OR(MODE=1,MODE=2,MODE=3), BZ63, IF(MODE_ILIM=4,#REF!,#REF!)) -> 0.7245126471 | CG63: =IF(OR(MODE=1,MODE=2,MODE=3), CA63, IF(MODE_ILIM=4,#REF!,#REF!)) -> 0.1879501986 | CH63: =IF(OR(MODE=1,MODE=2,MODE=3), CB63, IF(MODE_ILIM=4,#REF!,#REF!)) -> 0.1025338029 | CI63: =(IF(OR(MODE=1,MODE=2,MODE=3), S63, IF(MODE_ILIM=4,#REF!,#REF!)))/1000 -> 1207.414868 | CJ63: =IF(OR(MODE=1,MODE=2,MODE=3), P63, IF(MODE_ILIM=4,#REF!,#REF!)) -> 1.339577302
F64: =BR56 -> 65.21909025 | G64: =I56*1000 -> 125 | H64: 58 | I64: 0.145 | J64: 0.2265339962 | K64: 0.2580593026 | L64: 0.03202100334 | M64: 1.339501989 | N64: 1.339501989 | O64: 1 | P64: 1.339501989 | Q64: 6.19793083e-07 | R64: 0.2515718968 | S64: 1207545.105 | T64: 8.281264164e-07 | U64: 0 | V64: 0.00066 | W64: 0.159000936 | X64: 0.00303375572 | Y64: 0.09954867864 | Z64: 0.1026322521 | AA64: 0.06524030705 | AB64: 2.128148832e-05 | AC64: 2.128148832e-05 | AD64: 0.07091843901 | AE64: 1.508827498e-05 | AF64: 1.508827498e-05 | AG64: 0.07975000944 | AH64: 0.004369363972 | AI64: 0.004848293595 | AJ64: 40 | AK64: 29.76749649 | AL64: 0.2596710482 | AM64: 0.2225747137 | AN64: 0.4870940554 | AO64: 0.491860899 | AP64: 0.1371391037 | AQ64: 0.005717368663 | AR64: 0.01328299615 | AS64: 0.005564450174 | AT64: 0.005766239885 | AU64: 0.02461368621 | AV64: 0.03036316171 | AW64: 0.03203792404 | AX64: 0.1879670158 | AY64: 0.01813128974 | AZ64: 0.7283223663 | BA64: 0.8309909882 | BB64: 1.74 | BC64: 0.6767818355 | BD64: 0.001854088018 | BE64: 0.002236287691 | BF64: 0.06770166926 | BG64: 0.1894577063 | BH64: 0.002164321151 | BI64: 0.002242808284 | BJ64: 0.009573618236 | BK64: 0.001179994692 | BL64: 0.03871996405 | BM64: 5.868661168e-06 | BN64: 8.277542947e-06 | BO64: 0.07311072528 | BP64: 0.3882553291 | BQ64: 0.6767818355 | BR64: 67.67818355 | BS64: 145 | BT64: 71.28140092 | BU64: 0.7128140092 | BV64: 1207.545105 | BX64: 0.08657156508 | BZ64: 0.7283223663 | CA64: 0.1879670158 | CB64: 0.1026322521 | CE64: =IF(OR(MODE=1,MODE=2,MODE=3), BR64, IF(MODE_ILIM=4,#REF!,#REF!)) -> 67.67818355 | CF64: =IF(OR(MODE=1,MODE=2,MODE=3), BZ64, IF(MODE_ILIM=4,#REF!,#REF!)) -> 0.7283223663 | CG64: =IF(OR(MODE=1,MODE=2,MODE=3), CA64, IF(MODE_ILIM=4,#REF!,#REF!)) -> 0.1879670158 | CH64: =IF(OR(MODE=1,MODE=2,MODE=3), CB64, IF(MODE_ILIM=4,#REF!,#REF!)) -> 0.1026322521 | CI64: =(IF(OR(MODE=1,MODE=2,MODE=3), S64, IF(MODE_ILIM=4,#REF!,#REF!)))/1000 -> 1207.545105 | CJ64: =IF(OR(MODE=1,MODE=2,MODE=3), P64, IF(MODE_ILIM=4,#REF!,#REF!)) -> 1.339501989
F65: =BR81 -> 71.45952178 | G65: =I81*1000 -> 187.5 | H65: 59 | I65: 0.1475 | J65: 0.2265212595 | K65: 0.260559335 | L65: 0.03452737179 | M65: 1.339426677 | N65: 1.339426677 | O65: 1 | P65: 1.339426677 | Q65: 6.19703774e-07 | R65: 0.2515990304 | S65: 1207675.346 | T65: 8.280371074e-07 | U65: 0 | V65: 0.00066 | W65: 0.1612840589 | X65: 0.00312150572 | Y65: 0.09955941559 | Z65: 0.10273223 | AA65: 0.06524030705 | AB65: 2.128148832e-05 | AC65: 2.128148832e-05 | AD65: 0.07188543708 | AE65: 1.550254819e-05 | AF65: 1.550254819e-05 | AG65: 0.0808995165 | AH65: 0.004496230726 | AI65: 0.004848816513 | AJ65: 40 | AK65: 29.48181942 | AL65: 0.2625974761 | AM65: 0.2225987197 | AN65: 0.4900450124 | AO65: 0.4949528349 | AP65: 0.1391158103 | AQ65: 0.005883375434 | AR65: 0.0132844288 | AS65: 0.00599981346 | AT65: 0.005867008288 | AU65: 0.02515125055 | AV65: 0.03106843249 | AW65: 0.03203792404 | AX65: 0.1879838338 | AY65: 0.01813324532 | AZ65: 0.7321383465 | BA65: 0.8349073605 | BB65: 1.77 | BC65: 0.679486736 | BD65: 0.001884067981 | BE65: 0.002271551774 | BF65: 0.06682738806 | BG65: 0.1881237774 | BH65: 0.002303273257 | BI65: 0.002252290572 | BJ65: 0.00965533398 | BK65: 0.001198317363 | BL65: 0.03821994482 | BM65: 5.951285803e-06 | BN65: 8.169767817e-06 | BO65: 0.07216526646 | BP65: 0.3849153327 | BQ65: 0.679486736 | BR65: 67.9486736 | BS65: 147.5 | BT65: 71.3800443 | BU65: 0.713800443 | BV65: 1207.675346 | BX65: 0.08545360312 | BZ65: 0.7321383465 | CA65: 0.1879838338 | CB65: 0.10273223 | CE65: =IF(OR(MODE=1,MODE=2,MODE=3), BR65, IF(MODE_ILIM=4,#REF!,#REF!)) -> 67.9486736 | CF65: =IF(OR(MODE=1,MODE=2,MODE=3), BZ65, IF(MODE_ILIM=4,#REF!,#REF!)) -> 0.7321383465 | CG65: =IF(OR(MODE=1,MODE=2,MODE=3), CA65, IF(MODE_ILIM=4,#REF!,#REF!)) -> 0.1879838338 | CH65: =IF(OR(MODE=1,MODE=2,MODE=3), CB65, IF(MODE_ILIM=4,#REF!,#REF!)) -> 0.10273223 | CI65: =(IF(OR(MODE=1,MODE=2,MODE=3), S65, IF(MODE_ILIM=4,#REF!,#REF!)))/1000 -> 1207.675346 | CJ65: =IF(OR(MODE=1,MODE=2,MODE=3), P65, IF(MODE_ILIM=4,#REF!,#REF!)) -> 1.339426677
F66: =BR106 -> 74.95719452 | G66: =I106*1000 -> 250 | H66: 60 | I66: 0.15 | J66: 0.2265085227 | K66: 0.2630593675 | L66: 0.03703374024 | M66: 1.339351364 | N66: 1.339351364 | O66: 1 | P66: 1.339351364 | Q66: 6.196144808e-07 | R66: 0.2516261651 | S66: 1207805.592 | T66: 8.279478141e-07 | U66: 0 | V66: 0.00066 | W66: 0.1635735237 | X66: 0.00321075572 | Y66: 0.09957015296 | Z66: 0.1028337365 | AA66: 0.06524030705 | AB66: 2.128148832e-05 | AC66: 2.128148832e-05 | AD66: 0.07285589006 | AE66: 1.592394215e-05 | AF66: 1.592394215e-05 | AG66: 0.08205232826 | AH66: 0.004625285601 | AI66: 0.004849339453 | AJ66: 40 | AK66: 29.20157348 | AL66: 0.2655245304 | AM66: 0.2226227268 | AN66: 0.4929965966 | AO66: 0.4980479356 | AP66: 0.1410981996 | AQ66: 0.00605224539 | AR66: 0.01328586152 | AS66: 0.006435270546 | AT66: 0.005967858708 | AU66: 0.02568899077 | AV66: 0.03177680593 | AW66: 0.03203792404 | AX66: 0.1880006524 | AY66: 0.01813520097 | AZ66: 0.7359605949 | BA66: 0.8388315369 | BB66: 1.8 | BC66: 0.6821200879 | BD66: 0.001914233224 | BE66: 0.002307011675 | BF66: 0.06597538602 | BG66: 0.1868238233 | BH66: 0.002438681839 | BI66: 0.002261553504 | BJ66: 0.009734987024 | BK66: 0.001216733874 | BL66: 0.0377326675 | BM66: 6.034467122e-06 | BN66: 8.06473927e-06 | BO66: 0.07124390085 | BP66: 0.381663078 | BQ66: 0.6821200879 | BR66: 68.21200879 | BS66: 150 | BT66: 71.46869169 | BU66: 0.7146869169 | BV66: 1207.805592 | BX66: 0.08436412998 | BZ66: 0.7359605949 | CA66: 0.1880006524 | CB66: 0.1028337365 | CE66: =IF(OR(MODE=1,MODE=2,MODE=3), BR66, IF(MODE_ILIM=4,#REF!,#REF!)) -> 68.21200879 | CF66: =IF(OR(MODE=1,MODE=2,MODE=3), BZ66, IF(MODE_ILIM=4,#REF!,#REF!)) -> 0.7359605949 | CG66: =IF(OR(MODE=1,MODE=2,MODE=3), CA66, IF(MODE_ILIM=4,#REF!,#REF!)) -> 0.1880006524 | CH66: =IF(OR(MODE=1,MODE=2,MODE=3), CB66, IF(MODE_ILIM=4,#REF!,#REF!)) -> 0.1028337365 | CI66: =(IF(OR(MODE=1,MODE=2,MODE=3), S66, IF(MODE_ILIM=4,#REF!,#REF!)))/1000 -> 1207.805592 | CJ66: =IF(OR(MODE=1,MODE=2,MODE=3), P66, IF(MODE_ILIM=4,#REF!,#REF!)) -> 1.339351364
H67: 61 | I67: 0.1525 | J67: 0.226495786 | K67: 0.2655593999 | L67: 0.0395401087 | M67: 1.339276051 | N67: 1.339276051 | O67: 1 | P67: 1.339276051 | Q67: 6.195252032e-07 | R67: 0.2516533008 | S67: 1207935.844 | T67: 8.278585365e-07 | U67: 0 | V67: 0.00066 | W67: 0.1658690678 | X67: 0.00330150572 | Y67: 0.09958089077 | Z67: 0.1029367719 | AA67: 0.06524030705 | AB67: 2.128148832e-05 | AC67: 2.128148832e-05 | AD67: 0.07382966512 | AE67: 1.635245835e-05 | AF67: 1.635245835e-05 | AG67: 0.08320831349 | AH67: 0.004756529299 | AI67: 0.004849862414 | AJ67: 40 | AK67: 28.92660526 | AL67: 0.268452211 | AM67: 0.2226467348 | AN67: 0.4959488082 | AO67: 0.5011462059 | AP67: 0.1430860462 | AQ67: 0.006223979447 | AR67: 0.01328729428 | AS67: 0.00687082144 | AT67: 0.006068791165 | AU67: 0.02622690689 | AV67: 0.03248828441 | AW67: 0.03203792404 | AX67: 0.1880174716 | AY67: 0.0181371567 | AZ67: 0.7397891187 | BA67: 0.8427635245 | BB67: 1.83 | BC67: 0.6846845908 | BD67: 0.001944578201 | BE67: 0.002342660496 | BF67: 0.06514482209 | BG67: 0.1855565611 | BH67: 0.002570680637 | BI67: 0.002270605353 | BJ67: 0.009812655197 | BK67: 0.001235240488 | BL67: 0.03725765106 | BM67: 6.118183747e-06 | BN67: 7.962353619e-06 | BO67: 0.07034571892 | BP67: 0.3784952541 | BQ67: 0.6846845908 | BR67: 68.46845908 | BS67: 152.5 | BT67: 71.54830972 | BU67: 0.7154830972 | BV67: 1207.935844 | BX67: 0.08330207021 | BZ67: 0.7397891187 | CA67: 0.1880174716 | CB67: 0.1029367719 | CE67: =IF(OR(MODE=1,MODE=2,MODE=3), BR67, IF(MODE_ILIM=4,#REF!,#REF!)) -> 68.46845908 | CF67: =IF(OR(MODE=1,MODE=2,MODE=3), BZ67, IF(MODE_ILIM=4,#REF!,#REF!)) -> 0.7397891187 | CG67: =IF(OR(MODE=1,MODE=2,MODE=3), CA67, IF(MODE_ILIM=4,#REF!,#REF!)) -> 0.1880174716 | CH67: =IF(OR(MODE=1,MODE=2,MODE=3), CB67, IF(MODE_ILIM=4,#REF!,#REF!)) -> 0.1029367719 | CI67: =(IF(OR(MODE=1,MODE=2,MODE=3), S67, IF(MODE_ILIM=4,#REF!,#REF!)))/1000 -> 1207.935844 | CJ67: =IF(OR(MODE=1,MODE=2,MODE=3), P67, IF(MODE_ILIM=4,#REF!,#REF!)) -> 1.339276051
H68: 62 | I68: 0.155 | J68: 0.2264830492 | K68: 0.2680594324 | L68: 0.04204647715 | M68: 1.339200738 | N68: 1.339200738 | O68: 1 | P68: 1.339200738 | Q68: 6.194359412e-07 | R68: 0.2516804377 | S68: 1208066.101 | T68: 8.277692746e-07 | U68: 0 | V68: 0.00066 | W68: 0.1681704423 | X68: 0.00339375572 | Y68: 0.099591629 | Z68: 0.1030413363 | AA68: 0.06524030705 | AB68: 2.128148832e-05 | AC68: 2.128148832e-05 | AD68: 0.07480663589 | AE68: 1.678809832e-05 | AF68: 1.678809832e-05 | AG68: 0.0843673478 | AH68: 0.00488996252 | AI68: 0.004850385395 | AJ68: 40 | AK68: 28.65676705 | AL68: 0.271380518 | AM68: 0.2226707437 | AN68: 0.4989016471 | AO68: 0.5042476505 | AP68: 0.1450791359 | AQ68: 0.006398578525 | AR68: 0.01328872711 | AS68: 0.007306466146 | AT68: 0.00616980568 | AU68: 0.02676499894 | AV68: 0.03320287031 | AW68: 0.03203792404 | AX68: 0.1880342916 | AY68: 0.01813911251 | AZ68: 0.7436239249 | BA68: 0.8467033308 | BB68: 1.86 | BC68: 0.6871828098 | BD68: 0.001975097645 | BE68: 0.002378491686 | BF68: 0.06433489702 | BG68: 0.1843207719 | BH68: 0.00269939674 | BI68: 0.00227945398 | BJ68: 0.009888412458 | BK68: 0.001253833651 | BL68: 0.03679443841 | BM68: 6.202415362e-06 | BN68: 7.862512333e-06 | BO68: 0.06946985636 | BP68: 0.3754087147 | BQ68: 0.6871828098 | BR68: 68.71828098 | BS68: 155 | BT68: 71.61977294 | BU68: 0.7161977294 | BV68: 1208.066101 | BX68: 0.08226640178 | BZ68: 0.7436239249 | CA68: 0.1880342916 | CB68: 0.1030413363 | CE68: =IF(OR(MODE=1,MODE=2,MODE=3), BR68, IF(MODE_ILIM=4,#REF!,#REF!)) -> 68.71828098 | CF68: =IF(OR(MODE=1,MODE=2,MODE=3), BZ68, IF(MODE_ILIM=4,#REF!,#REF!)) -> 0.7436239249 | CG68: =IF(OR(MODE=1,MODE=2,MODE=3), CA68, IF(MODE_ILIM=4,#REF!,#REF!)) -> 0.1880342916 | CH68: =IF(OR(MODE=1,MODE=2,MODE=3), CB68, IF(MODE_ILIM=4,#REF!,#REF!)) -> 0.1030413363 | CI68: =(IF(OR(MODE=1,MODE=2,MODE=3), S68, IF(MODE_ILIM=4,#REF!,#REF!)))/1000 -> 1208.066101 | CJ68: =IF(OR(MODE=1,MODE=2,MODE=3), P68, IF(MODE_ILIM=4,#REF!,#REF!)) -> 1.339200738
H69: 63 | I69: 0.1575 | J69: 0.2264703125 | K69: 0.2705594648 | L69: 0.04455284561 | M69: 1.339125426 | N69: 1.339125426 | O69: 1 | P69: 1.339125426 | Q69: 6.19346695e-07 | R69: 0.2517075756 | S69: 1208196.363 | T69: 8.276800284e-07 | U69: 0 | V69: 0.00066 | W69: 0.170477411 | X69: 0.00348750572 | Y69: 0.09960236767 | Z69: 0.1031474297 | AA69: 0.06524030705 | AB69: 2.128148832e-05 | AC69: 2.128148832e-05 | AD69: 0.07578668211 | AE69: 1.723086355e-05 | AF69: 1.723086355e-05 | AG69: 0.08552931319 | AH69: 0.005025585966 | AI69: 0.004850908398 | AJ69: 40 | AK69: 28.39191661 | AL69: 0.2743094514 | AM69: 0.2226947536 | AN69: 0.5018551135 | AO69: 0.5073522743 | AP69: 0.147077266 | AQ69: 0.006576043538 | AR69: 0.01329015999 | AS69: 0.007742204671 | AT69: 0.006270902274 | AU69: 0.02730326694 | AV69: 0.033920566 | AW69: 0.03203792404 | AX69: 0.1880511122 | AY69: 0.01814106839 | AZ69: 0.7474650209 | BA69: 0.850650963 | BB69: 1.89 | BC69: 0.6896171842 | BD69: 0.002005786548 | BE69: 0.002414499019 | BF69: 0.0635448508 | BG69: 0.1831152964 | BH69: 0.002824950997 | BI69: 0.002288106862 | BJ69: 0.009962329135 | BK69: 0.001272509986 | BL69: 0.03634259488 | BM69: 6.287142649e-06 | BN69: 7.76512172e-06 | BO69: 0.06861549126 | BP69: 0.3724004682 | BQ69: 0.6896171842 | BR69: 68.96171842 | BS69: 157.5 | BT69: 71.68387138 | BU69: 0.7168387138 | BV69: 1208.196363 | BX69: 0.08125615288 | BZ69: 0.7474650209 | CA69: 0.1880511122 | CB69: 0.1031474297 | CE69: =IF(OR(MODE=1,MODE=2,MODE=3), BR69, IF(MODE_ILIM=4,#REF!,#REF!)) -> 68.96171842 | CF69: =IF(OR(MODE=1,MODE=2,MODE=3), BZ69, IF(MODE_ILIM=4,#REF!,#REF!)) -> 0.7474650209 | CG69: =IF(OR(MODE=1,MODE=2,MODE=3), CA69, IF(MODE_ILIM=4,#REF!,#REF!)) -> 0.1880511122 | CH69: =IF(OR(MODE=1,MODE=2,MODE=3), CB69, IF(MODE_ILIM=4,#REF!,#REF!)) -> 0.1031474297 | CI69: =(IF(OR(MODE=1,MODE=2,MODE=3), S69, IF(MODE_ILIM=4,#REF!,#REF!)))/1000 -> 1208.196363 | CJ69: =IF(OR(MODE=1,MODE=2,MODE=3), P69, IF(MODE_ILIM=4,#REF!,#REF!)) -> 1.339125426
H70: 64 | I70: =IF(PLOT_TYPE=1, H70/100*Iout, min_I*EXP(H70*rr/100)) -> 0.16 | J70: =IF(I70<Icrit, (Vin-(Rdcr+RdsonTop)*Iripple/2-Vout)/L*OnTime, (Vin-(Rdcr+RdsonTop)*I70-Vout)/L*OnTime) -> 0.2264575758 | K70: =IF(I70<Icrit, (Vin-(Rdcr+RdsonTop)*Iripple/2-Vout)/L*OnTime, I70+((Vin-(Rdcr+RdsonTop)*J70-Vout)/L*OnTime)/2) -> 0.2730594973 | L70: =IF(I70<Icrit, 0, I70-((Vin-(Rdcr+RdsonTop)*K70-Vout)/L*OnTime)/2) -> 0.04705921406 | M70: 1.339050113 | N70: =IF(I70<Icrit, 1000*SQRT((J70*CoutEsr)^2+(((J70/2)-I70)*(OnTime+OffTime)/Cout)^2), 1000*J70*SQRT(CoutEsr^2+(1/(8*Fsw*Cout))^2)) -> 1.339050113 | O70: 1 | P70: =IF(I70<Icrit, 1000*((N70/1000)*O70), 1000*J70*SQRT(CoutEsr^2+(1/(8*Fsw*Cout))^2)) -> 1.339050113 | Q70: =IF(I70<Icrit, L*J70/(Vout+J70/2*(RdsonBot+Rdcr)), L*J70/(Vout+I70*(RdsonBot+Rdcr))) -> 6.192574645e-07 | R70: 0.2517347147 | S70: =IF(I70<Icrit,I70/((OnTime+Q70)*J70/2),1/(OnTime+Q70)) -> 1208326.63 | T70: 8.275907978e-07 | U70: 0 | V70: =S70*(T70*Iq_active+U70*Iq_sleep) -> 0.00066 | W70: 0.1727897499 | X70: =W70^2*Rdcr -> 0.00358275572 | Y70: =Core_Loss/1000*S70/$S$106 -> 0.09961310676 | Z70: =(Y70+X70*(1+Ltc*(Ta-25)))/(1-X70*Ltc*ThetaCa) -> 0.1032550525 | AA70: 0.06524030705 | AB70: 2.128148832e-05 | AC70: 2.128148832e-05 | AD70: 0.07676968926 | AE70: 1.768075557e-05 | AF70: 1.768075557e-05 | AG70: 0.08669409768 | AH70: 0.005163400336 | AI70: 0.004851431421 | AJ70: =20*VIN_nom/24 -> 40 | AK70: =IF(I70<Icrit, Csw*Vin/Iripple*1000000000, Csw*Vin/(I70+Iripple/2)*1000000000) -> 28.13191692 | AL70: =IF(I70<Icrit, Vin*(I70+Iripple/2)*AK70/1000000000/2*S70, Vin*(I70-Iripple/2)*AJ70/1000000000/2*S70 + Vin*(I70+Iripple/2)*AK70/1000000000/2*S70) -> 0.2772390113 | AM70: =IF(I70<Icrit, Csw*(Vin)^2*S70/2, Csw*Vin^2*S70/2) -> 0.2227187645 | AN70: 0.5048092072 | AO70: =(AI70+AL70+AM70+AH70*(1+RdsonTopTc*(Ta-25)))/(1-AH70*RdsonTopTc*ThetaJA) -> 0.5104600821 | AP70: =IF(I70<Icrit,Iripple*SQRT((OffTime)*S70/3), SQRT(OffTime*S70*(I70^2+Iripple^2/12))) -> 0.1490802438 | AQ70: 0.006756375405 | AR70: =QgBot*S70*Vdd -> 0.01329159293 | AS70: =IF(I70<Icrit, Vin*Idss*R70, QrrBot*(I70-Iripple/2)/1*S70*Vin+Vin*Idss*R70) -> 0.00817803702 | AT70: =IF(I70<Icrit, dead1*S70*(I70+Iripple/2)*((I70+Iripple/2)*BDserR+VSD), dead1*S70*(I70+Iripple/2)*((I70+Iripple/2)*BDserR+VSD)+dead2*S70*(I70-Iripple/2)*((I70-Iripple/2)*BDserR+VSD)) -> 0.006372080968 | AU70: 0.02784171092 | AV70: =(AR70+AS70+AT70+AQ70*(1+RdsonBotTc*(Ta-25)))/(1-AQ70*RdsonBotTc*ThetaJA) -> 0.0346413739 | AW70: =Vin*V70+Vout*Ifb/0.8 -> 0.03203792404 | AX70: =(Vin-Vdd)*(S70*QgBot+S70*QgTop)+AW70 -> 0.1880679335 | AY70: =AI70+AR70 -> 0.01814302435 | AZ70: 0.7513124138 | BA70: =SUM(Z70,AC70,AF70,AZ70) -> 0.8546064286 | BB70: =Vout*I70 -> 1.92 | BC70: 0.6919900351 | BD70: 0.002036640151 | BE70: 0.002450676574 | BF70: =Vin*S70*(QgBot+QgTop)/($BB70+$BA70) -> 0.0627739603 | BG70: 0.1819390318 | BH70: 0.002947458398 | BI70: 0.002296571111 | BJ70: 0.01003447215 | BK70: =X70/($BB70+$BA70) -> 0.001291266279 | BL70: =Y70/($BB70+$BA70) -> 0.0359017069 | BM70: 6.372347222e-06 | BN70: 7.670092631e-06 | BO70: 0.06778184162 | BP70: 0.3694676677 | BQ70: =BC70 -> 0.6919900351 | BR70: 69.19900351 | BS70: =I70*1000 -> 160 | BT70: 71.74131774 | BU70: 0.7174131774 | BV70: =S70/1000 -> 1208.32663 | BX70: =AM70/($BB70+$BA70) -> 0.08027039879 | BZ70: 0.7513124138 | CA70: 0.1880679335 | CB70: 0.1032550525 | CE70: =IF(OR(MODE=1,MODE=2,MODE=3), BR70, IF(MODE_ILIM=4,#REF!,#REF!)) -> 69.19900351 | CF70: =IF(OR(MODE=1,MODE=2,MODE=3), BZ70, IF(MODE_ILIM=4,#REF!,#REF!)) -> 0.7513124138 | CG70: =IF(OR(MODE=1,MODE=2,MODE=3), CA70, IF(MODE_ILIM=4,#REF!,#REF!)) -> 0.1880679335 | CH70: =IF(OR(MODE=1,MODE=2,MODE=3), CB70, IF(MODE_ILIM=4,#REF!,#REF!)) -> 0.1032550525 | CI70: =(IF(OR(MODE=1,MODE=2,MODE=3), S70, IF(MODE_ILIM=4,#REF!,#REF!)))/1000 -> 1208.32663 | CJ70: =IF(OR(MODE=1,MODE=2,MODE=3), P70, IF(MODE_ILIM=4,#REF!,#REF!)) -> 1.339050113
H71: 65 | I71: 0.1625 | J71: 0.226444839 | K71: 0.2755595297 | L71: 0.04956558251 | M71: =IF(I71<Icrit, 1000*((((J71/2)-I71)*0.000002/Cout+Vout/306)), 1000*J71*SQRT(CoutEsr^2+(1/(8*Fsw*Cout))^2)) -> 1.3389748 | N71: 1.3389748 | O71: =ROUNDUP(M71/N71,0) -> 1 | P71: 1.3389748 | Q71: 6.191682496e-07 | R71: 0.2517618548 | S71: 1208456.903 | T71: =IF(1/S71-OnTime-Q71>Tsleep, OnTime+Q71+Tsleep, 1/S71) -> 8.275015829e-07 | U71: =IF(1/S71-OnTime-Q71>Tsleep, 1/S71-OnTime-Q71-Tsleep, 0) -> 0 | V71: 0.00066 | W71: =IF(I71<Icrit,Iripple*SQRT((OnTime+OffTime)*S71/3), SQRT(I71^2+Iripple^2/12)) -> 0.1751072462 | X71: 0.00367950572 | Y71: 0.09962384628 | Z71: 0.1033642047 | AA71: =Iripple/SQRT(12)*SQRT((OnTime+Q71)*S71) -> 0.06524030705 | AB71: =RCoutEsr*AA71^2 -> 2.128148832e-05 | AC71: 2.128148832e-05 | AD71: =SQRT($R71)*SQRT($I71^2*(1-R71)+(Iripple^2)/12) -> 0.07775554829 | AE71: =RCinEsr*AD71^2 -> 1.813777587e-05 | AF71: 1.813777587e-05 | AG71: =IF(I71<Icrit,Iripple*SQRT((OnTime)*S71/3), SQRT(OnTime*S71*(I71^2+Iripple^2/12))) -> 0.08786159498 | AH71: =RdsonTop*AG71^2 -> 0.005303406332 | AI71: =QgTop*S71*Vdd -> 0.004851954465 | AJ71: 40 | AK71: 27.87663593 | AL71: 0.2801691977 | AM71: 0.2227427763 | AN71: =AI71+AL71+AM71 -> 0.5077639285 | AO71: 0.5135710787 | AP71: 0.1510878866 | AQ71: =RdsonBot*AP71^2 -> 0.006939575042 | AR71: 0.01329302593 | AS71: 0.008613963198 | AT71: 0.006473341783 | AU71: =AR71+AS71+AT71 -> 0.02838033091 | AV71: 0.03536529641 | AW71: 0.03203792404 | AX71: 0.1880847554 | AY71: 0.0181449804 | AZ71: 0.7551661109 | BA71: 0.8585697349 | BB71: 1.95 | BC71: 0.6943035723 | BD71: =(AO71-AN71)/($BB71+$BA71) -> 0.002067653922 | BE71: =(AV71-AU71)/($BB71+$BA71) -> 0.002487018716 | BF71: 0.06202153703 | BG71: =AN71/($BB71+$BA71) -> 0.1807909279 | BH71: =AS71/(BA71+BB71) -> 0.003067028421 | BI71: =AT71/($BB71+$BA71) -> 0.0023048535 | BJ71: =AU71/($BB71+$BA71) -> 0.0101049052 | BK71: 0.00131009947 | BL71: 0.0354713807 | BM71: =(AF71)/($BB71+$BA71) -> 6.458011579e-06 | BN71: =(AC71)/($BB71+$BA71) -> 7.577340187e-06 | BO71: =AX71/($BB71+$BA71) -> 0.06696816287 | BP71: =SUM(BD71:BO71) -> 0.3666076031 | BQ71: 0.6943035723 | BR71: 69.43035723 | BS71: 162.5 | BT71: 71.79275395 | BU71: =BT71/100 -> 0.7179275395 | BV71: 1208.456903 | BX71: 0.07930825914 | BZ71: =AZ71 -> 0.7551661109 | CA71: =AX71 -> 0.1880847554 | CB71: =Z71 -> 0.1033642047 | CE71: =IF(OR(MODE=1,MODE=2,MODE=3), BR71, IF(MODE_ILIM=4,#REF!,#REF!)) -> 69.43035723 | CF71: =IF(OR(MODE=1,MODE=2,MODE=3), BZ71, IF(MODE_ILIM=4,#REF!,#REF!)) -> 0.7551661109 | CG71: =IF(OR(MODE=1,MODE=2,MODE=3), CA71, IF(MODE_ILIM=4,#REF!,#REF!)) -> 0.1880847554 | CH71: =IF(OR(MODE=1,MODE=2,MODE=3), CB71, IF(MODE_ILIM=4,#REF!,#REF!)) -> 0.1033642047 | CI71: =(IF(OR(MODE=1,MODE=2,MODE=3), S71, IF(MODE_ILIM=4,#REF!,#REF!)))/1000 -> 1208.456903 | CJ71: =IF(OR(MODE=1,MODE=2,MODE=3), P71, IF(MODE_ILIM=4,#REF!,#REF!)) -> 1.3389748
H72: 66 | I72: 0.165 | J72: 0.2264321023 | K72: 0.2780595622 | L72: 0.05207195097 | M72: 1.338899488 | N72: 1.338899488 | O72: 1 | P72: 1.338899488 | Q72: 6.190790504e-07 | R72: =OnTime*S72 -> 0.2517889959 | S72: 1208587.181 | T72: 8.274123837e-07 | U72: 0 | V72: 0.00066 | W72: 0.1774296978 | X72: 0.00377775572 | Y72: 0.09963458623 | Z72: 0.1034748864 | AA72: 0.06524030705 | AB72: 2.128148832e-05 | AC72: =AB72 -> 2.128148832e-05 | AD72: 0.07874415527 | AE72: 1.860192597e-05 | AF72: =AE72 -> 1.860192597e-05 | AG72: 0.08903170407 | AH72: 0.005445604655 | AI72: 0.00485247753 | AJ72: 40 | AK72: 27.62594633 | AL72: 0.2831000105 | AM72: 0.2227667891 | AN72: 0.5107192772 | AO72: 0.5166852689 | AP72: 0.1531000207 | AQ72: 0.007125643367 | AR72: 0.01329445899 | AS72: 0.009049983212 | AT72: 0.006574684739 | AU72: 0.02891912694 | AV72: 0.03609233595 | AW72: 0.03203792404 | AX72: 0.1881015781 | AY72: 0.01814693652 | AZ72: =AO72+AV72+AX72+AY72 -> 0.7590261195 | BA72: 0.8625408893 | BB72: 1.98 | BC72: 0.6965599008 | BD72: 0.002098823549 | BE72: 0.002523520081 | BF72: 0.06128692509 | BG72: 0.1796699844 | BH72: 0.003183765358 | BI72: 0.00231296048 | BJ72: 0.01017368899 | BK72: 0.001329006641 | BL72: 0.03505124116 | BM72: 6.544119044e-06 | BN72: 7.486783533e-06 | BO72: 0.06617374575 | BP72: 0.3638176924 | BQ72: 0.6965599008 | BR72: =100*BQ72 -> 69.65599008 | BS72: 165 | BT72: 71.83875737 | BU72: 0.7183875737 | BV72: 1208.587181 | BX72: 0.07836889522 | BZ72: 0.7590261195 | CA72: 0.1881015781 | CB72: 0.1034748864 | CE72: =IF(OR(MODE=1,MODE=2,MODE=3), BR72, IF(MODE_ILIM=4,#REF!,#REF!)) -> 69.65599008 | CF72: =IF(OR(MODE=1,MODE=2,MODE=3), BZ72, IF(MODE_ILIM=4,#REF!,#REF!)) -> 0.7590261195 | CG72: =IF(OR(MODE=1,MODE=2,MODE=3), CA72, IF(MODE_ILIM=4,#REF!,#REF!)) -> 0.1881015781 | CH72: =IF(OR(MODE=1,MODE=2,MODE=3), CB72, IF(MODE_ILIM=4,#REF!,#REF!)) -> 0.1034748864 | CI72: =(IF(OR(MODE=1,MODE=2,MODE=3), S72, IF(MODE_ILIM=4,#REF!,#REF!)))/1000 -> 1208.587181 | CJ72: =IF(OR(MODE=1,MODE=2,MODE=3), P72, IF(MODE_ILIM=4,#REF!,#REF!)) -> 1.338899488
H73: 67 | I73: 0.1675 | J73: 0.2264193655 | K73: 0.2805595946 | L73: 0.05457831942 | M73: 1.338824175 | N73: 1.338824175 | O73: 1 | P73: 1.338824175 | Q73: 6.189898668e-07 | R73: 0.2518161382 | S73: 1208717.463 | T73: 8.273232002e-07 | U73: 0 | V73: 0.00066 | W73: 0.1797569127 | X73: 0.00387750572 | Y73: 0.09964532661 | Z73: 0.1035870979 | AA73: 0.06524030705 | AB73: 2.128148832e-05 | AC73: 2.128148832e-05 | AD73: 0.07973541114 | AE73: 1.907320737e-05 | AF73: 1.907320737e-05 | AG73: 0.09020432899 | AH73: 0.005589996006 | AI73: 0.004853000616 | AJ73: 40 | AK73: 27.37972536 | AL73: 0.28603145 | AM73: 0.2227908029 | AN73: 0.5136752535 | AO73: 0.5198026577 | AP73: 0.155116481 | AQ73: 0.007314581297 | AR73: 0.0132958921 | AS73: 0.009486097066 | AT73: 0.006676109857 | AU73: 0.02945809902 | AV73: 0.03682249496 | AW73: 0.03203792404 | AX73: 0.1881184014 | AY73: 0.01814889271 | AZ73: 0.7628924468 | BA73: 0.8665198993 | BB73: 2.01 | BC73: =BB73/(BB73+BA73) -> 0.6987610273 | BD73: 0.002130144922 | BE73: 0.002560175558 | BF73: 0.06056949931 | BG73: 0.1785752477 | BH73: 0.003297768622 | BI73: 0.0023208982 | BJ73: 0.01024088136 | BK73: 0.001347985015 | BL73: 0.03464093074 | BM73: 6.63065372e-06 | BN73: 7.398345593e-06 | BO73: 0.06539791413 | BP73: 0.3610954745 | BQ73: 0.6987610273 | BR73: 69.87610273 | BS73: 167.5 | BT73: 71.8798463 | BU73: 0.718798463 | BV73: 1208.717463 | BX73: 0.07745150761 | BZ73: 0.7628924468 | CA73: 0.1881184014 | CB73: 0.1035870979 | CE73: =IF(OR(MODE=1,MODE=2,MODE=3), BR73, IF(MODE_ILIM=4,#REF!,#REF!)) -> 69.87610273 | CF73: =IF(OR(MODE=1,MODE=2,MODE=3), BZ73, IF(MODE_ILIM=4,#REF!,#REF!)) -> 0.7628924468 | CG73: =IF(OR(MODE=1,MODE=2,MODE=3), CA73, IF(MODE_ILIM=4,#REF!,#REF!)) -> 0.1881184014 | CH73: =IF(OR(MODE=1,MODE=2,MODE=3), CB73, IF(MODE_ILIM=4,#REF!,#REF!)) -> 0.1035870979 | CI73: =(IF(OR(MODE=1,MODE=2,MODE=3), S73, IF(MODE_ILIM=4,#REF!,#REF!)))/1000 -> 1208.717463 | CJ73: =IF(OR(MODE=1,MODE=2,MODE=3), P73, IF(MODE_ILIM=4,#REF!,#REF!)) -> 1.338824175
H74: 68 | I74: 0.17 | J74: 0.2264066288 | K74: 0.2830596271 | L74: 0.05708468788 | M74: 1.338748862 | N74: 1.338748862 | O74: 1 | P74: 1.338748862 | Q74: 6.18900699e-07 | R74: 0.2518432816 | S74: 1208847.752 | T74: 8.272340323e-07 | U74: 0 | V74: 0.00066 | W74: 0.1820887082 | X74: 0.00397875572 | Y74: 0.09965606742 | Z74: 0.1037008392 | AA74: 0.06524030705 | AB74: 2.128148832e-05 | AC74: 2.128148832e-05 | AD74: 0.08072922146 | AE74: 1.955162159e-05 | AF74: 1.955162159e-05 | AG74: 0.09137937847 | AH74: 0.005736581086 | AI74: 0.004853523723 | AJ74: 40 | AK74: 27.13785459 | AL74: 0.288963516 | AM74: 0.2228148176 | AN74: 0.5166318573 | AO74: 0.5229232499 | AP74: 0.1571371107 | AQ74: 0.00750638975 | AR74: 0.01329732527 | AS74: 0.009922304767 | AT74: 0.006777617159 | AU74: 0.02999724719 | AV74: 0.03755577588 | AW74: 0.03203792404 | AX74: 0.1881352254 | AY74: 0.01815084899 | AZ74: 0.7667651001 | BA74: 0.8705067724 | BB74: 2.04 | BC74: 0.7009088655 | BD74: 0.002161614124 | BE74: 0.002596980278 | BF74: 0.05986866341 | BG74: 0.1775058083 | BH74: 0.003409133028 | BI74: 0.002328672527 | BJ74: 0.0103065375 | BK74: 0.00136703194 | BL74: 0.03424010841 | BM74: 6.717600445e-06 | BN74: 7.311952861e-06 | BO74: 0.06464002322 | BP74: 0.3584386023 | BQ74: 0.7009088655 | BR74: 70.09088655 | BS74: 170 | BT74: 71.91648518 | BU74: 0.7191648518 | BV74: 1208.847752 | BX74: 0.07655533383 | BZ74: 0.7667651001 | CA74: 0.1881352254 | CB74: 0.1037008392 | CE74: =IF(OR(MODE=1,MODE=2,MODE=3), BR74, IF(MODE_ILIM=4,#REF!,#REF!)) -> 70.09088655 | CF74: =IF(OR(MODE=1,MODE=2,MODE=3), BZ74, IF(MODE_ILIM=4,#REF!,#REF!)) -> 0.7667651001 | CG74: =IF(OR(MODE=1,MODE=2,MODE=3), CA74, IF(MODE_ILIM=4,#REF!,#REF!)) -> 0.1881352254 | CH74: =IF(OR(MODE=1,MODE=2,MODE=3), CB74, IF(MODE_ILIM=4,#REF!,#REF!)) -> 0.1037008392 | CI74: =(IF(OR(MODE=1,MODE=2,MODE=3), S74, IF(MODE_ILIM=4,#REF!,#REF!)))/1000 -> 1208.847752 | CJ74: =IF(OR(MODE=1,MODE=2,MODE=3), P74, IF(MODE_ILIM=4,#REF!,#REF!)) -> 1.338748862
H75: 69 | I75: 0.1725 | J75: 0.226393892 | K75: 0.2855596595 | L75: 0.05959105633 | M75: 1.338673549 | N75: 1.338673549 | O75: 1 | P75: 1.338673549 | Q75: 6.188115467e-07 | R75: 0.251870426 | S75: 1208978.045 | T75: 8.271448801e-07 | U75: 0 | V75: 0.00066 | W75: 0.1844249106 | X75: 0.00408150572 | Y75: 0.09966680866 | Z75: 0.1038161105 | AA75: 0.06524030705 | AB75: 2.128148832e-05 | AC75: 2.128148832e-05 | AD75: 0.08172549609 | AE75: 2.003717013e-05 | AF75: 2.003717013e-05 | AG75: 0.09255676567 | AH75: 0.005885360596 | AI75: 0.00485404685 | AJ75: 40 | AK75: 26.90021974 | AL75: 0.2918962087 | AM75: 0.2228388332 | AN75: 0.5195890888 | AO75: 0.5260470503 | AP75: 0.1591617603 | AQ75: 0.007701069643 | AR75: 0.01329875849 | AS75: 0.01035860632 | AT75: 0.006879206665 | AU75: 0.03053657148 | AV75: 0.03829218117 | AW75: 0.03203792404 | AX75: 0.18815205 | AY75: 0.01815280534 | AZ75: 0.7706440868 | BA75: 0.874501516 | BB75: 2.07 | BC75: 0.7030052417 | BD75: 0.002193227421 | BE75: 0.002633929596 | BF75: 0.05918384839 | BG75: 0.1764607985 | BH75: 0.003517949053 | BI75: 0.002336289055 | BJ75: 0.01037071005 | BK75: 0.001386144887 | BL75: 0.03384844875 | BM75: 6.80494475e-06 | BN75: 7.227535189e-06 | BO75: 0.06389945768 | BP75: 0.3558448359 | BQ75: 0.7030052417 | BR75: 70.30052417 | BS75: 172.5 | BT75: 71.94908925 | BU75: 0.7194908925 | BV75: 1208.978045 | BX75: 0.07567964629 | BZ75: 0.7706440868 | CA75: 0.18815205 | CB75: 0.1038161105 | CE75: =IF(OR(MODE=1,MODE=2,MODE=3), BR75, IF(MODE_ILIM=4,#REF!,#REF!)) -> 70.30052417 | CF75: =IF(OR(MODE=1,MODE=2,MODE=3), BZ75, IF(MODE_ILIM=4,#REF!,#REF!)) -> 0.7706440868 | CG75: =IF(OR(MODE=1,MODE=2,MODE=3), CA75, IF(MODE_ILIM=4,#REF!,#REF!)) -> 0.18815205 | CH75: =IF(OR(MODE=1,MODE=2,MODE=3), CB75, IF(MODE_ILIM=4,#REF!,#REF!)) -> 0.1038161105 | CI75: =(IF(OR(MODE=1,MODE=2,MODE=3), S75, IF(MODE_ILIM=4,#REF!,#REF!)))/1000 -> 1208.978045 | CJ75: =IF(OR(MODE=1,MODE=2,MODE=3), P75, IF(MODE_ILIM=4,#REF!,#REF!)) -> 1.338673549
H76: 70 | I76: 0.175 | J76: 0.2263811553 | K76: 0.2880596919 | L76: 0.06209742478 | M76: 1.338598237 | N76: 1.338598237 | O76: 1 | P76: 1.338598237 | Q76: 6.187224102e-07 | R76: 0.2518975716 | S76: 1209108.343 | T76: 8.270557435e-07 | U76: 0 | V76: 0.00066 | W76: 0.1867653546 | X76: 0.00418575572 | Y76: 0.09967755032 | Z76: 0.1039329121 | AA76: 0.06524030705 | AB76: 2.128148832e-05 | AC76: 2.128148832e-05 | AD76: 0.08272414905 | AE76: 2.052985451e-05 | AF76: 2.052985451e-05 | AG76: 0.09373640794 | AH76: 0.006036335238 | AI76: 0.004854569999 | AJ76: 40 | AK76: 26.66671051 | AL76: 0.2948295281 | AM76: 0.2228628499 | AN76: 0.5225469479 | AO76: 0.5291740638 | AP76: 0.1611902877 | AQ76: 0.007898621893 | AR76: 0.01330019178 | AS76: 0.01079500173 | AT76: 0.006980878396 | AU76: 0.0310760719 | AV76: 0.03903171328 | AW76: 0.03203792404 | AX76: 0.1881688753 | AY76: 0.01815476178 | AZ76: 0.7745294142 | BA76: 0.8785041376 | BB76: 2.1 | BC76: 0.7050518995 | BD76: 0.002224981248 | BE76: 0.002671019078 | BF76: 0.05851451098 | BG76: 0.1754393896 | BH76: 0.003624303083 | BI76: 0.00234375313 | BJ76: 0.0104334493 | BK76: 0.001405321439 | BL76: 0.03346564105 | BM76: 6.892672818e-06 | BN76: 7.145025603e-06 | BO76: 0.06317562999 | BP76: 0.3533120366 | BQ76: 0.7050518995 | BR76: 70.50518995 | BS76: 175 | BT76: 71.97802873 | BU76: 0.7197802873 | BV76: 1209.108343 | BX76: 0.0748237503 | BZ76: 0.7745294142 | CA76: 0.1881688753 | CB76: 0.1039329121 | CE76: =IF(OR(MODE=1,MODE=2,MODE=3), BR76, IF(MODE_ILIM=4,#REF!,#REF!)) -> 70.50518995 | CF76: =IF(OR(MODE=1,MODE=2,MODE=3), BZ76, IF(MODE_ILIM=4,#REF!,#REF!)) -> 0.7745294142 | CG76: =IF(OR(MODE=1,MODE=2,MODE=3), CA76, IF(MODE_ILIM=4,#REF!,#REF!)) -> 0.1881688753 | CH76: =IF(OR(MODE=1,MODE=2,MODE=3), CB76, IF(MODE_ILIM=4,#REF!,#REF!)) -> 0.1039329121 | CI76: =(IF(OR(MODE=1,MODE=2,MODE=3), S76, IF(MODE_ILIM=4,#REF!,#REF!)))/1000 -> 1209.108343 | CJ76: =IF(OR(MODE=1,MODE=2,MODE=3), P76, IF(MODE_ILIM=4,#REF!,#REF!)) -> 1.338598237
H77: 71 | I77: 0.1775 | J77: 0.2263684186 | K77: 0.2905597244 | L77: 0.06460379324 | M77: 1.338522924 | N77: 1.338522924 | O77: 1 | P77: 1.338522924 | Q77: 6.186332893e-07 | R77: 0.2519247182 | S77: 1209238.647 | T77: 8.269666226e-07 | U77: 0 | V77: 0.00066 | W77: 0.1891098825 | X77: 0.00429150572 | Y77: 0.09968829242 | Z77: 0.104051244 | AA77: 0.06524030705 | AB77: 2.128148832e-05 | AC77: 2.128148832e-05 | AD77: 0.08372509823 | AE77: 2.102967622e-05 | AF77: 2.102967622e-05 | AG77: 0.0949182266 | AH77: 0.006189505712 | AI77: 0.004855093169 | AJ77: 40 | AK77: 26.43722037 | AL77: 0.2977634741 | AM77: 0.2228868675 | AN77: 0.5255054348 | AO77: 0.5323042953 | AP77: 0.1632225577 | AQ77: 0.008099047419 | AR77: 0.01330162512 | AS77: 0.011231491 | AT77: 0.007082632372 | AU77: 0.0316157485 | AV77: 0.0397743747 | AW77: 0.03203792404 | AX77: 0.1881857013 | AY77: 0.01815671829 | AZ77: 0.7784210896 | BA77: 0.8825146448 | BB77: 2.13 | BC77: 0.7070505047 | BD77: 0.002256872204 | BE77: 0.002708244495 | BF77: 0.05786013219 | BG77: 0.1744407901 | BH77: 0.003728277644 | BI77: 0.002351069856 | BJ77: 0.01049480325 | BK77: 0.001424559289 | BL77: 0.03309138848 | BM77: 6.980771449e-06 | BN77: 7.064360121e-06 | BO77: 0.06246797892 | BP77: 0.3508381615 | BQ77: 0.7070505047 | BR77: 70.70505047 | BS77: 177.5 | BT77: 72.00363264 | BU77: 0.7200363264 | BV77: 1209.238647 | BX77: 0.07398698222 | BZ77: 0.7784210896 | CA77: 0.1881857013 | CB77: 0.104051244 | CE77: =IF(OR(MODE=1,MODE=2,MODE=3), BR77, IF(MODE_ILIM=4,#REF!,#REF!)) -> 70.70505047 | CF77: =IF(OR(MODE=1,MODE=2,MODE=3), BZ77, IF(MODE_ILIM=4,#REF!,#REF!)) -> 0.7784210896 | CG77: =IF(OR(MODE=1,MODE=2,MODE=3), CA77, IF(MODE_ILIM=4,#REF!,#REF!)) -> 0.1881857013 | CH77: =IF(OR(MODE=1,MODE=2,MODE=3), CB77, IF(MODE_ILIM=4,#REF!,#REF!)) -> 0.104051244 | CI77: =(IF(OR(MODE=1,MODE=2,MODE=3), S77, IF(MODE_ILIM=4,#REF!,#REF!)))/1000 -> 1209.238647 | CJ77: =IF(OR(MODE=1,MODE=2,MODE=3), P77, IF(MODE_ILIM=4,#REF!,#REF!)) -> 1.338522924
H78: 72 | I78: 0.18 | J78: 0.2263556818 | K78: 0.2930597568 | L78: 0.06711016169 | M78: 1.338447611 | N78: 1.338447611 | O78: 1 | P78: 1.338447611 | Q78: 6.18544184e-07 | R78: 0.2519518659 | S78: 1209368.956 | T78: 8.268775173e-07 | U78: 0 | V78: 0.00066 | W78: 0.1914583445 | X78: 0.00439875572 | Y78: 0.09969903495 | Z78: 0.1041711064 | AA78: 0.06524030705 | AB78: 2.128148832e-05 | AC78: 2.128148832e-05 | AD78: 0.08472826523 | AE78: 2.153663679e-05 | AF78: 2.153663679e-05 | AG78: 0.09610214666 | AH78: 0.006344872721 | AI78: 0.004855616359 | AJ78: 40 | AK78: 26.21164645 | AL78: 0.300698047 | AM78: 0.222910886 | AN78: 0.5284645493 | AO78: 0.5354377498 | AP78: 0.1652584413 | AQ78: 0.008302347137 | AR78: 0.01330305852 | AS78: 0.01166807415 | AT78: 0.007184468615 | AU78: 0.03215560128 | AV78: 0.04052016791 | AW78: 0.03203792404 | AX78: 0.188202528 | AY78: 0.01815867488 | AZ78: 0.7823191206 | BA78: 0.8865330451 | BB78: 2.16 | BC78: 0.7090026493 | BD78: 0.002288897039 | BE78: 0.002745601806 | BF78: 0.05722021598 | BG78: 0.1734642433 | BH78: 0.003829951612 | BI78: 0.002358244112 | BJ78: 0.01055481782 | BK78: 0.001443856231 | BL78: 0.03272540736 | BM78: 7.069228026e-06 | BN78: 6.985477592e-06 | BO78: 0.06177596803 | BP78: 0.348421258 | BQ78: 0.7090026493 | BR78: 70.90026493 | BS78: 180 | BT78: 72.02619221 | BU78: 0.7202619221 | BV78: 1209.368956 | BX78: 0.07316870774 | BZ78: 0.7823191206 | CA78: 0.188202528 | CB78: 0.1041711064 | CE78: =IF(OR(MODE=1,MODE=2,MODE=3), BR78, IF(MODE_ILIM=4,#REF!,#REF!)) -> 70.90026493 | CF78: =IF(OR(MODE=1,MODE=2,MODE=3), BZ78, IF(MODE_ILIM=4,#REF!,#REF!)) -> 0.7823191206 | CG78: =IF(OR(MODE=1,MODE=2,MODE=3), CA78, IF(MODE_ILIM=4,#REF!,#REF!)) -> 0.188202528 | CH78: =IF(OR(MODE=1,MODE=2,MODE=3), CB78, IF(MODE_ILIM=4,#REF!,#REF!)) -> 0.1041711064 | CI78: =(IF(OR(MODE=1,MODE=2,MODE=3), S78, IF(MODE_ILIM=4,#REF!,#REF!)))/1000 -> 1209.368956 | CJ78: =IF(OR(MODE=1,MODE=2,MODE=3), P78, IF(MODE_ILIM=4,#REF!,#REF!)) -> 1.338447611
H79: 73 | I79: 0.1825 | J79: 0.2263429451 | K79: 0.2955597893 | L79: 0.06961653015 | M79: 1.338372298 | N79: 1.338372298 | O79: 1 | P79: 1.338372298 | Q79: 6.184550944e-07 | R79: 0.2519790146 | S79: 1209499.27 | T79: 8.267884277e-07 | U79: 0 | V79: 0.00066 | W79: 0.1938105974 | X79: 0.00450750572 | Y79: 0.0997097779 | Z79: 0.1042924995 | AA79: 0.06524030705 | AB79: 2.128148832e-05 | AC79: 2.128148832e-05 | AD79: 0.08573357511 | AE79: 2.20507377e-05 | AF79: 2.20507377e-05 | AG79: 0.09728809664 | AH79: 0.006502436965 | AI79: 0.00485613957 | AJ79: 40 | AK79: 25.98988936 | AL79: 0.3036332466 | AM79: 0.2229349055 | AN79: 0.5314242917 | AO79: 0.5385744321 | AP79: 0.1672978156 | AQ79: 0.008508521967 | AR79: 0.01330449197 | AS79: 0.01210475116 | AT79: 0.007286387146 | AU79: 0.03269563028 | AV79: 0.04126909541 | AW79: 0.03203792404 | AX79: 0.1882193553 | AY79: 0.01816063154 | AZ79: 0.7862235144 | BA79: 0.8905593461 | BB79: 2.19 | BC79: 0.7109098556 | BD79: 0.002321052648 | BE79: 0.002783087148 | BF79: 0.056594288 | BG79: 0.1725090258 | BH79: 0.003929400412 | BI79: 0.002365280564 | BJ79: 0.0106135369 | BK79: 0.001463210155 | BL79: 0.0323674264 | BM79: 7.158030483e-06 | BN79: 6.908319539e-06 | BO79: 0.06109908435 | BP79: 0.3460594587 | BQ79: 0.7109098556 | BR79: 71.09098556 | BS79: 182.5 | BT79: 72.04596387 | BU79: 0.7204596387 | BV79: 1209.49927 | BX79: 0.07236832032 | BZ79: 0.7862235144 | CA79: 0.1882193553 | CB79: 0.1042924995 | CE79: =IF(OR(MODE=1,MODE=2,MODE=3), BR79, IF(MODE_ILIM=4,#REF!,#REF!)) -> 71.09098556 | CF79: =IF(OR(MODE=1,MODE=2,MODE=3), BZ79, IF(MODE_ILIM=4,#REF!,#REF!)) -> 0.7862235144 | CG79: =IF(OR(MODE=1,MODE=2,MODE=3), CA79, IF(MODE_ILIM=4,#REF!,#REF!)) -> 0.1882193553 | CH79: =IF(OR(MODE=1,MODE=2,MODE=3), CB79, IF(MODE_ILIM=4,#REF!,#REF!)) -> 0.1042924995 | CI79: =(IF(OR(MODE=1,MODE=2,MODE=3), S79, IF(MODE_ILIM=4,#REF!,#REF!)))/1000 -> 1209.49927 | CJ79: =IF(OR(MODE=1,MODE=2,MODE=3), P79, IF(MODE_ILIM=4,#REF!,#REF!)) -> 1.338372298
H80: 74 | I80: 0.185 | J80: 0.2263302083 | K80: 0.2980598217 | L80: 0.0721228986 | M80: 1.338296986 | N80: 1.338296986 | O80: 1 | P80: 1.338296986 | Q80: 6.183660204e-07 | R80: 0.2520061645 | S80: 1209629.59 | T80: 8.266993537e-07 | U80: 0 | V80: 0.00066 | W80: 0.1961665049 | X80: 0.00461775572 | Y80: 0.09972052128 | Z80: 0.1044154234 | AA80: 0.06524030705 | AB80: 2.128148832e-05 | AC80: 2.128148832e-05 | AD80: 0.08674095627 | AE80: 2.257198048e-05 | AF80: 2.257198048e-05 | AG80: 0.0984760084 | AH80: 0.006662199146 | AI80: 0.004856662803 | AJ80: 40 | AK80: 25.77185303 | AL80: 0.306569073 | AM80: 0.222958926 | AN80: 0.5343846618 | AO80: 0.5417143471 | AP80: 0.1693405634 | AQ80: 0.008717572825 | AR80: 0.01330592549 | AS80: 0.01254152206 | AT80: 0.007388387985 | AU80: 0.03323583553 | AV80: 0.04202115971 | AW80: 0.03203792404 | AX80: 0.1882361833 | AY80: 0.01816258829 | AZ80: 0.7901342785 | BA80: 0.8945935553 | BB80: 2.22 | BC80: 0.7127735804 | BD80: 0.002353336063 | BE80: 0.002820696832 | BF80: 0.05598189442 | BG80: 0.1715744454 | BH80: 0.004026696209 | BI80: 0.002372183675 | BJ80: 0.01067100247 | BK80: 0.001482619044 | BL80: 0.03201718603 | BM80: 7.247167273e-06 | BN80: 6.832830012e-06 | BO80: 0.0604368371 | BP80: 0.3437509772 | BQ80: 0.7127735804 | BR80: 71.27735804 | BS80: 185 | BT80: 72.0631719 | BU80: 0.720631719 | BV80: 1209.62959 | BX80: 0.07158523962 | BZ80: 0.7901342785 | CA80: 0.1882361833 | CB80: 0.1044154234 | CE80: =IF(OR(MODE=1,MODE=2,MODE=3), BR80, IF(MODE_ILIM=4,#REF!,#REF!)) -> 71.27735804 | CF80: =IF(OR(MODE=1,MODE=2,MODE=3), BZ80, IF(MODE_ILIM=4,#REF!,#REF!)) -> 0.7901342785 | CG80: =IF(OR(MODE=1,MODE=2,MODE=3), CA80, IF(MODE_ILIM=4,#REF!,#REF!)) -> 0.1882361833 | CH80: =IF(OR(MODE=1,MODE=2,MODE=3), CB80, IF(MODE_ILIM=4,#REF!,#REF!)) -> 0.1044154234 | CI80: =(IF(OR(MODE=1,MODE=2,MODE=3), S80, IF(MODE_ILIM=4,#REF!,#REF!)))/1000 -> 1209.62959 | CJ80: =IF(OR(MODE=1,MODE=2,MODE=3), P80, IF(MODE_ILIM=4,#REF!,#REF!)) -> 1.338296986
H81: 75 | I81: 0.1875 | J81: 0.2263174716 | K81: 0.3005598542 | L81: 0.07462926705 | M81: 1.338221673 | N81: 1.338221673 | O81: 1 | P81: 1.338221673 | Q81: 6.18276962e-07 | R81: 0.2520333155 | S81: 1209759.914 | T81: 8.266102953e-07 | U81: 0 | V81: 0.00066 | W81: 0.198525937 | X81: 0.00472950572 | Y81: 0.0997312651 | Z81: 0.1045398783 | AA81: 0.06524030705 | AB81: 2.128148832e-05 | AC81: 2.128148832e-05 | AD81: 0.08775034024 | AE81: 2.310036663e-05 | AF81: 2.310036663e-05 | AG81: 0.0996658169 | AH81: 0.006824159965 | AI81: 0.004857186056 | AJ81: 40 | AK81: 25.5574446 | AL81: 0.3095055264 | AM81: 0.2229829474 | AN81: 0.5373456598 | AO81: 0.5448574999 | AP81: 0.1713865728 | AQ81: 0.008929500629 | AR81: 0.01330735906 | AS81: 0.01297838684 | AT81: 0.007490471153 | AU81: 0.03377621705 | AV81: 0.04277636332 | AW81: 0.03203792404 | AX81: 0.188253012 | AY81: 0.01816454511 | AZ81: 0.7940514203 | BA81: 0.8986356805 | BB81: 2.25 | BC81: 0.7145952178 | BD81: 0.002385744444 | BE81: 0.002858427326 | BF81: 0.05538260084 | BG81: 0.1706598395 | BH81: 0.004121908077 | BI81: 0.002378957718 | BJ81: 0.01072725475 | BK81: 0.001502080964 | BL81: 0.03167443783 | BM81: 7.336627345e-06 | BN81: 6.758955459e-06 | BO81: 0.0597887565 | BP81: 0.3414941035 | BQ81: 0.7145952178 | BR81: 71.45952178 | BS81: 187.5 | BT81: 72.07801075 | BU81: 0.7207801075 | BV81: 1209.759914 | BX81: 0.07081891016 | BZ81: 0.7940514203 | CA81: 0.188253012 | CB81: 0.1045398783 | CE81: =IF(OR(MODE=1,MODE=2,MODE=3), BR81, IF(MODE_ILIM=4,#REF!,#REF!)) -> 71.45952178 | CF81: =IF(OR(MODE=1,MODE=2,MODE=3), BZ81, IF(MODE_ILIM=4,#REF!,#REF!)) -> 0.7940514203 | CG81: =IF(OR(MODE=1,MODE=2,MODE=3), CA81, IF(MODE_ILIM=4,#REF!,#REF!)) -> 0.188253012 | CH81: =IF(OR(MODE=1,MODE=2,MODE=3), CB81, IF(MODE_ILIM=4,#REF!,#REF!)) -> 0.1045398783 | CI81: =(IF(OR(MODE=1,MODE=2,MODE=3), S81, IF(MODE_ILIM=4,#REF!,#REF!)))/1000 -> 1209.759914 | CJ81: =IF(OR(MODE=1,MODE=2,MODE=3), P81, IF(MODE_ILIM=4,#REF!,#REF!)) -> 1.338221673
H82: 76 | I82: 0.19 | J82: 0.2263047348 | K82: 0.3030598866 | L82: 0.07713563551 | M82: 1.33814636 | N82: 1.33814636 | O82: 1 | P82: 1.33814636 | Q82: 6.181879193e-07 | R82: 0.2520604675 | S82: 1209890.244 | T82: 8.265212526e-07 | U82: 0 | V82: 0.00066 | W82: 0.2008887694 | X82: 0.00484275572 | Y82: 0.09974200934 | Z82: 0.1046658645 | AA82: 0.06524030705 | AB82: 2.128148832e-05 | AC82: 2.128148832e-05 | AD82: 0.08876166151 | AE82: 2.363589766e-05 | AF82: 2.363589766e-05 | AG82: 0.1008574601 | AH82: 0.006988320125 | AI82: 0.00485770933 | AJ82: 40 | AK82: 25.34657426 | AL82: 0.3124426066 | AM82: 0.2230069698 | AN82: 0.5403072857 | AO82: 0.5480038952 | AP82: 0.1734357372 | AQ82: 0.009144306298 | AR82: 0.01330879268 | AS82: 0.01341534552 | AT82: 0.007592636671 | AU82: 0.03431677487 | AV82: 0.04353470879 | AW82: 0.03203792404 | AX82: 0.1882698414 | AY82: 0.01816650201 | AZ82: 0.7979749474 | BA82: 0.9026857292 | BB82: 2.28 | BC82: 0.7163761031 | BD82: 0.002418275076 | BE82: 0.002896275253 | BF82: 0.05479599124 | BG82: 0.1697645736 | BH82: 0.004215102168 | BI82: 0.002385606785 | BJ82: 0.01078233222 | BK82: 0.001521594066 | BL82: 0.03133894384 | BM82: 7.426400114e-06 | BN82: 6.686644592e-06 | BO82: 0.05915439267 | BP82: 0.3392871999 | BQ82: 0.7163761031 | BR82: 71.63761031 | BS82: 190 | BT82: 72.09064698 | BU82: 0.7209064698 | BV82: 1209.890244 | BX82: 0.07006879999 | BZ82: 0.7979749474 | CA82: 0.1882698414 | CB82: 0.1046658645 | CE82: =IF(OR(MODE=1,MODE=2,MODE=3), BR82, IF(MODE_ILIM=4,#REF!,#REF!)) -> 71.63761031 | CF82: =IF(OR(MODE=1,MODE=2,MODE=3), BZ82, IF(MODE_ILIM=4,#REF!,#REF!)) -> 0.7979749474 | CG82: =IF(OR(MODE=1,MODE=2,MODE=3), CA82, IF(MODE_ILIM=4,#REF!,#REF!)) -> 0.1882698414 | CH82: =IF(OR(MODE=1,MODE=2,MODE=3), CB82, IF(MODE_ILIM=4,#REF!,#REF!)) -> 0.1046658645 | CI82: =(IF(OR(MODE=1,MODE=2,MODE=3), S82, IF(MODE_ILIM=4,#REF!,#REF!)))/1000 -> 1209.890244 | CJ82: =IF(OR(MODE=1,MODE=2,MODE=3), P82, IF(MODE_ILIM=4,#REF!,#REF!)) -> 1.33814636
H83: 77 | I83: 0.1925 | J83: 0.2262919981 | K83: 0.3055599191 | L83: 0.07964200396 | M83: 1.338071048 | N83: 1.338071048 | O83: 1 | P83: 1.338071048 | Q83: 6.180988922e-07 | R83: 0.2520876206 | S83: 1210020.579 | T83: 8.264322255e-07 | U83: 0 | V83: 0.00066 | W83: 0.2032548835 | X83: 0.00495750572 | Y83: 0.09975275401 | Z83: 0.1047933819 | AA83: 0.06524030705 | AB83: 2.128148832e-05 | AC83: 2.128148832e-05 | AD83: 0.08977485742 | AE83: 2.417857507e-05 | AF83: 2.417857507e-05 | AG83: 0.1020508787 | AH83: 0.007154680326 | AI83: 0.004858232625 | AJ83: 40 | AK83: 25.13915517 | AL83: 0.3153803137 | AM83: 0.2230309931 | AN83: 0.5432695395 | AO83: 0.5511535382 | AP83: 0.1754879546 | AQ83: 0.00936199075 | AR83: 0.01331022637 | AS83: 0.01385239809 | AT83: 0.00769488456 | AU83: 0.03485750902 | AV83: 0.04429619865 | AW83: 0.03203792404 | AX83: 0.1882866714 | AY83: 0.01816845899 | AZ83: 0.8019048672 | BA83: 0.9067437092 | BB83: 2.31 | BC83: 0.7181175154 | BD83: 0.002450925357 | BE83: 0.002934237378 | BF83: 0.05422166704 | BG83: 0.1688880398 | BH83: 0.004306341861 | BI83: 0.002392134797 | BJ83: 0.01083627176 | BK83: 0.001541156576 | BL83: 0.03101047613 | BM83: 7.516475436e-06 | BN83: 6.615848275e-06 | BO83: 0.05853331456 | BP83: 0.3371286975 | BQ83: 0.7181175154 | BR83: 71.81175154 | BS83: 192.5 | BT83: 72.10122091 | BU83: 0.7210122091 | BV83: 1210.020579 | BX83: 0.06933439941 | BZ83: 0.8019048672 | CA83: 0.1882866714 | CB83: 0.1047933819 | CE83: =IF(OR(MODE=1,MODE=2,MODE=3), BR83, IF(MODE_ILIM=4,#REF!,#REF!)) -> 71.81175154 | CF83: =IF(OR(MODE=1,MODE=2,MODE=3), BZ83, IF(MODE_ILIM=4,#REF!,#REF!)) -> 0.8019048672 | CG83: =IF(OR(MODE=1,MODE=2,MODE=3), CA83, IF(MODE_ILIM=4,#REF!,#REF!)) -> 0.1882866714 | CH83: =IF(OR(MODE=1,MODE=2,MODE=3), CB83, IF(MODE_ILIM=4,#REF!,#REF!)) -> 0.1047933819 | CI83: =(IF(OR(MODE=1,MODE=2,MODE=3), S83, IF(MODE_ILIM=4,#REF!,#REF!)))/1000 -> 1210.020579 | CJ83: =IF(OR(MODE=1,MODE=2,MODE=3), P83, IF(MODE_ILIM=4,#REF!,#REF!)) -> 1.338071048
H84: 78 | I84: 0.195 | J84: 0.2262792614 | K84: 0.3080599515 | L84: 0.08214837241 | M84: 1.337995735 | N84: 1.337995735 | O84: 1 | P84: 1.337995735 | Q84: 6.180098807e-07 | R84: 0.2521147748 | S84: 1210150.919 | T84: 8.26343214e-07 | U84: 0 | V84: 0.00066 | W84: 0.2056241661 | X84: 0.00507375572 | Y84: 0.09976349911 | Z84: 0.104922431 | AA84: 0.06524030705 | AB84: 2.128148832e-05 | AC84: 2.128148832e-05 | AD84: 0.09078986797 | AE84: 2.472840038e-05 | AF84: 2.472840038e-05 | AG84: 0.1032460161 | AH84: 0.00732324127 | AI84: 0.004858755941 | AJ84: 40 | AK84: 24.93510327 | AL84: 0.3183186479 | AM84: 0.2230550174 | AN84: 0.5462324212 | AO84: 0.5543064337 | AP84: 0.1775431277 | AQ84: 0.009582554902 | AR84: 0.01331166011 | AS84: 0.01428954456 | AT84: 0.007797214841 | AU84: 0.03539841952 | AV84: 0.04506083545 | AW84: 0.03203792404 | AX84: 0.1883035021 | AY84: 0.01817041605 | AZ84: 0.8058411873 | BA84: 0.9108096281 | BB84: 2.34 | BC84: 0.7198206809 | BD84: 0.002483692797 | BE84: 0.002972310604 | BF84: 0.05365924617 | BG84: 0.1680296553 | BH84: 0.004395687905 | BI84: 0.002398545511 | BJ84: 0.01088910873 | BK84: 0.001560766794 | BL84: 0.03068881618 | BM84: 7.606843588e-06 | BN84: 6.546519408e-06 | BO84: 0.05792510901 | BP84: 0.3350170924 | BQ84: 0.7198206809 | BR84: 71.98206809 | BS84: 195 | BT84: 72.10984794 | BU84: 0.7210984794 | BV84: 1210.150919 | BX84: 0.06861521988 | BZ84: 0.8058411873 | CA84: 0.1883035021 | CB84: 0.104922431 | CE84: =IF(OR(MODE=1,MODE=2,MODE=3), BR84, IF(MODE_ILIM=4,#REF!,#REF!)) -> 71.98206809 | CF84: =IF(OR(MODE=1,MODE=2,MODE=3), BZ84, IF(MODE_ILIM=4,#REF!,#REF!)) -> 0.8058411873 | CG84: =IF(OR(MODE=1,MODE=2,MODE=3), CA84, IF(MODE_ILIM=4,#REF!,#REF!)) -> 0.1883035021 | CH84: =IF(OR(MODE=1,MODE=2,MODE=3), CB84, IF(MODE_ILIM=4,#REF!,#REF!)) -> 0.104922431 | CI84: =(IF(OR(MODE=1,MODE=2,MODE=3), S84, IF(MODE_ILIM=4,#REF!,#REF!)))/1000 -> 1210.150919 | CJ84: =IF(OR(MODE=1,MODE=2,MODE=3), P84, IF(MODE_ILIM=4,#REF!,#REF!)) -> 1.337995735
H85: 79 | I85: 0.1975 | J85: 0.2262665246 | K85: 0.3105599839 | L85: 0.08465474087 | M85: 1.337920422 | N85: 1.337920422 | O85: 1 | P85: 1.337920422 | Q85: 6.179208848e-07 | R85: 0.2521419301 | S85: 1210281.265 | T85: 8.262542181e-07 | U85: 0 | V85: 0.00066 | W85: 0.2079965088 | X85: 0.00519150572 | Y85: 0.09977424464 | Z85: 0.1050530117 | AA85: 0.06524030705 | AB85: 2.128148832e-05 | AC85: 2.128148832e-05 | AD85: 0.0918066357 | AE85: 2.528537508e-05 | AF85: 2.528537508e-05 | AG85: 0.1044428182 | AH85: 0.00749400366 | AI85: 0.004859279277 | AJ85: 40 | AK85: 24.73433723 | AL85: 0.321257609 | AM85: 0.2230790427 | AN85: 0.549195931 | AO85: 0.5574625867 | AP85: 0.1796011633 | AQ85: 0.009805999674 | AR85: 0.01331309391 | AS85: 0.01472678495 | AT85: 0.007899627534 | AU85: 0.03593950639 | AV85: 0.04582862175 | AW85: 0.03203792404 | AX85: 0.1883203335 | AY85: 0.01817237319 | AZ85: 0.8097839151 | BA85: 0.9148834936 | BB85: 2.37 | BC85: 0.7214867756 | BD85: 0.00251657501 | BE85: 0.003010491965 | BF85: 0.05310836227 | BG85: 0.1671888614 | BH85: 0.004483198559 | BI85: 0.002404842531 | BJ85: 0.01094087704 | BK85: 0.00158042309 | BL85: 0.03037375445 | BM85: 7.697495246e-06 | BN85: 6.478612822e-06 | BO85: 0.05732937982 | BP85: 0.3329509422 | BQ85: 0.7214867756 | BR85: 72.14867756 | BS85: 197.5 | BT85: 72.11661955 | BU85: 0.7211661955 | BV85: 1210.281265 | BX85: 0.06791079292 | BZ85: 0.8097839151 | CA85: 0.1883203335 | CB85: 0.1050530117 | CE85: =IF(OR(MODE=1,MODE=2,MODE=3), BR85, IF(MODE_ILIM=4,#REF!,#REF!)) -> 72.14867756 | CF85: =IF(OR(MODE=1,MODE=2,MODE=3), BZ85, IF(MODE_ILIM=4,#REF!,#REF!)) -> 0.8097839151 | CG85: =IF(OR(MODE=1,MODE=2,MODE=3), CA85, IF(MODE_ILIM=4,#REF!,#REF!)) -> 0.1883203335 | CH85: =IF(OR(MODE=1,MODE=2,MODE=3), CB85, IF(MODE_ILIM=4,#REF!,#REF!)) -> 0.1050530117 | CI85: =(IF(OR(MODE=1,MODE=2,MODE=3), S85, IF(MODE_ILIM=4,#REF!,#REF!)))/1000 -> 1210.281265 | CJ85: =IF(OR(MODE=1,MODE=2,MODE=3), P85, IF(MODE_ILIM=4,#REF!,#REF!)) -> 1.337920422
H86: 80 | I86: 0.2 | J86: 0.2262537879 | K86: 0.3130600164 | L86: 0.08716110932 | M86: 1.337845109 | N86: 1.337845109 | O86: 1 | P86: 1.337845109 | Q86: 6.178319045e-07 | R86: 0.2521690865 | S86: 1210411.615 | T86: 8.261652379e-07 | U86: 0 | V86: 0.00066 | W86: 0.2103718081 | X86: 0.00531075572 | Y86: 0.0997849906 | Z86: 0.1051851243 | AA86: 0.06524030705 | AB86: 2.128148832e-05 | AC86: 2.128148832e-05 | AD86: 0.09282510558 | AE86: 2.584950068e-05 | AF86: 2.584950068e-05 | AG86: 0.1056412332 | AH86: 0.007666968196 | AI86: 0.004859802635 | AJ86: 40 | AK86: 24.53677833 | AL86: 0.3241971972 | AM86: 0.2231030689 | AN86: 0.5521600688 | AO86: 0.5606220022 | AP86: 0.1816619727 | AQ86: 0.01003232598 | AR86: 0.01331452777 | AS86: 0.01516411924 | AT86: 0.008002122661 | AU86: 0.03648076967 | AV86: 0.04659956014 | AW86: 0.03203792404 | AX86: 0.1883371655 | AY86: 0.0181743304 | AZ86: 0.8137330582 | BA86: 0.9189653135 | BB86: 2.4 | BC86: 0.7231169275 | BD86: 0.002549569709 | BE86: 0.003048778615 | BF86: 0.05256866384 | BG86: 0.1663651218 | BH86: 0.004568929715 | BI86: 0.002411029313 | BJ86: 0.0109916092 | BK86: 0.001600123899 | BL86: 0.03006508992 | BM86: 7.788421462e-06 | BN86: 6.412085186e-06 | BO86: 0.05674574685 | BP86: 0.3309288634 | BQ86: 0.7231169275 | BR86: 72.31169275 | BS86: 200 | BT86: 72.12160404 | BU86: 0.7212160404 | BV86: 1210.411615 | BX86: 0.06722066905 | BZ86: 0.8137330582 | CA86: 0.1883371655 | CB86: 0.1051851243 | CE86: =IF(OR(MODE=1,MODE=2,MODE=3), BR86, IF(MODE_ILIM=4,#REF!,#REF!)) -> 72.31169275 | CF86: =IF(OR(MODE=1,MODE=2,MODE=3), BZ86, IF(MODE_ILIM=4,#REF!,#REF!)) -> 0.8137330582 | CG86: =IF(OR(MODE=1,MODE=2,MODE=3), CA86, IF(MODE_ILIM=4,#REF!,#REF!)) -> 0.1883371655 | CH86: =IF(OR(MODE=1,MODE=2,MODE=3), CB86, IF(MODE_ILIM=4,#REF!,#REF!)) -> 0.1051851243 | CI86: =(IF(OR(MODE=1,MODE=2,MODE=3), S86, IF(MODE_ILIM=4,#REF!,#REF!)))/1000 -> 1210.411615 | CJ86: =IF(OR(MODE=1,MODE=2,MODE=3), P86, IF(MODE_ILIM=4,#REF!,#REF!)) -> 1.337845109
H87: 81 | I87: 0.2025 | J87: 0.2262410511 | K87: 0.3155600488 | L87: 0.08966747778 | M87: 1.337769797 | N87: 1.337769797 | O87: 1 | P87: 1.337769797 | Q87: 6.177429399e-07 | R87: 0.252196244 | S87: 1210541.971 | T87: 8.260762732e-07 | U87: 0 | V87: 0.00066 | W87: 0.2127499651 | X87: 0.00543150572 | Y87: 0.09979573699 | Z87: 0.105318769 | AA87: 0.06524030705 | AB87: 2.128148832e-05 | AC87: 2.128148832e-05 | AD87: 0.09384522487 | AE87: 2.642077869e-05 | AF87: 2.642077869e-05 | AG87: 0.1068412117 | AH87: 0.00784213558 | AI87: 0.004860326014 | AJ87: 40 | AK87: 24.34235032 | AL87: 0.3271374125 | AM87: 0.2231270961 | AN87: 0.5551248346 | AO87: 0.5637846852 | AP87: 0.1837254705 | AQ87: 0.01026153475 | AR87: 0.01331596168 | AS87: 0.01560154746 | AT87: 0.008104700243 | AU87: 0.03702220938 | AV87: 0.04737365321 | AW87: 0.03203792404 | AX87: 0.1883539982 | AY87: 0.01817628769 | AZ87: 0.8176886243 | BA87: 0.9230550956 | BB87: 2.43 | BC87: 0.7247122194 | BD87: 0.002582674701 | BE87: 0.00308716783 | BF87: 0.05203981351 | BG87: 0.1655579222 | BH87: 0.004652935014 | BI87: 0.002417109177 | BJ87: 0.01104133643 | BK87: 0.001619867722 | BL87: 0.02976262964 | BM87: 7.879613647e-06 | BN87: 6.346894911e-06 | BO87: 0.0561738453 | BP87: 0.328949528 | BQ87: 0.7247122194 | BR87: 72.47122194 | BS87: 202.5 | BT87: 72.12484688 | BU87: 0.7212484688 | BV87: 1210.541971 | BX87: 0.06654441688 | BZ87: 0.8176886243 | CA87: 0.1883539982 | CB87: 0.105318769 | CE87: =IF(OR(MODE=1,MODE=2,MODE=3), BR87, IF(MODE_ILIM=4,#REF!,#REF!)) -> 72.47122194 | CF87: =IF(OR(MODE=1,MODE=2,MODE=3), BZ87, IF(MODE_ILIM=4,#REF!,#REF!)) -> 0.8176886243 | CG87: =IF(OR(MODE=1,MODE=2,MODE=3), CA87, IF(MODE_ILIM=4,#REF!,#REF!)) -> 0.1883539982 | CH87: =IF(OR(MODE=1,MODE=2,MODE=3), CB87, IF(MODE_ILIM=4,#REF!,#REF!)) -> 0.105318769 | CI87: =(IF(OR(MODE=1,MODE=2,MODE=3), S87, IF(MODE_ILIM=4,#REF!,#REF!)))/1000 -> 1210.541971 | CJ87: =IF(OR(MODE=1,MODE=2,MODE=3), P87, IF(MODE_ILIM=4,#REF!,#REF!)) -> 1.337769797
F88: Eff (%) | G88: Iout (mA) | H88: 82 | I88: 0.205 | J88: 0.2262283144 | K88: 0.3180600813 | L88: 0.09217384623 | M88: 1.337694484 | N88: 1.337694484 | O88: 1 | P88: 1.337694484 | Q88: 6.176539908e-07 | R88: 0.2522234025 | S88: 1210672.332 | T88: 8.259873242e-07 | U88: 0 | V88: 0.00066 | W88: 0.215130885 | X88: 0.00555375572 | Y88: 0.09980648381 | Z88: 0.105453946 | AA88: 0.06524030705 | AB88: 2.128148832e-05 | AC88: 2.128148832e-05 | AD88: 0.09486694299 | AE88: 2.699921062e-05 | AF88: 2.699921062e-05 | AG88: 0.1080427062 | AH88: 0.008019506516 | AI88: 0.004860849413 | AJ88: 40 | AK88: 24.15097936 | AL88: 0.3300782549 | AM88: 0.2231511242 | AN88: 0.5580902286 | AO88: 0.5669506407 | AP88: 0.1857915754 | AQ88: 0.01049362688 | AR88: 0.01331739565 | AS88: 0.0160390696 | AT88: 0.008207360299 | AU88: 0.03756382555 | AV88: 0.04815090353 | AW88: 0.03203792404 | AX88: 0.1883708316 | AY88: 0.01817824507 | AZ88: 0.8216506209 | BA88: 0.9271528476 | BB88: 2.46 | BC88: 0.7262736908 | BD88: 0.002615887882 | BE88: 0.003125656992 | BF88: 0.05152148736 | BG88: 0.1647667683 | BH88: 0.004735265966 | BI88: 0.002423085307 | BJ88: 0.01109008871 | BK88: 0.001639653116 | BL88: 0.02946618836 | BM88: 7.971063555e-06 | BN88: 6.283002061e-06 | BO88: 0.05561332484 | BP88: 0.3270116609 | BQ88: 0.7262736908 | BR88: 72.62736908 | BS88: 205 | BT88: 72.12637078 | BU88: 0.7212637078 | BV88: 1210.672332 | BX88: 0.0658816222 | BZ88: 0.8216506209 | CA88: 0.1883708316 | CB88: 0.105453946 | CE88: =IF(OR(MODE=1,MODE=2,MODE=3), BR88, IF(MODE_ILIM=4,#REF!,#REF!)) -> 72.62736908 | CF88: =IF(OR(MODE=1,MODE=2,MODE=3), BZ88, IF(MODE_ILIM=4,#REF!,#REF!)) -> 0.8216506209 | CG88: =IF(OR(MODE=1,MODE=2,MODE=3), CA88, IF(MODE_ILIM=4,#REF!,#REF!)) -> 0.1883708316 | CH88: =IF(OR(MODE=1,MODE=2,MODE=3), CB88, IF(MODE_ILIM=4,#REF!,#REF!)) -> 0.105453946 | CI88: =(IF(OR(MODE=1,MODE=2,MODE=3), S88, IF(MODE_ILIM=4,#REF!,#REF!)))/1000 -> 1210.672332 | CJ88: =IF(OR(MODE=1,MODE=2,MODE=3), P88, IF(MODE_ILIM=4,#REF!,#REF!)) -> 1.337694484
F89: =BT51 -> 68.42786701 | G89: =I56*1000 -> 125 | H89: 83 | I89: 0.2075 | J89: 0.2262155777 | K89: 0.3205601137 | L89: 0.09468021468 | M89: 1.337619171 | N89: 1.337619171 | O89: 1 | P89: 1.337619171 | Q89: 6.175650574e-07 | R89: 0.2522505621 | S89: 1210802.698 | T89: 8.258983907e-07 | U89: 0 | V89: 0.00066 | W89: 0.2175144769 | X89: 0.00567750572 | Y89: 0.09981723105 | Z89: 0.1055906554 | AA89: 0.06524030705 | AB89: 2.128148832e-05 | AC89: 2.128148832e-05 | AD89: 0.09589021147 | AE89: 2.758479797e-05 | AF89: 2.758479797e-05 | AG89: 0.1092456715 | AH89: 0.008199081704 | AI89: 0.004861372834 | AJ89: 40 | AK89: 23.9625939 | AL89: 0.3330197245 | AM89: 0.2231751533 | AN89: 0.5610562507 | AO89: 0.5701198737 | AP89: 0.1878602094 | AQ89: 0.01072860332 | AR89: 0.01331882968 | AS89: 0.01647668567 | AT89: 0.008310102852 | AU89: 0.03810561821 | AV89: 0.04893131373 | AW89: 0.03203792404 | AX89: 0.1883876657 | AY89: 0.01818020251 | AZ89: 0.8256190556 | BA89: 0.9312585773 | BB89: 2.49 | BC89: 0.7278023405 | BD89: 0.002649207235 | BE89: 0.003164243592 | BF89: 0.05101337423 | BG89: 0.1639911857 | BH89: 0.004815972047 | BI89: 0.002428960765 | BJ89: 0.01113789483 | BK89: 0.001659478695 | BL89: 0.02917558811 | BM89: 8.062763262e-06 | BN89: 6.220368277e-06 | BO89: 0.05506384899 | BP89: 0.3251140373 | BQ89: 0.7278023405 | BR89: 72.78023405 | BS89: 207.5 | BT89: 72.1261755 | BU89: 0.721261755 | BV89: 1210.802698 | BX89: 0.06523188713 | BZ89: 0.8256190556 | CA89: 0.1883876657 | CB89: 0.1055906554 | CE89: =IF(OR(MODE=1,MODE=2,MODE=3), BR89, IF(MODE_ILIM=4,#REF!,#REF!)) -> 72.78023405 | CF89: =IF(OR(MODE=1,MODE=2,MODE=3), BZ89, IF(MODE_ILIM=4,#REF!,#REF!)) -> 0.8256190556 | CG89: =IF(OR(MODE=1,MODE=2,MODE=3), CA89, IF(MODE_ILIM=4,#REF!,#REF!)) -> 0.1883876657 | CH89: =IF(OR(MODE=1,MODE=2,MODE=3), CB89, IF(MODE_ILIM=4,#REF!,#REF!)) -> 0.1055906554 | CI89: =(IF(OR(MODE=1,MODE=2,MODE=3), S89, IF(MODE_ILIM=4,#REF!,#REF!)))/1000 -> 1210.802698 | CJ89: =IF(OR(MODE=1,MODE=2,MODE=3), P89, IF(MODE_ILIM=4,#REF!,#REF!)) -> 1.337619171
F90: =BT81 -> 72.07801075 | G90: =I81*1000 -> 187.5 | H90: 84 | I90: 0.21 | J90: 0.2262028409 | K90: 0.3230601462 | L90: 0.09718658314 | M90: 1.337543859 | N90: 1.337543859 | O90: 1 | P90: 1.337543859 | Q90: 6.174761395e-07 | R90: 0.2522777229 | S90: 1210933.07 | T90: 8.258094729e-07 | U90: 0 | V90: 0.00066 | W90: 0.2199006541 | X90: 0.00580275572 | Y90: 0.09982797873 | Z90: 0.1057288975 | AA90: 0.06524030705 | AB90: 2.128148832e-05 | AC90: 2.128148832e-05 | AD90: 0.09691498377 | AE90: 2.817754224e-05 | AF90: 2.817754224e-05 | AG90: 0.1104500641 | AH90: 0.008380861846 | AI90: 0.004861896275 | AJ90: 40 | AK90: 23.77712464 | AL90: 0.3359618213 | AM90: 0.2231991834 | AN90: 0.564022901 | AO90: 0.5732923892 | AP90: 0.1899312978 | AQ90: 0.01096646496 | AR90: 0.01332026377 | AS90: 0.01691439568 | AT90: 0.008412927921 | AU90: 0.03864758737 | AV90: 0.04971488643 | AW90: 0.03203792404 | AX90: 0.1884045004 | AY90: 0.01818216004 | AZ90: 0.8295939361 | BA90: 0.9353722926 | BB90: 2.52 | BC90: 0.729299128 | BD90: 0.002682630821 | BE90: 0.00320292522 | BF90: 0.0505151751 | BG90: 0.1632307182 | BH90: 0.004895100802 | BI90: 0.002434738491 | BJ90: 0.01118478245 | BK90: 0.00167934313 | BL90: 0.02889065787 | BM90: 8.154705153e-06 | BN90: 6.158956697e-06 | BO90: 0.05452509439 | BP90: 0.3232554801 | BQ90: 0.729299128 | BR90: 72.9299128 | BS90: 210 | BT90: 72.12423724 | BU90: 0.7212423724 | BV90: 1210.93307 | BX90: 0.0645948293 | BZ90: 0.8295939361 | CA90: 0.1884045004 | CB90: 0.1057288975 | CE90: =IF(OR(MODE=1,MODE=2,MODE=3), BR90, IF(MODE_ILIM=4,#REF!,#REF!)) -> 72.9299128 | CF90: =IF(OR(MODE=1,MODE=2,MODE=3), BZ90, IF(MODE_ILIM=4,#REF!,#REF!)) -> 0.8295939361 | CG90: =IF(OR(MODE=1,MODE=2,MODE=3), CA90, IF(MODE_ILIM=4,#REF!,#REF!)) -> 0.1884045004 | CH90: =IF(OR(MODE=1,MODE=2,MODE=3), CB90, IF(MODE_ILIM=4,#REF!,#REF!)) -> 0.1057288975 | CI90: =(IF(OR(MODE=1,MODE=2,MODE=3), S90, IF(MODE_ILIM=4,#REF!,#REF!)))/1000 -> 1210.93307 | CJ90: =IF(OR(MODE=1,MODE=2,MODE=3), P90, IF(MODE_ILIM=4,#REF!,#REF!)) -> 1.337543859
F91: =BT106 -> 71.0498949 | G91: =I106*1000 -> 250 | H91: 85 | I91: 0.2125 | J91: 0.2261901042 | K91: 0.3255601786 | L91: 0.09969295159 | M91: 1.337468546 | N91: 1.337468546 | O91: 1 | P91: 1.337468546 | Q91: 6.173872373e-07 | R91: 0.2523048847 | S91: 1211063.446 | T91: 8.257205706e-07 | U91: 0 | V91: 0.00066 | W91: 0.2222893332 | X91: 0.00592950572 | Y91: 0.09983872684 | Z91: 0.1058686724 | AA91: 0.06524030705 | AB91: 2.128148832e-05 | AC91: 2.128148832e-05 | AD91: 0.09794121527 | AE91: 2.877744494e-05 | AF91: 2.877744494e-05 | AG91: 0.1116558424 | AH91: 0.008564847645 | AI91: 0.004862419737 | AJ91: 40 | AK91: 23.59450437 | AL91: 0.3389045453 | AM91: 0.2232232144 | AN91: 0.5669901795 | AO91: 0.5764681923 | AP91: 0.1920047691 | AQ91: 0.01120721273 | AR91: 0.01332169791 | AS91: 0.01735219963 | AT91: 0.008515835529 | AU91: 0.03918973307 | AV91: 0.05050162425 | AW91: 0.03203792404 | AX91: 0.1884213358 | AY91: 0.01818411765 | AZ91: 0.83357527 | BA91: 0.9394940013 | BB91: 2.55 | BC91: 0.730764976 | BD91: 0.00271615678 | BE91: 0.003241699564 | BF91: 0.05002660252 | BG91: 0.1624849274 | BH91: 0.00497269794 | BI91: 0.002440421312 | BJ91: 0.01123077817 | BK91: 0.001699245139 | BL91: 0.02861123326 | BM91: 8.246881907e-06 | BN91: 6.098731883e-06 | BO91: 0.05399675017 | BP91: 0.3214348579 | BQ91: 0.730764976 | BR91: 73.0764976 | BS91: 212.5 | BT91: 72.12050778 | BU91: 0.7212050778 | BV91: 1211.063446 | BX91: 0.06397008115 | BZ91: 0.83357527 | CA91: 0.1884213358 | CB91: 0.1058686724 | CE91: =IF(OR(MODE=1,MODE=2,MODE=3), BR91, IF(MODE_ILIM=4,#REF!,#REF!)) -> 73.0764976 | CF91: =IF(OR(MODE=1,MODE=2,MODE=3), BZ91, IF(MODE_ILIM=4,#REF!,#REF!)) -> 0.83357527 | CG91: =IF(OR(MODE=1,MODE=2,MODE=3), CA91, IF(MODE_ILIM=4,#REF!,#REF!)) -> 0.1884213358 | CH91: =IF(OR(MODE=1,MODE=2,MODE=3), CB91, IF(MODE_ILIM=4,#REF!,#REF!)) -> 0.1058686724 | CI91: =(IF(OR(MODE=1,MODE=2,MODE=3), S91, IF(MODE_ILIM=4,#REF!,#REF!)))/1000 -> 1211.063446 | CJ91: =IF(OR(MODE=1,MODE=2,MODE=3), P91, IF(MODE_ILIM=4,#REF!,#REF!)) -> 1.337468546
H92: 86 | I92: 0.215 | J92: 0.2261773674 | K92: 0.3280602111 | L92: 0.10219932 | M92: 1.337393233 | N92: 1.337393233 | O92: 1 | P92: 1.337393233 | Q92: 6.172983506e-07 | R92: 0.2523320476 | S92: 1211193.828 | T92: 8.256316839e-07 | U92: 0 | V92: 0.00066 | W92: 0.2246804345 | X92: 0.00605775572 | Y92: 0.09984947538 | Z92: 0.1060099803 | AA92: 0.06524030705 | AB92: 2.128148832e-05 | AC92: 2.128148832e-05 | AD92: 0.09896886309 | AE92: 2.938450758e-05 | AF92: 2.938450758e-05 | AG92: 0.1128629665 | AH92: 0.008751039802 | AI92: 0.00486294322 | AJ92: 40 | AK92: 23.41466795 | AL92: 0.3418478966 | AM92: 0.2232472464 | AN92: 0.5699580863 | AO92: 0.579647288 | AP92: 0.1940805546 | AQ92: 0.01145084755 | AR92: 0.01332313211 | AS92: 0.01779009753 | AT92: 0.008618825695 | AU92: 0.03973205534 | AV92: 0.05129152984 | AW92: 0.03203792404 | AX92: 0.1884381719 | AY92: 0.01818607533 | AZ92: 0.8375630651 | BA92: 0.9436237114 | BB92: 2.58 | BC92: 0.7322007715 | BD92: 0.002749783325 | BE92: 0.003280564401 | BF92: 0.04954738005 | BG92: 0.1617533917 | BH92: 0.005048807418 | BI92: 0.002446011947 | BJ92: 0.01127590759 | BK92: 0.001719183493 | BL92: 0.02833715616 | BM92: 8.339286482e-06 | BN92: 6.039659755e-06 | BO92: 0.05347851738 | BP92: 0.3196510824 | BQ92: 0.7322007715 | BR92: 73.22007715 | BS92: 215 | BT92: 72.22966227 | BU92: 0.7222966227 | BV92: 1211.193828 | BX92: 0.06335728917 | BZ92: 0.8375630651 | CA92: 0.1884381719 | CB92: 0.1060099803 | CE92: =IF(OR(MODE=1,MODE=2,MODE=3), BR92, IF(MODE_ILIM=4,#REF!,#REF!)) -> 73.22007715 | CF92: =IF(OR(MODE=1,MODE=2,MODE=3), BZ92, IF(MODE_ILIM=4,#REF!,#REF!)) -> 0.8375630651 | CG92: =IF(OR(MODE=1,MODE=2,MODE=3), CA92, IF(MODE_ILIM=4,#REF!,#REF!)) -> 0.1884381719 | CH92: =IF(OR(MODE=1,MODE=2,MODE=3), CB92, IF(MODE_ILIM=4,#REF!,#REF!)) -> 0.1060099803 | CI92: =(IF(OR(MODE=1,MODE=2,MODE=3), S92, IF(MODE_ILIM=4,#REF!,#REF!)))/1000 -> 1211.193828 | CJ92: =IF(OR(MODE=1,MODE=2,MODE=3), P92, IF(MODE_ILIM=4,#REF!,#REF!)) -> 1.337393233
H93: 87 | I93: 0.2175 | J93: 0.2261646307 | K93: 0.3305602435 | L93: 0.1047056885 | M93: 1.33731792 | N93: 1.33731792 | O93: 1 | P93: 1.33731792 | Q93: 6.172094795e-07 | R93: 0.2523592115 | S93: 1211324.215 | T93: 8.255428129e-07 | U93: 0 | V93: 0.00066 | W93: 0.2270738815 | X93: 0.00618750572 | Y93: 0.09986022434 | Z93: 0.1061528215 | AA93: 0.06524030705 | AB93: 2.128148832e-05 | AC93: 2.128148832e-05 | AD93: 0.09999788609 | AE93: 2.999873167e-05 | AF93: 2.999873167e-05 | AG93: 0.1140713981 | AH93: 0.008939439021 | AI93: 0.004863466725 | AJ93: 40 | AK93: 23.2375522 | AL93: 0.3447918753 | AM93: 0.2232712794 | AN93: 0.5729266213 | AO93: 0.5828296814 | AP93: 0.1961585886 | AQ93: 0.01169737034 | AR93: 0.01332456637 | AS93: 0.01822808938 | AT93: 0.00872189844 | AU93: 0.04027455419 | AV93: 0.05208460586 | AW93: 0.03203792404 | AX93: 0.1884550086 | AY93: 0.01818803309 | AZ93: 0.841557329 | BA93: 0.9477614306 | BB93: 2.61 | BC93: 0.7336073683 | BD93: 0.00278350874 | BE93: 0.003319517594 | BF93: 0.04907724171 | BG93: 0.1610357053 | BH93: 0.005123471525 | BI93: 0.002451513012 | BJ93: 0.01132019529 | BK93: 0.001739157007 | BL93: 0.02806827447 | BM93: 8.431912103e-06 | BN93: 5.981707525e-06 | BO93: 0.0529701084 | BP93: 0.3179031067 | BQ93: 0.7336073683 | BR93: 73.36073683 | BS93: 217.5 | BT93: 72.36149365 | BU93: 0.7236149365 | BV93: 1211.324215 | BX93: 0.06275611328 | BZ93: 0.841557329 | CA93: 0.1884550086 | CB93: 0.1061528215 | CE93: =IF(OR(MODE=1,MODE=2,MODE=3), BR93, IF(MODE_ILIM=4,#REF!,#REF!)) -> 73.36073683 | CF93: =IF(OR(MODE=1,MODE=2,MODE=3), BZ93, IF(MODE_ILIM=4,#REF!,#REF!)) -> 0.841557329 | CG93: =IF(OR(MODE=1,MODE=2,MODE=3), CA93, IF(MODE_ILIM=4,#REF!,#REF!)) -> 0.1884550086 | CH93: =IF(OR(MODE=1,MODE=2,MODE=3), CB93, IF(MODE_ILIM=4,#REF!,#REF!)) -> 0.1061528215 | CI93: =(IF(OR(MODE=1,MODE=2,MODE=3), S93, IF(MODE_ILIM=4,#REF!,#REF!)))/1000 -> 1211.324215 | CJ93: =IF(OR(MODE=1,MODE=2,MODE=3), P93, IF(MODE_ILIM=4,#REF!,#REF!)) -> 1.33731792
H94: 88 | I94: 0.22 | J94: 0.2261518939 | K94: 0.333060276 | L94: 0.107212057 | M94: 1.337242608 | N94: 1.337242608 | O94: 1 | P94: 1.337242608 | Q94: 6.17120624e-07 | R94: 0.2523863766 | S94: 1211454.608 | T94: 8.254539573e-07 | U94: 0 | V94: 0.00066 | W94: 0.2294696007 | X94: 0.00631875572 | Y94: 0.09987097374 | Z94: 0.106297196 | AA94: 0.06524030705 | AB94: 2.128148832e-05 | AC94: 2.128148832e-05 | AD94: 0.1010282447 | AE94: 3.062011869e-05 | AF94: 3.062011869e-05 | AG94: 0.1152811007 | AH94: 0.009130046002 | AI94: 0.00486399025 | AJ94: 40 | AK94: 23.06309586 | AL94: 0.3477364812 | AM94: 0.2232953133 | AN94: 0.5758957848 | AO94: 0.5860153775 | AP94: 0.1982388081 | AQ94: 0.01194678201 | AR94: 0.01332600068 | AS94: 0.01866617519 | AT94: 0.008825053787 | AU94: 0.04081722966 | AV94: 0.05288085496 | AW94: 0.03203792404 | AX94: 0.1884718461 | AY94: 0.01818999093 | AZ94: 0.8455580695 | BA94: 0.9519071671 | BB94: 2.64 | BC94: 0.7349855877 | BD94: 0.002817331371 | BE94: 0.003358557093 | BF94: 0.04861593155 | BG94: 0.1603314779 | BH94: 0.005196730964 | BI94: 0.002456927024 | BJ94: 0.01136366497 | BK94: 0.00175916454 | BL94: 0.02780444179 | BM94: 8.524752246e-06 | BN94: 5.924843636e-06 | BO94: 0.05247124642 | BP94: 0.3161899233 | BQ94: 0.7349855877 | BR94: 73.49855877 | BS94: 220 | BT94: 72.47731305 | BU94: 0.7247731305 | BV94: 1211.454608 | BX94: 0.06216622615 | BZ94: 0.8455580695 | CA94: 0.1884718461 | CB94: 0.106297196 | CE94: =IF(OR(MODE=1,MODE=2,MODE=3), BR94, IF(MODE_ILIM=4,#REF!,#REF!)) -> 73.49855877 | CF94: =IF(OR(MODE=1,MODE=2,MODE=3), BZ94, IF(MODE_ILIM=4,#REF!,#REF!)) -> 0.8455580695 | CG94: =IF(OR(MODE=1,MODE=2,MODE=3), CA94, IF(MODE_ILIM=4,#REF!,#REF!)) -> 0.1884718461 | CH94: =IF(OR(MODE=1,MODE=2,MODE=3), CB94, IF(MODE_ILIM=4,#REF!,#REF!)) -> 0.106297196 | CI94: =(IF(OR(MODE=1,MODE=2,MODE=3), S94, IF(MODE_ILIM=4,#REF!,#REF!)))/1000 -> 1211.454608 | CJ94: =IF(OR(MODE=1,MODE=2,MODE=3), P94, IF(MODE_ILIM=4,#REF!,#REF!)) -> 1.337242608
H95: 89 | I95: 0.2225 | J95: 0.2261391572 | K95: 0.3355603084 | L95: 0.1097184254 | M95: 1.337167295 | N95: 1.337167295 | O95: 1 | P95: 1.337167295 | Q95: 6.170317841e-07 | R95: 0.2524135427 | S95: 1211585.005 | T95: 8.253651174e-07 | U95: 0 | V95: 0.00066 | W95: 0.2318675218 | X95: 0.00645150572 | Y95: 0.09988172356 | Z95: 0.1064431042 | AA95: 0.06524030705 | AB95: 2.128148832e-05 | AC95: 2.128148832e-05 | AD95: 0.102059901 | AE95: 3.124867017e-05 | AF95: 3.124867017e-05 | AG95: 0.1164920389 | AH95: 0.009322861449 | AI95: 0.004864513796 | AJ95: 40 | AK95: 22.89123946 | AL95: 0.3506817146 | AM95: 0.2233193481 | AN95: 0.5788655765 | AO95: 0.5892043814 | AP95: 0.2003211524 | AQ95: 0.01219908349 | AR95: 0.01332743506 | AS95: 0.01910435497 | AT95: 0.008928291754 | AU95: 0.04136008178 | AV95: 0.05368027982 | AW95: 0.03203792404 | AX95: 0.1884886842 | AY95: 0.01819194885 | AZ95: 0.8495652943 | BA95: 0.9560609286 | BB95: 2.67 | BC95: 0.7363362206 | BD95: 0.002851249634 | BE95: 0.003397680922 | BF95: 0.0481632031 | BG95: 0.1596403337 | BH95: 0.00526862492 | BI95: 0.002462256407 | BJ95: 0.01140633944 | BK95: 0.001779204996 | BL95: 0.02754551717 | BM95: 8.617800633e-06 | BN95: 5.869037708e-06 | BO95: 0.05198166492 | BP95: 0.314510562 | BQ95: 0.7363362206 | BR95: 73.63362206 | BS95: 222.5 | BT95: 72.23023464 | BU95: 0.7223023464 | BV95: 1211.585005 | BX95: 0.06158731266 | BZ95: 0.8495652943 | CA95: 0.1884886842 | CB95: 0.1064431042 | CE95: =IF(OR(MODE=1,MODE=2,MODE=3), BR95, IF(MODE_ILIM=4,#REF!,#REF!)) -> 73.63362206 | CF95: =IF(OR(MODE=1,MODE=2,MODE=3), BZ95, IF(MODE_ILIM=4,#REF!,#REF!)) -> 0.8495652943 | CG95: =IF(OR(MODE=1,MODE=2,MODE=3), CA95, IF(MODE_ILIM=4,#REF!,#REF!)) -> 0.1884886842 | CH95: =IF(OR(MODE=1,MODE=2,MODE=3), CB95, IF(MODE_ILIM=4,#REF!,#REF!)) -> 0.1064431042 | CI95: =(IF(OR(MODE=1,MODE=2,MODE=3), S95, IF(MODE_ILIM=4,#REF!,#REF!)))/1000 -> 1211.585005 | CJ95: =IF(OR(MODE=1,MODE=2,MODE=3), P95, IF(MODE_ILIM=4,#REF!,#REF!)) -> 1.337167295
H96: 90 | I96: 0.225 | J96: 0.2261264205 | K96: 0.3380603408 | L96: 0.1122247939 | M96: 1.337091982 | N96: 1.337091982 | O96: 1 | P96: 1.337091982 | Q96: 6.169429597e-07 | R96: 0.25244071 | S96: 1211715.408 | T96: 8.252762931e-07 | U96: 0 | V96: 0.00066 | W96: 0.2342675771 | X96: 0.00658575572 | Y96: 0.09989247382 | Z96: 0.1065905462 | AA96: 0.06524030705 | AB96: 2.128148832e-05 | AC96: 2.128148832e-05 | AD96: 0.1030928184 | AE96: 3.18843876e-05 | AF96: 3.18843876e-05 | AG96: 0.117704179 | AH96: 0.009517886063 | AI96: 0.004865037362 | AJ96: 40 | AK96: 22.72192532 | AL96: 0.3536275754 | AM96: 0.223343384 | AN96: 0.5818359967 | AO96: 0.5923966983 | AP96: 0.2024055635 | AQ96: 0.01245427569 | AR96: 0.01332886949 | AS96: 0.01954262871 | AT96: 0.009031612364 | AU96: 0.04190311056 | AV96: 0.05448288313 | AW96: 0.03203792404 | AX96: 0.1885055229 | AY96: 0.01819390685 | AZ96: 0.8535790112 | BA96: 0.9602227233 | BB96: 2.7 | BC96: 0.7376600289 | BD96: 0.002885262 | BE96: 0.003436887183 | BF96: 0.04771881903 | BG96: 0.1589619104 | BH96: 0.005339191134 | BI96: 0.002467503495 | BJ96: 0.01144824065 | BK96: 0.001799277317 | BL96: 0.02729136486 | BM96: 8.711051214e-06 | BN96: 5.814260478e-06 | BO96: 0.05150110722 | BP96: 0.3128640886 | BQ96: 0.7376600289 | BR96: 73.76600289 | BS96: 225 | BT96: 72.83499749 | BU96: 0.7283499749 | BV96: 1211.715408 | BX96: 0.06101906929 | BZ96: 0.8535790112 | CA96: 0.1885055229 | CB96: 0.1065905462 | CE96: =IF(OR(MODE=1,MODE=2,MODE=3), BR96, IF(MODE_ILIM=4,#REF!,#REF!)) -> 73.76600289 | CF96: =IF(OR(MODE=1,MODE=2,MODE=3), BZ96, IF(MODE_ILIM=4,#REF!,#REF!)) -> 0.8535790112 | CG96: =IF(OR(MODE=1,MODE=2,MODE=3), CA96, IF(MODE_ILIM=4,#REF!,#REF!)) -> 0.1885055229 | CH96: =IF(OR(MODE=1,MODE=2,MODE=3), CB96, IF(MODE_ILIM=4,#REF!,#REF!)) -> 0.1065905462 | CI96: =(IF(OR(MODE=1,MODE=2,MODE=3), S96, IF(MODE_ILIM=4,#REF!,#REF!)))/1000 -> 1211.715408 | CJ96: =IF(OR(MODE=1,MODE=2,MODE=3), P96, IF(MODE_ILIM=4,#REF!,#REF!)) -> 1.337091982
H97: 91 | I97: 0.2275 | J97: 0.2261136837 | K97: 0.3405603733 | L97: 0.1147311623 | M97: 1.337016669 | N97: 1.337016669 | O97: 1 | P97: 1.337016669 | Q97: 6.168541509e-07 | R97: 0.2524678783 | S97: 1211845.816 | T97: 8.251874843e-07 | U97: 0 | V97: 0.00066 | W97: 0.2366697016 | X97: 0.00672150572 | Y97: 0.0999032245 | Z97: 0.1067395223 | AA97: 0.06524030705 | AB97: 2.128148832e-05 | AC97: 2.128148832e-05 | AD97: 0.1041269617 | AE97: 3.252727248e-05 | AF97: 3.252727248e-05 | AG97: 0.1189174885 | AH97: 0.009715120548 | AI97: 0.00486556095 | AJ97: 40 | AK97: 22.55509744 | AL97: 0.3565740637 | AM97: 0.2233674208 | AN97: 0.5848070454 | AO97: 0.5955923331 | AP97: 0.2044919856 | AQ97: 0.01271235954 | AR97: 0.01333030397 | AS97: 0.01998099644 | AT97: 0.009135015637 | AU97: 0.04244631605 | AV97: 0.05528866759 | AW97: 0.03203792404 | AX97: 0.1885223624 | AY97: 0.01819586492 | AZ97: 0.857599228 | BA97: 0.964392559 | BB97: 2.73 | BC97: 0.7389577465 | BD97: 0.002919367002 | BE97: 0.003476174049 | BF97: 0.04728255064 | BG97: 0.1582958595 | BH97: 0.00540846597 | BI97: 0.002472670538 | BJ97: 0.01148938976 | BK97: 0.001819380483 | BL97: 0.02704185408 | BM97: 8.804498158e-06 | BN97: 5.760483755e-06 | BO97: 0.05102932603 | BP97: 0.311249603 | BQ97: 0.7389577465 | BR97: 73.89577465 | BS97: 227.5 | BT97: 73.30516817 | BU97: 0.7330516817 | BV97: 1211.845816 | BX97: 0.06046120362 | BZ97: 0.857599228 | CA97: 0.1885223624 | CB97: 0.1067395223 | CE97: =IF(OR(MODE=1,MODE=2,MODE=3), BR97, IF(MODE_ILIM=4,#REF!,#REF!)) -> 73.89577465 | CF97: =IF(OR(MODE=1,MODE=2,MODE=3), BZ97, IF(MODE_ILIM=4,#REF!,#REF!)) -> 0.857599228 | CG97: =IF(OR(MODE=1,MODE=2,MODE=3), CA97, IF(MODE_ILIM=4,#REF!,#REF!)) -> 0.1885223624 | CH97: =IF(OR(MODE=1,MODE=2,MODE=3), CB97, IF(MODE_ILIM=4,#REF!,#REF!)) -> 0.1067395223 | CI97: =(IF(OR(MODE=1,MODE=2,MODE=3), S97, IF(MODE_ILIM=4,#REF!,#REF!)))/1000 -> 1211.845816 | CJ97: =IF(OR(MODE=1,MODE=2,MODE=3), P97, IF(MODE_ILIM=4,#REF!,#REF!)) -> 1.337016669
H98: 92 | I98: 0.23 | J98: 0.226100947 | K98: 0.3430604057 | L98: 0.1172375308 | M98: 1.336941357 | N98: 1.336941357 | O98: 1 | P98: 1.336941357 | Q98: 6.167653577e-07 | R98: 0.2524950477 | S98: 1211976.229 | T98: 8.25098691e-07 | U98: 0 | V98: 0.00066 | W98: 0.2390738331 | X98: 0.00685875572 | Y98: 0.09991397561 | Z98: 0.1068900326 | AA98: 0.06524030705 | AB98: 2.128148832e-05 | AC98: 2.128148832e-05 | AD98: 0.1051622973 | AE98: 3.317732633e-05 | AF98: 3.317732633e-05 | AG98: 0.1201319362 | AH98: 0.009914565605 | AI98: 0.004866084559 | AJ98: 40 | AK98: 22.39070146 | AL98: 0.3595211794 | AM98: 0.2233914585 | AN98: 0.5877787225 | AO98: 0.598791291 | AP98: 0.206580365 | AQ98: 0.01297333595 | AR98: 0.01333173852 | AS98: 0.02041945814 | AT98: 0.009238501594 | AU98: 0.04298969825 | AV98: 0.05609763591 | AW98: 0.03203792404 | AX98: 0.1885392025 | AY98: 0.01819782308 | AZ98: 0.8616259525 | BA98: 0.9685704439 | BB98: 2.76 | BC98: 0.7402300805 | BD98: 0.002953563224 | BE98: 0.003515539763 | BF98: 0.04685417754 | BG98: 0.1576418446 | BH98: 0.005476484472 | BI98: 0.002477759702 | BJ98: 0.01152980717 | BK98: 0.001839513514 | BL98: 0.02679685877 | BM98: 8.898135848e-06 | BN98: 5.707680367e-06 | BO98: 0.05056608299 | BP98: 0.3096662376 | BQ98: 0.7402300805 | BR98: 74.02300805 | BS98: 230 | BT98: 73.63845559 | BU98: 0.7363845559 | BV98: 1211.976229 | BX98: 0.05991343381 | BZ98: 0.8616259525 | CA98: 0.1885392025 | CB98: 0.1068900326 | CE98: =IF(OR(MODE=1,MODE=2,MODE=3), BR98, IF(MODE_ILIM=4,#REF!,#REF!)) -> 74.02300805 | CF98: =IF(OR(MODE=1,MODE=2,MODE=3), BZ98, IF(MODE_ILIM=4,#REF!,#REF!)) -> 0.8616259525 | CG98: =IF(OR(MODE=1,MODE=2,MODE=3), CA98, IF(MODE_ILIM=4,#REF!,#REF!)) -> 0.1885392025 | CH98: =IF(OR(MODE=1,MODE=2,MODE=3), CB98, IF(MODE_ILIM=4,#REF!,#REF!)) -> 0.1068900326 | CI98: =(IF(OR(MODE=1,MODE=2,MODE=3), S98, IF(MODE_ILIM=4,#REF!,#REF!)))/1000 -> 1211.976229 | CJ98: =IF(OR(MODE=1,MODE=2,MODE=3), P98, IF(MODE_ILIM=4,#REF!,#REF!)) -> 1.336941357
H99: 93 | I99: 0.2325 | J99: 0.2260882102 | K99: 0.3455604382 | L99: 0.1197438992 | M99: 1.336866044 | N99: 1.336866044 | O99: 1 | P99: 1.336866044 | Q99: 6.1667658e-07 | R99: 0.2525222182 | S99: 1212106.647 | T99: 8.250099134e-07 | U99: 0 | V99: 0.00066 | W99: 0.2414799115 | X99: 0.00699750572 | Y99: 0.09992472716 | Z99: 0.1070420773 | AA99: 0.06524030705 | AB99: 2.128148832e-05 | AC99: 2.128148832e-05 | AD99: 0.1061987926 | AE99: 3.383455064e-05 | AF99: 3.383455064e-05 | AG99: 0.1213474923 | AH99: 0.01011622194 | AI99: 0.004866608189 | AJ99: 40 | AK99: 22.22868459 | AL99: 0.3624689227 | AM99: 0.2234154972 | AN99: 0.5907510281 | AO99: 0.6019935772 | AP99: 0.2086706502 | AQ99: 0.01323720584 | AR99: 0.01333317312 | AS99: 0.02085801383 | AT99: 0.009342070255 | AU99: 0.0435332572 | AV99: 0.0569097908 | AW99: 0.03203792404 | AX99: 0.1885560433 | AY99: 0.01819978131 | AZ99: 0.8656591926 | BA99: 0.9727563859 | BB99: 2.79 | BC99: 0.7414777131 | BD99: 0.002987849307 | BE99: 0.003554982632 | BF99: 0.04643348722 | BG99: 0.1569995417 | BH99: 0.005543280428 | BI99: 0.002482773078 | BJ99: 0.01156951254 | BK99: 0.001859675462 | BL99: 0.02655625741 | BM99: 8.991958865e-06 | BN99: 5.655824119e-06 | BO99: 0.0501111483 | BP99: 0.3081131559 | BQ99: 0.7414777131 | BR99: 74.14777131 | BS99: 232.5 | BT99: 73.83241182 | BU99: 0.7383241182 | BV99: 1212.106647 | BX99: 0.05937548815 | BZ99: 0.8656591926 | CA99: 0.1885560433 | CB99: 0.1070420773 | CE99: =IF(OR(MODE=1,MODE=2,MODE=3), BR99, IF(MODE_ILIM=4,#REF!,#REF!)) -> 74.14777131 | CF99: =IF(OR(MODE=1,MODE=2,MODE=3), BZ99, IF(MODE_ILIM=4,#REF!,#REF!)) -> 0.8656591926 | CG99: =IF(OR(MODE=1,MODE=2,MODE=3), CA99, IF(MODE_ILIM=4,#REF!,#REF!)) -> 0.1885560433 | CH99: =IF(OR(MODE=1,MODE=2,MODE=3), CB99, IF(MODE_ILIM=4,#REF!,#REF!)) -> 0.1070420773 | CI99: =(IF(OR(MODE=1,MODE=2,MODE=3), S99, IF(MODE_ILIM=4,#REF!,#REF!)))/1000 -> 1212.106647 | CJ99: =IF(OR(MODE=1,MODE=2,MODE=3), P99, IF(MODE_ILIM=4,#REF!,#REF!)) -> 1.336866044
H100: 94 | I100: 0.235 | J100: 0.2260754735 | K100: 0.3480604706 | L100: 0.1222502677 | M100: 1.336790731 | N100: 1.336790731 | O100: 1 | P100: 1.336790731 | Q100: 6.165878179e-07 | R100: 0.2525493897 | S100: 1212237.071 | T100: 8.249211512e-07 | U100: 0 | V100: 0.00066 | W100: 0.2438878793 | X100: 0.00713775572 | Y100: 0.09993547913 | Z100: 0.1071956567 | AA100: 0.06524030705 | AB100: 2.128148832e-05 | AC100: 2.128148832e-05 | AD100: 0.1072364163 | AE100: 3.449894692e-05 | AF100: 3.449894692e-05 | AG100: 0.1225641278 | AH100: 0.01032009025 | AI100: 0.004867131839 | AJ100: 40 | AK100: 22.06899554 | AL100: 0.3654172936 | AM100: 0.2234395369 | AN100: 0.5937239624 | AO100: 0.6051991967 | AP100: 0.2107627918 | AQ100: 0.01350397013 | AR100: 0.01333460778 | AS100: 0.02129666351 | AT100: 0.009445721643 | AU100: 0.04407699293 | AV100: 0.05772513501 | AW100: 0.03203792404 | AX100: 0.1885728848 | AY100: 0.01820173962 | AZ100: 0.8696989561 | BA100: 0.9769503932 | BB100: 2.82 | BC100: 0.7427013018 | BD100: 0.003022223939 | BE100: 0.003594501025 | BF100: 0.04602027476 | BG100: 0.1563686382 | BH100: 0.005608886424 | BI100: 0.002487712681 | BJ100: 0.01160852483 | BK100: 0.001879865413 | BL100: 0.02631993278 | BM100: 9.085961982e-06 | BN100: 5.604889745e-06 | BO100: 0.04966430035 | BP100: 0.3065895513 | BQ100: 0.7427013018 | BR100: 74.27013018 | BS100: 235 | BT100: 73.88440862 | BU100: 0.7388440862 | BV100: 1212.237071 | BX100: 0.05884710458 | BZ100: 0.8696989561 | CA100: 0.1885728848 | CB100: 0.1071956567 | CE100: =IF(OR(MODE=1,MODE=2,MODE=3), BR100, IF(MODE_ILIM=4,#REF!,#REF!)) -> 74.27013018 | CF100: =IF(OR(MODE=1,MODE=2,MODE=3), BZ100, IF(MODE_ILIM=4,#REF!,#REF!)) -> 0.8696989561 | CG100: =IF(OR(MODE=1,MODE=2,MODE=3), CA100, IF(MODE_ILIM=4,#REF!,#REF!)) -> 0.1885728848 | CH100: =IF(OR(MODE=1,MODE=2,MODE=3), CB100, IF(MODE_ILIM=4,#REF!,#REF!)) -> 0.1071956567 | CI100: =(IF(OR(MODE=1,MODE=2,MODE=3), S100, IF(MODE_ILIM=4,#REF!,#REF!)))/1000 -> 1212.237071 | CJ100: =IF(OR(MODE=1,MODE=2,MODE=3), P100, IF(MODE_ILIM=4,#REF!,#REF!)) -> 1.336790731
H101: 95 | I101: 0.2375 | J101: 0.2260627367 | K101: 0.3505605031 | L101: 0.1247566361 | M101: 1.336715419 | N101: 1.336715419 | O101: 1 | P101: 1.336715419 | Q101: 6.164990713e-07 | R101: 0.2525765624 | S101: 1212367.5 | T101: 8.248324047e-07 | U101: 0 | V101: 0.00066 | W101: 0.246297681 | X101: 0.00727950572 | Y101: 0.09994623154 | Z101: 0.1073507709 | AA101: 0.06524030705 | AB101: 2.128148832e-05 | AC101: 2.128148832e-05 | AD101: 0.1082751382 | AE101: 3.517051667e-05 | AF101: 3.517051667e-05 | AG101: 0.1237818151 | AH101: 0.01052617124 | AI101: 0.004867655511 | AJ101: 40 | AK101: 21.91158452 | AL101: 0.3683662921 | AM101: 0.2234635775 | AN101: 0.5966975252 | AO101: 0.6084081548 | AP101: 0.2128567419 | AQ101: 0.01377362975 | AR101: 0.0133360425 | AS101: 0.02173540719 | AT101: 0.009549455777 | AU101: 0.04462090547 | AV101: 0.05854367128 | AW101: 0.03203792404 | AX101: 0.1885897269 | AY101: 0.01820369801 | AZ101: 0.8737452509 | BA101: 0.9811524739 | BB101: 2.85 | BC101: 0.7439014812 | BD101: 0.003056685858 | BE101: 0.003634093373 | BF101: 0.04561434243 | BG101: 0.1557488326 | BH101: 0.005673333897 | BI101: 0.002492580455 | BJ101: 0.01164686234 | BK101: 0.001900082487 | BL101: 0.02608777182 | BM101: 9.180140156e-06 | BN101: 5.554852872e-06 | BO101: 0.04922532532 | BP101: 0.3050946455 | BQ101: 0.7439014812 | BR101: 74.39014812 | BS101: 237.5 | BT101: 73.79163615 | BU101: 0.7379163615 | BV101: 1212.3675 | BX101: 0.05832803028 | BZ101: 0.8737452509 | CA101: 0.1885897269 | CB101: 0.1073507709 | CE101: =IF(OR(MODE=1,MODE=2,MODE=3), BR101, IF(MODE_ILIM=4,#REF!,#REF!)) -> 74.39014812 | CF101: =IF(OR(MODE=1,MODE=2,MODE=3), BZ101, IF(MODE_ILIM=4,#REF!,#REF!)) -> 0.8737452509 | CG101: =IF(OR(MODE=1,MODE=2,MODE=3), CA101, IF(MODE_ILIM=4,#REF!,#REF!)) -> 0.1885897269 | CH101: =IF(OR(MODE=1,MODE=2,MODE=3), CB101, IF(MODE_ILIM=4,#REF!,#REF!)) -> 0.1073507709 | CI101: =(IF(OR(MODE=1,MODE=2,MODE=3), S101, IF(MODE_ILIM=4,#REF!,#REF!)))/1000 -> 1212.3675 | CJ101: =IF(OR(MODE=1,MODE=2,MODE=3), P101, IF(MODE_ILIM=4,#REF!,#REF!)) -> 1.336715419
H102: 96 | I102: =IF(PLOT_TYPE=1, H102/100*Iout, min_I*EXP(H102*rr/100)) -> 0.24 | J102: =IF(I102<Icrit, (Vin-(Rdcr+RdsonTop)*Iripple/2-Vout)/L*OnTime, (Vin-(Rdcr+RdsonTop)*I102-Vout)/L*OnTime) -> 0.22605 | K102: =IF(I102<Icrit, (Vin-(Rdcr+RdsonTop)*Iripple/2-Vout)/L*OnTime, I102+((Vin-(Rdcr+RdsonTop)*J102-Vout)/L*OnTime)/2) -> 0.3530605355 | L102: =IF(I102<Icrit, 0, I102-((Vin-(Rdcr+RdsonTop)*K102-Vout)/L*OnTime)/2) -> 0.1272630046 | M102: 1.336640106 | N102: =IF(I102<Icrit, 1000*SQRT((J102*CoutEsr)^2+(((J102/2)-I102)*(OnTime+OffTime)/Cout)^2), 1000*J102*SQRT(CoutEsr^2+(1/(8*Fsw*Cout))^2)) -> 1.336640106 | O102: 1 | P102: =IF(I102<Icrit, 1000*((N102/1000)*O102), 1000*J102*SQRT(CoutEsr^2+(1/(8*Fsw*Cout))^2)) -> 1.336640106 | Q102: 6.164103403e-07 | R102: 0.2526037362 | S102: 1212497.934 | T102: 8.247436736e-07 | U102: 0 | V102: =S102*(T102*Iq_active+U102*Iq_sleep) -> 0.00066 | W102: 0.2487092633 | X102: =W102^2*Rdcr -> 0.00742275572 | Y102: =Core_Loss/1000*S102/$S$106 -> 0.09995698437 | Z102: =(Y102+X102*(1+Ltc*(Ta-25)))/(1-X102*Ltc*ThetaCa) -> 0.1075074203 | AA102: 0.06524030705 | AB102: 2.128148832e-05 | AC102: 2.128148832e-05 | AD102: 0.1093149294 | AE102: 3.584926139e-05 | AF102: 3.584926139e-05 | AG102: 0.1250005276 | AH102: 0.01073446561 | AI102: 0.004868179203 | AJ102: =20*VIN_nom/24 -> 40 | AK102: 21.75640312 | AL102: =IF(I102<Icrit, Vin*(I102+Iripple/2)*AK102/1000000000/2*S102, Vin*(I102-Iripple/2)*AJ102/1000000000/2*S102 + Vin*(I102+Iripple/2)*AK102/1000000000/2*S102) -> 0.3713159183 | AM102: 0.2234876191 | AN102: 0.5996717166 | AO102: =(AI102+AL102+AM102+AH102*(1+RdsonTopTc*(Ta-25)))/(1-AH102*RdsonTopTc*ThetaJA) -> 0.6116204564 | AP102: 0.214952455 | AQ102: 0.0140461856 | AR102: 0.01333747727 | AS102: =IF(I102<Icrit, Vin*Idss*R102, QrrBot*(I102-Iripple/2)/1*S102*Vin+Vin*Idss*R102) -> 0.02217424488 | AT102: 0.009653272679 | AU102: 0.04516499483 | AV102: =(AR102+AS102+AT102+AQ102*(1+RdsonBotTc*(Ta-25)))/(1-AQ102*RdsonBotTc*ThetaJA) -> 0.05936540236 | AW102: =Vin*V102+Vout*Ifb/0.8 -> 0.03203792404 | AX102: =(Vin-Vdd)*(S102*QgBot+S102*QgTop)+AW102 -> 0.1886065697 | AY102: 0.01820565647 | AZ102: 0.877798085 | BA102: =SUM(Z102,AC102,AF102,AZ102) -> 0.985362636 | BB102: 2.88 | BC102: 0.7450788635 | BD102: 0.003091233847 | BE102: 0.003673758163 | BF102: 0.04521549945 | BG102: 0.1551398337 | BH102: 0.005736653185 | BI102: 0.002497378277 | BJ102: 0.01168454271 | BK102: 0.001920325832 | BL102: 0.02585966539 | BM102: 9.27448852e-06 | BN102: 5.505689977e-06 | BO102: 0.04879401688 | BP102: 0.3036276876 | BQ102: 0.7450788635 | BR102: 74.50788635 | BS102: 240 | BT102: 73.55112438 | BU102: 0.7355112438 | BV102: 1212.497934 | BX102: 0.05781802127 | BZ102: 0.877798085 | CA102: 0.1886065697 | CB102: 0.1075074203 | CE102: =IF(OR(MODE=1,MODE=2,MODE=3), BR102, IF(MODE_ILIM=4,#REF!,#REF!)) -> 74.50788635 | CF102: =IF(OR(MODE=1,MODE=2,MODE=3), BZ102, IF(MODE_ILIM=4,#REF!,#REF!)) -> 0.877798085 | CG102: =IF(OR(MODE=1,MODE=2,MODE=3), CA102, IF(MODE_ILIM=4,#REF!,#REF!)) -> 0.1886065697 | CH102: =IF(OR(MODE=1,MODE=2,MODE=3), CB102, IF(MODE_ILIM=4,#REF!,#REF!)) -> 0.1075074203 | CI102: =(IF(OR(MODE=1,MODE=2,MODE=3), S102, IF(MODE_ILIM=4,#REF!,#REF!)))/1000 -> 1212.497934 | CJ102: =IF(OR(MODE=1,MODE=2,MODE=3), P102, IF(MODE_ILIM=4,#REF!,#REF!)) -> 1.336640106
H103: 97 | I103: =IF(PLOT_TYPE=1, H103/100*Iout, min_I*EXP(H103*rr/100)) -> 0.2425 | J103: 0.2260372633 | K103: 0.355560568 | L103: 0.129769373 | M103: 1.336564793 | N103: 1.336564793 | O103: 1 | P103: 1.336564793 | Q103: 6.163216248e-07 | R103: 0.252630911 | S103: 1212628.373 | T103: =IF(1/S103-OnTime-Q103>Tsleep, OnTime+Q103+Tsleep, 1/S103) -> 8.246549582e-07 | U103: 0 | V103: 0.00066 | W103: 0.251122575 | X103: 0.00756750572 | Y103: 0.09996773763 | Z103: 0.107665605 | AA103: 0.06524030705 | AB103: 2.128148832e-05 | AC103: 2.128148832e-05 | AD103: 0.110355762 | AE103: 3.653518259e-05 | AF103: 3.653518259e-05 | AG103: 0.1262202395 | AH103: =RdsonTop*AG103^2 -> 0.01094497407 | AI103: 0.004868702917 | AJ103: 40 | AK103: 21.6034043 | AL103: 0.3742661722 | AM103: 0.2235116617 | AN103: 0.6026465367 | AO103: 0.6148361069 | AP103: 0.2170498867 | AQ103: =RdsonBot*AP103^2 -> 0.01432163861 | AR103: 0.0133389121 | AS103: 0.02261317657 | AT103: 0.009757172369 | AU103: 0.04570926104 | AV103: 0.06019033103 | AW103: 0.03203792404 | AX103: 0.1886234132 | AY103: 0.01820761502 | AZ103: 0.8818574661 | BA103: 0.9895808878 | BB103: 2.91 | BC103: 0.74623404 | BD103: 0.003125866734 | BE103: 0.003713493936 | BF103: 0.04482356161 | BG103: 0.1545413607 | BH103: 0.005798873578 | BI103: 0.002502107957 | BJ103: 0.011721583 | BK103: 0.001940594627 | BL103: 0.02563550815 | BM103: 9.369002373e-06 | BN103: 5.457378353e-06 | BO103: 0.04837017582 | BP103: 0.3021879525 | BQ103: 0.74623404 | BR103: 74.623404 | BS103: 242.5 | BT103: 73.15978801 | BU103: 0.7315978801 | BV103: 1212.628373 | BX103: 0.05731684201 | BZ103: 0.8818574661 | CA103: 0.1886234132 | CB103: 0.107665605 | CE103: =IF(OR(MODE=1,MODE=2,MODE=3), BR103, IF(MODE_ILIM=4,#REF!,#REF!)) -> 74.623404 | CF103: =IF(OR(MODE=1,MODE=2,MODE=3), BZ103, IF(MODE_ILIM=4,#REF!,#REF!)) -> 0.8818574661 | CG103: =IF(OR(MODE=1,MODE=2,MODE=3), CA103, IF(MODE_ILIM=4,#REF!,#REF!)) -> 0.1886234132 | CH103: =IF(OR(MODE=1,MODE=2,MODE=3), CB103, IF(MODE_ILIM=4,#REF!,#REF!)) -> 0.107665605 | CI103: =(IF(OR(MODE=1,MODE=2,MODE=3), S103, IF(MODE_ILIM=4,#REF!,#REF!)))/1000 -> 1212.628373 | CJ103: =IF(OR(MODE=1,MODE=2,MODE=3), P103, IF(MODE_ILIM=4,#REF!,#REF!)) -> 1.336564793
H104: 98 | I104: =IF(PLOT_TYPE=1, H104/100*Iout, min_I*EXP(H104*rr/100)) -> 0.245 | J104: 0.2260245265 | K104: 0.3580606004 | L104: 0.1322757415 | M104: 1.33648948 | N104: 1.33648948 | O104: 1 | P104: 1.33648948 | Q104: 6.162329249e-07 | R104: 0.2526580869 | S104: 1212758.817 | T104: =IF(1/S104-OnTime-Q104>Tsleep, OnTime+Q104+Tsleep, 1/S104) -> 8.245662582e-07 | U104: 0 | V104: 0.00066 | W104: 0.2535375666 | X104: 0.00771375572 | Y104: 0.09997849132 | Z104: 0.1078253252 | AA104: 0.06524030705 | AB104: 2.128148832e-05 | AC104: 2.128148832e-05 | AD104: 0.1113976088 | AE104: 3.722828177e-05 | AF104: 3.722828177e-05 | AG104: 0.1274409263 | AH104: =RdsonTop*AG104^2 -> 0.01115769732 | AI104: 0.004869226651 | AJ104: 40 | AK104: 21.45254234 | AL104: 0.3772170537 | AM104: 0.2235357052 | AN104: 0.6056219856 | AO104: 0.6180551114 | AP104: 0.2191489948 | AQ104: =RdsonBot*AP104^2 -> 0.0145999897 | AR104: 0.01334034699 | AS104: 0.02305220228 | AT104: 0.009861154869 | AU104: 0.04625370414 | AV104: 0.06101846005 | AW104: 0.03203792404 | AX104: 0.1886402573 | AY104: 0.01820957364 | AZ104: 0.8859234024 | BA104: 0.9938072373 | BB104: 2.94 | BC104: 0.7473675812 | BD104: 0.003160583389 | BE104: 0.003753299288 | BF104: 0.04443835104 | BG104: 0.1539531423 | BH104: 0.005860023355 | BI104: 0.002506771246 | BJ104: 0.01175799966 | BK104: 0.00196088808 | BL104: 0.02541519838 | BM104: 9.463677177e-06 | BN104: 5.409896072e-06 | BO104: 0.04795360981 | BP104: 0.3007747402 | BQ104: 0.7473675812 | BR104: 74.73675812 | BS104: 245 | BT104: 72.61449608 | BU104: 0.7261449608 | BV104: 1212.758817 | BX104: 0.05682426507 | BZ104: 0.8859234024 | CA104: 0.1886402573 | CB104: 0.1078253252 | CE104: =IF(OR(MODE=1,MODE=2,MODE=3), BR104, IF(MODE_ILIM=4,#REF!,#REF!)) -> 74.73675812 | CF104: =IF(OR(MODE=1,MODE=2,MODE=3), BZ104, IF(MODE_ILIM=4,#REF!,#REF!)) -> 0.8859234024 | CG104: =IF(OR(MODE=1,MODE=2,MODE=3), CA104, IF(MODE_ILIM=4,#REF!,#REF!)) -> 0.1886402573 | CH104: =IF(OR(MODE=1,MODE=2,MODE=3), CB104, IF(MODE_ILIM=4,#REF!,#REF!)) -> 0.1078253252 | CI104: =(IF(OR(MODE=1,MODE=2,MODE=3), S104, IF(MODE_ILIM=4,#REF!,#REF!)))/1000 -> 1212.758817 | CJ104: =IF(OR(MODE=1,MODE=2,MODE=3), P104, IF(MODE_ILIM=4,#REF!,#REF!)) -> 1.33648948
H105: 99 | I105: =IF(PLOT_TYPE=1, H105/100*Iout, min_I*EXP(H105*rr/100)) -> 0.2475 | J105: 0.2260117898 | K105: 0.3605606328 | L105: 0.1347821099 | M105: 1.336414168 | N105: 1.336414168 | O105: 1 | P105: 1.336414168 | Q105: 6.161442405e-07 | R105: 0.2526852639 | S105: 1212889.267 | T105: =IF(1/S105-OnTime-Q105>Tsleep, OnTime+Q105+Tsleep, 1/S105) -> 8.244775738e-07 | U105: 0 | V105: 0.00066 | W105: 0.2559541906 | X105: 0.00786150572 | Y105: 0.09998924545 | Z105: 0.1079865811 | AA105: 0.06524030705 | AB105: 2.128148832e-05 | AC105: 2.128148832e-05 | AD105: 0.1124404441 | AE105: 3.792856043e-05 | AF105: 3.792856043e-05 | AG105: 0.1286625641 | AH105: =RdsonTop*AG105^2 -> 0.01137263606 | AI105: 0.004869750406 | AJ105: 40 | AK105: 21.30377278 | AL105: 0.3801685631 | AM105: 0.2235597497 | AN105: 0.6085980632 | AO105: 0.621277475 | AP105: 0.2212497383 | AQ105: =RdsonBot*AP105^2 -> 0.01488123979 | AR105: 0.01334178193 | AS105: 0.02349132202 | AT105: 0.009965220199 | AU105: 0.04679832415 | AV105: 0.06184979222 | AW105: 0.03203792404 | AX105: 0.1886571022 | AY105: 0.01821153234 | AZ105: 0.8899959017 | BA105: 0.9980416929 | BB105: 2.97 | BC105: 0.7484800387 | BD105: 0.003195382721 | BE105: 0.003793172862 | BF105: 0.04405969594 | BG105: 0.1533749165 | BH105: 0.005920129836 | BI105: 0.002511369832 | BJ105: 0.01179380858 | BK105: 0.001981205423 | BL105: 0.02519863781 | BM105: 9.558508544e-06 | BN105: 5.363221954e-06 | BO105: 0.04754413304 | BP105: 0.2993873742 | BQ105: 0.7484800387 | BR105: 74.84800387 | BS105: 247.5 | BT105: 71.91216767 | BU105: 0.7191216767 | BV105: 1212.889267 | BX105: 0.05634007073 | BZ105: 0.8899959017 | CA105: 0.1886571022 | CB105: 0.1079865811 | CE105: =IF(OR(MODE=1,MODE=2,MODE=3), BR105, IF(MODE_ILIM=4,#REF!,#REF!)) -> 74.84800387 | CF105: =IF(OR(MODE=1,MODE=2,MODE=3), BZ105, IF(MODE_ILIM=4,#REF!,#REF!)) -> 0.8899959017 | CG105: =IF(OR(MODE=1,MODE=2,MODE=3), CA105, IF(MODE_ILIM=4,#REF!,#REF!)) -> 0.1886571022 | CH105: =IF(OR(MODE=1,MODE=2,MODE=3), CB105, IF(MODE_ILIM=4,#REF!,#REF!)) -> 0.1079865811 | CI105: =(IF(OR(MODE=1,MODE=2,MODE=3), S105, IF(MODE_ILIM=4,#REF!,#REF!)))/1000 -> 1212.889267 | CJ105: =IF(OR(MODE=1,MODE=2,MODE=3), P105, IF(MODE_ILIM=4,#REF!,#REF!)) -> 1.336414168
H106: 100 | I106: =IF(PLOT_TYPE=1, H106/100*Iout, min_I*EXP(H106*rr/100)) -> 0.25 | J106: 0.225999053 | K106: 0.3630606653 | L106: 0.1372884784 | M106: 1.336338855 | N106: 1.336338855 | O106: 1 | P106: 1.336338855 | Q106: 6.160555716e-07 | R106: 0.252712442 | S106: 1213019.722 | T106: =IF(1/S106-OnTime-Q106>Tsleep, OnTime+Q106+Tsleep, 1/S106) -> 8.24388905e-07 | U106: 0 | V106: 0.00066 | W106: 0.2583724011 | X106: 0.00801075572 | Y106: 0.1 | Z106: 0.108149373 | AA106: 0.06524030705 | AB106: 2.128148832e-05 | AC106: 2.128148832e-05 | AD106: 0.1134842428 | AE106: 3.863602007e-05 | AF106: 3.863602007e-05 | AG106: 0.12988513 | AH106: =RdsonTop*AG106^2 -> 0.01158979099 | AI106: 0.004870274182 | AJ106: 40 | AK106: 21.15705239 | AL106: 0.3831207003 | AM106: 0.2235837951 | AN106: 0.6115747695 | AO106: 0.624503203 | AP106: 0.2233520778 | AQ106: =RdsonBot*AP106^2 -> 0.0151653898 | AR106: 0.01334321694 | AS106: 0.02393053577 | AT106: 0.01006936838 | AU106: 0.04734312109 | AV106: 0.06268433034 | AW106: 0.03203792404 | AX106: 0.1886739477 | AY106: 0.01821349112 | AZ106: 0.8940749722 | BA106: 1.002284263 | BB106: 3 | BC106: 0.7495719452 | BD106: 0.00323026368 | BE106: 0.003833113352 | BF106: 0.0436874303 | BG106: 0.1528064299 | BH106: 0.005979219417 | BI106: 0.002515905348 | BJ106: 0.01182902512 | BK106: 0.002001545916 | BL106: 0.02498573151 | BM106: 9.653492239e-06 | BN106: 5.317335532e-06 | BO106: 0.04714156599 | BP106: =SUM(BD106:BO106) -> 0.2980252013 | BQ106: 0.7495719452 | BR106: 74.95719452 | BS106: 250 | BT106: 71.0498949 | BU106: 0.710498949 | BV106: 1213.019722 | BX106: 0.05586404673 | BZ106: 0.8940749722 | CA106: 0.1886739477 | CB106: 0.108149373 | CE106: =IF(OR(MODE=1,MODE=2,MODE=3), BR106, IF(MODE_ILIM=4,#REF!,#REF!)) -> 74.95719452 | CF106: =IF(OR(MODE=1,MODE=2,MODE=3), BZ106, IF(MODE_ILIM=4,#REF!,#REF!)) -> 0.8940749722 | CG106: =IF(OR(MODE=1,MODE=2,MODE=3), CA106, IF(MODE_ILIM=4,#REF!,#REF!)) -> 0.1886739477 | CH106: =IF(OR(MODE=1,MODE=2,MODE=3), CB106, IF(MODE_ILIM=4,#REF!,#REF!)) -> 0.108149373 | CI106: =(IF(OR(MODE=1,MODE=2,MODE=3), S106, IF(MODE_ILIM=4,#REF!,#REF!)))/1000 -> 1213.019722 | CJ106: =IF(OR(MODE=1,MODE=2,MODE=3), P106, IF(MODE_ILIM=4,#REF!,#REF!)) -> 1.336338855
I107: =Losses!$E$5/1000 -> 0.5 | J107: 0.2247253788 | K107: 0.6130639098 | L107: 0.3879253238 | M107: 1.328807583 | N107: 1.328807583 | O107: 1 | P107: 1.328807583 | Q107: =IF(I107<Icrit, L*J107/(Vout+J107/2*(RdsonBot+Rdcr)), L*J107/(Vout+I107*(RdsonBot+Rdcr))) -> 6.072664183e-07 | R107: =OnTime*S107 -> 0.2554357489 | S107: =IF(I107<Icrit,I107/((OnTime+Q107)*J107/2),1/(OnTime+Q107)) -> 1226091.595 | T107: =IF(1/S107-OnTime-Q107>Tsleep, OnTime+Q107+Tsleep, 1/S107) -> 8.155997516e-07 | U107: =IF(1/S107-OnTime-Q107>Tsleep, 1/S107-OnTime-Q107-Tsleep, 0) -> 0 | V107: 0.00066 | W107: =IF(I107<Icrit,Iripple*SQRT((OnTime+OffTime)*S107/3), SQRT(I107^2+Iripple^2/12)) -> 0.5042383342 | X107: 0.03051075572 | Y107: 0.1010776307 | Z107: 0.1322339155 | AA107: =Iripple/SQRT(12)*SQRT((OnTime+Q107)*S107) -> 0.06524030705 | AB107: =RCoutEsr*AA107^2 -> 2.128148832e-05 | AC107: =AB107 -> 2.128148832e-05 | AD107: =SQRT($R107)*SQRT($I107^2*(1-R107)+(Iripple^2)/12) -> 0.2205318398 | AE107: =RCinEsr*AD107^2 -> 0.000145902877 | AF107: =AE107 -> 0.000145902877 | AG107: =IF(I107<Icrit,Iripple*SQRT((OnTime)*S107/3), SQRT(OnTime*S107*(I107^2+Iripple^2/12))) -> 0.2548453409 | AH107: =RdsonTop*AG107^2 -> 0.04461800354 | AI107: =QgTop*S107*Vdd -> 0.004922757752 | AJ107: 40 | AK107: =IF(I107<Icrit, Csw*Vin/Iripple*1000000000, Csw*Vin/(I107+Iripple/2)*1000000000) -> 12.5285578 | AL107: 0.6815113093 | AM107: =IF(I107<Icrit, Csw*(Vin)^2*S107/2, Csw*Vin^2*S107/2) -> 0.2259932027 | AN107: 0.9124272697 | AO107: 0.9650086207 | AP107: =IF(I107<Icrit,Iripple*SQRT((OffTime)*S107/3), SQRT(OffTime*S107*(I107^2+Iripple^2/12))) -> 0.4382352037 | AQ107: =RdsonBot*AP107^2 -> 0.05838322851 | AR107: =QgBot*S107*Vdd -> 0.01348700754 | AS107: 0.06832771598 | AT107: =IF(I107<Icrit, dead1*S107*(I107+Iripple/2)*((I107+Iripple/2)*BDserR+VSD), dead1*S107*(I107+Iripple/2)*((I107+Iripple/2)*BDserR+VSD)+dead2*S107*(I107-Iripple/2)*((I107-Iripple/2)*BDserR+VSD)) -> 0.02090618044 | AU107: 0.102720904 | AV107: 0.1628627206 | AW107: 0.03203792404 | AX107: 0.1903619056 | AY107: =AI107+AR107 -> 0.01840976529 | AZ107: =AO107+AV107+AX107+AY107 -> 1.336643012 | BA107: 1.469044112 | BB107: =Vout*I107 -> 6 | BC107: =BB107/(BB107+BA107) -> 0.8033156466 | BD107: 0.007039903655 | BE107: 0.008052143715 | BF107: =Vin*S107*(QgBot+QgTop)/($BB107+$BA107) -> 0.02366216401 | BG107: 0.1221611837 | BH107: =AS107/(BA107+BB107) -> 0.009148120557 | BI107: =AT107/($BB107+$BA107) -> 0.002799043643 | BJ107: 0.0137528849 | BK107: =X107/($BB107+$BA107) -> 0.004084961243 | BL107: =Y107/($BB107+$BA107) -> 0.01353287371 | BM107: =(AF107)/($BB107+$BA107) -> 1.9534344e-05 | BN107: =(AC107)/($BB107+$BA107) -> 2.849292092e-06 | BO107: 0.02548678287 | BP107: =SUM(BD107:BO107) -> 0.2297424456 | BQ107: =BC107 -> 0.8033156466 | BR107: =100*BQ107 -> 80.33156466 | BS107: =I107*1000 -> 500 | BT107: 72.0498949 | BU107: =BT107/100 -> 0.720498949 | BV107: =S107/1000 -> 1226.091595 | BX107: =AM107/($BB107+$BA107) -> 0.03025731263 | BZ107: 1.336643012 | CA107: 0.1903619056 | CB107: 0.1322339155 | CE107: =IF(OR(MODE=1,MODE=2,MODE=3), BR107, IF(MODE_ILIM=4,#REF!,#REF!)) -> 80.33156466 | CF107: =IF(OR(MODE=1,MODE=2,MODE=3), BZ107, IF(MODE_ILIM=4,#REF!,#REF!)) -> 1.336643012 | CG107: =IF(OR(MODE=1,MODE=2,MODE=3), CA107, IF(MODE_ILIM=4,#REF!,#REF!)) -> 0.1903619056 | CH107: =IF(OR(MODE=1,MODE=2,MODE=3), CB107, IF(MODE_ILIM=4,#REF!,#REF!)) -> 0.1322339155 | CI107: =(IF(OR(MODE=1,MODE=2,MODE=3), S107, IF(MODE_ILIM=4,#REF!,#REF!)))/1000 -> 1226.091595 | CJ107: =IF(OR(MODE=1,MODE=2,MODE=3), P107, IF(MODE_ILIM=4,#REF!,#REF!)) -> 1.328807583
BD108: =IF(OR(MODE=1, MODE=2,MODE=3),Efficiency!BD107,IF(AND(MODE=4,MODE_ILIM=4),#REF!,#REF!)) -> 0.007039903655 | BE108: =IF(OR(MODE=1, MODE=2,MODE=3),Efficiency!BE107,IF(AND(MODE=4,MODE_ILIM=4),#REF!,#REF!)) -> 0.008052143715 | BG108: =IF(OR(MODE=1, MODE=2,MODE=3),Efficiency!BG107,IF(AND(MODE=4,MODE_ILIM=4),#REF!,#REF!)) -> 0.1221611837 | BJ108: =IF(OR(MODE=1, MODE=2,MODE=3),Efficiency!BJ107,IF(AND(MODE=4,MODE_ILIM=4),#REF!,#REF!)) -> 0.0137528849 | BK108: =IF(OR(MODE=1, MODE=2,MODE=3),Efficiency!BK107,IF(AND(MODE=4,MODE_ILIM=4),#REF!,#REF!)) -> 0.004084961243 | BL108: =IF(OR(MODE=1, MODE=2,MODE=3),Efficiency!BL107,IF(AND(MODE=4,MODE_ILIM=4),#REF!,#REF!)) -> 0.01353287371 | BO108: =IF(OR(MODE=1, MODE=2,MODE=3),Efficiency!BO107,IF(AND(MODE=4,MODE_ILIM=4),#REF!,#REF!)) -> 0.02548678287
H109: 1e-05 | I109: A | J109: min_I | BC109: Load (A) | BD109: High-side MOSFET Rdson % | BE109: Low-side MOSFET Rdson % | BF109: Gate Drive (Qg) Loss from Vin % | BG109: High-side MOSFET Switching Loss % | BH109: Reverse Recovery & Leakage Loss % | BI109: Deadtime Loss % | BK109: Inductor Cu Loss % | BL109: Inductor Core Loss % | BM109: Cin ESR % | BN109: Cout ESR % | BO109: Quiescent Current Loss % | BP109: Total Loss % | BQ109: Overall Eff %
H110: =Iout -> 0.25 | I110: A | J110: max_I | BC110: =I107 -> 0.5 | BD110: =BD107 -> 0.007039903655 | BE110: =BE107 -> 0.008052143715 | BF110: 0.02366216401 | BG110: 0.1221611837 | BH110: 0.009148120557 | BI110: 0.002799043643 | BK110: 0.004084961243 | BL110: 0.01353287371 | BM110: 1.9534344e-05 | BN110: 2.849292092e-06 | BO110: 0.02548678287 | BP110: 0.2297424456 | BQ110: 0.8033156466
H111: =LOG(max_I/min_I,EXP(1)) -> 10.1266311 | J111: rr | BC111: 10mA | BD111: =BD70 -> 0.002036640151 | BE111: =BE70 -> 0.002450676574 | BF111: 0.0627739603 | BG111: 0.1819390318 | BH111: 0.002947458398 | BI111: 0.002296571111 | BK111: 0.001291266279 | BL111: 0.0359017069 | BM111: 6.372347222e-06 | BN111: 7.670092631e-06 | BO111: 0.06778184162 | BP111: 0.3694676677 | BQ111: 0.6919900351
BC112: 50ma | BD112: =BD85 -> 0.00251657501 | BE112: =BE85 -> 0.003010491965 | BF112: 0.05310836227 | BG112: 0.1671888614 | BH112: 0.004483198559 | BI112: 0.002404842531 | BK112: 0.00158042309 | BL112: 0.03037375445 | BM112: 7.697495246e-06 | BN112: 6.478612822e-06 | BO112: 0.05732937982 | BP112: 0.3329509422 | BQ112: 0.7214867756
BC113: 100mA | BD113: =BD91 -> 0.00271615678 | BE113: =BE91 -> 0.003241699564 | BF113: 0.05002660252 | BG113: 0.1624849274 | BH113: 0.00497269794 | BI113: 0.002440421312 | BK113: 0.001699245139 | BL113: 0.02861123326 | BM113: 8.246881907e-06 | BN113: 6.098731883e-06 | BO113: 0.05399675017 | BP113: 0.3214348579 | BQ113: 0.730764976
BC114: 500mA | BD114: =BD106 -> 0.00323026368 | BE114: =BE106 -> 0.003833113352 | BF114: 0.0436874303 | BG114: 0.1528064299 | BH114: 0.005979219417 | BI114: 0.002515905348 | BK114: 0.002001545916 | BL114: 0.02498573151 | BM114: 9.653492239e-06 | BN114: 5.317335532e-06 | BO114: 0.04714156599 | BP114: 0.2980252013 | BQ114: 0.7495719452

Sheet Schematic Mgmt (hidden)
A2: ='Variable Mgmt'!K27 -> SCH_COT3_LM5164

Sheet Efficiency Plots (hidden)
A2: =IF(PLOT_TYPE=1, "EFF_LINEAR", "EFF_LOG") -> EFF_LINEAR
